{"text_format":"1","workbook":"xlsx","n_sheets":4,"sheets":["今日の名言","Font_List","作業","名言集"],"not_rendered":{"charts":0,"images":2,"macros":1,"external_links":0,"defined_names":0,"comments":0,"pivot_tables":0},"unopened":[],"bounds":{"document_bytes":16777216,"sheet_cells":100000,"rows_first":2000,"rows_last":500,"rows_between":2000,"halvings":0,"cell_chars":16384,"cell_head_chars":4096},"cells_cut":0,"cells_raw":0,"read":"whole","date_system":"1900"}

{"sheet":"今日の名言","index":0,"n_rows":14,"n_cols":28,"rows_kept":14,"cut":false,"hidden":false,"merged":[[23,3,23,24],[4,27,4,32],[5,27,6,32],[2,18,2,19],[2,8,2,17],[4,3,19,24],[21,3,21,24],[12,27,12,32],[13,27,13,32]]}
[]
[]
[null,null,null,null,null,null,null,null,{"$f":"TODAY()","v":"2022-05-14"},null,null,null,null,null,null,null,null,null,{"$f":"I3","v":44695}]
[]
[null,null,null,null,null,null,null,null,null,null,null,null,null,null,null,null,null,null,null,null,null,null,null,null,null,null,null,"キーワード"]
[]
[]
[]
[]
[]
[]
[]
[null,null,null,null,null,null,null,null,null,null,null,null,null,null,null,null,null,null,null,null,null,null,null,null,null,null,null,"表示書式"]
[null,null,null,null,null,null,null,null,null,null,null,null,null,null,null,null,null,null,null,null,null,null,null,null,null,null,null,"HGP行書体"]

{"sheet":"Font_List","index":1,"n_rows":1140,"n_cols":3,"rows_kept":1140,"cut":false,"hidden":true,"merged":[]}
[null,"LAPTOP-P9609JQC",{"$f":"TODAY()","v":"2022-05-14"}]
[]
[null,"【定義済フォント名一覧表】"]
[]
[null,"フォント名",{"$f":"\"Font_List!B6:B106\"","v":"Font_List!B6:B106"}]
[3,"BIZ UDPゴシック"]
[4,"BIZ UDP明朝 Medium"]
[5,"BIZ UDゴシック"]
[6,"BIZ UD明朝 Medium"]
[7,"EPSON Pゴシック W6"]
[8,"EPSON Pゴシック W7"]
[9,"EPSON ゴシック W6"]
[10,"EPSON ゴシック W7"]
[11,"EPSON 太角ゴシック体Ｂ"]
[12,"EPSON 太丸ゴシック体Ｂ"]
[13,"HGPｺﾞｼｯｸE"]
[14,"HGPｺﾞｼｯｸM"]
[15,"HGP教科書体"]
[16,"HGP行書体"]
[17,"HGP創英ﾌﾟﾚｾﾞﾝｽEB"]
[18,"HGP創英角ｺﾞｼｯｸUB"]
[19,"HGP創英角ﾎﾟｯﾌﾟ体"]
[20,"HGP明朝B"]
[21,"HGP明朝E"]
[22,"HGSｺﾞｼｯｸE"]
[23,"HGSｺﾞｼｯｸM"]
[24,"HGS教科書体"]
[25,"HGS行書体"]
[26,"HGS創英ﾌﾟﾚｾﾞﾝｽEB"]
[27,"HGS創英角ｺﾞｼｯｸUB"]
[28,"HGS創英角ﾎﾟｯﾌﾟ体"]
[29,"HGS明朝B"]
[30,"HGS明朝E"]
[31,"HGｺﾞｼｯｸE"]
[32,"HGｺﾞｼｯｸM"]
[33,"HG丸ｺﾞｼｯｸM-PRO"]
[34,"HG教科書体"]
[35,"HG行書体"]
[36,"HG正楷書体-PRO"]
[37,"HG創英ﾌﾟﾚｾﾞﾝｽEB"]
[38,"HG創英角ｺﾞｼｯｸUB"]
[39,"HG創英角ﾎﾟｯﾌﾟ体"]
[40,"HG明朝B"]
[41,"HG明朝E"]
[42,"Klee One"]
[43,"Klee One SemiBold"]
[44,"Meiryo UI"]
[45,"ＭＳ Ｐゴシック"]
[46,"ＭＳ Ｐ明朝"]
[47,"MS UI Gothic"]
[48,"ＭＳ ゴシック"]
[49,"ＭＳ 明朝"]
[50,"UD デジタル 教科書体 N-B"]
[51,"UD デジタル 教科書体 NK-B"]
[52,"UD デジタル 教科書体 NK-R"]
[53,"UD デジタル 教科書体 NP-B"]
[54,"UD デジタル 教科書体 NP-R"]
[55,"UD デジタル 教科書体 N-R"]
[56,"Yu Gothic UI"]
[57,"Yu Gothic UI Light"]
[58,"Yu Gothic UI Semibold"]
[59,"Yu Gothic UI Semilight"]
[60,"メイリオ"]
[61,"游ゴシック"]
[62,"游ゴシック Light"]
[63,"游ゴシック Medium"]
[64,"游明朝"]
[65,"游明朝 Demibold"]
[66,"游明朝 Light"]
[67,"Batang"]
[68,"BatangChe"]
[69,"DengXian"]
[70,"DengXian Light"]
[71,"Dotum"]
[72,"DotumChe"]
[73,"FangSong"]
[74,"Gulim"]
[75,"GulimChe"]
[76,"Gungsuh"]
[77,"GungsuhChe"]
[78,"KaiTi"]
[79,"Malgun Gothic"]
[80,"Malgun Gothic Semilight"]
[81,"Microsoft GothicNeo"]
[82,"Microsoft GothicNeo Light"]
[83,"Microsoft JhengHei"]
[84,"Microsoft JhengHei Light"]
[85,"Microsoft JhengHei UI"]
[86,"Microsoft JhengHei UI Light"]
[87,"Microsoft YaHei"]
[88,"Microsoft YaHei Light"]
[89,"Microsoft YaHei UI"]
[90,"Microsoft YaHei UI Light"]
[91,"MingLiU"]
[92,"MingLiU_HKSCS"]
[93,"MingLiU_HKSCS-ExtB"]
[94,"MingLiU-ExtB"]
[95,"Nanum Brush Script"]
[96,"Nanum Pen"]
[97,"NanumGothic"]
[98,"NanumGothicCoding"]
[99,"NanumGothicExtraBold"]
[100,"NanumMyeongjo"]
[101,"NanumMyeongjoExtraBold"]
[102,"NSimSun"]
[103,"PMingLiU"]
[104,"PMingLiU-ExtB"]
[105,"SimHei"]
[106,"SimSun"]
[107,"SimSun-ExtB"]
[108,"STCaiyun"]
[109,"STFangsong"]
[110,"STHupo"]
[111,"STKaiti"]
[112,"STXihei"]
[113,"STXingkai"]
[114,"STXinwei"]
[115,"STZhongsong"]
[116,"Abadi"]
[117,"Abadi Extra Light"]
[118,"Abel"]
[119,"Abril Fatface"]
[120,"Agency FB"]
[121,"Aharoni"]
[122,"Aldhabi"]
[123,"Alef"]
[124,"Aleo"]
[125,"Aleo Light"]
[126,"Algerian"]
[127,"Amasis MT Pro"]
[128,"Amasis MT Pro Black"]
[129,"Amasis MT Pro Light"]
[130,"Amasis MT Pro Medium"]
[131,"Amatic SC"]
[132,"Angsana New"]
[133,"AngsanaUPC"]
[134,"Anton"]
[135,"Aparajita"]
[136,"Arabic Typesetting"]
[137,"Aref Ruqaa"]
[138,"Arial"]
[139,"Arial Black"]
[140,"Arial Narrow"]
[141,"Arial Nova"]
[142,"Arial Nova Cond"]
[143,"Arial Nova Cond Light"]
[144,"Arial Nova Light"]
[145,"Arial Rounded MT Bold"]
[146,"Assistant"]
[147,"Assistant ExtraBold"]
[148,"Assistant ExtraLight"]
[149,"Assistant Light"]
[150,"Assistant SemiBold"]
[151,"Athiti"]
[152,"Athiti ExtraLight"]
[153,"Athiti Light"]
[154,"Athiti Medium"]
[155,"Athiti SemiBold"]
[156,"Avenir Next LT Pro"]
[157,"Avenir Next LT Pro Demi"]
[158,"Avenir Next LT Pro Light"]
[159,"Baguet Script"]
[160,"Bahnschrift"]
[161,"Bahnschrift Condensed"]
[162,"Bahnschrift Light"]
[163,"Bahnschrift Light Condensed"]
[164,"Bahnschrift Light SemiCondensed"]
[165,"Bahnschrift SemiBold"]
[166,"Bahnschrift SemiBold Condensed"]
[167,"Bahnschrift SemiBold SemiConden"]
[168,"Bahnschrift SemiCondensed"]
[169,"Bahnschrift SemiLight"]
[170,"Bahnschrift SemiLight Condensed"]
[171,"Bahnschrift SemiLight SemiConde"]
[172,"Barlow"]
[173,"Barlow Black"]
[174,"Barlow Condensed"]
[175,"Barlow Condensed Black"]
[176,"Barlow Condensed ExtraBold"]
[177,"Barlow Condensed ExtraLight"]
[178,"Barlow Condensed Light"]
[179,"Barlow Condensed Medium"]
[180,"Barlow Condensed SemiBold"]
[181,"Barlow Condensed Thin"]
[182,"Barlow ExtraBold"]
[183,"Barlow ExtraLight"]
[184,"Barlow Light"]
[185,"Barlow Medium"]
[186,"Barlow Semi Condensed"]
[187,"Barlow Semi Condensed Black"]
[188,"Barlow Semi Condensed ExLight"]
[189,"Barlow Semi Condensed ExtraBold"]
[190,"Barlow Semi Condensed Light"]
[191,"Barlow Semi Condensed Medium"]
[192,"Barlow Semi Condensed SemiBold"]
[193,"Barlow Semi Condensed Thin"]
[194,"Barlow SemiBold"]
[195,"Barlow Thin"]
[196,"Baskerville Old Face"]
[197,"Bauhaus 93"]
[198,"Bebas Neue"]
[199,"Bell MT"]
[200,"Bembo"]
[201,"Berlin Sans FB"]
[202,"Berlin Sans FB Demi"]
[203,"Bernard MT Condensed"]
[204,"Bierstadt"]
[205,"Bierstadt Display"]
[206,"Biome"]
[207,"Biome Light"]
[208,"Blackadder ITC"]
[209,"Bodoni MT"]
[210,"Bodoni MT Black"]
[211,"Bodoni MT Condensed"]
[212,"Bodoni MT Poster Compressed"]
[213,"Book Antiqua"]
[214,"Bookman Old Style"]
[215,"Bookshelf Symbol 7"]
[216,"Bradley Hand ITC"]
[217,"Britannic Bold"]
[218,"Broadway"]
[219,"Browallia New"]
[220,"BrowalliaUPC"]
[221,"Brush Script MT"]
[222,"Buxton Sketch"]
[223,"Calibri"]
[224,"Calibri Light"]
[225,"Californian FB"]
[226,"Calisto MT"]
[227,"Cambria"]
[228,"Cambria Math"]
[229,"Candara"]
[230,"Candara Light"]
[231,"Castellar"]
[232,"Caveat Brush"]
[233,"Cavolini"]
[234,"Centaur"]
[235,"Century"]
[236,"Century Gothic"]
[237,"Century Schoolbook"]
[238,"Chamberi Super Display"]
[239,"Charmonman"]
[240,"Chiller"]
[241,"Chonburi"]
[242,"Cochocib Script Latin Pro"]
[243,"Colonna MT"]
[244,"Comic Sans MS"]
[245,"Concert One"]
[246,"Congenial"]
[247,"Congenial Black"]
[248,"Congenial Light"]
[249,"Congenial SemiBold"]
[250,"Congenial UltraLight"]
[251,"Consolas"]
[252,"Constantia"]
[253,"Convection"]
[254,"Convection Condensed"]
[255,"Convection Extra Bold"]
[256,"Convection Symbol"]
[257,"Convection UI"]
[258,"Cooper Black"]
[259,"Copperplate Gothic Bold"]
[260,"Copperplate Gothic Light"]
[261,"Corbel"]
[262,"Corbel Light"]
[263,"Cordia New"]
[264,"CordiaUPC"]
[265,"Courier New"]
[266,"Curlz MT"]
[267,"Dante"]
[268,"DaunPenh"]
[269,"David"]
[270,"Daytona"]
[271,"Daytona Condensed"]
[272,"Daytona Condensed Light"]
[273,"Daytona Light"]
[274,"Didact Gothic"]
[275,"DilleniaUPC"]
[276,"DM Mono"]
[277,"DM Mono Light"]
[278,"DM Mono Medium"]
[279,"DM Sans"]
[280,"DM Sans Medium"]
[281,"DM Serif Display"]
[282,"DM Serif Text"]
[283,"DokChampa"]
[284,"Dosis"]
[285,"Dosis ExtraBold"]
[286,"Dosis ExtraLight"]
[287,"Dosis Light"]
[288,"Dosis Medium"]
[289,"Dosis SemiBold"]
[290,"Dreaming Outloud Pro"]
[291,"Dreaming Outloud Script Pro"]
[292,"Dubai"]
[293,"Dubai Light"]
[294,"Dubai Medium"]
[295,"EB Garamond"]
[296,"EB Garamond ExtraBold"]
[297,"EB Garamond Medium"]
[298,"EB Garamond SemiBold"]
[299,"Ebrima"]
[300,"Edwardian Script ITC"]
[301,"Elephant"]
[302,"Elephant Pro"]
[303,"Engravers MT"]
[304,"Eras Bold ITC"]
[305,"Eras Demi ITC"]
[306,"Eras Light ITC"]
[307,"Eras Medium ITC"]
[308,"EucrosiaUPC"]
[309,"Euphemia"]
[310,"Fahkwang"]
[311,"Fahkwang ExtraLight"]
[312,"Fahkwang Light"]
[313,"Fahkwang Medium"]
[314,"Fahkwang SemiBold"]
[315,"Fairwater Script"]
[316,"Fairwater Script Light"]
[317,"Fave Script Bold Pro"]
[318,"Felix Titling"]
[319,"Fira Code"]
[320,"Fira Code Light"]
[321,"Fira Code Medium"]
[322,"Fira Code Retina"]
[323,"Fira Mono"]
[324,"Fira Mono Medium"]
[325,"Fira Sans"]
[326,"Fira Sans Black"]
[327,"Fira Sans Condensed"]
[328,"Fira Sans Condensed Black"]
[329,"Fira Sans Condensed ExtraBold"]
[330,"Fira Sans Condensed ExtraLight"]
[331,"Fira Sans Condensed Light"]
[332,"Fira Sans Condensed Medium"]
[333,"Fira Sans Condensed SemiBold"]
[334,"Fira Sans Condensed Thin"]
[335,"Fira Sans Extra Condensed"]
[336,"Fira Sans Extra Condensed Black"]
[337,"Fira Sans Extra Condensed Light"]
[338,"Fira Sans Extra Condensed Thin"]
[339,"Fira Sans ExtraBold"]
[340,"Fira Sans ExtraLight"]
[341,"Fira Sans Light"]
[342,"Fira Sans Medium"]
[343,"Fira Sans SemiBold"]
[344,"Fira Sans Thin"]
[345,"Fjalla One"]
[346,"Footlight MT Light"]
[347,"Forte"]
[348,"Frank Ruhl Libre"]
[349,"Frank Ruhl Libre Black"]
[350,"Frank Ruhl Libre Light"]
[351,"Frank Ruhl Libre Medium"]
[352,"Franklin Gothic Book"]
[353,"Franklin Gothic Demi"]
[354,"Franklin Gothic Demi Cond"]
[355,"Franklin Gothic Heavy"]
[356,"Franklin Gothic Medium"]
[357,"Franklin Gothic Medium Cond"]
[358,"FrankRuehl"]
[359,"Fredoka One"]
[360,"FreesiaUPC"]
[361,"Freestyle Script"]
[362,"French Script MT"]
[363,"Gabriela"]
[364,"Gabriola"]
[365,"Gadugi"]
[366,"Gaegu"]
[367,"Gaegu Light"]
[368,"Garamond"]
[369,"Gautami"]
[370,"Georgia"]
[371,"Georgia Pro"]
[372,"Georgia Pro Black"]
[373,"Georgia Pro Cond"]
[374,"Georgia Pro Cond Black"]
[375,"Georgia Pro Cond Light"]
[376,"Georgia Pro Cond Semibold"]
[377,"Georgia Pro Light"]
[378,"Georgia Pro Semibold"]
[379,"Gigi"]
[380,"Gill Sans MT"]
[381,"Gill Sans MT Condensed"]
[382,"Gill Sans MT Ext Condensed Bold"]
[383,"Gill Sans Nova"]
[384,"Gill Sans Nova Cond"]
[385,"Gill Sans Nova Cond Lt"]
[386,"Gill Sans Nova Cond Ultra Bold"]
[387,"Gill Sans Nova Cond XBd"]
[388,"Gill Sans Nova Light"]
[389,"Gill Sans Nova Ultra Bold"]
[390,"Gill Sans Ultra Bold"]
[391,"Gill Sans Ultra Bold Condensed"]
[392,"Gisha"]
[393,"Gloucester MT Extra Condensed"]
[394,"Goudy Old Style"]
[395,"Goudy Stout"]
[396,"Goudy Type"]
[397,"Grandview"]
[398,"Grandview Display"]
[399,"Grotesque"]
[400,"Grotesque Light"]
[401,"Hadassah Friedlaender"]
[402,"Haettenschweiler"]
[403,"Hammersmith One"]
[404,"Harlow Solid Italic"]
[405,"Harrington"]
[406,"Heebo"]
[407,"Heebo Black"]
[408,"Heebo ExtraBold"]
[409,"Heebo Light"]
[410,"Heebo Medium"]
[411,"Heebo Thin"]
[412,"High Tower Text"]
[413,"Hind"]
[414,"Hind Colombo"]
[415,"Hind Colombo Light"]
[416,"Hind Colombo Medium"]
[417,"Hind Colombo SemiBold"]
[418,"Hind Guntur"]
[419,"Hind Guntur Light"]
[420,"Hind Guntur Medium"]
[421,"Hind Guntur SemiBold"]
[422,"Hind Jalandhar"]
[423,"Hind Jalandhar Light"]
[424,"Hind Jalandhar Medium"]
[425,"Hind Jalandhar SemiBold"]
[426,"Hind Kochi"]
[427,"Hind Kochi Light"]
[428,"Hind Kochi Medium"]
[429,"Hind Kochi SemiBold"]
[430,"Hind Light"]
[431,"Hind Madurai"]
[432,"Hind Madurai Light"]
[433,"Hind Madurai Medium"]
[434,"Hind Madurai SemiBold"]
[435,"Hind Medium"]
[436,"Hind Mysuru"]
[437,"Hind Mysuru Light"]
[438,"Hind Mysuru Medium"]
[439,"Hind Mysuru SemiBold"]
[440,"Hind SemiBold"]
[441,"Hind Siliguri"]
[442,"Hind Siliguri Light"]
[443,"Hind Siliguri Medium"]
[444,"Hind Siliguri SemiBold"]
[445,"Hind Vadodara"]
[446,"Hind Vadodara Light"]
[447,"Hind Vadodara Medium"]
[448,"Hind Vadodara SemiBold"]
[449,"HoloLens MDL2 Assets"]
[450,"IBM Plex Mono"]
[451,"IBM Plex Mono ExtraLight"]
[452,"IBM Plex Mono Light"]
[453,"IBM Plex Mono Medium"]
[454,"IBM Plex Mono SemiBold"]
[455,"IBM Plex Mono Thin"]
[456,"IBM Plex Sans"]
[457,"IBM Plex Sans Condensed"]
[458,"IBM Plex Sans Condensed Light"]
[459,"IBM Plex Sans Condensed Medium"]
[460,"IBM Plex Sans Condensed Thin"]
[461,"IBM Plex Sans ExtraLight"]
[462,"IBM Plex Sans Light"]
[463,"IBM Plex Sans Medium"]
[464,"IBM Plex Sans SemiBold"]
[465,"IBM Plex Sans Thin"]
[466,"IBM Plex Serif"]
[467,"IBM Plex Serif ExtraLight"]
[468,"IBM Plex Serif Light"]
[469,"IBM Plex Serif Medium"]
[470,"IBM Plex Serif SemiBold"]
[471,"IBM Plex Serif Thin"]
[472,"Impact"]
[473,"Imprint MT Shadow"]
[474,"Inconsolata"]
[475,"Inconsolata Black"]
[476,"Inconsolata Bold"]
[477,"Inconsolata Condensed"]
[478,"Inconsolata Condensed Black"]
[479,"Inconsolata Condensed Bold"]
[480,"Inconsolata Condensed ExtraBold"]
[481,"Inconsolata Condensed Light"]
[482,"Inconsolata Condensed Medium"]
[483,"Inconsolata Condensed SemiBold"]
[484,"Inconsolata Expanded"]
[485,"Inconsolata Expanded Black"]
[486,"Inconsolata Expanded Bold"]
[487,"Inconsolata Expanded ExtraBold"]
[488,"Inconsolata Expanded ExtraLight"]
[489,"Inconsolata Expanded Light"]
[490,"Inconsolata Expanded Medium"]
[491,"Inconsolata Expanded SemiBold"]
[492,"Inconsolata ExtraBold"]
[493,"Inconsolata ExtraCondensed"]
[494,"Inconsolata ExtraCondensed Bold"]
[495,"Inconsolata ExtraExpanded"]
[496,"Inconsolata ExtraExpanded Black"]
[497,"Inconsolata ExtraExpanded Bold"]
[498,"Inconsolata ExtraExpanded Light"]
[499,"Inconsolata ExtraLight"]
[500,"Inconsolata Light"]
[501,"Inconsolata Medium"]
[502,"Inconsolata SemiBold"]
[503,"Inconsolata SemiCondensed"]
[504,"Inconsolata SemiCondensed Black"]
[505,"Inconsolata SemiCondensed Bold"]
[506,"Inconsolata SemiCondensed Light"]
[507,"Inconsolata SemiExpanded"]
[508,"Inconsolata SemiExpanded Black"]
[509,"Inconsolata SemiExpanded Bold"]
[510,"Inconsolata SemiExpanded Light"]
[511,"Inconsolata SemiExpanded Medium"]
[512,"Inconsolata UltraCondensed"]
[513,"Inconsolata UltraCondensed Bold"]
[514,"Inconsolata UltraExpanded"]
[515,"Inconsolata UltraExpanded Black"]
[516,"Inconsolata UltraExpanded Bold"]
[517,"Inconsolata UltraExpanded Light"]
[518,"Informal Roman"]
[519,"Ink Free"]
[520,"IrisUPC"]
[521,"Iskoola Pota"]
[522,"Italianno"]
[523,"JasmineUPC"]
[524,"Javanese Text"]
[525,"Jokerman"]
[526,"Josefin Sans"]
[527,"Josefin Sans Bold"]
[528,"Josefin Sans Light"]
[529,"Josefin Sans SemiBold"]
[530,"Josefin Sans Thin"]
[531,"Josefin Slab"]
[532,"Josefin Slab Light"]
[533,"Josefin Slab SemiBold"]
[534,"Josefin Slab Thin"]
[535,"Juice ITC"]
[536,"Jumble"]
[537,"Kalinga"]
[538,"Karla"]
[539,"Karla ExtraBold"]
[540,"Karla ExtraLight"]
[541,"Karla Light"]
[542,"Karla Medium"]
[543,"Karla Tamil Inclined"]
[544,"Karla Tamil Upright"]
[545,"Kartika"]
[546,"Khmer UI"]
[547,"Kigelia"]
[548,"Kigelia Arabic"]
[549,"Kigelia Arabic Light"]
[550,"Kigelia Light"]
[551,"KodchiangUPC"]
[552,"Kokila"]
[553,"Kristen ITC"]
[554,"Krub"]
[555,"Krub ExtraLight"]
[556,"Krub Light"]
[557,"Krub Medium"]
[558,"Krub SemiBold"]
[559,"Kunstler Script"]
[560,"Lalezar"]
[561,"Lao UI"]
[562,"Latha"]
[563,"Lato"]
[564,"Lato Black"]
[565,"Lato ExtraBold"]
[566,"Lato ExtraLight"]
[567,"Lato Light"]
[568,"Lato Medium"]
[569,"Lato SemiBold"]
[570,"Lato Thin"]
[571,"Leelawadee"]
[572,"Leelawadee UI"]
[573,"Leelawadee UI Semilight"]
[574,"Levenim MT"]
[575,"Libre Barcode 128"]
[576,"Libre Barcode 128 Text"]
[577,"Libre Barcode 39"]
[578,"Libre Barcode 39 Extended"]
[579,"Libre Barcode 39 Extended Text"]
[580,"Libre Barcode 39 Text"]
[581,"Libre Barcode EAN13 Text"]
[582,"Libre Baskerville"]
[583,"Libre Franklin"]
[584,"Libre Franklin Black"]
[585,"Libre Franklin ExtraBold"]
[586,"Libre Franklin ExtraLight"]
[587,"Libre Franklin Light"]
[588,"Libre Franklin Medium"]
[589,"Libre Franklin SemiBold"]
[590,"Libre Franklin Thin"]
[591,"Ligconsolata"]
[592,"LilyUPC"]
[593,"Livvic"]
[594,"Livvic Black"]
[595,"Livvic ExtraLight"]
[596,"Livvic Light"]
[597,"Livvic Medium"]
[598,"Livvic SemiBold"]
[599,"Livvic Thin"]
[600,"Lobster"]
[601,"Lobster Two"]
[602,"Lora"]
[603,"Lora Medium"]
[604,"Lucida Bright"]
[605,"Lucida Calligraphy"]
[606,"Lucida Console"]
[607,"Lucida Fax"]
[608,"Lucida Handwriting"]
[609,"Lucida Sans"]
[610,"Lucida Sans Typewriter"]
[611,"Lucida Sans Unicode"]
[612,"Magneto"]
[613,"Maiandra GD"]
[614,"Mangal"]
[615,"Mangal Pro"]
[616,"Marlett"]
[617,"Matura MT Script Capitals"]
[618,"Meddon"]
[619,"Merriweather"]
[620,"Merriweather Black"]
[621,"Merriweather Light"]
[622,"Merriweather Sans"]
[623,"Merriweather Sans ExtraBold"]
[624,"Merriweather Sans Light"]
[625,"Microsoft Himalaya"]
[626,"Microsoft New Tai Lue"]
[627,"Microsoft PhagsPa"]
[628,"Microsoft Sans Serif"]
[629,"Microsoft Tai Le"]
[630,"Microsoft Uighur"]
[631,"Microsoft Yi Baiti"]
[632,"Miriam"]
[633,"Miriam Fixed"]
[634,"Miriam Libre"]
[635,"Mistral"]
[636,"Mitr"]
[637,"Mitr ExtraLight"]
[638,"Mitr Light"]
[639,"Mitr Medium"]
[640,"Mitr SemiBold"]
[641,"Modern Love"]
[642,"Modern Love Caps"]
[643,"Modern Love Grunge"]
[644,"Modern No. 20"]
[645,"Mongolian Baiti"]
[646,"Monotype Corsiva"]
[647,"Montserrat"]
[648,"Montserrat Black"]
[649,"Montserrat ExtraBold"]
[650,"Montserrat ExtraLight"]
[651,"Montserrat Light"]
[652,"Montserrat Medium"]
[653,"Montserrat SemiBold"]
[654,"Montserrat Thin"]
[655,"MoolBoran"]
[656,"MS Outlook"]
[657,"MS Reference Sans Serif"]
[658,"MS Reference Specialty"]
[659,"MT Extra"]
[660,"MV Boli"]
[661,"Myanmar Text"]
[662,"Mystical Woods Rough Script"]
[663,"Mystical Woods Smooth Script"]
[664,"Narkisim"]
[665,"Neue Haas Grotesk Text Pro"]
[666,"News Gothic MT"]
[667,"Niagara Engraved"]
[668,"Niagara Solid"]
[669,"Nina"]
[670,"Nirmala Text"]
[671,"Nirmala Text Semilight"]
[672,"Nirmala UI"]
[673,"Nirmala UI Semilight"]
[674,"Nordique Inline"]
[675,"Noto Music"]
[676,"Noto Nastaliq Urdu"]
[677,"Noto Sans"]
[678,"Noto Sans AnatoHiero"]
[679,"Noto Sans Avestan"]
[680,"Noto Sans Bassa Vah"]
[681,"Noto Sans Batak"]
[682,"Noto Sans Bhaiksuki"]
[683,"Noto Sans Brahmi"]
[684,"Noto Sans Buginese"]
[685,"Noto Sans Buhid"]
[686,"Noto Sans Carian"]
[687,"Noto Sans CaucAlban"]
[688,"Noto Sans Chakma"]
[689,"Noto Sans Coptic"]
[690,"Noto Sans Cuneiform"]
[691,"Noto Sans Cypriot"]
[692,"Noto Sans Deseret"]
[693,"Noto Sans Devanagari"]
[694,"Noto Sans Devanagari Black"]
[695,"Noto Sans Devanagari ExtraBold"]
[696,"Noto Sans Devanagari ExtraLight"]
[697,"Noto Sans Devanagari Light"]
[698,"Noto Sans Devanagari Medium"]
[699,"Noto Sans Devanagari SemiBold"]
[700,"Noto Sans Devanagari Thin"]
[701,"Noto Sans Devanagari UI"]
[702,"Noto Sans Devanagari UI Black"]
[703,"Noto Sans Devanagari UI Light"]
[704,"Noto Sans Devanagari UI Medium"]
[705,"Noto Sans Devanagari UI Thin"]
[706,"Noto Sans Duployan"]
[707,"Noto Sans EgyptHiero"]
[708,"Noto Sans Elbasan"]
[709,"Noto Sans Elymaic"]
[710,"Noto Sans Glagolitic"]
[711,"Noto Sans Gothic"]
[712,"Noto Sans Grantha"]
[713,"Noto Sans Gujarati"]
[714,"Noto Sans Gujarati Black"]
[715,"Noto Sans Gujarati ExtraBold"]
[716,"Noto Sans Gujarati ExtraLight"]
[717,"Noto Sans Gujarati Light"]
[718,"Noto Sans Gujarati Medium"]
[719,"Noto Sans Gujarati SemiBold"]
[720,"Noto Sans Gujarati Thin"]
[721,"Noto Sans Gujarati UI"]
[722,"Noto Sans Gujarati UI Black"]
[723,"Noto Sans Gujarati UI ExtraBold"]
[724,"Noto Sans Gujarati UI Light"]
[725,"Noto Sans Gujarati UI Medium"]
[726,"Noto Sans Gujarati UI SemiBold"]
[727,"Noto Sans Gujarati UI Thin"]
[728,"Noto Sans Gunjala Gondi"]
[729,"Noto Sans Hanunoo"]
[730,"Noto Sans Hatran"]
[731,"Noto Sans ImpAramaic"]
[732,"Noto Sans Indic Siyaq Numbers"]
[733,"Noto Sans InsPahlavi"]
[734,"Noto Sans InsParthi"]
[735,"Noto Sans Javanese"]
[736,"Noto Sans Kaithi"]
[737,"Noto Sans Kharoshthi"]
[738,"Noto Sans Khojki"]
[739,"Noto Sans Khudawadi"]
[740,"Noto Sans Lepcha"]
[741,"Noto Sans Limbu"]
[742,"Noto Sans Linear A"]
[743,"Noto Sans Linear B"]
[744,"Noto Sans Lycian"]
[745,"Noto Sans Lydian"]
[746,"Noto Sans Mahajani"]
[747,"Noto Sans Mandaic"]
[748,"Noto Sans Manichaean"]
[749,"Noto Sans Marchen"]
[750,"Noto Sans Masaram Gondi"]
[751,"Noto Sans Math"]
[752,"Noto Sans Mayan Numerals"]
[753,"Noto Sans Mende Kikakui"]
[754,"Noto Sans Meroitic"]
[755,"Noto Sans Miao"]
[756,"Noto Sans Modi"]
[757,"Noto Sans Mongolian"]
[758,"Noto Sans Mro"]
[759,"Noto Sans Multani"]
[760,"Noto Sans Myanmar"]
[761,"Noto Sans Myanmar Blk"]
[762,"Noto Sans Myanmar ExtBd"]
[763,"Noto Sans Myanmar ExtLt"]
[764,"Noto Sans Myanmar Light"]
[765,"Noto Sans Myanmar Med"]
[766,"Noto Sans Myanmar SemBd"]
[767,"Noto Sans Myanmar Thin"]
[768,"Noto Sans Myanmar UI"]
[769,"Noto Sans Myanmar UI Black"]
[770,"Noto Sans Myanmar UI ExtraBold"]
[771,"Noto Sans Myanmar UI ExtraLight"]
[772,"Noto Sans Myanmar UI Light"]
[773,"Noto Sans Myanmar UI Medium"]
[774,"Noto Sans Myanmar UI SemiBold"]
[775,"Noto Sans Myanmar UI Thin"]
[776,"Noto Sans Nabataean"]
[777,"Noto Sans Newa"]
[778,"Noto Sans NewTaiLue"]
[779,"Noto Sans NKo"]
[780,"Noto Sans Nushu"]
[781,"Noto Sans Ogham"]
[782,"Noto Sans Old Italic"]
[783,"Noto Sans Old Permic"]
[784,"Noto Sans Old Turkic"]
[785,"Noto Sans OldHung"]
[786,"Noto Sans OldNorArab"]
[787,"Noto Sans OldPersian"]
[788,"Noto Sans OldSogdian"]
[789,"Noto Sans OldSouArab"]
[790,"Noto Sans Oriya"]
[791,"Noto Sans Oriya Blk"]
[792,"Noto Sans Oriya Thin"]
[793,"Noto Sans Oriya UI"]
[794,"Noto Sans Oriya UI Blk"]
[795,"Noto Sans Oriya UI Thin"]
[796,"Noto Sans Osage"]
[797,"Noto Sans Osmanya"]
[798,"Noto Sans Pahawh Hmong"]
[799,"Noto Sans Palmyrene"]
[800,"Noto Sans PauCinHau"]
[801,"Noto Sans PhagsPa"]
[802,"Noto Sans Phoenician"]
[803,"Noto Sans PsaPahlavi"]
[804,"Noto Sans Rejang"]
[805,"Noto Sans Runic"]
[806,"Noto Sans Samaritan"]
[807,"Noto Sans Saurashtra"]
[808,"Noto Sans Sharada"]
[809,"Noto Sans Shavian"]
[810,"Noto Sans Siddham"]
[811,"Noto Sans Sogdian"]
[812,"Noto Sans Soyombo"]
[813,"Noto Sans Syloti Nagri"]
[814,"Noto Sans Symbols2"]
[815,"Noto Sans Syriac"]
[816,"Noto Sans Syriac Black"]
[817,"Noto Sans Syriac Thin"]
[818,"Noto Sans Tagalog"]
[819,"Noto Sans Tagbanwa"]
[820,"Noto Sans Tai Le"]
[821,"Noto Sans Tai Viet"]
[822,"Noto Sans Takri"]
[823,"Noto Sans Tamil Supplement"]
[824,"Noto Sans Thai Looped Black"]
[825,"Noto Sans Thai Looped Bold"]
[826,"Noto Sans Thai Looped ExtLight"]
[827,"Noto Sans Thai Looped Extrabold"]
[828,"Noto Sans Thai Looped Light"]
[829,"Noto Sans Thai Looped Medium"]
[830,"Noto Sans Thai Looped Regular"]
[831,"Noto Sans Thai Looped Semibold"]
[832,"Noto Sans Thai Looped Thin"]
[833,"Noto Sans Tifinagh"]
[834,"Noto Sans Tirhuta"]
[835,"Noto Sans Ugaritic"]
[836,"Noto Sans Vai"]
[837,"Noto Sans Wancho"]
[838,"Noto Sans WarangCiti"]
[839,"Noto Sans Yi"]
[840,"Noto Sans Zanabazar"]
[841,"Noto Serif"]
[842,"Noto Serif Ahom"]
[843,"Noto Serif Balinese"]
[844,"Noto Serif Dogra"]
[845,"Noto Serif Grantha"]
[846,"Noto Serif Myanmar"]
[847,"Noto Serif Myanmar Blk"]
[848,"Noto Serif Myanmar ExtBd"]
[849,"Noto Serif Myanmar ExtLt"]
[850,"Noto Serif Myanmar Light"]
[851,"Noto Serif Myanmar Med"]
[852,"Noto Serif Myanmar SemBd"]
[853,"Noto Serif Myanmar Thin"]
[854,"Noto Serif Tangut"]
[855,"Noto Traditional Nushu"]
[856,"Nunito"]
[857,"Nunito Black"]
[858,"Nunito ExtraBold"]
[859,"Nunito ExtraLight"]
[860,"Nunito Light"]
[861,"Nunito Sans"]
[862,"Nunito Sans Black"]
[863,"Nunito Sans ExtraBold"]
[864,"Nunito Sans ExtraLight"]
[865,"Nunito Sans Light"]
[866,"Nunito Sans SemiBold"]
[867,"Nunito SemiBold"]
[868,"Nyala"]
[869,"OCR A Extended"]
[870,"OCRB"]
[871,"Old English Text MT"]
[872,"Onyx"]
[873,"Open Sans"]
[874,"Open Sans ExtraBold"]
[875,"Open Sans Light"]
[876,"Open Sans SemiBold"]
[877,"Oranienbaum"]
[878,"Oswald"]
[879,"Oswald ExtraLight"]
[880,"Oswald Light"]
[881,"Oswald Medium"]
[882,"Oswald SemiBold"]
[883,"Oxygen"]
[884,"Oxygen Light"]
[885,"Oxygen Mono"]
[886,"Pacifico"]
[887,"Palace Script MT"]
[888,"Palanquin"]
[889,"Palanquin ExtraLight"]
[890,"Palanquin Light"]
[891,"Palanquin Medium"]
[892,"Palanquin SemiBold"]
[893,"Palanquin Thin"]
[894,"Palatino Linotype"]
[895,"Papyrus"]
[896,"Parchment"]
[897,"Patrick Hand"]
[898,"Patrick Hand SC"]
[899,"Perpetua"]
[900,"Perpetua Titling MT"]
[901,"Petit Formal Script"]
[902,"Plantagenet Cherokee"]
[903,"Playbill"]
[904,"Playfair Display"]
[905,"Playfair Display Black"]
[906,"Playfair Display SC"]
[907,"Playfair Display SC Black"]
[908,"Poiret One"]
[909,"Poor Richard"]
[910,"Poppins"]
[911,"Poppins Black"]
[912,"Poppins ExtraBold"]
[913,"Poppins ExtraLight"]
[914,"Poppins Light"]
[915,"Poppins Medium"]
[916,"Poppins SemiBold"]
[917,"Poppins Thin"]
[918,"Posterama"]
[919,"Pridi"]
[920,"Pridi ExtraLight"]
[921,"Pridi Light"]
[922,"Pridi Medium"]
[923,"Pridi SemiBold"]
[924,"Pristina"]
[925,"Prompt"]
[926,"Prompt Black"]
[927,"Prompt ExtraBold"]
[928,"Prompt ExtraLight"]
[929,"Prompt Light"]
[930,"Prompt Medium"]
[931,"Prompt SemiBold"]
[932,"Prompt Thin"]
[933,"PT Mono"]
[934,"PT Sans"]
[935,"PT Sans Caption"]
[936,"PT Sans Narrow"]
[937,"PT Serif"]
[938,"PT Serif Caption"]
[939,"Quattrocento"]
[940,"Quattrocento Sans"]
[941,"Questrial"]
[942,"Quire Sans"]
[943,"Quire Sans Light"]
[944,"Quire Sans Pro Light"]
[945,"Raavi"]
[946,"Rage Italic"]
[947,"Raleway"]
[948,"Raleway Black"]
[949,"Raleway ExtraBold"]
[950,"Raleway ExtraLight"]
[951,"Raleway Light"]
[952,"Raleway Medium"]
[953,"Raleway SemiBold"]
[954,"Raleway Thin"]
[955,"Rastanty Cortez"]
[956,"Ravie"]
[957,"Reem Kufi"]
[958,"Roboto"]
[959,"Roboto Black"]
[960,"Roboto Condensed"]
[961,"Roboto Condensed Light"]
[962,"Roboto Condensed Medium"]
[963,"Roboto Light"]
[964,"Roboto Medium"]
[965,"Roboto Thin"]
[966,"Rockwell"]
[967,"Rockwell Condensed"]
[968,"Rockwell Extra Bold"]
[969,"Rockwell Light"]
[970,"Rockwell Nova"]
[971,"Rockwell Nova Cond"]
[972,"Rockwell Nova Cond Light"]
[973,"Rockwell Nova Extra Bold"]
[974,"Rockwell Nova Light"]
[975,"Rod"]
[976,"ROG Fonts"]
[977,"Sabon Next LT"]
[978,"Sacramento"]
[979,"Sagona Book"]
[980,"Sagona ExtraLight"]
[981,"Sakkal Majalla"]
[982,"Sanskrit Text"]
[983,"Script MT Bold"]
[984,"Seaford"]
[985,"Seaford Display"]
[986,"Secular One"]
[987,"Segoe Marker"]
[988,"Segoe MDL2 Assets"]
[989,"Segoe Print"]
[990,"Segoe Script"]
[991,"Segoe UI"]
[992,"Segoe UI Black"]
[993,"Segoe UI Emoji"]
[994,"Segoe UI Historic"]
[995,"Segoe UI Light"]
[996,"Segoe UI Semibold"]
[997,"Segoe UI Semilight"]
[998,"Segoe UI Symbol"]
[999,"Segoe Xbox Symbol"]
[1000,"Selawik"]
[1001,"Selawik Light"]
[1002,"Selawik Semibold"]
[1003,"Shadows Into Light Two"]
[1004,"Shonar Bangla"]
[1005,"Showcard Gothic"]
[1006,"Shruti"]
[1007,"Simplified Arabic"]
[1008,"Simplified Arabic Fixed"]
[1009,"Sitka Banner"]
[1010,"Sitka Banner Semibold"]
[1011,"Sitka Display"]
[1012,"Sitka Display Semibold"]
[1013,"Sitka Heading"]
[1014,"Sitka Heading Semibold"]
[1015,"Sitka Small"]
[1016,"Sitka Small Semibold"]
[1017,"Sitka Subheading"]
[1018,"Sitka Subheading Semibold"]
[1019,"Sitka Text"]
[1020,"Sitka Text Semibold"]
[1021,"Skeena"]
[1022,"Skeena Display"]
[1023,"Snap ITC"]
[1024,"Source Code Pro"]
[1025,"Source Code Pro Black"]
[1026,"Source Code Pro ExtraLight"]
[1027,"Source Code Pro Light"]
[1028,"Source Code Pro Medium"]
[1029,"Source Code Pro Semibold"]
[1030,"Source Sans Pro"]
[1031,"Source Sans Pro Black"]
[1032,"Source Sans Pro ExtraLight"]
[1033,"Source Sans Pro Light"]
[1034,"Source Sans Pro SemiBold"]
[1035,"Source Serif Pro"]
[1036,"Source Serif Pro Black"]
[1037,"Source Serif Pro ExtraLight"]
[1038,"Source Serif Pro Light"]
[1039,"Source Serif Pro SemiBold"]
[1040,"Speak Pro"]
[1041,"Speak Pro Light"]
[1042,"Staatliches"]
[1043,"Stencil"]
[1044,"Suez One"]
[1045,"Sylfaen"]
[1046,"Symbol"]
[1047,"Tahoma"]
[1048,"TeamViewer15"]
[1049,"Tempus Sans ITC"]
[1050,"Tenorite"]
[1051,"Tenorite Display"]
[1052,"Tera Special"]
[1053,"TH SarabunPSK"]
[1054,"The Hand"]
[1055,"The Hand Black"]
[1056,"The Hand Extrablack"]
[1057,"The Hand Light"]
[1058,"The Serif Hand"]
[1059,"The Serif Hand Black"]
[1060,"The Serif Hand Extrablack"]
[1061,"The Serif Hand Light"]
[1062,"Times New Roman"]
[1063,"Tisa Offc Serif Pro"]
[1064,"Tisa Offc Serif Pro Thin"]
[1065,"Titillium Web"]
[1066,"Titillium Web Black"]
[1067,"Titillium Web ExtraLight"]
[1068,"Titillium Web Light"]
[1069,"Titillium Web SemiBold"]
[1070,"Trade Gothic Inline"]
[1071,"Trade Gothic Next"]
[1072,"Trade Gothic Next Cond"]
[1073,"Trade Gothic Next Heavy"]
[1074,"Trade Gothic Next HvyCd"]
[1075,"Trade Gothic Next Light"]
[1076,"Trade Gothic Next Rounded"]
[1077,"Traditional Arabic"]
[1078,"Trebuchet MS"]
[1079,"Trirong"]
[1080,"Trirong Black"]
[1081,"Trirong ExtraBold"]
[1082,"Trirong ExtraLight"]
[1083,"Trirong Light"]
[1084,"Trirong Medium"]
[1085,"Trirong SemiBold"]
[1086,"Trirong Thin"]
[1087,"Tunga"]
[1088,"Tw Cen MT"]
[1089,"Tw Cen MT Condensed"]
[1090,"Tw Cen MT Condensed Extra Bold"]
[1091,"Ubuntu"]
[1092,"Ubuntu Condensed"]
[1093,"Ubuntu Light"]
[1094,"Ubuntu Medium"]
[1095,"Ubuntu Mono"]
[1096,"Univers"]
[1097,"Univers Condensed"]
[1098,"Univers Condensed Light"]
[1099,"Univers Light"]
[1100,"Urdu Typesetting"]
[1101,"Utsaah"]
[1102,"Vani"]
[1103,"Varela Round"]
[1104,"Verdana"]
[1105,"Verdana Pro"]
[1106,"Verdana Pro Black"]
[1107,"Verdana Pro Cond"]
[1108,"Verdana Pro Cond Black"]
[1109,"Verdana Pro Cond Light"]
[1110,"Verdana Pro Cond SemiBold"]
[1111,"Verdana Pro Light"]
[1112,"Verdana Pro SemiBold"]
[1113,"Vijaya"]
[1114,"Viner Hand ITC"]
[1115,"Vivaldi"]
[1116,"Vladimir Script"]
[1117,"Vrinda"]
[1118,"Walbaum Display"]
[1119,"Walbaum Display Heavy"]
[1120,"Walbaum Display Light"]
[1121,"Walbaum Display SemiBold"]
[1122,"Walbaum Heading"]
[1123,"Walbaum Text"]
[1124,"Webdings"]
[1125,"Wide Latin"]
[1126,"Wingdings"]
[1127,"Wingdings 2"]
[1128,"Wingdings 3"]
[1129,"Work Sans"]
[1130,"Work Sans Black"]
[1131,"Work Sans ExtraBold"]
[1132,"Work Sans ExtraLight"]
[1133,"Work Sans Light"]
[1134,"Work Sans Medium"]
[1135,"Work Sans SemiBold"]
[1136,"Work Sans Thin"]
[1137,"Yesteryear"]

{"sheet":"作業","index":2,"n_rows":106,"n_cols":9,"rows_kept":106,"cut":false,"hidden":true,"merged":[]}
[]
[null,null,null,null,null,521]
["登録件数",{"$f":"COUNTA(名言集!C:C)","v":1022},{"$f":"RANDBETWEEN(1,B3)","v":571},null,null,{"$f":"IF($B$5=\"\",INDEX(名言集!C:C,$F$2),VLOOKUP($F$2,$E:$H,2,FALSE))","v":"生まれながらに才能のある者は、それを頼んで鍛錬を怠る、自惚れる。しかし、生まれつきの才能がない者は、何とか技術を身につけようと日々努力する。心構えがまるで違う。これが大事だ。"},{"$f":"IF($B$5=\"\",INDEX(名言集!D:D,$F$2),VLOOKUP($F$2,$E:$H,3,FALSE))","v":"織田信長"},{"$f":"IF($B$5=\"\",INDEX(名言集!E:E,$F$2),VLOOKUP($F$2,$E:$H,4,FALSE))","v":"戦国時代の武将、戦国大名 / 1534～1582"},{"$f":"IF($B$5=\"\",F2,VLOOKUP($F$2,$E:$I,5,FALSE))","v":521}]
["件数",{"$f":"MAX(名言集!B:B)","v":1022},{"$f":"RANDBETWEEN(1,B4)","v":230}]
["キーワード",{"$f":"今日の名言!AB6&\"\"","v":""}]
[null,null,null,null,"連番","名言","名前","経歴","行番号"]
["テスト開始",979,null,null,1,{"$f":"IF($B$5=\"\",\"\",IFERROR(VLOOKUP($E7,名言集!$B:$E,2,FALSE),\"\"))","v":""},{"$f":"IF($B$5=\"\",\"\",IFERROR(VLOOKUP($E7,名言集!$B:$E,3,FALSE),\"\"))","v":""},{"$f":"IF($B$5=\"\",\"\",IFERROR(VLOOKUP($E7,名言集!$B:$E,4,FALSE),\"\"))","v":""},{"$f":"IF(F7=\"\",\"\",IFERROR(MATCH(E7,名言集!B:B,0),\"\"))","v":""}]
[null,null,null,null,{"$f":"E7+1","v":2},{"$f":"IF($B$5=\"\",\"\",IFERROR(VLOOKUP($E8,名言集!$B:$E,2,FALSE),\"\"))","v":""},{"$f":"IF($B$5=\"\",\"\",IFERROR(VLOOKUP($E8,名言集!$B:$E,3,FALSE),\"\"))","v":""},{"$f":"IF($B$5=\"\",\"\",IFERROR(VLOOKUP($E8,名言集!$B:$E,4,FALSE),\"\"))","v":""},{"$f":"IF(F8=\"\",\"\",IFERROR(MATCH(E8,名言集!B:B,0),\"\"))","v":""}]
[null,null,null,null,{"$f":"E8+1","v":3},{"$f":"IF($B$5=\"\",\"\",IFERROR(VLOOKUP($E9,名言集!$B:$E,2,FALSE),\"\"))","v":""},{"$f":"IF($B$5=\"\",\"\",IFERROR(VLOOKUP($E9,名言集!$B:$E,3,FALSE),\"\"))","v":""},{"$f":"IF($B$5=\"\",\"\",IFERROR(VLOOKUP($E9,名言集!$B:$E,4,FALSE),\"\"))","v":""},{"$f":"IF(F9=\"\",\"\",IFERROR(MATCH(E9,名言集!B:B,0),\"\"))","v":""}]
[null,null,null,null,4,{"$f":"IF($B$5=\"\",\"\",IFERROR(VLOOKUP($E10,名言集!$B:$E,2,FALSE),\"\"))","v":""},{"$f":"IF($B$5=\"\",\"\",IFERROR(VLOOKUP($E10,名言集!$B:$E,3,FALSE),\"\"))","v":""},{"$f":"IF($B$5=\"\",\"\",IFERROR(VLOOKUP($E10,名言集!$B:$E,4,FALSE),\"\"))","v":""},{"$f":"IF(F10=\"\",\"\",IFERROR(MATCH(E10,名言集!B:B,0),\"\"))","v":""}]
[null,null,null,null,5,{"$f":"IF($B$5=\"\",\"\",IFERROR(VLOOKUP($E11,名言集!$B:$E,2,FALSE),\"\"))","v":""},{"$f":"IF($B$5=\"\",\"\",IFERROR(VLOOKUP($E11,名言集!$B:$E,3,FALSE),\"\"))","v":""},{"$f":"IF($B$5=\"\",\"\",IFERROR(VLOOKUP($E11,名言集!$B:$E,4,FALSE),\"\"))","v":""},{"$f":"IF(F11=\"\",\"\",IFERROR(MATCH(E11,名言集!B:B,0),\"\"))","v":""}]
[null,null,null,null,6,{"$f":"IF($B$5=\"\",\"\",IFERROR(VLOOKUP($E12,名言集!$B:$E,2,FALSE),\"\"))","v":""},{"$f":"IF($B$5=\"\",\"\",IFERROR(VLOOKUP($E12,名言集!$B:$E,3,FALSE),\"\"))","v":""},{"$f":"IF($B$5=\"\",\"\",IFERROR(VLOOKUP($E12,名言集!$B:$E,4,FALSE),\"\"))","v":""},{"$f":"IF(F12=\"\",\"\",IFERROR(MATCH(E12,名言集!B:B,0),\"\"))","v":""}]
[null,null,null,null,7,{"$f":"IF($B$5=\"\",\"\",IFERROR(VLOOKUP($E13,名言集!$B:$E,2,FALSE),\"\"))","v":""},{"$f":"IF($B$5=\"\",\"\",IFERROR(VLOOKUP($E13,名言集!$B:$E,3,FALSE),\"\"))","v":""},{"$f":"IF($B$5=\"\",\"\",IFERROR(VLOOKUP($E13,名言集!$B:$E,4,FALSE),\"\"))","v":""},{"$f":"IF(F13=\"\",\"\",IFERROR(MATCH(E13,名言集!B:B,0),\"\"))","v":""}]
[null,null,null,null,8,{"$f":"IF($B$5=\"\",\"\",IFERROR(VLOOKUP($E14,名言集!$B:$E,2,FALSE),\"\"))","v":""},{"$f":"IF($B$5=\"\",\"\",IFERROR(VLOOKUP($E14,名言集!$B:$E,3,FALSE),\"\"))","v":""},{"$f":"IF($B$5=\"\",\"\",IFERROR(VLOOKUP($E14,名言集!$B:$E,4,FALSE),\"\"))","v":""},{"$f":"IF(F14=\"\",\"\",IFERROR(MATCH(E14,名言集!B:B,0),\"\"))","v":""}]
[null,null,null,null,9,{"$f":"IF($B$5=\"\",\"\",IFERROR(VLOOKUP($E15,名言集!$B:$E,2,FALSE),\"\"))","v":""},{"$f":"IF($B$5=\"\",\"\",IFERROR(VLOOKUP($E15,名言集!$B:$E,3,FALSE),\"\"))","v":""},{"$f":"IF($B$5=\"\",\"\",IFERROR(VLOOKUP($E15,名言集!$B:$E,4,FALSE),\"\"))","v":""},{"$f":"IF(F15=\"\",\"\",IFERROR(MATCH(E15,名言集!B:B,0),\"\"))","v":""}]
[null,null,null,null,10,{"$f":"IF($B$5=\"\",\"\",IFERROR(VLOOKUP($E16,名言集!$B:$E,2,FALSE),\"\"))","v":""},{"$f":"IF($B$5=\"\",\"\",IFERROR(VLOOKUP($E16,名言集!$B:$E,3,FALSE),\"\"))","v":""},{"$f":"IF($B$5=\"\",\"\",IFERROR(VLOOKUP($E16,名言集!$B:$E,4,FALSE),\"\"))","v":""},{"$f":"IF(F16=\"\",\"\",IFERROR(MATCH(E16,名言集!B:B,0),\"\"))","v":""}]
[null,null,null,null,11,{"$f":"IF($B$5=\"\",\"\",IFERROR(VLOOKUP($E17,名言集!$B:$E,2,FALSE),\"\"))","v":""},{"$f":"IF($B$5=\"\",\"\",IFERROR(VLOOKUP($E17,名言集!$B:$E,3,FALSE),\"\"))","v":""},{"$f":"IF($B$5=\"\",\"\",IFERROR(VLOOKUP($E17,名言集!$B:$E,4,FALSE),\"\"))","v":""},{"$f":"IF(F17=\"\",\"\",IFERROR(MATCH(E17,名言集!B:B,0),\"\"))","v":""}]
[null,null,null,null,12,{"$f":"IF($B$5=\"\",\"\",IFERROR(VLOOKUP($E18,名言集!$B:$E,2,FALSE),\"\"))","v":""},{"$f":"IF($B$5=\"\",\"\",IFERROR(VLOOKUP($E18,名言集!$B:$E,3,FALSE),\"\"))","v":""},{"$f":"IF($B$5=\"\",\"\",IFERROR(VLOOKUP($E18,名言集!$B:$E,4,FALSE),\"\"))","v":""},{"$f":"IF(F18=\"\",\"\",IFERROR(MATCH(E18,名言集!B:B,0),\"\"))","v":""}]
[null,null,null,null,13,{"$f":"IF($B$5=\"\",\"\",IFERROR(VLOOKUP($E19,名言集!$B:$E,2,FALSE),\"\"))","v":""},{"$f":"IF($B$5=\"\",\"\",IFERROR(VLOOKUP($E19,名言集!$B:$E,3,FALSE),\"\"))","v":""},{"$f":"IF($B$5=\"\",\"\",IFERROR(VLOOKUP($E19,名言集!$B:$E,4,FALSE),\"\"))","v":""},{"$f":"IF(F19=\"\",\"\",IFERROR(MATCH(E19,名言集!B:B,0),\"\"))","v":""}]
[null,null,null,null,14,{"$f":"IF($B$5=\"\",\"\",IFERROR(VLOOKUP($E20,名言集!$B:$E,2,FALSE),\"\"))","v":""},{"$f":"IF($B$5=\"\",\"\",IFERROR(VLOOKUP($E20,名言集!$B:$E,3,FALSE),\"\"))","v":""},{"$f":"IF($B$5=\"\",\"\",IFERROR(VLOOKUP($E20,名言集!$B:$E,4,FALSE),\"\"))","v":""},{"$f":"IF(F20=\"\",\"\",IFERROR(MATCH(E20,名言集!B:B,0),\"\"))","v":""}]
[null,null,null,null,15,{"$f":"IF($B$5=\"\",\"\",IFERROR(VLOOKUP($E21,名言集!$B:$E,2,FALSE),\"\"))","v":""},{"$f":"IF($B$5=\"\",\"\",IFERROR(VLOOKUP($E21,名言集!$B:$E,3,FALSE),\"\"))","v":""},{"$f":"IF($B$5=\"\",\"\",IFERROR(VLOOKUP($E21,名言集!$B:$E,4,FALSE),\"\"))","v":""},{"$f":"IF(F21=\"\",\"\",IFERROR(MATCH(E21,名言集!B:B,0),\"\"))","v":""}]
[null,null,null,null,16,{"$f":"IF($B$5=\"\",\"\",IFERROR(VLOOKUP($E22,名言集!$B:$E,2,FALSE),\"\"))","v":""},{"$f":"IF($B$5=\"\",\"\",IFERROR(VLOOKUP($E22,名言集!$B:$E,3,FALSE),\"\"))","v":""},{"$f":"IF($B$5=\"\",\"\",IFERROR(VLOOKUP($E22,名言集!$B:$E,4,FALSE),\"\"))","v":""},{"$f":"IF(F22=\"\",\"\",IFERROR(MATCH(E22,名言集!B:B,0),\"\"))","v":""}]
[null,null,null,null,17,{"$f":"IF($B$5=\"\",\"\",IFERROR(VLOOKUP($E23,名言集!$B:$E,2,FALSE),\"\"))","v":""},{"$f":"IF($B$5=\"\",\"\",IFERROR(VLOOKUP($E23,名言集!$B:$E,3,FALSE),\"\"))","v":""},{"$f":"IF($B$5=\"\",\"\",IFERROR(VLOOKUP($E23,名言集!$B:$E,4,FALSE),\"\"))","v":""},{"$f":"IF(F23=\"\",\"\",IFERROR(MATCH(E23,名言集!B:B,0),\"\"))","v":""}]
[null,null,null,null,18,{"$f":"IF($B$5=\"\",\"\",IFERROR(VLOOKUP($E24,名言集!$B:$E,2,FALSE),\"\"))","v":""},{"$f":"IF($B$5=\"\",\"\",IFERROR(VLOOKUP($E24,名言集!$B:$E,3,FALSE),\"\"))","v":""},{"$f":"IF($B$5=\"\",\"\",IFERROR(VLOOKUP($E24,名言集!$B:$E,4,FALSE),\"\"))","v":""},{"$f":"IF(F24=\"\",\"\",IFERROR(MATCH(E24,名言集!B:B,0),\"\"))","v":""}]
[null,null,null,null,19,{"$f":"IF($B$5=\"\",\"\",IFERROR(VLOOKUP($E25,名言集!$B:$E,2,FALSE),\"\"))","v":""},{"$f":"IF($B$5=\"\",\"\",IFERROR(VLOOKUP($E25,名言集!$B:$E,3,FALSE),\"\"))","v":""},{"$f":"IF($B$5=\"\",\"\",IFERROR(VLOOKUP($E25,名言集!$B:$E,4,FALSE),\"\"))","v":""},{"$f":"IF(F25=\"\",\"\",IFERROR(MATCH(E25,名言集!B:B,0),\"\"))","v":""}]
[null,null,null,null,20,{"$f":"IF($B$5=\"\",\"\",IFERROR(VLOOKUP($E26,名言集!$B:$E,2,FALSE),\"\"))","v":""},{"$f":"IF($B$5=\"\",\"\",IFERROR(VLOOKUP($E26,名言集!$B:$E,3,FALSE),\"\"))","v":""},{"$f":"IF($B$5=\"\",\"\",IFERROR(VLOOKUP($E26,名言集!$B:$E,4,FALSE),\"\"))","v":""},{"$f":"IF(F26=\"\",\"\",IFERROR(MATCH(E26,名言集!B:B,0),\"\"))","v":""}]
[null,null,null,null,21,{"$f":"IF($B$5=\"\",\"\",IFERROR(VLOOKUP($E27,名言集!$B:$E,2,FALSE),\"\"))","v":""},{"$f":"IF($B$5=\"\",\"\",IFERROR(VLOOKUP($E27,名言集!$B:$E,3,FALSE),\"\"))","v":""},{"$f":"IF($B$5=\"\",\"\",IFERROR(VLOOKUP($E27,名言集!$B:$E,4,FALSE),\"\"))","v":""},{"$f":"IF(F27=\"\",\"\",IFERROR(MATCH(E27,名言集!B:B,0),\"\"))","v":""}]
[null,null,null,null,22,{"$f":"IF($B$5=\"\",\"\",IFERROR(VLOOKUP($E28,名言集!$B:$E,2,FALSE),\"\"))","v":""},{"$f":"IF($B$5=\"\",\"\",IFERROR(VLOOKUP($E28,名言集!$B:$E,3,FALSE),\"\"))","v":""},{"$f":"IF($B$5=\"\",\"\",IFERROR(VLOOKUP($E28,名言集!$B:$E,4,FALSE),\"\"))","v":""},{"$f":"IF(F28=\"\",\"\",IFERROR(MATCH(E28,名言集!B:B,0),\"\"))","v":""}]
[null,null,null,null,23,{"$f":"IF($B$5=\"\",\"\",IFERROR(VLOOKUP($E29,名言集!$B:$E,2,FALSE),\"\"))","v":""},{"$f":"IF($B$5=\"\",\"\",IFERROR(VLOOKUP($E29,名言集!$B:$E,3,FALSE),\"\"))","v":""},{"$f":"IF($B$5=\"\",\"\",IFERROR(VLOOKUP($E29,名言集!$B:$E,4,FALSE),\"\"))","v":""},{"$f":"IF(F29=\"\",\"\",IFERROR(MATCH(E29,名言集!B:B,0),\"\"))","v":""}]
[null,null,null,null,24,{"$f":"IF($B$5=\"\",\"\",IFERROR(VLOOKUP($E30,名言集!$B:$E,2,FALSE),\"\"))","v":""},{"$f":"IF($B$5=\"\",\"\",IFERROR(VLOOKUP($E30,名言集!$B:$E,3,FALSE),\"\"))","v":""},{"$f":"IF($B$5=\"\",\"\",IFERROR(VLOOKUP($E30,名言集!$B:$E,4,FALSE),\"\"))","v":""},{"$f":"IF(F30=\"\",\"\",IFERROR(MATCH(E30,名言集!B:B,0),\"\"))","v":""}]
[null,null,null,null,25,{"$f":"IF($B$5=\"\",\"\",IFERROR(VLOOKUP($E31,名言集!$B:$E,2,FALSE),\"\"))","v":""},{"$f":"IF($B$5=\"\",\"\",IFERROR(VLOOKUP($E31,名言集!$B:$E,3,FALSE),\"\"))","v":""},{"$f":"IF($B$5=\"\",\"\",IFERROR(VLOOKUP($E31,名言集!$B:$E,4,FALSE),\"\"))","v":""},{"$f":"IF(F31=\"\",\"\",IFERROR(MATCH(E31,名言集!B:B,0),\"\"))","v":""}]
[null,null,null,null,26,{"$f":"IF($B$5=\"\",\"\",IFERROR(VLOOKUP($E32,名言集!$B:$E,2,FALSE),\"\"))","v":""},{"$f":"IF($B$5=\"\",\"\",IFERROR(VLOOKUP($E32,名言集!$B:$E,3,FALSE),\"\"))","v":""},{"$f":"IF($B$5=\"\",\"\",IFERROR(VLOOKUP($E32,名言集!$B:$E,4,FALSE),\"\"))","v":""},{"$f":"IF(F32=\"\",\"\",IFERROR(MATCH(E32,名言集!B:B,0),\"\"))","v":""}]
[null,null,null,null,27,{"$f":"IF($B$5=\"\",\"\",IFERROR(VLOOKUP($E33,名言集!$B:$E,2,FALSE),\"\"))","v":""},{"$f":"IF($B$5=\"\",\"\",IFERROR(VLOOKUP($E33,名言集!$B:$E,3,FALSE),\"\"))","v":""},{"$f":"IF($B$5=\"\",\"\",IFERROR(VLOOKUP($E33,名言集!$B:$E,4,FALSE),\"\"))","v":""},{"$f":"IF(F33=\"\",\"\",IFERROR(MATCH(E33,名言集!B:B,0),\"\"))","v":""}]
[null,null,null,null,28,{"$f":"IF($B$5=\"\",\"\",IFERROR(VLOOKUP($E34,名言集!$B:$E,2,FALSE),\"\"))","v":""},{"$f":"IF($B$5=\"\",\"\",IFERROR(VLOOKUP($E34,名言集!$B:$E,3,FALSE),\"\"))","v":""},{"$f":"IF($B$5=\"\",\"\",IFERROR(VLOOKUP($E34,名言集!$B:$E,4,FALSE),\"\"))","v":""},{"$f":"IF(F34=\"\",\"\",IFERROR(MATCH(E34,名言集!B:B,0),\"\"))","v":""}]
[null,null,null,null,29,{"$f":"IF($B$5=\"\",\"\",IFERROR(VLOOKUP($E35,名言集!$B:$E,2,FALSE),\"\"))","v":""},{"$f":"IF($B$5=\"\",\"\",IFERROR(VLOOKUP($E35,名言集!$B:$E,3,FALSE),\"\"))","v":""},{"$f":"IF($B$5=\"\",\"\",IFERROR(VLOOKUP($E35,名言集!$B:$E,4,FALSE),\"\"))","v":""},{"$f":"IF(F35=\"\",\"\",IFERROR(MATCH(E35,名言集!B:B,0),\"\"))","v":""}]
[null,null,null,null,30,{"$f":"IF($B$5=\"\",\"\",IFERROR(VLOOKUP($E36,名言集!$B:$E,2,FALSE),\"\"))","v":""},{"$f":"IF($B$5=\"\",\"\",IFERROR(VLOOKUP($E36,名言集!$B:$E,3,FALSE),\"\"))","v":""},{"$f":"IF($B$5=\"\",\"\",IFERROR(VLOOKUP($E36,名言集!$B:$E,4,FALSE),\"\"))","v":""},{"$f":"IF(F36=\"\",\"\",IFERROR(MATCH(E36,名言集!B:B,0),\"\"))","v":""}]
[null,null,null,null,31,{"$f":"IF($B$5=\"\",\"\",IFERROR(VLOOKUP($E37,名言集!$B:$E,2,FALSE),\"\"))","v":""},{"$f":"IF($B$5=\"\",\"\",IFERROR(VLOOKUP($E37,名言集!$B:$E,3,FALSE),\"\"))","v":""},{"$f":"IF($B$5=\"\",\"\",IFERROR(VLOOKUP($E37,名言集!$B:$E,4,FALSE),\"\"))","v":""},{"$f":"IF(F37=\"\",\"\",IFERROR(MATCH(E37,名言集!B:B,0),\"\"))","v":""}]
[null,null,null,null,32,{"$f":"IF($B$5=\"\",\"\",IFERROR(VLOOKUP($E38,名言集!$B:$E,2,FALSE),\"\"))","v":""},{"$f":"IF($B$5=\"\",\"\",IFERROR(VLOOKUP($E38,名言集!$B:$E,3,FALSE),\"\"))","v":""},{"$f":"IF($B$5=\"\",\"\",IFERROR(VLOOKUP($E38,名言集!$B:$E,4,FALSE),\"\"))","v":""},{"$f":"IF(F38=\"\",\"\",IFERROR(MATCH(E38,名言集!B:B,0),\"\"))","v":""}]
[null,null,null,null,33,{"$f":"IF($B$5=\"\",\"\",IFERROR(VLOOKUP($E39,名言集!$B:$E,2,FALSE),\"\"))","v":""},{"$f":"IF($B$5=\"\",\"\",IFERROR(VLOOKUP($E39,名言集!$B:$E,3,FALSE),\"\"))","v":""},{"$f":"IF($B$5=\"\",\"\",IFERROR(VLOOKUP($E39,名言集!$B:$E,4,FALSE),\"\"))","v":""},{"$f":"IF(F39=\"\",\"\",IFERROR(MATCH(E39,名言集!B:B,0),\"\"))","v":""}]
[null,null,null,null,34,{"$f":"IF($B$5=\"\",\"\",IFERROR(VLOOKUP($E40,名言集!$B:$E,2,FALSE),\"\"))","v":""},{"$f":"IF($B$5=\"\",\"\",IFERROR(VLOOKUP($E40,名言集!$B:$E,3,FALSE),\"\"))","v":""},{"$f":"IF($B$5=\"\",\"\",IFERROR(VLOOKUP($E40,名言集!$B:$E,4,FALSE),\"\"))","v":""},{"$f":"IF(F40=\"\",\"\",IFERROR(MATCH(E40,名言集!B:B,0),\"\"))","v":""}]
[null,null,null,null,35,{"$f":"IF($B$5=\"\",\"\",IFERROR(VLOOKUP($E41,名言集!$B:$E,2,FALSE),\"\"))","v":""},{"$f":"IF($B$5=\"\",\"\",IFERROR(VLOOKUP($E41,名言集!$B:$E,3,FALSE),\"\"))","v":""},{"$f":"IF($B$5=\"\",\"\",IFERROR(VLOOKUP($E41,名言集!$B:$E,4,FALSE),\"\"))","v":""},{"$f":"IF(F41=\"\",\"\",IFERROR(MATCH(E41,名言集!B:B,0),\"\"))","v":""}]
[null,null,null,null,36,{"$f":"IF($B$5=\"\",\"\",IFERROR(VLOOKUP($E42,名言集!$B:$E,2,FALSE),\"\"))","v":""},{"$f":"IF($B$5=\"\",\"\",IFERROR(VLOOKUP($E42,名言集!$B:$E,3,FALSE),\"\"))","v":""},{"$f":"IF($B$5=\"\",\"\",IFERROR(VLOOKUP($E42,名言集!$B:$E,4,FALSE),\"\"))","v":""},{"$f":"IF(F42=\"\",\"\",IFERROR(MATCH(E42,名言集!B:B,0),\"\"))","v":""}]
[null,null,null,null,37,{"$f":"IF($B$5=\"\",\"\",IFERROR(VLOOKUP($E43,名言集!$B:$E,2,FALSE),\"\"))","v":""},{"$f":"IF($B$5=\"\",\"\",IFERROR(VLOOKUP($E43,名言集!$B:$E,3,FALSE),\"\"))","v":""},{"$f":"IF($B$5=\"\",\"\",IFERROR(VLOOKUP($E43,名言集!$B:$E,4,FALSE),\"\"))","v":""},{"$f":"IF(F43=\"\",\"\",IFERROR(MATCH(E43,名言集!B:B,0),\"\"))","v":""}]
[null,null,null,null,38,{"$f":"IF($B$5=\"\",\"\",IFERROR(VLOOKUP($E44,名言集!$B:$E,2,FALSE),\"\"))","v":""},{"$f":"IF($B$5=\"\",\"\",IFERROR(VLOOKUP($E44,名言集!$B:$E,3,FALSE),\"\"))","v":""},{"$f":"IF($B$5=\"\",\"\",IFERROR(VLOOKUP($E44,名言集!$B:$E,4,FALSE),\"\"))","v":""},{"$f":"IF(F44=\"\",\"\",IFERROR(MATCH(E44,名言集!B:B,0),\"\"))","v":""}]
[null,null,null,null,39,{"$f":"IF($B$5=\"\",\"\",IFERROR(VLOOKUP($E45,名言集!$B:$E,2,FALSE),\"\"))","v":""},{"$f":"IF($B$5=\"\",\"\",IFERROR(VLOOKUP($E45,名言集!$B:$E,3,FALSE),\"\"))","v":""},{"$f":"IF($B$5=\"\",\"\",IFERROR(VLOOKUP($E45,名言集!$B:$E,4,FALSE),\"\"))","v":""},{"$f":"IF(F45=\"\",\"\",IFERROR(MATCH(E45,名言集!B:B,0),\"\"))","v":""}]
[null,null,null,null,40,{"$f":"IF($B$5=\"\",\"\",IFERROR(VLOOKUP($E46,名言集!$B:$E,2,FALSE),\"\"))","v":""},{"$f":"IF($B$5=\"\",\"\",IFERROR(VLOOKUP($E46,名言集!$B:$E,3,FALSE),\"\"))","v":""},{"$f":"IF($B$5=\"\",\"\",IFERROR(VLOOKUP($E46,名言集!$B:$E,4,FALSE),\"\"))","v":""},{"$f":"IF(F46=\"\",\"\",IFERROR(MATCH(E46,名言集!B:B,0),\"\"))","v":""}]
[null,null,null,null,41,{"$f":"IF($B$5=\"\",\"\",IFERROR(VLOOKUP($E47,名言集!$B:$E,2,FALSE),\"\"))","v":""},{"$f":"IF($B$5=\"\",\"\",IFERROR(VLOOKUP($E47,名言集!$B:$E,3,FALSE),\"\"))","v":""},{"$f":"IF($B$5=\"\",\"\",IFERROR(VLOOKUP($E47,名言集!$B:$E,4,FALSE),\"\"))","v":""},{"$f":"IF(F47=\"\",\"\",IFERROR(MATCH(E47,名言集!B:B,0),\"\"))","v":""}]
[null,null,null,null,42,{"$f":"IF($B$5=\"\",\"\",IFERROR(VLOOKUP($E48,名言集!$B:$E,2,FALSE),\"\"))","v":""},{"$f":"IF($B$5=\"\",\"\",IFERROR(VLOOKUP($E48,名言集!$B:$E,3,FALSE),\"\"))","v":""},{"$f":"IF($B$5=\"\",\"\",IFERROR(VLOOKUP($E48,名言集!$B:$E,4,FALSE),\"\"))","v":""},{"$f":"IF(F48=\"\",\"\",IFERROR(MATCH(E48,名言集!B:B,0),\"\"))","v":""}]
[null,null,null,null,43,{"$f":"IF($B$5=\"\",\"\",IFERROR(VLOOKUP($E49,名言集!$B:$E,2,FALSE),\"\"))","v":""},{"$f":"IF($B$5=\"\",\"\",IFERROR(VLOOKUP($E49,名言集!$B:$E,3,FALSE),\"\"))","v":""},{"$f":"IF($B$5=\"\",\"\",IFERROR(VLOOKUP($E49,名言集!$B:$E,4,FALSE),\"\"))","v":""},{"$f":"IF(F49=\"\",\"\",IFERROR(MATCH(E49,名言集!B:B,0),\"\"))","v":""}]
[null,null,null,null,44,{"$f":"IF($B$5=\"\",\"\",IFERROR(VLOOKUP($E50,名言集!$B:$E,2,FALSE),\"\"))","v":""},{"$f":"IF($B$5=\"\",\"\",IFERROR(VLOOKUP($E50,名言集!$B:$E,3,FALSE),\"\"))","v":""},{"$f":"IF($B$5=\"\",\"\",IFERROR(VLOOKUP($E50,名言集!$B:$E,4,FALSE),\"\"))","v":""},{"$f":"IF(F50=\"\",\"\",IFERROR(MATCH(E50,名言集!B:B,0),\"\"))","v":""}]
[null,null,null,null,45,{"$f":"IF($B$5=\"\",\"\",IFERROR(VLOOKUP($E51,名言集!$B:$E,2,FALSE),\"\"))","v":""},{"$f":"IF($B$5=\"\",\"\",IFERROR(VLOOKUP($E51,名言集!$B:$E,3,FALSE),\"\"))","v":""},{"$f":"IF($B$5=\"\",\"\",IFERROR(VLOOKUP($E51,名言集!$B:$E,4,FALSE),\"\"))","v":""},{"$f":"IF(F51=\"\",\"\",IFERROR(MATCH(E51,名言集!B:B,0),\"\"))","v":""}]
[null,null,null,null,46,{"$f":"IF($B$5=\"\",\"\",IFERROR(VLOOKUP($E52,名言集!$B:$E,2,FALSE),\"\"))","v":""},{"$f":"IF($B$5=\"\",\"\",IFERROR(VLOOKUP($E52,名言集!$B:$E,3,FALSE),\"\"))","v":""},{"$f":"IF($B$5=\"\",\"\",IFERROR(VLOOKUP($E52,名言集!$B:$E,4,FALSE),\"\"))","v":""},{"$f":"IF(F52=\"\",\"\",IFERROR(MATCH(E52,名言集!B:B,0),\"\"))","v":""}]
[null,null,null,null,47,{"$f":"IF($B$5=\"\",\"\",IFERROR(VLOOKUP($E53,名言集!$B:$E,2,FALSE),\"\"))","v":""},{"$f":"IF($B$5=\"\",\"\",IFERROR(VLOOKUP($E53,名言集!$B:$E,3,FALSE),\"\"))","v":""},{"$f":"IF($B$5=\"\",\"\",IFERROR(VLOOKUP($E53,名言集!$B:$E,4,FALSE),\"\"))","v":""},{"$f":"IF(F53=\"\",\"\",IFERROR(MATCH(E53,名言集!B:B,0),\"\"))","v":""}]
[null,null,null,null,48,{"$f":"IF($B$5=\"\",\"\",IFERROR(VLOOKUP($E54,名言集!$B:$E,2,FALSE),\"\"))","v":""},{"$f":"IF($B$5=\"\",\"\",IFERROR(VLOOKUP($E54,名言集!$B:$E,3,FALSE),\"\"))","v":""},{"$f":"IF($B$5=\"\",\"\",IFERROR(VLOOKUP($E54,名言集!$B:$E,4,FALSE),\"\"))","v":""},{"$f":"IF(F54=\"\",\"\",IFERROR(MATCH(E54,名言集!B:B,0),\"\"))","v":""}]
[null,null,null,null,49,{"$f":"IF($B$5=\"\",\"\",IFERROR(VLOOKUP($E55,名言集!$B:$E,2,FALSE),\"\"))","v":""},{"$f":"IF($B$5=\"\",\"\",IFERROR(VLOOKUP($E55,名言集!$B:$E,3,FALSE),\"\"))","v":""},{"$f":"IF($B$5=\"\",\"\",IFERROR(VLOOKUP($E55,名言集!$B:$E,4,FALSE),\"\"))","v":""},{"$f":"IF(F55=\"\",\"\",IFERROR(MATCH(E55,名言集!B:B,0),\"\"))","v":""}]
[null,null,null,null,50,{"$f":"IF($B$5=\"\",\"\",IFERROR(VLOOKUP($E56,名言集!$B:$E,2,FALSE),\"\"))","v":""},{"$f":"IF($B$5=\"\",\"\",IFERROR(VLOOKUP($E56,名言集!$B:$E,3,FALSE),\"\"))","v":""},{"$f":"IF($B$5=\"\",\"\",IFERROR(VLOOKUP($E56,名言集!$B:$E,4,FALSE),\"\"))","v":""},{"$f":"IF(F56=\"\",\"\",IFERROR(MATCH(E56,名言集!B:B,0),\"\"))","v":""}]
[null,null,null,null,51,{"$f":"IF($B$5=\"\",\"\",IFERROR(VLOOKUP($E57,名言集!$B:$E,2,FALSE),\"\"))","v":""},{"$f":"IF($B$5=\"\",\"\",IFERROR(VLOOKUP($E57,名言集!$B:$E,3,FALSE),\"\"))","v":""},{"$f":"IF($B$5=\"\",\"\",IFERROR(VLOOKUP($E57,名言集!$B:$E,4,FALSE),\"\"))","v":""},{"$f":"IF(F57=\"\",\"\",IFERROR(MATCH(E57,名言集!B:B,0),\"\"))","v":""}]
[null,null,null,null,52,{"$f":"IF($B$5=\"\",\"\",IFERROR(VLOOKUP($E58,名言集!$B:$E,2,FALSE),\"\"))","v":""},{"$f":"IF($B$5=\"\",\"\",IFERROR(VLOOKUP($E58,名言集!$B:$E,3,FALSE),\"\"))","v":""},{"$f":"IF($B$5=\"\",\"\",IFERROR(VLOOKUP($E58,名言集!$B:$E,4,FALSE),\"\"))","v":""},{"$f":"IF(F58=\"\",\"\",IFERROR(MATCH(E58,名言集!B:B,0),\"\"))","v":""}]
[null,null,null,null,53,{"$f":"IF($B$5=\"\",\"\",IFERROR(VLOOKUP($E59,名言集!$B:$E,2,FALSE),\"\"))","v":""},{"$f":"IF($B$5=\"\",\"\",IFERROR(VLOOKUP($E59,名言集!$B:$E,3,FALSE),\"\"))","v":""},{"$f":"IF($B$5=\"\",\"\",IFERROR(VLOOKUP($E59,名言集!$B:$E,4,FALSE),\"\"))","v":""},{"$f":"IF(F59=\"\",\"\",IFERROR(MATCH(E59,名言集!B:B,0),\"\"))","v":""}]
[null,null,null,null,54,{"$f":"IF($B$5=\"\",\"\",IFERROR(VLOOKUP($E60,名言集!$B:$E,2,FALSE),\"\"))","v":""},{"$f":"IF($B$5=\"\",\"\",IFERROR(VLOOKUP($E60,名言集!$B:$E,3,FALSE),\"\"))","v":""},{"$f":"IF($B$5=\"\",\"\",IFERROR(VLOOKUP($E60,名言集!$B:$E,4,FALSE),\"\"))","v":""},{"$f":"IF(F60=\"\",\"\",IFERROR(MATCH(E60,名言集!B:B,0),\"\"))","v":""}]
[null,null,null,null,55,{"$f":"IF($B$5=\"\",\"\",IFERROR(VLOOKUP($E61,名言集!$B:$E,2,FALSE),\"\"))","v":""},{"$f":"IF($B$5=\"\",\"\",IFERROR(VLOOKUP($E61,名言集!$B:$E,3,FALSE),\"\"))","v":""},{"$f":"IF($B$5=\"\",\"\",IFERROR(VLOOKUP($E61,名言集!$B:$E,4,FALSE),\"\"))","v":""},{"$f":"IF(F61=\"\",\"\",IFERROR(MATCH(E61,名言集!B:B,0),\"\"))","v":""}]
[null,null,null,null,56,{"$f":"IF($B$5=\"\",\"\",IFERROR(VLOOKUP($E62,名言集!$B:$E,2,FALSE),\"\"))","v":""},{"$f":"IF($B$5=\"\",\"\",IFERROR(VLOOKUP($E62,名言集!$B:$E,3,FALSE),\"\"))","v":""},{"$f":"IF($B$5=\"\",\"\",IFERROR(VLOOKUP($E62,名言集!$B:$E,4,FALSE),\"\"))","v":""},{"$f":"IF(F62=\"\",\"\",IFERROR(MATCH(E62,名言集!B:B,0),\"\"))","v":""}]
[null,null,null,null,57,{"$f":"IF($B$5=\"\",\"\",IFERROR(VLOOKUP($E63,名言集!$B:$E,2,FALSE),\"\"))","v":""},{"$f":"IF($B$5=\"\",\"\",IFERROR(VLOOKUP($E63,名言集!$B:$E,3,FALSE),\"\"))","v":""},{"$f":"IF($B$5=\"\",\"\",IFERROR(VLOOKUP($E63,名言集!$B:$E,4,FALSE),\"\"))","v":""},{"$f":"IF(F63=\"\",\"\",IFERROR(MATCH(E63,名言集!B:B,0),\"\"))","v":""}]
[null,null,null,null,58,{"$f":"IF($B$5=\"\",\"\",IFERROR(VLOOKUP($E64,名言集!$B:$E,2,FALSE),\"\"))","v":""},{"$f":"IF($B$5=\"\",\"\",IFERROR(VLOOKUP($E64,名言集!$B:$E,3,FALSE),\"\"))","v":""},{"$f":"IF($B$5=\"\",\"\",IFERROR(VLOOKUP($E64,名言集!$B:$E,4,FALSE),\"\"))","v":""},{"$f":"IF(F64=\"\",\"\",IFERROR(MATCH(E64,名言集!B:B,0),\"\"))","v":""}]
[null,null,null,null,59,{"$f":"IF($B$5=\"\",\"\",IFERROR(VLOOKUP($E65,名言集!$B:$E,2,FALSE),\"\"))","v":""},{"$f":"IF($B$5=\"\",\"\",IFERROR(VLOOKUP($E65,名言集!$B:$E,3,FALSE),\"\"))","v":""},{"$f":"IF($B$5=\"\",\"\",IFERROR(VLOOKUP($E65,名言集!$B:$E,4,FALSE),\"\"))","v":""},{"$f":"IF(F65=\"\",\"\",IFERROR(MATCH(E65,名言集!B:B,0),\"\"))","v":""}]
[null,null,null,null,60,{"$f":"IF($B$5=\"\",\"\",IFERROR(VLOOKUP($E66,名言集!$B:$E,2,FALSE),\"\"))","v":""},{"$f":"IF($B$5=\"\",\"\",IFERROR(VLOOKUP($E66,名言集!$B:$E,3,FALSE),\"\"))","v":""},{"$f":"IF($B$5=\"\",\"\",IFERROR(VLOOKUP($E66,名言集!$B:$E,4,FALSE),\"\"))","v":""},{"$f":"IF(F66=\"\",\"\",IFERROR(MATCH(E66,名言集!B:B,0),\"\"))","v":""}]
[null,null,null,null,61,{"$f":"IF($B$5=\"\",\"\",IFERROR(VLOOKUP($E67,名言集!$B:$E,2,FALSE),\"\"))","v":""},{"$f":"IF($B$5=\"\",\"\",IFERROR(VLOOKUP($E67,名言集!$B:$E,3,FALSE),\"\"))","v":""},{"$f":"IF($B$5=\"\",\"\",IFERROR(VLOOKUP($E67,名言集!$B:$E,4,FALSE),\"\"))","v":""},{"$f":"IF(F67=\"\",\"\",IFERROR(MATCH(E67,名言集!B:B,0),\"\"))","v":""}]
[null,null,null,null,62,{"$f":"IF($B$5=\"\",\"\",IFERROR(VLOOKUP($E68,名言集!$B:$E,2,FALSE),\"\"))","v":""},{"$f":"IF($B$5=\"\",\"\",IFERROR(VLOOKUP($E68,名言集!$B:$E,3,FALSE),\"\"))","v":""},{"$f":"IF($B$5=\"\",\"\",IFERROR(VLOOKUP($E68,名言集!$B:$E,4,FALSE),\"\"))","v":""},{"$f":"IF(F68=\"\",\"\",IFERROR(MATCH(E68,名言集!B:B,0),\"\"))","v":""}]
[null,null,null,null,63,{"$f":"IF($B$5=\"\",\"\",IFERROR(VLOOKUP($E69,名言集!$B:$E,2,FALSE),\"\"))","v":""},{"$f":"IF($B$5=\"\",\"\",IFERROR(VLOOKUP($E69,名言集!$B:$E,3,FALSE),\"\"))","v":""},{"$f":"IF($B$5=\"\",\"\",IFERROR(VLOOKUP($E69,名言集!$B:$E,4,FALSE),\"\"))","v":""},{"$f":"IF(F69=\"\",\"\",IFERROR(MATCH(E69,名言集!B:B,0),\"\"))","v":""}]
[null,null,null,null,64,{"$f":"IF($B$5=\"\",\"\",IFERROR(VLOOKUP($E70,名言集!$B:$E,2,FALSE),\"\"))","v":""},{"$f":"IF($B$5=\"\",\"\",IFERROR(VLOOKUP($E70,名言集!$B:$E,3,FALSE),\"\"))","v":""},{"$f":"IF($B$5=\"\",\"\",IFERROR(VLOOKUP($E70,名言集!$B:$E,4,FALSE),\"\"))","v":""},{"$f":"IF(F70=\"\",\"\",IFERROR(MATCH(E70,名言集!B:B,0),\"\"))","v":""}]
[null,null,null,null,65,{"$f":"IF($B$5=\"\",\"\",IFERROR(VLOOKUP($E71,名言集!$B:$E,2,FALSE),\"\"))","v":""},{"$f":"IF($B$5=\"\",\"\",IFERROR(VLOOKUP($E71,名言集!$B:$E,3,FALSE),\"\"))","v":""},{"$f":"IF($B$5=\"\",\"\",IFERROR(VLOOKUP($E71,名言集!$B:$E,4,FALSE),\"\"))","v":""},{"$f":"IF(F71=\"\",\"\",IFERROR(MATCH(E71,名言集!B:B,0),\"\"))","v":""}]
[null,null,null,null,66,{"$f":"IF($B$5=\"\",\"\",IFERROR(VLOOKUP($E72,名言集!$B:$E,2,FALSE),\"\"))","v":""},{"$f":"IF($B$5=\"\",\"\",IFERROR(VLOOKUP($E72,名言集!$B:$E,3,FALSE),\"\"))","v":""},{"$f":"IF($B$5=\"\",\"\",IFERROR(VLOOKUP($E72,名言集!$B:$E,4,FALSE),\"\"))","v":""},{"$f":"IF(F72=\"\",\"\",IFERROR(MATCH(E72,名言集!B:B,0),\"\"))","v":""}]
[null,null,null,null,{"$f":"E72+1","v":67},{"$f":"IF($B$5=\"\",\"\",IFERROR(VLOOKUP($E73,名言集!$B:$E,2,FALSE),\"\"))","v":""},{"$f":"IF($B$5=\"\",\"\",IFERROR(VLOOKUP($E73,名言集!$B:$E,3,FALSE),\"\"))","v":""},{"$f":"IF($B$5=\"\",\"\",IFERROR(VLOOKUP($E73,名言集!$B:$E,4,FALSE),\"\"))","v":""},{"$f":"IF(F73=\"\",\"\",IFERROR(MATCH(E73,名言集!B:B,0),\"\"))","v":""}]
[null,null,null,null,68,{"$f":"IF($B$5=\"\",\"\",IFERROR(VLOOKUP($E74,名言集!$B:$E,2,FALSE),\"\"))","v":""},{"$f":"IF($B$5=\"\",\"\",IFERROR(VLOOKUP($E74,名言集!$B:$E,3,FALSE),\"\"))","v":""},{"$f":"IF($B$5=\"\",\"\",IFERROR(VLOOKUP($E74,名言集!$B:$E,4,FALSE),\"\"))","v":""},{"$f":"IF(F74=\"\",\"\",IFERROR(MATCH(E74,名言集!B:B,0),\"\"))","v":""}]
[null,null,null,null,69,{"$f":"IF($B$5=\"\",\"\",IFERROR(VLOOKUP($E75,名言集!$B:$E,2,FALSE),\"\"))","v":""},{"$f":"IF($B$5=\"\",\"\",IFERROR(VLOOKUP($E75,名言集!$B:$E,3,FALSE),\"\"))","v":""},{"$f":"IF($B$5=\"\",\"\",IFERROR(VLOOKUP($E75,名言集!$B:$E,4,FALSE),\"\"))","v":""},{"$f":"IF(F75=\"\",\"\",IFERROR(MATCH(E75,名言集!B:B,0),\"\"))","v":""}]
[null,null,null,null,70,{"$f":"IF($B$5=\"\",\"\",IFERROR(VLOOKUP($E76,名言集!$B:$E,2,FALSE),\"\"))","v":""},{"$f":"IF($B$5=\"\",\"\",IFERROR(VLOOKUP($E76,名言集!$B:$E,3,FALSE),\"\"))","v":""},{"$f":"IF($B$5=\"\",\"\",IFERROR(VLOOKUP($E76,名言集!$B:$E,4,FALSE),\"\"))","v":""},{"$f":"IF(F76=\"\",\"\",IFERROR(MATCH(E76,名言集!B:B,0),\"\"))","v":""}]
[null,null,null,null,71,{"$f":"IF($B$5=\"\",\"\",IFERROR(VLOOKUP($E77,名言集!$B:$E,2,FALSE),\"\"))","v":""},{"$f":"IF($B$5=\"\",\"\",IFERROR(VLOOKUP($E77,名言集!$B:$E,3,FALSE),\"\"))","v":""},{"$f":"IF($B$5=\"\",\"\",IFERROR(VLOOKUP($E77,名言集!$B:$E,4,FALSE),\"\"))","v":""},{"$f":"IF(F77=\"\",\"\",IFERROR(MATCH(E77,名言集!B:B,0),\"\"))","v":""}]
[null,null,null,null,72,{"$f":"IF($B$5=\"\",\"\",IFERROR(VLOOKUP($E78,名言集!$B:$E,2,FALSE),\"\"))","v":""},{"$f":"IF($B$5=\"\",\"\",IFERROR(VLOOKUP($E78,名言集!$B:$E,3,FALSE),\"\"))","v":""},{"$f":"IF($B$5=\"\",\"\",IFERROR(VLOOKUP($E78,名言集!$B:$E,4,FALSE),\"\"))","v":""},{"$f":"IF(F78=\"\",\"\",IFERROR(MATCH(E78,名言集!B:B,0),\"\"))","v":""}]
[null,null,null,null,73,{"$f":"IF($B$5=\"\",\"\",IFERROR(VLOOKUP($E79,名言集!$B:$E,2,FALSE),\"\"))","v":""},{"$f":"IF($B$5=\"\",\"\",IFERROR(VLOOKUP($E79,名言集!$B:$E,3,FALSE),\"\"))","v":""},{"$f":"IF($B$5=\"\",\"\",IFERROR(VLOOKUP($E79,名言集!$B:$E,4,FALSE),\"\"))","v":""},{"$f":"IF(F79=\"\",\"\",IFERROR(MATCH(E79,名言集!B:B,0),\"\"))","v":""}]
[null,null,null,null,74,{"$f":"IF($B$5=\"\",\"\",IFERROR(VLOOKUP($E80,名言集!$B:$E,2,FALSE),\"\"))","v":""},{"$f":"IF($B$5=\"\",\"\",IFERROR(VLOOKUP($E80,名言集!$B:$E,3,FALSE),\"\"))","v":""},{"$f":"IF($B$5=\"\",\"\",IFERROR(VLOOKUP($E80,名言集!$B:$E,4,FALSE),\"\"))","v":""},{"$f":"IF(F80=\"\",\"\",IFERROR(MATCH(E80,名言集!B:B,0),\"\"))","v":""}]
[null,null,null,null,75,{"$f":"IF($B$5=\"\",\"\",IFERROR(VLOOKUP($E81,名言集!$B:$E,2,FALSE),\"\"))","v":""},{"$f":"IF($B$5=\"\",\"\",IFERROR(VLOOKUP($E81,名言集!$B:$E,3,FALSE),\"\"))","v":""},{"$f":"IF($B$5=\"\",\"\",IFERROR(VLOOKUP($E81,名言集!$B:$E,4,FALSE),\"\"))","v":""},{"$f":"IF(F81=\"\",\"\",IFERROR(MATCH(E81,名言集!B:B,0),\"\"))","v":""}]
[null,null,null,null,76,{"$f":"IF($B$5=\"\",\"\",IFERROR(VLOOKUP($E82,名言集!$B:$E,2,FALSE),\"\"))","v":""},{"$f":"IF($B$5=\"\",\"\",IFERROR(VLOOKUP($E82,名言集!$B:$E,3,FALSE),\"\"))","v":""},{"$f":"IF($B$5=\"\",\"\",IFERROR(VLOOKUP($E82,名言集!$B:$E,4,FALSE),\"\"))","v":""},{"$f":"IF(F82=\"\",\"\",IFERROR(MATCH(E82,名言集!B:B,0),\"\"))","v":""}]
[null,null,null,null,77,{"$f":"IF($B$5=\"\",\"\",IFERROR(VLOOKUP($E83,名言集!$B:$E,2,FALSE),\"\"))","v":""},{"$f":"IF($B$5=\"\",\"\",IFERROR(VLOOKUP($E83,名言集!$B:$E,3,FALSE),\"\"))","v":""},{"$f":"IF($B$5=\"\",\"\",IFERROR(VLOOKUP($E83,名言集!$B:$E,4,FALSE),\"\"))","v":""},{"$f":"IF(F83=\"\",\"\",IFERROR(MATCH(E83,名言集!B:B,0),\"\"))","v":""}]
[null,null,null,null,78,{"$f":"IF($B$5=\"\",\"\",IFERROR(VLOOKUP($E84,名言集!$B:$E,2,FALSE),\"\"))","v":""},{"$f":"IF($B$5=\"\",\"\",IFERROR(VLOOKUP($E84,名言集!$B:$E,3,FALSE),\"\"))","v":""},{"$f":"IF($B$5=\"\",\"\",IFERROR(VLOOKUP($E84,名言集!$B:$E,4,FALSE),\"\"))","v":""},{"$f":"IF(F84=\"\",\"\",IFERROR(MATCH(E84,名言集!B:B,0),\"\"))","v":""}]
[null,null,null,null,79,{"$f":"IF($B$5=\"\",\"\",IFERROR(VLOOKUP($E85,名言集!$B:$E,2,FALSE),\"\"))","v":""},{"$f":"IF($B$5=\"\",\"\",IFERROR(VLOOKUP($E85,名言集!$B:$E,3,FALSE),\"\"))","v":""},{"$f":"IF($B$5=\"\",\"\",IFERROR(VLOOKUP($E85,名言集!$B:$E,4,FALSE),\"\"))","v":""},{"$f":"IF(F85=\"\",\"\",IFERROR(MATCH(E85,名言集!B:B,0),\"\"))","v":""}]
[null,null,null,null,80,{"$f":"IF($B$5=\"\",\"\",IFERROR(VLOOKUP($E86,名言集!$B:$E,2,FALSE),\"\"))","v":""},{"$f":"IF($B$5=\"\",\"\",IFERROR(VLOOKUP($E86,名言集!$B:$E,3,FALSE),\"\"))","v":""},{"$f":"IF($B$5=\"\",\"\",IFERROR(VLOOKUP($E86,名言集!$B:$E,4,FALSE),\"\"))","v":""},{"$f":"IF(F86=\"\",\"\",IFERROR(MATCH(E86,名言集!B:B,0),\"\"))","v":""}]
[null,null,null,null,81,{"$f":"IF($B$5=\"\",\"\",IFERROR(VLOOKUP($E87,名言集!$B:$E,2,FALSE),\"\"))","v":""},{"$f":"IF($B$5=\"\",\"\",IFERROR(VLOOKUP($E87,名言集!$B:$E,3,FALSE),\"\"))","v":""},{"$f":"IF($B$5=\"\",\"\",IFERROR(VLOOKUP($E87,名言集!$B:$E,4,FALSE),\"\"))","v":""},{"$f":"IF(F87=\"\",\"\",IFERROR(MATCH(E87,名言集!B:B,0),\"\"))","v":""}]
[null,null,null,null,82,{"$f":"IF($B$5=\"\",\"\",IFERROR(VLOOKUP($E88,名言集!$B:$E,2,FALSE),\"\"))","v":""},{"$f":"IF($B$5=\"\",\"\",IFERROR(VLOOKUP($E88,名言集!$B:$E,3,FALSE),\"\"))","v":""},{"$f":"IF($B$5=\"\",\"\",IFERROR(VLOOKUP($E88,名言集!$B:$E,4,FALSE),\"\"))","v":""},{"$f":"IF(F88=\"\",\"\",IFERROR(MATCH(E88,名言集!B:B,0),\"\"))","v":""}]
[null,null,null,null,83,{"$f":"IF($B$5=\"\",\"\",IFERROR(VLOOKUP($E89,名言集!$B:$E,2,FALSE),\"\"))","v":""},{"$f":"IF($B$5=\"\",\"\",IFERROR(VLOOKUP($E89,名言集!$B:$E,3,FALSE),\"\"))","v":""},{"$f":"IF($B$5=\"\",\"\",IFERROR(VLOOKUP($E89,名言集!$B:$E,4,FALSE),\"\"))","v":""},{"$f":"IF(F89=\"\",\"\",IFERROR(MATCH(E89,名言集!B:B,0),\"\"))","v":""}]
[null,null,null,null,84,{"$f":"IF($B$5=\"\",\"\",IFERROR(VLOOKUP($E90,名言集!$B:$E,2,FALSE),\"\"))","v":""},{"$f":"IF($B$5=\"\",\"\",IFERROR(VLOOKUP($E90,名言集!$B:$E,3,FALSE),\"\"))","v":""},{"$f":"IF($B$5=\"\",\"\",IFERROR(VLOOKUP($E90,名言集!$B:$E,4,FALSE),\"\"))","v":""},{"$f":"IF(F90=\"\",\"\",IFERROR(MATCH(E90,名言集!B:B,0),\"\"))","v":""}]
[null,null,null,null,85,{"$f":"IF($B$5=\"\",\"\",IFERROR(VLOOKUP($E91,名言集!$B:$E,2,FALSE),\"\"))","v":""},{"$f":"IF($B$5=\"\",\"\",IFERROR(VLOOKUP($E91,名言集!$B:$E,3,FALSE),\"\"))","v":""},{"$f":"IF($B$5=\"\",\"\",IFERROR(VLOOKUP($E91,名言集!$B:$E,4,FALSE),\"\"))","v":""},{"$f":"IF(F91=\"\",\"\",IFERROR(MATCH(E91,名言集!B:B,0),\"\"))","v":""}]
[null,null,null,null,86,{"$f":"IF($B$5=\"\",\"\",IFERROR(VLOOKUP($E92,名言集!$B:$E,2,FALSE),\"\"))","v":""},{"$f":"IF($B$5=\"\",\"\",IFERROR(VLOOKUP($E92,名言集!$B:$E,3,FALSE),\"\"))","v":""},{"$f":"IF($B$5=\"\",\"\",IFERROR(VLOOKUP($E92,名言集!$B:$E,4,FALSE),\"\"))","v":""},{"$f":"IF(F92=\"\",\"\",IFERROR(MATCH(E92,名言集!B:B,0),\"\"))","v":""}]
[null,null,null,null,87,{"$f":"IF($B$5=\"\",\"\",IFERROR(VLOOKUP($E93,名言集!$B:$E,2,FALSE),\"\"))","v":""},{"$f":"IF($B$5=\"\",\"\",IFERROR(VLOOKUP($E93,名言集!$B:$E,3,FALSE),\"\"))","v":""},{"$f":"IF($B$5=\"\",\"\",IFERROR(VLOOKUP($E93,名言集!$B:$E,4,FALSE),\"\"))","v":""},{"$f":"IF(F93=\"\",\"\",IFERROR(MATCH(E93,名言集!B:B,0),\"\"))","v":""}]
[null,null,null,null,88,{"$f":"IF($B$5=\"\",\"\",IFERROR(VLOOKUP($E94,名言集!$B:$E,2,FALSE),\"\"))","v":""},{"$f":"IF($B$5=\"\",\"\",IFERROR(VLOOKUP($E94,名言集!$B:$E,3,FALSE),\"\"))","v":""},{"$f":"IF($B$5=\"\",\"\",IFERROR(VLOOKUP($E94,名言集!$B:$E,4,FALSE),\"\"))","v":""},{"$f":"IF(F94=\"\",\"\",IFERROR(MATCH(E94,名言集!B:B,0),\"\"))","v":""}]
[null,null,null,null,89,{"$f":"IF($B$5=\"\",\"\",IFERROR(VLOOKUP($E95,名言集!$B:$E,2,FALSE),\"\"))","v":""},{"$f":"IF($B$5=\"\",\"\",IFERROR(VLOOKUP($E95,名言集!$B:$E,3,FALSE),\"\"))","v":""},{"$f":"IF($B$5=\"\",\"\",IFERROR(VLOOKUP($E95,名言集!$B:$E,4,FALSE),\"\"))","v":""},{"$f":"IF(F95=\"\",\"\",IFERROR(MATCH(E95,名言集!B:B,0),\"\"))","v":""}]
[null,null,null,null,90,{"$f":"IF($B$5=\"\",\"\",IFERROR(VLOOKUP($E96,名言集!$B:$E,2,FALSE),\"\"))","v":""},{"$f":"IF($B$5=\"\",\"\",IFERROR(VLOOKUP($E96,名言集!$B:$E,3,FALSE),\"\"))","v":""},{"$f":"IF($B$5=\"\",\"\",IFERROR(VLOOKUP($E96,名言集!$B:$E,4,FALSE),\"\"))","v":""},{"$f":"IF(F96=\"\",\"\",IFERROR(MATCH(E96,名言集!B:B,0),\"\"))","v":""}]
[null,null,null,null,91,{"$f":"IF($B$5=\"\",\"\",IFERROR(VLOOKUP($E97,名言集!$B:$E,2,FALSE),\"\"))","v":""},{"$f":"IF($B$5=\"\",\"\",IFERROR(VLOOKUP($E97,名言集!$B:$E,3,FALSE),\"\"))","v":""},{"$f":"IF($B$5=\"\",\"\",IFERROR(VLOOKUP($E97,名言集!$B:$E,4,FALSE),\"\"))","v":""},{"$f":"IF(F97=\"\",\"\",IFERROR(MATCH(E97,名言集!B:B,0),\"\"))","v":""}]
[null,null,null,null,92,{"$f":"IF($B$5=\"\",\"\",IFERROR(VLOOKUP($E98,名言集!$B:$E,2,FALSE),\"\"))","v":""},{"$f":"IF($B$5=\"\",\"\",IFERROR(VLOOKUP($E98,名言集!$B:$E,3,FALSE),\"\"))","v":""},{"$f":"IF($B$5=\"\",\"\",IFERROR(VLOOKUP($E98,名言集!$B:$E,4,FALSE),\"\"))","v":""},{"$f":"IF(F98=\"\",\"\",IFERROR(MATCH(E98,名言集!B:B,0),\"\"))","v":""}]
[null,null,null,null,93,{"$f":"IF($B$5=\"\",\"\",IFERROR(VLOOKUP($E99,名言集!$B:$E,2,FALSE),\"\"))","v":""},{"$f":"IF($B$5=\"\",\"\",IFERROR(VLOOKUP($E99,名言集!$B:$E,3,FALSE),\"\"))","v":""},{"$f":"IF($B$5=\"\",\"\",IFERROR(VLOOKUP($E99,名言集!$B:$E,4,FALSE),\"\"))","v":""},{"$f":"IF(F99=\"\",\"\",IFERROR(MATCH(E99,名言集!B:B,0),\"\"))","v":""}]
[null,null,null,null,94,{"$f":"IF($B$5=\"\",\"\",IFERROR(VLOOKUP($E100,名言集!$B:$E,2,FALSE),\"\"))","v":""},{"$f":"IF($B$5=\"\",\"\",IFERROR(VLOOKUP($E100,名言集!$B:$E,3,FALSE),\"\"))","v":""},{"$f":"IF($B$5=\"\",\"\",IFERROR(VLOOKUP($E100,名言集!$B:$E,4,FALSE),\"\"))","v":""},{"$f":"IF(F100=\"\",\"\",IFERROR(MATCH(E100,名言集!B:B,0),\"\"))","v":""}]
[null,null,null,null,95,{"$f":"IF($B$5=\"\",\"\",IFERROR(VLOOKUP($E101,名言集!$B:$E,2,FALSE),\"\"))","v":""},{"$f":"IF($B$5=\"\",\"\",IFERROR(VLOOKUP($E101,名言集!$B:$E,3,FALSE),\"\"))","v":""},{"$f":"IF($B$5=\"\",\"\",IFERROR(VLOOKUP($E101,名言集!$B:$E,4,FALSE),\"\"))","v":""},{"$f":"IF(F101=\"\",\"\",IFERROR(MATCH(E101,名言集!B:B,0),\"\"))","v":""}]
[null,null,null,null,96,{"$f":"IF($B$5=\"\",\"\",IFERROR(VLOOKUP($E102,名言集!$B:$E,2,FALSE),\"\"))","v":""},{"$f":"IF($B$5=\"\",\"\",IFERROR(VLOOKUP($E102,名言集!$B:$E,3,FALSE),\"\"))","v":""},{"$f":"IF($B$5=\"\",\"\",IFERROR(VLOOKUP($E102,名言集!$B:$E,4,FALSE),\"\"))","v":""},{"$f":"IF(F102=\"\",\"\",IFERROR(MATCH(E102,名言集!B:B,0),\"\"))","v":""}]
[null,null,null,null,97,{"$f":"IF($B$5=\"\",\"\",IFERROR(VLOOKUP($E103,名言集!$B:$E,2,FALSE),\"\"))","v":""},{"$f":"IF($B$5=\"\",\"\",IFERROR(VLOOKUP($E103,名言集!$B:$E,3,FALSE),\"\"))","v":""},{"$f":"IF($B$5=\"\",\"\",IFERROR(VLOOKUP($E103,名言集!$B:$E,4,FALSE),\"\"))","v":""},{"$f":"IF(F103=\"\",\"\",IFERROR(MATCH(E103,名言集!B:B,0),\"\"))","v":""}]
[null,null,null,null,98,{"$f":"IF($B$5=\"\",\"\",IFERROR(VLOOKUP($E104,名言集!$B:$E,2,FALSE),\"\"))","v":""},{"$f":"IF($B$5=\"\",\"\",IFERROR(VLOOKUP($E104,名言集!$B:$E,3,FALSE),\"\"))","v":""},{"$f":"IF($B$5=\"\",\"\",IFERROR(VLOOKUP($E104,名言集!$B:$E,4,FALSE),\"\"))","v":""},{"$f":"IF(F104=\"\",\"\",IFERROR(MATCH(E104,名言集!B:B,0),\"\"))","v":""}]
[null,null,null,null,99,{"$f":"IF($B$5=\"\",\"\",IFERROR(VLOOKUP($E105,名言集!$B:$E,2,FALSE),\"\"))","v":""},{"$f":"IF($B$5=\"\",\"\",IFERROR(VLOOKUP($E105,名言集!$B:$E,3,FALSE),\"\"))","v":""},{"$f":"IF($B$5=\"\",\"\",IFERROR(VLOOKUP($E105,名言集!$B:$E,4,FALSE),\"\"))","v":""},{"$f":"IF(F105=\"\",\"\",IFERROR(MATCH(E105,名言集!B:B,0),\"\"))","v":""}]
[null,null,null,null,100,{"$f":"IF($B$5=\"\",\"\",IFERROR(VLOOKUP($E106,名言集!$B:$E,2,FALSE),\"\"))","v":""},{"$f":"IF($B$5=\"\",\"\",IFERROR(VLOOKUP($E106,名言集!$B:$E,3,FALSE),\"\"))","v":""},{"$f":"IF($B$5=\"\",\"\",IFERROR(VLOOKUP($E106,名言集!$B:$E,4,FALSE),\"\"))","v":""},{"$f":"IF(F106=\"\",\"\",IFERROR(MATCH(E106,名言集!B:B,0),\"\"))","v":""}]

{"sheet":"名言集","index":3,"n_rows":1022,"n_cols":5,"rows_kept":1022,"cut":false,"hidden":true,"merged":[]}
[{"$f":"IFERROR(FIND(作業!$B$5,名言集!C1),IFERROR(FIND(作業!$B$5,名言集!D1),\"\"))","v":1},{"$f":"IF(A1=\"\",0,1)","v":1},"あなたの心が正しいと思うことをしなさい。どっちにしたって批判されるのだから。","エレノア・ルーズベルト","米国のファーストレディ、人権活動家 / 1884～1962"]
[{"$f":"IFERROR(FIND(作業!$B$5,名言集!C2),IFERROR(FIND(作業!$B$5,名言集!D2),\"\"))","v":1},{"$f":"IF(A2=\"\",B1,B1+1)","v":2},"前進をしない人は、後退をしているのだ。","ゲーテ","ドイツの詩人、小説家、劇作家 / 1749～1832"]
[{"$f":"IFERROR(FIND(作業!$B$5,名言集!C3),IFERROR(FIND(作業!$B$5,名言集!D3),\"\"))","v":1},{"$f":"IF(A3=\"\",B2,B2+1)","v":3},"どんなに悔いても過去は変わらない。どれほど心配したところで未来もどうなるものでもない。いま、現在に最善を尽くすことである。","松下幸之助","日本の実業家、発明家、パナソニック創業者 / 1894～1989"]
[{"$f":"IFERROR(FIND(作業!$B$5,名言集!C4),IFERROR(FIND(作業!$B$5,名言集!D4),\"\"))","v":1},4,"最も重要な決定とは、何をするかではなく、何をしないかを決めることだ。","スティーブ・ジョブズ","米国の実業家、アップル創業者 / 1955～2011"]
[{"$f":"IFERROR(FIND(作業!$B$5,名言集!C5),IFERROR(FIND(作業!$B$5,名言集!D5),\"\"))","v":1},5,"人生は楽ではない。そこが面白い。","武者小路実篤","日本の小説家、詩人、劇作家、画家 / 1885～1976"]
[{"$f":"IFERROR(FIND(作業!$B$5,名言集!C6),IFERROR(FIND(作業!$B$5,名言集!D6),\"\"))","v":1},6,"自分で自分をあきらめなければ、人生に「負け」はない。","斎藤茂太","日本の精神科医、随筆家 / 1916～2006"]
[{"$f":"IFERROR(FIND(作業!$B$5,名言集!C7),IFERROR(FIND(作業!$B$5,名言集!D7),\"\"))","v":1},7,"数えきれないほど、悔しい思いをしてきたけれどその度にお袋の「我慢しなさい」って言葉を思い浮かべて、なんとか笑ってきたんです。","手塚治虫","日本の漫画家、アニメーター、医学博士 / 1928～1989"]
[{"$f":"IFERROR(FIND(作業!$B$5,名言集!C8),IFERROR(FIND(作業!$B$5,名言集!D8),\"\"))","v":1},8,"人生は公平ではない。そのことに慣れよう。","ビル・ゲイツ","米国の実業家、マイクロソフト社の創業者 / 1955～"]
[{"$f":"IFERROR(FIND(作業!$B$5,名言集!C9),IFERROR(FIND(作業!$B$5,名言集!D9),\"\"))","v":1},9,"親切にしなさい。あなたが会う人はみんな、厳しい闘いをしているのだから。","プラトン","古代ギリシアの哲学者 / 紀元前427～前347"]
[{"$f":"IFERROR(FIND(作業!$B$5,名言集!C10),IFERROR(FIND(作業!$B$5,名言集!D10),\"\"))","v":1},10,"善人はこの世で多くの害をなす。彼らがなす最大の害は、人びとを善人と悪人に分けてしまうことだ。","オスカー・ワイルド","アイルランドの詩人、作家、劇作家 / 1854～1900"]
[{"$f":"IFERROR(FIND(作業!$B$5,名言集!C11),IFERROR(FIND(作業!$B$5,名言集!D11),\"\"))","v":1},11,"過ちを改めるには、自分が間違いを犯したと自覚すれば、それでよい。そのことをさっぱり思いすてて、ただちに一歩を踏み出すことが大事である。","西郷隆盛","幕末の薩摩藩士、維新の三傑の一人 / 1828～1877"]
[{"$f":"IFERROR(FIND(作業!$B$5,名言集!C12),IFERROR(FIND(作業!$B$5,名言集!D12),\"\"))","v":1},12,"今日一日、怒らず、恐れず、悲しまず、正直、親切、愉快に生きよ。","中村天風","日本初のヨーガ行者、天風会の創始者 / 1876～1968"]
[{"$f":"IFERROR(FIND(作業!$B$5,名言集!C13),IFERROR(FIND(作業!$B$5,名言集!D13),\"\"))","v":1},13,"心の底からやりたいと思わないなら、やめておけ。","ヘミングウェイ","米国の小説家、ノーベル文学賞受賞 / 1899～1961"]
[{"$f":"IFERROR(FIND(作業!$B$5,名言集!C14),IFERROR(FIND(作業!$B$5,名言集!D14),\"\"))","v":1},14,"何であれ、怒りから始まったものは、恥にまみれて終わる。","ベンジャミン・フランクリン","米国の政治家、外交官、物理学者 / 1706～1790"]
[{"$f":"IFERROR(FIND(作業!$B$5,名言集!C15),IFERROR(FIND(作業!$B$5,名言集!D15),\"\"))","v":1},15,"自分で薪を割れ、二重に温まる。","ヘンリー・フォード","米国のフォード・モーター創業者 / 1863～1947"]
[{"$f":"IFERROR(FIND(作業!$B$5,名言集!C16),IFERROR(FIND(作業!$B$5,名言集!D16),\"\"))","v":1},16,"人生とは、人生以外のことを夢中で考えているときにあるんだよ。","ジョン・レノン","英国のミュージシャン、ビートルズのリーダー / 1940～1980"]
[{"$f":"IFERROR(FIND(作業!$B$5,名言集!C17),IFERROR(FIND(作業!$B$5,名言集!D17),\"\"))","v":1},17,"一日一字を記さば一年にして三百六十字を得、一夜一時を怠らば、百歳の間三万六千時を失う。","吉田松陰","幕末の長州藩士、明治維新の精神的指導者 / 1830～1859"]
[{"$f":"IFERROR(FIND(作業!$B$5,名言集!C18),IFERROR(FIND(作業!$B$5,名言集!D18),\"\"))","v":1},18,"自分の価値は自分で決めることさ。つらくて貧乏でも自分で自分を殺すことだけはしちゃいけねぇよ。","勝海舟","幕末の武士（幕臣、政治家 / 1823～1899"]
[{"$f":"IFERROR(FIND(作業!$B$5,名言集!C19),IFERROR(FIND(作業!$B$5,名言集!D19),\"\"))","v":1},19,"一人前になるには50年はかかるんだ。功を焦るな。悲観するな。もっと根を深く張るんだ。根を深く張れ。","升田幸三","日本の将棋棋士、実力制第四代名人 / 1918～1991"]
[{"$f":"IFERROR(FIND(作業!$B$5,名言集!C20),IFERROR(FIND(作業!$B$5,名言集!D20),\"\"))","v":1},20,"我、神仏を尊びて、神仏を頼らず。","宮本武蔵","江戸時代初期の剣術家、兵法家 / 1584～1645"]
[{"$f":"IFERROR(FIND(作業!$B$5,名言集!C21),IFERROR(FIND(作業!$B$5,名言集!D21),\"\"))","v":1},21,"人は負けることを知りて、人より勝れり。","徳川家康","戦国時代の武将、江戸幕府の初代征夷大将軍 / 1543～1616"]
[{"$f":"IFERROR(FIND(作業!$B$5,名言集!C22),IFERROR(FIND(作業!$B$5,名言集!D22),\"\"))","v":1},22,"努力は必ず報われる。もし報われない努力があるのならば、それはまだ努力と呼べない。","王貞治","日本の元プロ野球選手、監督 / 1940～"]
[{"$f":"IFERROR(FIND(作業!$B$5,名言集!C23),IFERROR(FIND(作業!$B$5,名言集!D23),\"\"))","v":1},23,"日本人は、失敗ということを恐れすぎるようである。どだい、失敗を恐れて何もしないなんて人間は、最低なのである。","本田宗一郎","日本の実業家、技術者、ホンダの創業者 / 1906～1991"]
[{"$f":"IFERROR(FIND(作業!$B$5,名言集!C24),IFERROR(FIND(作業!$B$5,名言集!D24),\"\"))","v":1},24,"愛はお互いを見つめ合うことではなく、ともに同じ方向を見つめることである。","サン＝テグジュペリ","フランスの作家、操縦士 / 1900～1944"]
[{"$f":"IFERROR(FIND(作業!$B$5,名言集!C25),IFERROR(FIND(作業!$B$5,名言集!D25),\"\"))","v":1},25,"独立の気力なき者は必ず人に依頼す、人に依頼する者は必ず人を恐る、人を恐るる者は必ず人にへつらうものなり。","福沢諭吉","幕末から明治初期の中津藩士、啓蒙思想家、教育者 / 1835～1901"]
[{"$f":"IFERROR(FIND(作業!$B$5,名言集!C26),IFERROR(FIND(作業!$B$5,名言集!D26),\"\"))","v":1},26,"微笑めば友達ができる。しかめっ面をすればしわができる。","ジョージ・エリオット","英国の女性作家 / 1819～1880"]
[{"$f":"IFERROR(FIND(作業!$B$5,名言集!C27),IFERROR(FIND(作業!$B$5,名言集!D27),\"\"))","v":1},27,"他人を押さえつけている限り、自分もそこから動くことはできない。","ジョージ・ワシントン","米国の軍人、政治家、米国初代大統領 / 1732～1799"]
[{"$f":"IFERROR(FIND(作業!$B$5,名言集!C28),IFERROR(FIND(作業!$B$5,名言集!D28),\"\"))","v":1},28,"結婚してようがしてまいが、あなたが幸せならそれが幸せなのよ。","グレタ・ガルボ","スウェーデン出身のハリウッド女優 / 1905～1990"]
[{"$f":"IFERROR(FIND(作業!$B$5,名言集!C29),IFERROR(FIND(作業!$B$5,名言集!D29),\"\"))","v":1},29,"あなたの運命が形作られるのは、あなたが決断する瞬間なのです。","アンソニー・ロビンズ","米国の自己啓発書作家、講演家 / 1960～"]
[{"$f":"IFERROR(FIND(作業!$B$5,名言集!C30),IFERROR(FIND(作業!$B$5,名言集!D30),\"\"))","v":1},30,"雲の向こうは、いつも青空。","ルイーザ・メイ・オルコット","米国の女性小説家 / 1832～1888"]
[{"$f":"IFERROR(FIND(作業!$B$5,名言集!C31),IFERROR(FIND(作業!$B$5,名言集!D31),\"\"))","v":1},31,"誰かのことを批判したくなったときには、世間のすべての人がおまえのように恵まれているわけではないということをちょっと思いだしてみるのだ。","スコット・フィッツジェラルド","米国の小説家 / 1896～1940"]
[{"$f":"IFERROR(FIND(作業!$B$5,名言集!C32),IFERROR(FIND(作業!$B$5,名言集!D32),\"\"))","v":1},32,"タフでなければ生きて行けない。優しくなれなければ生きている資格がない。","レイモンド・チャンドラー","米国のハードボイルド作家 / 1888～1959"]
[{"$f":"IFERROR(FIND(作業!$B$5,名言集!C33),IFERROR(FIND(作業!$B$5,名言集!D33),\"\"))","v":1},33,"つらい道を避けないこと。自分の目指す場所にたどりつくためには進まなければ。","キャサリン・アン・ポーター","米国の小説家 / 1890～1980"]
[{"$f":"IFERROR(FIND(作業!$B$5,名言集!C34),IFERROR(FIND(作業!$B$5,名言集!D34),\"\"))","v":1},34,"女は、人生で一度や二度は、ワルい男を愛してしまうの。でもだからこそ、イイ男に出会ったとき、感謝する気持ちになれるのよ。","マージョリー・キナン・ローリングス","米国の小説家『子鹿物語』著者 / 1896～1953"]
[{"$f":"IFERROR(FIND(作業!$B$5,名言集!C35),IFERROR(FIND(作業!$B$5,名言集!D35),\"\"))","v":1},35,"自分ならできると思う。あるいは自分にはできないと思う。どちらも正しいの。","メアリー・ケイ・アッシュ","米国の化粧品会社創業者 / 1918～2001"]
[{"$f":"IFERROR(FIND(作業!$B$5,名言集!C36),IFERROR(FIND(作業!$B$5,名言集!D36),\"\"))","v":1},36,"問いを投げる年もあれば、答える年もある。","ゾラ・ニール・ハーストン","米国の黒人女性作家 / 1891～1960"]
[{"$f":"IFERROR(FIND(作業!$B$5,名言集!C37),IFERROR(FIND(作業!$B$5,名言集!D37),\"\"))","v":1},37,"人の価値とは、その人が得たものではなく、その人が与えたもので測られる。","アインシュタイン","理論物理学者、ノーベル物理学賞受賞 / 1879～1955"]
[{"$f":"IFERROR(FIND(作業!$B$5,名言集!C38),IFERROR(FIND(作業!$B$5,名言集!D38),\"\"))","v":1},38,"神様は私たちに、成功してほしいなんて思っていません。ただ、挑戦することを望んでいるだけよ。","マザー・テレサ","カトリック修道女、ノーベル平和賞受賞 / 1910～1997"]
[{"$f":"IFERROR(FIND(作業!$B$5,名言集!C39),IFERROR(FIND(作業!$B$5,名言集!D39),\"\"))","v":1},39,"あなたがやれる最善を尽くしたなら、心配したって事態は良くならない。私もいろいろなことを心配するが、ダムからあふれる水までは心配しない。","ウォルト・ディズニー","米国のエンターテイナー、実業家 / 1901～1966"]
[{"$f":"IFERROR(FIND(作業!$B$5,名言集!C40),IFERROR(FIND(作業!$B$5,名言集!D40),\"\"))","v":1},40,"人生とは自分を見つけることではない。人生とは自分を創ることである。","バーナード・ショー","アイルランドの劇作家、ノーベル文学賞受賞 / 1856～1950"]
[{"$f":"IFERROR(FIND(作業!$B$5,名言集!C41),IFERROR(FIND(作業!$B$5,名言集!D41),\"\"))","v":1},41,"生き残る種とは、最も強いものではない。最も知的なものでもない。それは、変化に最もよく適応したものである。","ダーウィン","英国の自然科学者、『種の起源』著者 / 1809～1882"]
[{"$f":"IFERROR(FIND(作業!$B$5,名言集!C42),IFERROR(FIND(作業!$B$5,名言集!D42),\"\"))","v":1},42,"何より大事なのは、人生を楽しむこと。幸せを感じること、それだけです。","オードリー・ヘップバーン","英国の女優 / 1929～1993"]
[{"$f":"IFERROR(FIND(作業!$B$5,名言集!C43),IFERROR(FIND(作業!$B$5,名言集!D43),\"\"))","v":1},43,"ひとつのドアが閉まっている時、もっとたくさんのドアが開いているんだよ。","ボブ・マーリー","ジャマイカのレゲエミュージシャン / 1945～1981"]
[{"$f":"IFERROR(FIND(作業!$B$5,名言集!C44),IFERROR(FIND(作業!$B$5,名言集!D44),\"\"))","v":1},44,"ステップ・バイ・ステップ。どんなことでも、何かを達成する場合にとるべき方法はただひとつ、一歩ずつ着実に立ち向かうことだ。これ以外に方法はない。","マイケル・ジョーダン","米国のバスケットボール選手 / 1963～"]
[{"$f":"IFERROR(FIND(作業!$B$5,名言集!C45),IFERROR(FIND(作業!$B$5,名言集!D45),\"\"))","v":1},45,"神は、我々を人間にするために、何らかの欠点を与える。","シェイクスピア","英国の劇作家、詩人 / 1564～1616"]
[{"$f":"IFERROR(FIND(作業!$B$5,名言集!C46),IFERROR(FIND(作業!$B$5,名言集!D46),\"\"))","v":1},46,"人間いくつになっても新たな道へ踏み出す時が来る。それまでの苦労や人生体験はその時ための基本教育。","美輪明宏","日本のシンガーソングライター、俳優、演出家 / 1935～"]
[{"$f":"IFERROR(FIND(作業!$B$5,名言集!C47),IFERROR(FIND(作業!$B$5,名言集!D47),\"\"))","v":1},47,"悪とは何か？　–　弱さから生じるすべてのものだ。","ニーチェ","ドイツの哲学者、古典文献学者 / 1844～1900"]
[{"$f":"IFERROR(FIND(作業!$B$5,名言集!C48),IFERROR(FIND(作業!$B$5,名言集!D48),\"\"))","v":1},48,"お子さんに「何のために生きるの？」と聞かれたら、「誰かを幸せにするために生きるのよ」と答えてあげてください。","瀬戸内寂聴","日本の女性小説家、天台宗の尼僧 / 1922～"]
[{"$f":"IFERROR(FIND(作業!$B$5,名言集!C49),IFERROR(FIND(作業!$B$5,名言集!D49),\"\"))","v":1},49,"どこでプレーしても俺の成長はあるわけで。","本田圭佑","日本のプロサッカー選手 / 1986～"]
[{"$f":"IFERROR(FIND(作業!$B$5,名言集!C50),IFERROR(FIND(作業!$B$5,名言集!D50),\"\"))","v":1},50,"きみはあなた自身を創造していると思いなさい。","岡本太郎","日本の芸術家 / 1911～1996"]
[{"$f":"IFERROR(FIND(作業!$B$5,名言集!C51),IFERROR(FIND(作業!$B$5,名言集!D51),\"\"))","v":1},51,"死と同じように避けられないものがある。それは生きることだ。","チャップリン","英国の俳優、映画監督、コメディアン、脚本家 / 1889～1977"]
[{"$f":"IFERROR(FIND(作業!$B$5,名言集!C52),IFERROR(FIND(作業!$B$5,名言集!D52),\"\"))","v":1},52,"敵が友となる時、敵を滅ぼしたと言えないかね？","エイブラハム・リンカーン","米国の第16代大統領 / 1809～1865"]
[{"$f":"IFERROR(FIND(作業!$B$5,名言集!C53),IFERROR(FIND(作業!$B$5,名言集!D53),\"\"))","v":1},53,"凧が一番高く上がるのは、風に向かっている時である。風に流されている時ではない。","ウィンストン・チャーチル","英国の政治家、ノーベル文学賞受賞 / 1874～1965"]
[{"$f":"IFERROR(FIND(作業!$B$5,名言集!C54),IFERROR(FIND(作業!$B$5,名言集!D54),\"\"))","v":1},54,"しっかりと準備もしていないのに、目標を語る資格はない。","イチロー","日本のプロ野球選手、日本及び米国で活躍 / 1973～"]
[{"$f":"IFERROR(FIND(作業!$B$5,名言集!C55),IFERROR(FIND(作業!$B$5,名言集!D55),\"\"))","v":1},55,"もし、過ちを犯す自由がないのならば、自由を持つ価値はない。","ガンジー","インドの弁護士、宗教家、政治指導者 / 1869～1948"]
[{"$f":"IFERROR(FIND(作業!$B$5,名言集!C56),IFERROR(FIND(作業!$B$5,名言集!D56),\"\"))","v":1},56,"希望があるところに人生もある。希望が新しい勇気をもたらし、再び強い気持ちにしてくれる。","アンネ・フランク","「アンネの日記」著者、ユダヤ系ドイツ人少女 / 1929～1945"]
[{"$f":"IFERROR(FIND(作業!$B$5,名言集!C57),IFERROR(FIND(作業!$B$5,名言集!D57),\"\"))","v":1},57,"過去のことを思っちゃダメだよ。何であんなことしたんだろ… って、怒りに変わってくるから。未来のことも思っちゃダメ。大丈夫かな、あはぁ～ん。不安になってくるでしょ？ならば、一所懸命、一つの所に命を懸ける！そうだ！今ここを生きていけば、みんなイキイキするぞ！！","松岡修造","日本の元プロテニスプレーヤー、スポーツキャスター / 1967～"]
[{"$f":"IFERROR(FIND(作業!$B$5,名言集!C58),IFERROR(FIND(作業!$B$5,名言集!D58),\"\"))","v":1},58,"疑わずに最初の一段を登りなさい。階段のすべて見えなくてもいい。とにかく最初の一歩を踏み出すのです。","キング牧師","米国の牧師、公民権運動の指導者 / 1929～1968"]
[{"$f":"IFERROR(FIND(作業!$B$5,名言集!C59),IFERROR(FIND(作業!$B$5,名言集!D59),\"\"))","v":1},59,"何の志も無きところに、ぐずぐずして日を送るは、実に大馬鹿者なり","坂本龍馬","幕末の志士、土佐藩郷士 / 1836～1867"]
[{"$f":"IFERROR(FIND(作業!$B$5,名言集!C60),IFERROR(FIND(作業!$B$5,名言集!D60),\"\"))","v":1},60,"経験をもたらすのは観察だけなのである。","ナイチンゲール","英国の看護師、社会起業家、看護教育学者 / 1820～1910"]
[{"$f":"IFERROR(FIND(作業!$B$5,名言集!C61),IFERROR(FIND(作業!$B$5,名言集!D61),\"\"))","v":1},61,"好かれようとしているだけなら、いつでも何でも妥協する用意があり、何も達成しないだろう。","マーガレット・サッチャー","英国初の女性首相 / 1925～2013"]
[{"$f":"IFERROR(FIND(作業!$B$5,名言集!C62),IFERROR(FIND(作業!$B$5,名言集!D62),\"\"))","v":1},62,"なぜ逃げるのか。打たれて命を取られるのか。打たれたからって命を取られるわけないんだ。逃げるな。","長嶋茂雄","日本の元プロ野球選手、監督 / 1936～"]
[{"$f":"IFERROR(FIND(作業!$B$5,名言集!C63),IFERROR(FIND(作業!$B$5,名言集!D63),\"\"))","v":1},63,"人はあらゆる物や人に意味を見出そうとする。これは我々の時代にはびこる病気だ。","パブロ・ピカソ","スペイン出身の画家、彫刻家 / 1881～1973"]
[{"$f":"IFERROR(FIND(作業!$B$5,名言集!C64),IFERROR(FIND(作業!$B$5,名言集!D64),\"\"))","v":1},64,"美しい景色を探すな。景色の中に美しいものを見つけるんだ。","ゴッホ","オランダ出身のポスト印象派の画家 / 1853～1890"]
[{"$f":"IFERROR(FIND(作業!$B$5,名言集!C65),IFERROR(FIND(作業!$B$5,名言集!D65),\"\"))","v":1},65,"これはあなたのために書いたのではありません。後世のために書いたのです。","ベートーヴェン","ドイツの作曲家 / 1770～1827"]
[{"$f":"IFERROR(FIND(作業!$B$5,名言集!C66),IFERROR(FIND(作業!$B$5,名言集!D66),\"\"))","v":1},66,"どんなに暗くても、星は輝いている。","エマーソン","米国の思想家、哲学者、作家、詩人 / 1803～1882"]
[{"$f":"IFERROR(FIND(作業!$B$5,名言集!C67),IFERROR(FIND(作業!$B$5,名言集!D67),\"\"))","v":1},{"$f":"IF(A67=\"\",B66,B66+1)","v":67},"待っている間もがんばる人にすべてのものはやってくる。","トーマス・エジソン","米国の発明家、起業家 / 1847～1931"]
[{"$f":"IFERROR(FIND(作業!$B$5,名言集!C68),IFERROR(FIND(作業!$B$5,名言集!D68),\"\"))","v":1},68,"人間は、その想像力によって支配される。","ナポレオン・ボナパルト","フランスの皇帝、政治家、軍人 / 1769～1821"]
[{"$f":"IFERROR(FIND(作業!$B$5,名言集!C69),IFERROR(FIND(作業!$B$5,名言集!D69),\"\"))","v":1},69,"誰もが世界を変えたいと思うが、誰も自分自身を変えようとは思わない。","トルストイ","ロシアの小説家、思想家 / 1828～1910"]
[{"$f":"IFERROR(FIND(作業!$B$5,名言集!C70),IFERROR(FIND(作業!$B$5,名言集!D70),\"\"))","v":1},70,"真似をするときには、その形ではなく、その心を真似するのがよい。","渋沢栄一","日本の武士、官僚、実業家、日本資本主義の父 / 1840～1931"]
[{"$f":"IFERROR(FIND(作業!$B$5,名言集!C71),IFERROR(FIND(作業!$B$5,名言集!D71),\"\"))","v":1},71,"生きるうえで最も偉大な栄光は、決して転ばないことにあるのではない。転ぶたびに起き上がり続けることにある。","ネルソン・マンデラ","南アフリカの政治家、ノーベル平和賞受賞 / 1918～2013"]
[{"$f":"IFERROR(FIND(作業!$B$5,名言集!C72),IFERROR(FIND(作業!$B$5,名言集!D72),\"\"))","v":1},72,"リスクを取る勇気がなければ、何も達成することがない人生になる。","モハメド・アリ","米国の元プロボクサー / 1942～2016 Wikiped"]
[{"$f":"IFERROR(FIND(作業!$B$5,名言集!C73),IFERROR(FIND(作業!$B$5,名言集!D73),\"\"))","v":1},73,"自分の判断以上に自分を欺くものはない。","レオナルド・ダ・ヴィンチ","イタリアのルネサンス期の芸術家 / 1452～1519"]
[{"$f":"IFERROR(FIND(作業!$B$5,名言集!C74),IFERROR(FIND(作業!$B$5,名言集!D74),\"\"))","v":1},74,"できることから始めるのではなく、正しいことから始めるのです。","ピーター・ドラッカー","オーストリア出身の経営学者 / 1909～2005"]
[{"$f":"IFERROR(FIND(作業!$B$5,名言集!C75),IFERROR(FIND(作業!$B$5,名言集!D75),\"\"))","v":1},75,"唯一の真の英知とは、自分が無知であることを知ることにある。","ソクラテス","古代ギリシアの哲学者 / 紀元前469～399"]
[{"$f":"IFERROR(FIND(作業!$B$5,名言集!C76),IFERROR(FIND(作業!$B$5,名言集!D76),\"\"))","v":1},76,"恥は、若者にとって名誉であり、老人には屈辱である。","アリストテレス","古代ギリシアの哲学者 / 紀元前384～前322"]
[{"$f":"IFERROR(FIND(作業!$B$5,名言集!C77),IFERROR(FIND(作業!$B$5,名言集!D77),\"\"))","v":1},77,"天分は、持って生まれるもの。才能は、引き出すものよ。","ココ・シャネル","フランスのファッションデザイナー / 1883～1971"]
[{"$f":"IFERROR(FIND(作業!$B$5,名言集!C78),IFERROR(FIND(作業!$B$5,名言集!D78),\"\"))","v":1},78,"自分が多数派の側にいると気づいたら、もう意見を変えてもいいころだ。","マーク・トウェイン","米国の作家、小説家 / 1835～1910"]
[{"$f":"IFERROR(FIND(作業!$B$5,名言集!C79),IFERROR(FIND(作業!$B$5,名言集!D79),\"\"))","v":1},79,"あせってはいけません。ただ、牛のように、図々しく進んで行くのが大事です。","夏目漱石","日本の小説家、評論家、英文学者 / 1867～1916"]
[{"$f":"IFERROR(FIND(作業!$B$5,名言集!C80),IFERROR(FIND(作業!$B$5,名言集!D80),\"\"))","v":1},80,"笑われて、笑われて、つよくなる。","太宰治","日本の小説家 / 1909～1948"]
[{"$f":"IFERROR(FIND(作業!$B$5,名言集!C81),IFERROR(FIND(作業!$B$5,名言集!D81),\"\"))","v":1},81,"阿呆はいつも彼以外のものを阿呆であると信じている。","芥川龍之介","日本の小説家 / 1892年～1927年"]
[{"$f":"IFERROR(FIND(作業!$B$5,名言集!C82),IFERROR(FIND(作業!$B$5,名言集!D82),\"\"))","v":1},82,"目的と方針がなければ、努力と勇気は十分ではない。","ジョン・F・ケネディ","米国の第35代大統領 / 1917～1963"]
[{"$f":"IFERROR(FIND(作業!$B$5,名言集!C83),IFERROR(FIND(作業!$B$5,名言集!D83),\"\"))","v":1},83,"私はこれまでの人生でずっと「私は愛されない人間なんだ」と思ってきたの。でも私の人生にはそれよりもっと悪いことがあったと、はじめて気がついたの。私自身、心から人を愛そうとしなかったのよ。","マリリン・モンロー","米国の女優 / 1926～1962"]
[{"$f":"IFERROR(FIND(作業!$B$5,名言集!C84),IFERROR(FIND(作業!$B$5,名言集!D84),\"\"))","v":1},84,"過ちて改めざる　これを過ちという","孔子","春秋時代の中国の思想家、哲学者。儒家の始祖 / 紀元前551年‐紀元前479年"]
[{"$f":"IFERROR(FIND(作業!$B$5,名言集!C85),IFERROR(FIND(作業!$B$5,名言集!D85),\"\"))","v":1},85,"人は常に幸福を求めるが、常に幸福に気づかない。","ルソー","現在スイスの都市のジュネーヴ共和国出身の哲学者 / 1712～1778"]
[{"$f":"IFERROR(FIND(作業!$B$5,名言集!C86),IFERROR(FIND(作業!$B$5,名言集!D86),\"\"))","v":1},86,"人は喜んで自己の望むものを信じるものだ。","ユリウス・カエサル","共和政ローマ期の政治家、軍人 / 紀元前100～前44"]
[{"$f":"IFERROR(FIND(作業!$B$5,名言集!C87),IFERROR(FIND(作業!$B$5,名言集!D87),\"\"))","v":1},87,"どんな愚者でも批判し、非難し、文句を言うことはできる。そして、多くの愚者がそうする。","デール・カーネギー","米国の実業家、作家、セミナー講師 / 1888～1955"]
[{"$f":"IFERROR(FIND(作業!$B$5,名言集!C88),IFERROR(FIND(作業!$B$5,名言集!D88),\"\"))","v":1},88,"幸福は自己満足によってではなく、価値ある目標に忠実であることによって得られる。","ヘレン・ケラー","米国の教育家、社会福祉活動家、著作家 / 1880～1968"]
[{"$f":"IFERROR(FIND(作業!$B$5,名言集!C89),IFERROR(FIND(作業!$B$5,名言集!D89),\"\"))","v":1},89,"たとえ明日世界が滅亡しようとも、今日私はリンゴの木を植える。","マルティン・ルター","ドイツの宗教改革者 / 1483～1546"]
[{"$f":"IFERROR(FIND(作業!$B$5,名言集!C90),IFERROR(FIND(作業!$B$5,名言集!D90),\"\"))","v":1},90,"結果にはすべて…　原因がある。","ガリレオ・ガリレイ","イタリアの物理学者、天文学者、哲学者 / 1564～1642"]
[{"$f":"IFERROR(FIND(作業!$B$5,名言集!C91),IFERROR(FIND(作業!$B$5,名言集!D91),\"\"))","v":1},91,"自分を相手より利口に見せても愚かに見せても、得る所はない。","アイザック･ニュートン","英国の哲学者、物理学者、数学者 / 1643～1727"]
[{"$f":"IFERROR(FIND(作業!$B$5,名言集!C92),IFERROR(FIND(作業!$B$5,名言集!D92),\"\"))","v":1},92,"負けて退く人をよわしと思うなよ。知恵の力の強きゆえなり。","高杉晋作","幕末の志士、長州藩士、奇兵隊を創設 / 1839～1867"]
[{"$f":"IFERROR(FIND(作業!$B$5,名言集!C93),IFERROR(FIND(作業!$B$5,名言集!D93),\"\"))","v":1},93,"目的を達成する為には人間対人間のうじうじした関係に沈みこんでいたら物事は進まない。そういうものを振り切って、前に進む。","大久保利通","幕末の薩摩藩士、政治家、維新の三傑の一人 / 1830～1878"]
[{"$f":"IFERROR(FIND(作業!$B$5,名言集!C94),IFERROR(FIND(作業!$B$5,名言集!D94),\"\"))","v":1},94,"自分を愛せない人を他人は決して愛しません。人から愛されたいと思うなら、まず自分自身を愛することから始めなさい。","ジョセフ・マーフィー","アイルランド出身の宗教者、著述家 / 1898～1981"]
[{"$f":"IFERROR(FIND(作業!$B$5,名言集!C95),IFERROR(FIND(作業!$B$5,名言集!D95),\"\"))","v":1},95,"同じ方法で悪くなる。だから捨てなきゃいけない。せっかく長年築きあげてきたものでも変えていかなくてはならない。","羽生善治","日本の将棋棋士、十九世名人 / 1970～"]
[{"$f":"IFERROR(FIND(作業!$B$5,名言集!C96),IFERROR(FIND(作業!$B$5,名言集!D96),\"\"))","v":1},96,"もう一押しこそ慎重になれ。","武田信玄","戦国時代の武将、甲斐の守護大名、戦国大名 / 1521～157"]
[{"$f":"IFERROR(FIND(作業!$B$5,名言集!C97),IFERROR(FIND(作業!$B$5,名言集!D97),\"\"))","v":1},97,"攻撃を一点に集約せよ、無駄な事はするな。","織田信長","戦国時代の武将、戦国大名 / 1534～1582"]
[{"$f":"IFERROR(FIND(作業!$B$5,名言集!C98),IFERROR(FIND(作業!$B$5,名言集!D98),\"\"))","v":1},98,"落ちたら、またはいあがってくればいいだけのこと。","アントニオ猪木","日本の元プロレスラー、政治家 / 1943～"]
[{"$f":"IFERROR(FIND(作業!$B$5,名言集!C99),IFERROR(FIND(作業!$B$5,名言集!D99),\"\"))","v":1},99,"楽を求めたら、苦しみしか待っていない。","野村克也","日本の元プロ野球選手、監督、野球評論家 / 1935～"]
[{"$f":"IFERROR(FIND(作業!$B$5,名言集!C100),IFERROR(FIND(作業!$B$5,名言集!D100),\"\"))","v":1},100,"信じて投げて打たれるのはいい。信じて投げて打たれたのなら、それは結果。一番いけないのは、やる前から打たれたらどうしようと考えること。","落合博満","日本の元プロ野球選手、監督 / 1953～"]
[{"$f":"IFERROR(FIND(作業!$B$5,名言集!C101),IFERROR(FIND(作業!$B$5,名言集!D101),\"\"))","v":1},101,"言いたいのは、それひとつだよ。その生き方を人のせいにしちゃダメだ。","矢沢永吉","日本のロックミュージシャン / 1949～"]
[{"$f":"IFERROR(FIND(作業!$B$5,名言集!C102),IFERROR(FIND(作業!$B$5,名言集!D102),\"\"))","v":1},102,"人は原理主義に取り込まれると、魂の柔らかい部分を失っていきます。そして自分の力で感じ取り、考えることを放棄してしまう。","村上春樹","日本の小説家、翻訳家 / 1949～"]
[{"$f":"IFERROR(FIND(作業!$B$5,名言集!C103),IFERROR(FIND(作業!$B$5,名言集!D103),\"\"))","v":1},103,"あなたの傷を知恵に変えなさい。","オプラ・ウィンフリー","米国の女性テレビ司会者、女優 / 1954～"]
[{"$f":"IFERROR(FIND(作業!$B$5,名言集!C104),IFERROR(FIND(作業!$B$5,名言集!D104),\"\"))","v":1},104,"最も平安な、そして純粋な喜びの一つは、労働をした後の休息である。","カント","ドイツの哲学者 / 1724～1804"]
[{"$f":"IFERROR(FIND(作業!$B$5,名言集!C105),IFERROR(FIND(作業!$B$5,名言集!D105),\"\"))","v":1},105,"青春が幸福なのは、美しいものを見る能力を備えているためです。美しいものを見る能力を保っていれば、人は決して老いぬものです。","カフカ","現在のチェコ出身の小説家、「変身」の著者 / 1883～1924"]
[{"$f":"IFERROR(FIND(作業!$B$5,名言集!C106),IFERROR(FIND(作業!$B$5,名言集!D106),\"\"))","v":1},106,"信念を持たない人間は、あらゆることに流される。","マルコムX","米国の黒人公民権運動家 / 1925～1965"]
[{"$f":"IFERROR(FIND(作業!$B$5,名言集!C107),IFERROR(FIND(作業!$B$5,名言集!D107),\"\"))","v":1},107,"自分自身を信じている者だけが、他人にたいして誠実になれる。","エーリッヒ・フロム","ドイツの社会心理学者、精神分析学者 / 1900～1980"]
[{"$f":"IFERROR(FIND(作業!$B$5,名言集!C108),IFERROR(FIND(作業!$B$5,名言集!D108),\"\"))","v":1},108,"友人のために私がしてあげられる一番のこと、それは、ただ友人でいてあげること。","ソロー","米国の作家、詩人、思想家 / 1817～1862"]
[{"$f":"IFERROR(FIND(作業!$B$5,名言集!C109),IFERROR(FIND(作業!$B$5,名言集!D109),\"\"))","v":1},109,"幸福は幸福の中にあるのではなく、それを手に入れる過程の中だけにある。","ドストエフスキー","ロシアの小説家、思想家 / 1821～1881"]
[{"$f":"IFERROR(FIND(作業!$B$5,名言集!C110),IFERROR(FIND(作業!$B$5,名言集!D110),\"\"))","v":1},110,"幸福な人間が良い気分でいられるのは、不幸な人々が自己の重荷を黙々と担ってくれているからに過ぎない。","チェーホフ","ロシアの劇作家、小説家 / 1860～1904"]
[{"$f":"IFERROR(FIND(作業!$B$5,名言集!C111),IFERROR(FIND(作業!$B$5,名言集!D111),\"\"))","v":1},111,"世の中で成功を収めるには、馬鹿のように見せかけ、利口に行動することである。","モンテスキュー","フランスの哲学者 / 1689～1755"]
[{"$f":"IFERROR(FIND(作業!$B$5,名言集!C112),IFERROR(FIND(作業!$B$5,名言集!D112),\"\"))","v":1},112,"生きることは音楽的であること。体内の血が踊り出すところから始まる。すべての生命がリズムを刻んでいる。君は、君の音楽を感じているかい？","マイケル・ジャクソン","米国のシンガーソングライター / 1958～2009"]
[{"$f":"IFERROR(FIND(作業!$B$5,名言集!C113),IFERROR(FIND(作業!$B$5,名言集!D113),\"\"))","v":1},113,"多くのことをなす近道は、一度にひとつのことだけをすることだ。","モーツァルト","オーストリアの作曲家、演奏家 / 1756～1791"]
[{"$f":"IFERROR(FIND(作業!$B$5,名言集!C114),IFERROR(FIND(作業!$B$5,名言集!D114),\"\"))","v":1},114,"自信とは、問題の本質を理解していないときに現れるものだ。","ウディ・アレン","米国の映画監督、俳優、脚本家 / 1935～"]
[{"$f":"IFERROR(FIND(作業!$B$5,名言集!C115),IFERROR(FIND(作業!$B$5,名言集!D115),\"\"))","v":1},115,"君の立場になれば君が正しい。僕の立場になれば僕が正しい。","ボブ・ディラン","米国のミュージシャン / 1941～"]
[{"$f":"IFERROR(FIND(作業!$B$5,名言集!C116),IFERROR(FIND(作業!$B$5,名言集!D116),\"\"))","v":1},116,"汝自身より優れた忠告を言うものなし。","キケロ","共和政ローマの政治家、文筆家、哲学者 / 紀元前106～前43"]
[{"$f":"IFERROR(FIND(作業!$B$5,名言集!C117),IFERROR(FIND(作業!$B$5,名言集!D117),\"\"))","v":1},117,"この世には、愛する人と愛される自分になろうとする人がいる。","サマセット・モーム","英国の劇作家、小説家 / 1874～1965"]
[{"$f":"IFERROR(FIND(作業!$B$5,名言集!C118),IFERROR(FIND(作業!$B$5,名言集!D118),\"\"))","v":1},118,"後悔とは、やってしまったことにするものじゃなくて、やらなかったことにするもの。だから私はチャンスがきたら必ずトライするわ。","キャメロン・ディアス","米国の女優 / 1972～"]
[{"$f":"IFERROR(FIND(作業!$B$5,名言集!C119),IFERROR(FIND(作業!$B$5,名言集!D119),\"\"))","v":1},119,"復讐する時、人間はその仇敵と同列である。しかし、許す時、彼は仇敵よりも上にある。","フランシス・ベーコン","英国の哲学者、神学者、法学者 / 1561～1626"]
[{"$f":"IFERROR(FIND(作業!$B$5,名言集!C120),IFERROR(FIND(作業!$B$5,名言集!D120),\"\"))","v":1},120,"目隠しした馬の様に範囲の限定された目的は、必ずその持ち主の視野を狭くする。","ロバート・フロスト","米国の詩人 / 1874～1963"]
[{"$f":"IFERROR(FIND(作業!$B$5,名言集!C121),IFERROR(FIND(作業!$B$5,名言集!D121),\"\"))","v":1},121,"だれかを崇拝しすぎると、ほんとうの自由は得られないんだよ。","トーベ・ヤンソン","フィンランドの画家、小説家、児童文学作家 / 1914～2001"]
[{"$f":"IFERROR(FIND(作業!$B$5,名言集!C122),IFERROR(FIND(作業!$B$5,名言集!D122),\"\"))","v":1},122,"内乱では国は滅びない。戦争では国が滅びる。","山本五十六","日本の元帥海軍大将 / 1884～1943"]
[{"$f":"IFERROR(FIND(作業!$B$5,名言集!C123),IFERROR(FIND(作業!$B$5,名言集!D123),\"\"))","v":1},123,"主人は無理をいうなるものと知れ。","豊臣秀吉","戦国時代の武将、天下統一を果たす / 1537～1598"]
[{"$f":"IFERROR(FIND(作業!$B$5,名言集!C124),IFERROR(FIND(作業!$B$5,名言集!D124),\"\"))","v":1},124,"好調なビジネスは、何よりも魅力的な芸術だ。","アンディ・ウォーホル","米国の芸術家、ポップアートの旗手 / 1928～1987"]
[{"$f":"IFERROR(FIND(作業!$B$5,名言集!C125),IFERROR(FIND(作業!$B$5,名言集!D125),\"\"))","v":1},125,"自由はもちろん金で買えるものではない。だが、金のために売り払うことは出来る。","魯迅","中国の小説家、思想家 / 1881～1936"]
[{"$f":"IFERROR(FIND(作業!$B$5,名言集!C126),IFERROR(FIND(作業!$B$5,名言集!D126),\"\"))","v":1},126,"人間は自由であり、つねに自分自身の選択によって行動すべきものである。","サルトル","フランスの哲学者、小説家、劇作家 / 1905～1980"]
[{"$f":"IFERROR(FIND(作業!$B$5,名言集!C127),IFERROR(FIND(作業!$B$5,名言集!D127),\"\"))","v":1},127,"環境より学ぶ意志があればいい。","津田梅子","日本の教育者、日本女子教育の先駆者 / 1864～1929"]
[{"$f":"IFERROR(FIND(作業!$B$5,名言集!C128),IFERROR(FIND(作業!$B$5,名言集!D128),\"\"))","v":1},128,"今日の成果は過去の努力の結果であり、未来はこれからの努力で決まる。","稲盛和夫","日本の実業家、京セラ、KDDIの創業者 / 1932～"]
[{"$f":"IFERROR(FIND(作業!$B$5,名言集!C129),IFERROR(FIND(作業!$B$5,名言集!D129),\"\"))","v":1},129,"井の中の蛙、大海を知らず。","荘子","中国戦国時代の思想家、道教の始祖の一人 / 紀元前369～前286"]
[{"$f":"IFERROR(FIND(作業!$B$5,名言集!C130),IFERROR(FIND(作業!$B$5,名言集!D130),\"\"))","v":1},130,"真実は体験するもので、教わるものではない。","ヘルマン・ヘッセ","ドイツの小説家、詩人、ノーベル文学賞受賞 / 1877～1962"]
[{"$f":"IFERROR(FIND(作業!$B$5,名言集!C131),IFERROR(FIND(作業!$B$5,名言集!D131),\"\"))","v":1},{"$f":"IF(A131=\"\",B130,B130+1)","v":131},"英雄とは、自分のできることをする人だ。","ロマン・ロラン","フランスの作家、ノーベル文学賞受賞 / 1866～1944"]
[{"$f":"IFERROR(FIND(作業!$B$5,名言集!C132),IFERROR(FIND(作業!$B$5,名言集!D132),\"\"))","v":1},132,"あなたが生きていればいるほど、どうやって生きていくのか、学び続けるんだよ。","セネカ","ローマ帝国の政治家、哲学者、詩人 / 紀元前1頃～紀元後65"]
[{"$f":"IFERROR(FIND(作業!$B$5,名言集!C133),IFERROR(FIND(作業!$B$5,名言集!D133),\"\"))","v":1},133,"私は少しも恐れるところがない。私はこの世界に、何事かをなさんがために生まれてきたのだ。","野口英世","日本の細菌学者 / 1876～1928"]
[{"$f":"IFERROR(FIND(作業!$B$5,名言集!C134),IFERROR(FIND(作業!$B$5,名言集!D134),\"\"))","v":1},134,"生を必するものは死し、死を必するものは生く。","上杉謙信","戦国時代の越後国の武将、戦国大名 / 1530～1578"]
[{"$f":"IFERROR(FIND(作業!$B$5,名言集!C135),IFERROR(FIND(作業!$B$5,名言集!D135),\"\"))","v":1},135,"学ぶことで才能は開花する。志がなければ、学問の完成はない。","諸葛孔明","中国、三国時代の蜀漢の政治家、軍人 / 181～234"]
[{"$f":"IFERROR(FIND(作業!$B$5,名言集!C136),IFERROR(FIND(作業!$B$5,名言集!D136),\"\"))","v":1},136,"正義の尺度は声の多数ではない。","シラー","ドイツの詩人、歴史学者、劇作家、思想家 / 1759～1805"]
[{"$f":"IFERROR(FIND(作業!$B$5,名言集!C137),IFERROR(FIND(作業!$B$5,名言集!D137),\"\"))","v":1},137,"笑い声のないところに成功はない。","アンドリュー・カーネギー","米国の実業家、鉄鋼王 / 1835～1919"]
[{"$f":"IFERROR(FIND(作業!$B$5,名言集!C138),IFERROR(FIND(作業!$B$5,名言集!D138),\"\"))","v":1},138,"世界ではなく、自分自身を征服せよ。","デカルト","フランスの哲学者、数学者 / 1596～1650"]
[{"$f":"IFERROR(FIND(作業!$B$5,名言集!C139),IFERROR(FIND(作業!$B$5,名言集!D139),\"\"))","v":1},139,"勝つは負ける日の初め、負けるはやがて勝つ日の初め。","吉川英治","日本の小説家 / 1892～1962"]
[{"$f":"IFERROR(FIND(作業!$B$5,名言集!C140),IFERROR(FIND(作業!$B$5,名言集!D140),\"\"))","v":1},140,"他人の感受性を軽蔑してはいけない。感受性はその人の才能なのだ。","ボードレール","フランスの詩人、評論家 / 1821～1867"]
[{"$f":"IFERROR(FIND(作業!$B$5,名言集!C141),IFERROR(FIND(作業!$B$5,名言集!D141),\"\"))","v":1},141,"力は、あなたの弱さの中から生まれるのです。","ジークムント・フロイト","オーストリアの精神分析学者 / 1856～1939"]
[{"$f":"IFERROR(FIND(作業!$B$5,名言集!C142),IFERROR(FIND(作業!$B$5,名言集!D142),\"\"))","v":1},142,"人生という本には、うしろのほうに答えが書いてあるわけじゃない","チャールズ・M・シュルツ","米国の漫画家、スヌーピーの作者 / 1922～2000"]
[{"$f":"IFERROR(FIND(作業!$B$5,名言集!C143),IFERROR(FIND(作業!$B$5,名言集!D143),\"\"))","v":1},143,"足るを知る。","老子","古代中国の思想家、道教の始祖とされる / 紀元前6世紀など諸説あり"]
[{"$f":"IFERROR(FIND(作業!$B$5,名言集!C144),IFERROR(FIND(作業!$B$5,名言集!D144),\"\"))","v":1},144,"大事の義は人に談合せず、一心に究めたるがよし。","伊達政宗","出羽国と陸奥国の戦国大名、仙台藩の初代藩主 / 1567～1"]
[{"$f":"IFERROR(FIND(作業!$B$5,名言集!C145),IFERROR(FIND(作業!$B$5,名言集!D145),\"\"))","v":1},145,"人は強さに欠けているのではない。意志を欠いているのだ。","ヴィクトル・ユーゴー","フランスのロマン主義の詩人、小説家 / 1802～1885"]
[{"$f":"IFERROR(FIND(作業!$B$5,名言集!C146),IFERROR(FIND(作業!$B$5,名言集!D146),\"\"))","v":1},146,"我々は、他の人たちと同じようになろうとして、自分自身の4分の3を喪失してしまう。","ショーペンハウアー","ドイツの哲学者 / 1788～1860"]
[{"$f":"IFERROR(FIND(作業!$B$5,名言集!C147),IFERROR(FIND(作業!$B$5,名言集!D147),\"\"))","v":1},147,"人間とは、己の行った仕事の子供である。","セルバンテス","スペインの小説家『ドン・キホーテ』著者 / 1547～1616"]
[{"$f":"IFERROR(FIND(作業!$B$5,名言集!C148),IFERROR(FIND(作業!$B$5,名言集!D148),\"\"))","v":1},148,"人は泳げるようになりたいと願いながら、同時に片足を地面につけているものだ。","マルセル・プルースト","フランスの作家 / 1871～1922"]
[{"$f":"IFERROR(FIND(作業!$B$5,名言集!C149),IFERROR(FIND(作業!$B$5,名言集!D149),\"\"))","v":1},149,"すべての困難は、あなたへの贈り物を両手に抱えている。","リチャード・バック","米国の作家『かもめのジョナサン』著者 / 1936～"]
[{"$f":"IFERROR(FIND(作業!$B$5,名言集!C150),IFERROR(FIND(作業!$B$5,名言集!D150),\"\"))","v":1},150,"どんなことにも教訓はある。君がそれを見つけられるかどうかさ。","ルイス・キャロル","英国の作家『不思議の国のアリス』著者 / 1832～1898"]
[{"$f":"IFERROR(FIND(作業!$B$5,名言集!C151),IFERROR(FIND(作業!$B$5,名言集!D151),\"\"))","v":1},151,"人生は、後ろ向きにしか理解できないが、前を向いてしか生きられない。","キルケゴール","デンマークの哲学者、実存主義の創始者 / 1813～1855"]
[{"$f":"IFERROR(FIND(作業!$B$5,名言集!C152),IFERROR(FIND(作業!$B$5,名言集!D152),\"\"))","v":1},152,"人間には不幸か、貧乏か、病気が必要だ。でないと人間はすぐに思いあがる。","ツルゲーネフ","ロシアの小説家 / 1818～1883"]
[{"$f":"IFERROR(FIND(作業!$B$5,名言集!C153),IFERROR(FIND(作業!$B$5,名言集!D153),\"\"))","v":1},153,"僕の後ろを歩かないでくれ。僕は導かないかもしれない。僕の前を歩かないでくれ。僕はついていかないかもしれない。ただ僕と一緒に歩いて、友達でいてほしい。","アルベール・カミュ","フランスの小説家、ノーベル文学賞受賞 / 1913～1960"]
[{"$f":"IFERROR(FIND(作業!$B$5,名言集!C154),IFERROR(FIND(作業!$B$5,名言集!D154),\"\"))","v":1},154,"人間は自然のうちで最も弱い一本の葦にすぎない。しかし、それは考える葦である。","パスカル","フランスの哲学者、思想家、数学者 / 1623～1662"]
[{"$f":"IFERROR(FIND(作業!$B$5,名言集!C155),IFERROR(FIND(作業!$B$5,名言集!D155),\"\"))","v":1},155,"私はあなたの意見には反対だ。だがあなたがそれを主張する権利は命をかけて守る。","ヴォルテール","フランスの哲学者、作家、文学者、歴史家 / 1694～1778"]
[{"$f":"IFERROR(FIND(作業!$B$5,名言集!C156),IFERROR(FIND(作業!$B$5,名言集!D156),\"\"))","v":1},156,"いかなる人間の知識も、その人の経験を超えるものではない。","ジョン・ロック","英国の哲学者 / 1632～1704"]
[{"$f":"IFERROR(FIND(作業!$B$5,名言集!C157),IFERROR(FIND(作業!$B$5,名言集!D157),\"\"))","v":1},157,"本当に悪い天気なんてものはない。ただ、さまざまな種類のよい天気があるだけだ。","ジョン・ラスキン","英国の美術評論家、社会思想家 / 1819～1900"]
[{"$f":"IFERROR(FIND(作業!$B$5,名言集!C158),IFERROR(FIND(作業!$B$5,名言集!D158),\"\"))","v":1},158,"それが何であれ、あなたの得意なことが幸福に導いてくれる。","バートランド・ラッセル","英国の哲学者、ノーベル文学賞受賞 / 1872～1970"]
[{"$f":"IFERROR(FIND(作業!$B$5,名言集!C159),IFERROR(FIND(作業!$B$5,名言集!D159),\"\"))","v":1},159,"オレにとって、音楽も人生もスタイルがすべてだ。","マイルス・デイヴィス","米国のジャズトランペット奏者 / 1926～1991"]
[{"$f":"IFERROR(FIND(作業!$B$5,名言集!C160),IFERROR(FIND(作業!$B$5,名言集!D160),\"\"))","v":1},160,"平和にも勝利がある。戦いの勝利に劣らぬ名だたる勝利が。","ジョン・ミルトン","英国の詩人 / 1608～ 1674"]
[{"$f":"IFERROR(FIND(作業!$B$5,名言集!C161),IFERROR(FIND(作業!$B$5,名言集!D161),\"\"))","v":1},161,"信念は、行動に移さなければ価値がない。","トーマス・カーライル","英国の思想家、歴史家 / 1795～1881"]
[{"$f":"IFERROR(FIND(作業!$B$5,名言集!C162),IFERROR(FIND(作業!$B$5,名言集!D162),\"\"))","v":1},162,"他人を許すことのできない人は、自分自身が渡らなければならない橋を壊しているようなものである。人は誰でも許されなければならないからだ。","トーマス・フラー","英国の聖職者、歴史家 / 1608～1661"]
[{"$f":"IFERROR(FIND(作業!$B$5,名言集!C163),IFERROR(FIND(作業!$B$5,名言集!D163),\"\"))","v":1},163,"私が最も恐れるものこそ、恐れである。","モンテーニュ","フランスの哲学者、モラリスト / 1533～1592"]
[{"$f":"IFERROR(FIND(作業!$B$5,名言集!C164),IFERROR(FIND(作業!$B$5,名言集!D164),\"\"))","v":1},164,"われわれは幸福も不幸も大げさに考えすぎている。自分で考えているほど幸福でもないし、かといって決して不幸でもない。","バルザック","フランスの小説家 / 1799～1850"]
[{"$f":"IFERROR(FIND(作業!$B$5,名言集!C165),IFERROR(FIND(作業!$B$5,名言集!D165),\"\"))","v":1},165,"自分が何者であるか知りたいか？尋ねてはいけない。行動だ！行動が君を描きだし、そして明らかにする。","トーマス・ジェファーソン","米国の第3代大統領、アメリカ独立宣言の主要な作者 / 1743～1826"]
[{"$f":"IFERROR(FIND(作業!$B$5,名言集!C166),IFERROR(FIND(作業!$B$5,名言集!D166),\"\"))","v":1},166,"成功は幸せの鍵ではない。幸せが成功の鍵だ。もし自分のしていることが大好きなら、あなたは成功する。","アルベルト・シュバイツァー","ドイツ出身の哲学者、医者、ノーベル平和賞受賞 / 1875～1965"]
[{"$f":"IFERROR(FIND(作業!$B$5,名言集!C167),IFERROR(FIND(作業!$B$5,名言集!D167),\"\"))","v":1},167,"楽しいから笑うのではない。笑うから楽しいのだ。","ウィリアム・ジェームズ","米国の哲学者、心理学者 / 1842～1910"]
[{"$f":"IFERROR(FIND(作業!$B$5,名言集!C168),IFERROR(FIND(作業!$B$5,名言集!D168),\"\"))","v":1},168,"行動は必ずしも幸福をもたらすものではない。しかし、行動のないところに幸福はない。","ベンジャミン・ディズレーリ","英国の政治家、小説家 / 1804～1881"]
[{"$f":"IFERROR(FIND(作業!$B$5,名言集!C169),IFERROR(FIND(作業!$B$5,名言集!D169),\"\"))","v":1},169,"詩人にとって最大の悲劇は、誤解によって賞嘆されることだ。","ジャン・コクトー","フランスの詩人、小説家、芸術家 / 1889～1963"]
[{"$f":"IFERROR(FIND(作業!$B$5,名言集!C170),IFERROR(FIND(作業!$B$5,名言集!D170),\"\"))","v":1},170,"ささいなことが完璧を生む。しかし、完璧はささいなことではない。","ミケランジェロ","イタリアのルネサンス期の芸術家 / 1475～1564"]
[{"$f":"IFERROR(FIND(作業!$B$5,名言集!C171),IFERROR(FIND(作業!$B$5,名言集!D171),\"\"))","v":1},171,"経験を賢く生かすならば、何事も無駄ではない。","ロダン","フランスの彫刻家『考える人』の作者 / 1840～1917"]
[{"$f":"IFERROR(FIND(作業!$B$5,名言集!C172),IFERROR(FIND(作業!$B$5,名言集!D172),\"\"))","v":1},172,"恋が芽生えるには、ごく少量の希望があれば十分である。","スタンダール","フランスの小説家『赤と黒』著者 / 1783～1842"]
[{"$f":"IFERROR(FIND(作業!$B$5,名言集!C173),IFERROR(FIND(作業!$B$5,名言集!D173),\"\"))","v":1},173,"君が笑えば、世界は君とともに笑う。君が泣けば、君は一人きりで泣くのだ。","エラ・ウィーラー・ウィルコックス","米国の女性作家、詩人 / 1850～1919"]
[{"$f":"IFERROR(FIND(作業!$B$5,名言集!C174),IFERROR(FIND(作業!$B$5,名言集!D174),\"\"))","v":1},174,"あなたにできることをしなさい。今あるもので、今いる場所で。","セオドア・ルーズベルト","米国の第26代大統領 / 1858～1919"]
[{"$f":"IFERROR(FIND(作業!$B$5,名言集!C175),IFERROR(FIND(作業!$B$5,名言集!D175),\"\"))","v":1},175,"いやしくも天下に一事一物を成し遂げようとすれば、命懸けのことは始終ある。依頼心を起こしてはならぬ。自力でやれ。","伊藤博文","長州藩士、政治家、初代内閣総理大臣 / 1841～1909"]
[{"$f":"IFERROR(FIND(作業!$B$5,名言集!C176),IFERROR(FIND(作業!$B$5,名言集!D176),\"\"))","v":1},176,"腹を立つるは、道にあらず候","山岡鉄舟","幕末の幕臣、政治家、思想家 / 1836～1888"]
[{"$f":"IFERROR(FIND(作業!$B$5,名言集!C177),IFERROR(FIND(作業!$B$5,名言集!D177),\"\"))","v":1},177,"愛が死ぬのは、愛の成長が止まる、その瞬間である。","パール・バック","米国の女性小説家、ノーベル文学賞受賞 / 1892～1973"]
[{"$f":"IFERROR(FIND(作業!$B$5,名言集!C178),IFERROR(FIND(作業!$B$5,名言集!D178),\"\"))","v":1},178,"わたしたちは多くの敗北に出くわすでしょう。でも、打ち負かされてはいけないのです。","マヤ・アンジェロウ","米国の詩人、作家、公民権運動家 / 1928～2014"]
[{"$f":"IFERROR(FIND(作業!$B$5,名言集!C179),IFERROR(FIND(作業!$B$5,名言集!D179),\"\"))","v":1},179,"人生は決して後戻りできません。進めるのは前だけです。人生は一方通行なのですよ。","アガサ・クリスティ","英国の推理作家 / 1890～1976"]
[{"$f":"IFERROR(FIND(作業!$B$5,名言集!C180),IFERROR(FIND(作業!$B$5,名言集!D180),\"\"))","v":1},180,"良い人生を送るための最も重要な条件。それは、自分自身のイメージを持たないで生きること。","アイリス・マードック","アイルランドの女性作家、哲学者、詩人 / 1919～1999"]
[{"$f":"IFERROR(FIND(作業!$B$5,名言集!C181),IFERROR(FIND(作業!$B$5,名言集!D181),\"\"))","v":1},181,"推考しないものは偏屈者、推考できないものは愚か者、推考する勇気を持たぬものは奴隷である。","バイロン","英国の詩人 / 1788～1824"]
[{"$f":"IFERROR(FIND(作業!$B$5,名言集!C182),IFERROR(FIND(作業!$B$5,名言集!D182),\"\"))","v":1},182,"他人に費やされた日は、自分の日を浪費したことにならない。","チャールズ・ディケンズ","英国の小説家 / 1812～1870"]
[{"$f":"IFERROR(FIND(作業!$B$5,名言集!C183),IFERROR(FIND(作業!$B$5,名言集!D183),\"\"))","v":1},183,"優しさこそ、ほんとうの強さだ。","ジェームズ・ディーン","米国の俳優 / 1931～1955"]
[{"$f":"IFERROR(FIND(作業!$B$5,名言集!C184),IFERROR(FIND(作業!$B$5,名言集!D184),\"\"))","v":1},184,"運命は我々の行動の半分を支配し、残りの半分を我々自身にゆだねている。","マキャヴェッリ","イタリアの政治思想家、外交官 / 1469～1527"]
[{"$f":"IFERROR(FIND(作業!$B$5,名言集!C185),IFERROR(FIND(作業!$B$5,名言集!D185),\"\"))","v":1},185,"失敗は、それを認める勇気さえあれば、いつでも許されるものだ。","ブルース・リー","香港の中国武術家、俳優、脚本家 / 1940～1973"]
[{"$f":"IFERROR(FIND(作業!$B$5,名言集!C186),IFERROR(FIND(作業!$B$5,名言集!D186),\"\"))","v":1},186,"内なる自分を見つめると、実は望んでいるものをちゃんと所有していることがわかる。","シモーヌ・ヴェイユ","フランスの女性哲学者 / 1909～1943"]
[{"$f":"IFERROR(FIND(作業!$B$5,名言集!C187),IFERROR(FIND(作業!$B$5,名言集!D187),\"\"))","v":1},187,"行動する前から叩かれてしまうこともあります。それでも行動するのがほんとうの勇気です。","ハーパー・リー","米国の小説家 / 1926～2016"]
[{"$f":"IFERROR(FIND(作業!$B$5,名言集!C188),IFERROR(FIND(作業!$B$5,名言集!D188),\"\"))","v":1},188,"大事なのは今までのあなたじゃなく、これからのあなた。","エラ・フィッツジェラルド","米国の女性ジャズ・シンガー / 1917～1996"]
[{"$f":"IFERROR(FIND(作業!$B$5,名言集!C189),IFERROR(FIND(作業!$B$5,名言集!D189),\"\"))","v":1},189,"逆境は最良のスパーリング・パートナーです。","ゴルダ・メイア","イスラエルの元女性首相 / 1898～1978"]
[{"$f":"IFERROR(FIND(作業!$B$5,名言集!C190),IFERROR(FIND(作業!$B$5,名言集!D190),\"\"))","v":1},190,"どうあろうと、明日という日がある。","マーガレット・ミッチェル","米国の小説家『風と共に去りぬ』著者 / 1900～1949"]
[{"$f":"IFERROR(FIND(作業!$B$5,名言集!C191),IFERROR(FIND(作業!$B$5,名言集!D191),\"\"))","v":1},191,"勝利への道が困難であればあるほど、勝ったときの喜びは大きくなる。","ペレ","ブラジルの元サッカー選手、サッカーの王様と称される / 1940～"]
[{"$f":"IFERROR(FIND(作業!$B$5,名言集!C192),IFERROR(FIND(作業!$B$5,名言集!D192),\"\"))","v":1},192,"良いものでも、悪いものでも、人生での経験には感謝しましょう。","スザンヌ・サマーズ","米国の女優、作家 / 1946～"]
[{"$f":"IFERROR(FIND(作業!$B$5,名言集!C193),IFERROR(FIND(作業!$B$5,名言集!D193),\"\"))","v":1},193,"長く生きるほどにより多く目にしてきたことは、怒りの感情を抱えることが、その人を最も消耗させるということです。","キャサリン・グラハム","米国の経営者、ワシントン・ポスト社長 / 1917～2001"]
[{"$f":"IFERROR(FIND(作業!$B$5,名言集!C194),IFERROR(FIND(作業!$B$5,名言集!D194),\"\"))","v":1},194,"あなたの人生をかわりに生きてくれる人はいないわ。","ドリー・パートン","米国のシンガーソングライター、女優 / 1946～"]
[{"$f":"IFERROR(FIND(作業!$B$5,名言集!C195),IFERROR(FIND(作業!$B$5,名言集!D195),\"\"))","v":1},{"$f":"IF(A195=\"\",B194,B194+1)","v":195},"友情の絆は、いくら使ってもぼろぼろにはならない。","ドロシー・パーカー","米国の短編作家、風刺詩人、評論家 / 1893～1967"]
[{"$f":"IFERROR(FIND(作業!$B$5,名言集!C196),IFERROR(FIND(作業!$B$5,名言集!D196),\"\"))","v":1},196,"変革せよ。変革を迫られる前に。","ジャック・ウェルチ","米国の経営者 / 1935～"]
[{"$f":"IFERROR(FIND(作業!$B$5,名言集!C197),IFERROR(FIND(作業!$B$5,名言集!D197),\"\"))","v":1},197,"自分のことを笑えるようになるまでは、決して幸せにはなれない。","ドロシー・ディックス","米国のジャーナリスト / 1861～1951"]
[{"$f":"IFERROR(FIND(作業!$B$5,名言集!C198),IFERROR(FIND(作業!$B$5,名言集!D198),\"\"))","v":1},198,"自負、嫉妬、貧欲。これらは人の心に火を放つ火花である。","ダンテ","イタリアの詩人、哲学者、政治家 / 1265～1321"]
[{"$f":"IFERROR(FIND(作業!$B$5,名言集!C199),IFERROR(FIND(作業!$B$5,名言集!D199),\"\"))","v":1},199,"心の優雅さがなければ、エレガンスはない。","イヴ・サン＝ローラン","フランスのファッションデザイナー / 1936～2008"]
[{"$f":"IFERROR(FIND(作業!$B$5,名言集!C200),IFERROR(FIND(作業!$B$5,名言集!D200),\"\"))","v":1},200,"見返りを求めずに誰にでも親切にすること。だってあなたにも同じことをしてくれる人がいるかもしれないんだから。","ダイアナ妃","英国チャールズ皇太子の元妃 / 1961～1997"]
[{"$f":"IFERROR(FIND(作業!$B$5,名言集!C201),IFERROR(FIND(作業!$B$5,名言集!D201),\"\"))","v":1},201,"国家に友人はいない。あるのは国益だけだ。","シャルル・ド・ゴール","フランスの軍人、政治家 / 1890～1970"]
[{"$f":"IFERROR(FIND(作業!$B$5,名言集!C202),IFERROR(FIND(作業!$B$5,名言集!D202),\"\"))","v":1},202,"困難とは、ベストを尽くせるチャンスなのだ。","デューク・エリントン","米国のジャズオーケストラリーダー / 1899～1974"]
[{"$f":"IFERROR(FIND(作業!$B$5,名言集!C203),IFERROR(FIND(作業!$B$5,名言集!D203),\"\"))","v":1},203,"失敗は充実した人生を得るために支払う手数料の一つ。","ソフィア・ローレン","イタリアの女優 / 1934～"]
[{"$f":"IFERROR(FIND(作業!$B$5,名言集!C204),IFERROR(FIND(作業!$B$5,名言集!D204),\"\"))","v":1},204,"命が命を生み、エネルギーがエネルギーを生む。自分自身を投じることによって、人は豊かになる。","サラ・ベルナール","フランスの女優 / 1844～1923"]
[{"$f":"IFERROR(FIND(作業!$B$5,名言集!C205),IFERROR(FIND(作業!$B$5,名言集!D205),\"\"))","v":1},205,"できると思うからこそできるのだ。","ウェルギリウス","古代ローマの詩人 / 紀元前70～前19"]
[{"$f":"IFERROR(FIND(作業!$B$5,名言集!C206),IFERROR(FIND(作業!$B$5,名言集!D206),\"\"))","v":1},206,"道を選んだら、決してあきらめない。","キャサリン・ヘプバーン","米国の女優 / 1907～2003"]
[{"$f":"IFERROR(FIND(作業!$B$5,名言集!C207),IFERROR(FIND(作業!$B$5,名言集!D207),\"\"))","v":1},207,"長生きすると、勝利がことごとく敗北へと変わっていくのを見る羽目になる。","ボーヴォワール","フランスの女性作家、哲学者 / 1908～1986"]
[{"$f":"IFERROR(FIND(作業!$B$5,名言集!C208),IFERROR(FIND(作業!$B$5,名言集!D208),\"\"))","v":1},208,"運がすべてさ。わたしの人生における幸運は臆病者だったことだ。恐怖に対してすごく臆病だったのは運が良かったよ。だってヒーローは優れたサスペンス映画を作れないからね。","アルフレッド・ヒッチコック","イギリスの映画監督 / 1899～1980"]
[{"$f":"IFERROR(FIND(作業!$B$5,名言集!C209),IFERROR(FIND(作業!$B$5,名言集!D209),\"\"))","v":1},209,"もし手放せない物を持っているとすれば、それは所有しているとはいえない。君が所有されているんだ。","フランク・シナトラ","米国のジャズ・ポピュラー歌手、俳優 / 1915～1998"]
[{"$f":"IFERROR(FIND(作業!$B$5,名言集!C210),IFERROR(FIND(作業!$B$5,名言集!D210),\"\"))","v":1},210,"死が訪れたときに死ぬのはオレなんだ。だから自分の好きなように生きさせてくれ。","ジミ・ヘンドリックス","米国のギタリスト / 1942～1970"]
[{"$f":"IFERROR(FIND(作業!$B$5,名言集!C211),IFERROR(FIND(作業!$B$5,名言集!D211),\"\"))","v":1},211,"取り返しのつかない大きな失敗をしたくないなら、早い段階での失敗を恐れてはならない。","湯川秀樹","日本の理論物理学者、ノーベル物理学賞受賞 / 1907～1981"]
[{"$f":"IFERROR(FIND(作業!$B$5,名言集!C212),IFERROR(FIND(作業!$B$5,名言集!D212),\"\"))","v":1},212,"考えは豊かに、見た目は貧しく。","アンディ・ウォーホル","米国の芸術家、ポップアートの旗手 / 1928～1987"]
[{"$f":"IFERROR(FIND(作業!$B$5,名言集!C213),IFERROR(FIND(作業!$B$5,名言集!D213),\"\"))","v":1},213,"行く手をふさがれたら、回り道で行けばいいのよ。","メアリー・ケイ・アッシュ","米国の化粧品会社創業者 / 1918～2001"]
[{"$f":"IFERROR(FIND(作業!$B$5,名言集!C214),IFERROR(FIND(作業!$B$5,名言集!D214),\"\"))","v":1},214,"機敏であれ、しかし慌ててはいけない。","ジョン・ウッデン","米国の大学バスケットボールコーチ / 1910～2010"]
[{"$f":"IFERROR(FIND(作業!$B$5,名言集!C215),IFERROR(FIND(作業!$B$5,名言集!D215),\"\"))","v":1},215,"過去よりも大きな夢を持とう。","ダグラス・アイベスター","米国の経営者 / 1947～"]
[{"$f":"IFERROR(FIND(作業!$B$5,名言集!C216),IFERROR(FIND(作業!$B$5,名言集!D216),\"\"))","v":1},216,"敗北を味を知ってこそ、最も甘美な勝利が味わえる。","マルコム・フォーブス","米国のフォーブス誌の元発行人 / 1919～1990"]
[{"$f":"IFERROR(FIND(作業!$B$5,名言集!C217),IFERROR(FIND(作業!$B$5,名言集!D217),\"\"))","v":1},217,"「いつの日か」は、決してやってこない。","ヘンリー・ジョージ・ボーン","英国の出版業経営者 / 1796～1884"]
[{"$f":"IFERROR(FIND(作業!$B$5,名言集!C218),IFERROR(FIND(作業!$B$5,名言集!D218),\"\"))","v":1},218,"失敗なんてありえないと信じて、やってみるんだ。","チャールズ・ケタリング","米国の農民、教員、科学者、発明家 / 1876～1958"]
[{"$f":"IFERROR(FIND(作業!$B$5,名言集!C219),IFERROR(FIND(作業!$B$5,名言集!D219),\"\"))","v":1},219,"すべてのルールに従えば、すべての楽しみを取り逃がしてしまうわ。","キャサリン・ヘプバーン","米国の女優 / 1907～2003"]
[{"$f":"IFERROR(FIND(作業!$B$5,名言集!C220),IFERROR(FIND(作業!$B$5,名言集!D220),\"\"))","v":1},220,"賢者はチャンスを見つけるよりも、みずからチャンスを創りだす。","フランシス・ベーコン","英国の哲学者、神学者、法学者 / 1561～1626"]
[{"$f":"IFERROR(FIND(作業!$B$5,名言集!C221),IFERROR(FIND(作業!$B$5,名言集!D221),\"\"))","v":1},221,"今日、私には夢がある。","キング牧師","米国の牧師、公民権運動の指導者 / 1929～1968"]
[{"$f":"IFERROR(FIND(作業!$B$5,名言集!C222),IFERROR(FIND(作業!$B$5,名言集!D222),\"\"))","v":1},222,"ビジョンとは、見えないものを見る技術だ。","ジョナサン・スウィフト","アイルランドの作家 / 1667～1745"]
[{"$f":"IFERROR(FIND(作業!$B$5,名言集!C223),IFERROR(FIND(作業!$B$5,名言集!D223),\"\"))","v":1},223,"より良い方法は、常に存在している。","トーマス・エジソン","米国の発明家、起業家 / 1847～1931"]
[{"$f":"IFERROR(FIND(作業!$B$5,名言集!C224),IFERROR(FIND(作業!$B$5,名言集!D224),\"\"))","v":1},224,"今日という一日は、明日という日の二日分の値打ちがある。","ベンジャミン・フランクリン","米国の政治家、外交官、物理学者 / 1706～1790"]
[{"$f":"IFERROR(FIND(作業!$B$5,名言集!C225),IFERROR(FIND(作業!$B$5,名言集!D225),\"\"))","v":1},225,"打たないシュートは、100％外れる。","ウェイン・グレツキー","カナダのプロアイスホッケー選手 / 1961～"]
[{"$f":"IFERROR(FIND(作業!$B$5,名言集!C226),IFERROR(FIND(作業!$B$5,名言集!D226),\"\"))","v":1},226,"今日という日は、残りの人生の最初の日である。","チャールズ・ディードリッヒ","米国の薬物中毒患者救済機関の設立者 / 1913～1997"]
[{"$f":"IFERROR(FIND(作業!$B$5,名言集!C227),IFERROR(FIND(作業!$B$5,名言集!D227),\"\"))","v":1},227,"許しとは自分自身への贈り物。","スザンヌ・サマーズ","米国の女優、作家 / 1946～"]
[{"$f":"IFERROR(FIND(作業!$B$5,名言集!C228),IFERROR(FIND(作業!$B$5,名言集!D228),\"\"))","v":1},228,"しばしば、直観が頼みの綱になる。","ビル・ゲイツ","米国の実業家、マイクロソフト社の創業者 / 1955～"]
[{"$f":"IFERROR(FIND(作業!$B$5,名言集!C229),IFERROR(FIND(作業!$B$5,名言集!D229),\"\"))","v":1},229,"不平を言わない。言い訳をしない。","キャサリン・ヘプバーン","米国の女優 / 1907～2003"]
[{"$f":"IFERROR(FIND(作業!$B$5,名言集!C230),IFERROR(FIND(作業!$B$5,名言集!D230),\"\"))","v":1},230,"成功したいのなら、人並み以上の努力をするのだ。","エマーソン","米国の思想家、哲学者、作家、詩人 / 1803～1882"]
[{"$f":"IFERROR(FIND(作業!$B$5,名言集!C231),IFERROR(FIND(作業!$B$5,名言集!D231),\"\"))","v":1},231,"失敗は回り道。行き止まりではない。","ジグ・ジグラー","米国のモチベーション講演家、作家 / 1926～2012"]
[{"$f":"IFERROR(FIND(作業!$B$5,名言集!C232),IFERROR(FIND(作業!$B$5,名言集!D232),\"\"))","v":1},232,"自分の運命は自分でコントロールすべきだ。さもないと、誰かにコントロールされてしまう。","ジャック・ウェルチ","米国の経営者 / 1935～"]
[{"$f":"IFERROR(FIND(作業!$B$5,名言集!C233),IFERROR(FIND(作業!$B$5,名言集!D233),\"\"))","v":1},233,"夢見ることができれば、それは実現できる。","ウォルト・ディズニー","米国のエンターテイナー、実業家 / 1901～1966"]
[{"$f":"IFERROR(FIND(作業!$B$5,名言集!C234),IFERROR(FIND(作業!$B$5,名言集!D234),\"\"))","v":1},234,"優秀な芸術家は模倣し、偉大な芸術家は盗む。","パブロ・ピカソ","スペイン出身の画家、彫刻家 / 1881～1973"]
[{"$f":"IFERROR(FIND(作業!$B$5,名言集!C235),IFERROR(FIND(作業!$B$5,名言集!D235),\"\"))","v":1},235,"人生の唯一の意義は、人のために生きることである。","トルストイ","ロシアの小説家、思想家 / 1828～1910"]
[{"$f":"IFERROR(FIND(作業!$B$5,名言集!C236),IFERROR(FIND(作業!$B$5,名言集!D236),\"\"))","v":1},236,"正しいことをするとき、頃合いを見る必要はないのです。","キング牧師","米国の牧師、公民権運動の指導者 / 1929～1968"]
[{"$f":"IFERROR(FIND(作業!$B$5,名言集!C237),IFERROR(FIND(作業!$B$5,名言集!D237),\"\"))","v":1},237,"恐怖は常に無知から生じる。","エマーソン","米国の思想家、哲学者、作家、詩人 / 1803～1882"]
[{"$f":"IFERROR(FIND(作業!$B$5,名言集!C238),IFERROR(FIND(作業!$B$5,名言集!D238),\"\"))","v":1},238,"行動する事は少しも恐れはしない。恐れるのは、ただ無為に時を過ごす事だけだ。","ウィンストン・チャーチル","英国の政治家、ノーベル文学賞受賞 / 1874～1965"]
[{"$f":"IFERROR(FIND(作業!$B$5,名言集!C239),IFERROR(FIND(作業!$B$5,名言集!D239),\"\"))","v":1},239,"もっとやれば、もっとできる。","ウィリアム・ヘイズリット","英国の作家、批評家 / 1778～1830"]
[{"$f":"IFERROR(FIND(作業!$B$5,名言集!C240),IFERROR(FIND(作業!$B$5,名言集!D240),\"\"))","v":1},240,"純粋な心だけが美味しいスープを作る。","ベートーヴェン","ドイツの作曲家 / 1770～1827"]
[{"$f":"IFERROR(FIND(作業!$B$5,名言集!C241),IFERROR(FIND(作業!$B$5,名言集!D241),\"\"))","v":1},241,"失敗は大成功への足がかり。","オプラ・ウィンフリー","米国の女性テレビ司会者、女優 / 1954～"]
[{"$f":"IFERROR(FIND(作業!$B$5,名言集!C242),IFERROR(FIND(作業!$B$5,名言集!D242),\"\"))","v":1},242,"この世界は、我々の想像力を描くためのキャンバスにすぎない。","ソロー","米国の作家、詩人、思想家 / 1817～1862"]
[{"$f":"IFERROR(FIND(作業!$B$5,名言集!C243),IFERROR(FIND(作業!$B$5,名言集!D243),\"\"))","v":1},243,"目的を見つけよ。手段は後からついてくる。","ガンジー","インドの弁護士、宗教家、政治指導者 / 1869～1948"]
[{"$f":"IFERROR(FIND(作業!$B$5,名言集!C244),IFERROR(FIND(作業!$B$5,名言集!D244),\"\"))","v":1},244,"平和を試してみよう！僕らが言ってるのはそれだけだ。","ジョン・レノン","英国のミュージシャン、ビートルズのリーダー / 1940～1980"]
[{"$f":"IFERROR(FIND(作業!$B$5,名言集!C245),IFERROR(FIND(作業!$B$5,名言集!D245),\"\"))","v":1},245,"投票は銃弾よりも強い。","エイブラハム・リンカーン","米国の第16代大統領 / 1809～1865"]
[{"$f":"IFERROR(FIND(作業!$B$5,名言集!C246),IFERROR(FIND(作業!$B$5,名言集!D246),\"\"))","v":1},246,"何事も成功するまでは不可能に思えるものである。","ネルソン・マンデラ","南アフリカの政治家、ノーベル平和賞受賞 / 1918～2013"]
[{"$f":"IFERROR(FIND(作業!$B$5,名言集!C247),IFERROR(FIND(作業!$B$5,名言集!D247),\"\"))","v":1},247,"すべては過程だ。結果ではない。","カール・ルイス","米国の陸上競技選手 / 1961～"]
[{"$f":"IFERROR(FIND(作業!$B$5,名言集!C248),IFERROR(FIND(作業!$B$5,名言集!D248),\"\"))","v":1},248,"困難の中に、機会がある。","アインシュタイン","理論物理学者、ノーベル物理学賞受賞 / 1879～1955"]
[{"$f":"IFERROR(FIND(作業!$B$5,名言集!C249),IFERROR(FIND(作業!$B$5,名言集!D249),\"\"))","v":1},249,"犬は決して私に噛みつきません。裏切るのは人間だけです。","マリリン・モンロー","米国の女優 / 1926～1962"]
[{"$f":"IFERROR(FIND(作業!$B$5,名言集!C250),IFERROR(FIND(作業!$B$5,名言集!D250),\"\"))","v":1},250,"シンプルさは究極の洗練である。","レオナルド・ダ・ヴィンチ","イタリアのルネサンス期の芸術家 / 1452～151"]
[{"$f":"IFERROR(FIND(作業!$B$5,名言集!C251),IFERROR(FIND(作業!$B$5,名言集!D251),\"\"))","v":1},251,"着こなしは生き方だ。","イヴ・サン＝ローラン","フランスのファッションデザイナー / 1936～2008"]
[{"$f":"IFERROR(FIND(作業!$B$5,名言集!C252),IFERROR(FIND(作業!$B$5,名言集!D252),\"\"))","v":1},252,"雨を感じられる人間もいるし、ただ濡れるだけの奴らもいる。","ボブ・マーリー","ジャマイカのレゲエミュージシャン / 1945～1981"]
[{"$f":"IFERROR(FIND(作業!$B$5,名言集!C253),IFERROR(FIND(作業!$B$5,名言集!D253),\"\"))","v":1},253,"私は捜し求めない。見出すのだ。","パブロ・ピカソ","スペイン出身の画家、彫刻家 / 1881～1973"]
[{"$f":"IFERROR(FIND(作業!$B$5,名言集!C254),IFERROR(FIND(作業!$B$5,名言集!D254),\"\"))","v":1},254,"熱意を失ってしまった人ほど年老いた人はいない。","ソロー","米国の作家、詩人、思想家 / 1817～1862"]
[{"$f":"IFERROR(FIND(作業!$B$5,名言集!C255),IFERROR(FIND(作業!$B$5,名言集!D255),\"\"))","v":1},255,"未来を予測する最良の方法は、未来を創ることだ。","ピーター・ドラッカー","オーストリア出身の経営学者 / 1909～2005"]
[{"$f":"IFERROR(FIND(作業!$B$5,名言集!C256),IFERROR(FIND(作業!$B$5,名言集!D256),\"\"))","v":1},256,"速度を上げるばかりが、人生ではない。","ガンジー","インドの弁護士、宗教家、政治指導者 / 1869～1948"]
[{"$f":"IFERROR(FIND(作業!$B$5,名言集!C257),IFERROR(FIND(作業!$B$5,名言集!D257),\"\"))","v":1},257,"生きるために食べよ、食べるために生きるな。","ソクラテス","古代ギリシアの哲学者 / 紀元前469～399"]
[{"$f":"IFERROR(FIND(作業!$B$5,名言集!C258),IFERROR(FIND(作業!$B$5,名言集!D258),\"\"))","v":1},258,"多数の友を持つ者は、一人の友も持たない。","アリストテレス","古代ギリシアの哲学者 / 紀元前384～前322"]
[{"$f":"IFERROR(FIND(作業!$B$5,名言集!C259),IFERROR(FIND(作業!$B$5,名言集!D259),\"\"))","v":1},{"$f":"IF(A259=\"\",B258,B258+1)","v":259},"私の歩みは遅いが、歩んだ道を引き返すことはない。","エイブラハム・リンカーン","米国の第16代大統領 / 1809～1865"]
[{"$f":"IFERROR(FIND(作業!$B$5,名言集!C260),IFERROR(FIND(作業!$B$5,名言集!D260),\"\"))","v":1},260,"愛の第一の義務は、耳を傾けることである。","パウル・ティリッヒ","ドイツのプロテスタント神学者 / 1886～1965"]
[{"$f":"IFERROR(FIND(作業!$B$5,名言集!C261),IFERROR(FIND(作業!$B$5,名言集!D261),\"\"))","v":1},261,"重要なのは人生の長さではない。人生の深さだ。","エマーソン","米国の思想家、哲学者、作家、詩人 / 1803～1882"]
[{"$f":"IFERROR(FIND(作業!$B$5,名言集!C262),IFERROR(FIND(作業!$B$5,名言集!D262),\"\"))","v":1},262,"急がずに、だが休まずに。","ゲーテ","ドイツの詩人、小説家、劇作家 / 1749～1832"]
[{"$f":"IFERROR(FIND(作業!$B$5,名言集!C263),IFERROR(FIND(作業!$B$5,名言集!D263),\"\"))","v":1},263,"一粒の木の実は、いくつもの森を生む。","エマーソン","米国の思想家、哲学者、作家、詩人 / 1803～1882"]
[{"$f":"IFERROR(FIND(作業!$B$5,名言集!C264),IFERROR(FIND(作業!$B$5,名言集!D264),\"\"))","v":1},264,"与えることで貧しくなった人はいまだかつて一人もいません。","アンネ・フランク","「アンネの日記」著者、ユダヤ系ドイツ人少女 / 1929～1945"]
[{"$f":"IFERROR(FIND(作業!$B$5,名言集!C265),IFERROR(FIND(作業!$B$5,名言集!D265),\"\"))","v":1},265,"未来は今日始まる。明日始まるのではない。","ヨハネ・パウロ2世","ポーランド出身の第264代ローマ教皇 / 1920～2005"]
[{"$f":"IFERROR(FIND(作業!$B$5,名言集!C266),IFERROR(FIND(作業!$B$5,名言集!D266),\"\"))","v":1},266,"決して屈するな。決して、決して、決して！","ウィンストン・チャーチル","英国の政治家、ノーベル文学賞受賞 / 1874～1965"]
[{"$f":"IFERROR(FIND(作業!$B$5,名言集!C267),IFERROR(FIND(作業!$B$5,名言集!D267),\"\"))","v":1},267,"なりたかった自分になるのに遅すぎるということはない。","ジョージ・エリオット","英国の女性作家 / 1819～1880"]
[{"$f":"IFERROR(FIND(作業!$B$5,名言集!C268),IFERROR(FIND(作業!$B$5,名言集!D268),\"\"))","v":1},268,"物事が変わるのではない。私たちが変わるのだ。","ソロー","米国の作家、詩人、思想家 / 1817～1862"]
[{"$f":"IFERROR(FIND(作業!$B$5,名言集!C269),IFERROR(FIND(作業!$B$5,名言集!D269),\"\"))","v":1},269,"友人を得る唯一の方法は、自分がその人の友人になることである。","エマーソン","米国の思想家、哲学者、作家、詩人 / 1803～1882"]
[{"$f":"IFERROR(FIND(作業!$B$5,名言集!C270),IFERROR(FIND(作業!$B$5,名言集!D270),\"\"))","v":1},270,"シンプルさはすべてのエレガンスの鍵。","ココ・シャネル","フランスのファッションデザイナー / 1883～1971"]
[{"$f":"IFERROR(FIND(作業!$B$5,名言集!C271),IFERROR(FIND(作業!$B$5,名言集!D271),\"\"))","v":1},271,"事実というものは存在しない。存在するのは解釈だけである。","ニーチェ","ドイツの哲学者、古典文献学者 / 1844～1900"]
[{"$f":"IFERROR(FIND(作業!$B$5,名言集!C272),IFERROR(FIND(作業!$B$5,名言集!D272),\"\"))","v":1},272,"嘘は、生き続けることなどできない。","キング牧師","米国の牧師、公民権運動の指導者 / 1929～1968"]
[{"$f":"IFERROR(FIND(作業!$B$5,名言集!C273),IFERROR(FIND(作業!$B$5,名言集!D273),\"\"))","v":1},273,"想像できることは、すべて現実なのだ。","パブロ・ピカソ","スペイン出身の画家、彫刻家 / 1881～1973"]
[{"$f":"IFERROR(FIND(作業!$B$5,名言集!C274),IFERROR(FIND(作業!$B$5,名言集!D274),\"\"))","v":1},274,"死ぬよりも苦しむほうが勇気を必要とする。","ナポレオン・ボナパルト","フランスの皇帝、政治家、軍人 / 1769～1821 W"]
[{"$f":"IFERROR(FIND(作業!$B$5,名言集!C275),IFERROR(FIND(作業!$B$5,名言集!D275),\"\"))","v":1},275,"想像力のない奴に、翼は持てない。","モハメド・アリ","米国の元プロボクサー / 1942～2016"]
[{"$f":"IFERROR(FIND(作業!$B$5,名言集!C276),IFERROR(FIND(作業!$B$5,名言集!D276),\"\"))","v":1},276,"準備万端の人にチャンスが訪れることを幸運と呼ぶの。","オプラ・ウィンフリー","米国の女性テレビ司会者、女優 / 1954～"]
[{"$f":"IFERROR(FIND(作業!$B$5,名言集!C277),IFERROR(FIND(作業!$B$5,名言集!D277),\"\"))","v":1},277,"計画のない目標は、ただの願い事にすぎない。","サン＝テグジュペリ","フランスの作家、操縦士 / 1900～1944"]
[{"$f":"IFERROR(FIND(作業!$B$5,名言集!C278),IFERROR(FIND(作業!$B$5,名言集!D278),\"\"))","v":1},278,"鳥籠が鳥を探しに出かけていった。","カフカ","現在のチェコ出身の小説家、「変身」の著者 / 1883～1924"]
[{"$f":"IFERROR(FIND(作業!$B$5,名言集!C279),IFERROR(FIND(作業!$B$5,名言集!D279),\"\"))","v":1},279,"人間は考えることが少なければ少ないほど余計にしゃべる。","モンテスキュー","フランスの哲学者 / 1689～1755"]
[{"$f":"IFERROR(FIND(作業!$B$5,名言集!C280),IFERROR(FIND(作業!$B$5,名言集!D280),\"\"))","v":1},280,"始まりは、どんなものでも小さい。","キケロ","共和政ローマの政治家、文筆家、哲学者 / 紀元前106～前43"]
[{"$f":"IFERROR(FIND(作業!$B$5,名言集!C281),IFERROR(FIND(作業!$B$5,名言集!D281),\"\"))","v":1},281,"知識は力なり。","フランシス・ベーコン","英国の哲学者、神学者、法学者 / 1561～1626"]
[{"$f":"IFERROR(FIND(作業!$B$5,名言集!C282),IFERROR(FIND(作業!$B$5,名言集!D282),\"\"))","v":1},282,"真実は、虐げられる側にある。","マルコムX","米国の黒人公民権運動家 / 1925～1965"]
[{"$f":"IFERROR(FIND(作業!$B$5,名言集!C283),IFERROR(FIND(作業!$B$5,名言集!D283),\"\"))","v":1},283,"私たちが行動を決定するように、行動も私たちの人間性を決めている。","ジョージ・エリオット","英国の女性作家 / 1819～1880"]
[{"$f":"IFERROR(FIND(作業!$B$5,名言集!C284),IFERROR(FIND(作業!$B$5,名言集!D284),\"\"))","v":1},284,"恐怖ほど、恐れられるものはない。","ソロー","米国の作家、詩人、思想家 / 1817～1862"]
[{"$f":"IFERROR(FIND(作業!$B$5,名言集!C285),IFERROR(FIND(作業!$B$5,名言集!D285),\"\"))","v":1},285,"希望を持たずに生きることは、死ぬことに等しい。","ドストエフスキー","ロシアの小説家、思想家 / 1821～1881"]
[{"$f":"IFERROR(FIND(作業!$B$5,名言集!C286),IFERROR(FIND(作業!$B$5,名言集!D286),\"\"))","v":1},286,"自らそうであると信じるもの　-　それが自分自身である。","チェーホフ","ロシアの劇作家、小説家 / 1860～1904"]
[{"$f":"IFERROR(FIND(作業!$B$5,名言集!C287),IFERROR(FIND(作業!$B$5,名言集!D287),\"\"))","v":1},287,"愚か者は、まじめさを盾にする。","モンテスキュー","フランスの哲学者 / 1689～1755"]
[{"$f":"IFERROR(FIND(作業!$B$5,名言集!C288),IFERROR(FIND(作業!$B$5,名言集!D288),\"\"))","v":1},288,"僕らはみんな幼少期の産物なんだ。","マイケル・ジャクソン","米国のシンガーソングライター / 1958～2009"]
[{"$f":"IFERROR(FIND(作業!$B$5,名言集!C289),IFERROR(FIND(作業!$B$5,名言集!D289),\"\"))","v":1},289,"正直は、常に最上の政策である。","ジョージ・ワシントン","米国の軍人、政治家、米国初代大統領 / 1732～1799"]
[{"$f":"IFERROR(FIND(作業!$B$5,名言集!C290),IFERROR(FIND(作業!$B$5,名言集!D290),\"\"))","v":1},290,"私達の財産、それは私達の頭の中にある。","モーツァルト","オーストリアの作曲家、演奏家 / 1756～1791"]
[{"$f":"IFERROR(FIND(作業!$B$5,名言集!C291),IFERROR(FIND(作業!$B$5,名言集!D291),\"\"))","v":1},291,"上を見続ける… それが生きるコツさ…","チャールズ・M・シュルツ","米国の漫画家、スヌーピーの作者 / 1922～2000"]
[{"$f":"IFERROR(FIND(作業!$B$5,名言集!C292),IFERROR(FIND(作業!$B$5,名言集!D292),\"\"))","v":1},292,"質の高い質問が、質の高い人生を創る。","アンソニー・ロビンズ","米国の自己啓発書作家、講演家 / 1960～"]
[{"$f":"IFERROR(FIND(作業!$B$5,名言集!C293),IFERROR(FIND(作業!$B$5,名言集!D293),\"\"))","v":1},293,"疑いは知のはじまりである。","デカルト","フランスの哲学者、数学者 / 1596～1650"]
[{"$f":"IFERROR(FIND(作業!$B$5,名言集!C294),IFERROR(FIND(作業!$B$5,名言集!D294),\"\"))","v":1},294,"金持ちのままで死ぬのは不名誉な死である。","アンドリュー・カーネギー","米国の実業家、鉄鋼王 / 1835～1919"]
[{"$f":"IFERROR(FIND(作業!$B$5,名言集!C295),IFERROR(FIND(作業!$B$5,名言集!D295),\"\"))","v":1},295,"余り考え過ごす者は何事をも成し得ない。","シラー","ドイツの詩人、歴史学者、劇作家、思想家 / 1759～1805"]
[{"$f":"IFERROR(FIND(作業!$B$5,名言集!C296),IFERROR(FIND(作業!$B$5,名言集!D296),\"\"))","v":1},296,"地獄とは他人のことだ。","サルトル","フランスの哲学者、小説家、劇作家 / 1905～1980"]
[{"$f":"IFERROR(FIND(作業!$B$5,名言集!C297),IFERROR(FIND(作業!$B$5,名言集!D297),\"\"))","v":1},297,"日々生まれ変わるのに忙しくない人は、日々死ぬのに忙しい。","ボブ・ディラン","米国のミュージシャン / 1941～"]
[{"$f":"IFERROR(FIND(作業!$B$5,名言集!C298),IFERROR(FIND(作業!$B$5,名言集!D298),\"\"))","v":1},298,"希望を生かし続けなさい。","ジェシー・ジャクソン","米国の市民権活動家、牧師 / 1941～"]
[{"$f":"IFERROR(FIND(作業!$B$5,名言集!C299),IFERROR(FIND(作業!$B$5,名言集!D299),\"\"))","v":1},299,"沈黙は愚者たちの美徳である。","フランシス・ベーコン","英国の哲学者、神学者、法学者 / 1561～1626"]
[{"$f":"IFERROR(FIND(作業!$B$5,名言集!C300),IFERROR(FIND(作業!$B$5,名言集!D300),\"\"))","v":1},300,"満たされない成功は、失敗だ。","アンソニー・ロビンズ","米国の自己啓発書作家、講演家 / 1960～"]
[{"$f":"IFERROR(FIND(作業!$B$5,名言集!C301),IFERROR(FIND(作業!$B$5,名言集!D301),\"\"))","v":1},301,"偏見は、判断を持たない意見である。","ヴォルテール","フランスの哲学者、作家、文学者、歴史家 / 1694～1778"]
[{"$f":"IFERROR(FIND(作業!$B$5,名言集!C302),IFERROR(FIND(作業!$B$5,名言集!D302),\"\"))","v":1},302,"「明日」という言葉は、優柔不断な人々と子供のために考案された。","ツルゲーネフ","ロシアの小説家 / 1818～1883"]
[{"$f":"IFERROR(FIND(作業!$B$5,名言集!C303),IFERROR(FIND(作業!$B$5,名言集!D303),\"\"))","v":1},303,"不幸なときにこそ、人は道徳的になる。","マルセル・プルースト","フランスの作家 / 1871～1922"]
[{"$f":"IFERROR(FIND(作業!$B$5,名言集!C304),IFERROR(FIND(作業!$B$5,名言集!D304),\"\"))","v":1},304,"孤独は優れた精神の持ち主の運命である。","ショーペンハウアー","ドイツの哲学者 / 1788～1860"]
[{"$f":"IFERROR(FIND(作業!$B$5,名言集!C305),IFERROR(FIND(作業!$B$5,名言集!D305),\"\"))","v":1},305,"ペンは魂の舌である。","セルバンテス","スペインの小説家『ドン・キホーテ』著者 / 1547～1616"]
[{"$f":"IFERROR(FIND(作業!$B$5,名言集!C306),IFERROR(FIND(作業!$B$5,名言集!D306),\"\"))","v":1},306,"苦痛は短く、喜びは永遠である。","シラー","ドイツの詩人、歴史学者、劇作家、思想家 / 1759～1805"]
[{"$f":"IFERROR(FIND(作業!$B$5,名言集!C307),IFERROR(FIND(作業!$B$5,名言集!D307),\"\"))","v":1},307,"「すべて事もなし」… これが私の新しい哲学よ","チャールズ・M・シュルツ","米国の漫画家、スヌーピーの作者 / 1922～2000"]
[{"$f":"IFERROR(FIND(作業!$B$5,名言集!C308),IFERROR(FIND(作業!$B$5,名言集!D308),\"\"))","v":1},308,"不運は人物を作り、幸運は怪物を作る。","ヴィクトル・ユーゴー","フランスのロマン主義の詩人、小説家 / 1802～1885"]
[{"$f":"IFERROR(FIND(作業!$B$5,名言集!C309),IFERROR(FIND(作業!$B$5,名言集!D309),\"\"))","v":1},309,"音楽とは、世界がその歌詞であるような旋律である。","ショーペンハウアー","ドイツの哲学者 / 1788～1860"]
[{"$f":"IFERROR(FIND(作業!$B$5,名言集!C310),IFERROR(FIND(作業!$B$5,名言集!D310),\"\"))","v":1},310,"雑草とは、ただ人に愛されていない花。","エラ・ウィーラー・ウィルコックス","米国の女性作家、詩人 / 1850～1919"]
[{"$f":"IFERROR(FIND(作業!$B$5,名言集!C311),IFERROR(FIND(作業!$B$5,名言集!D311),\"\"))","v":1},311,"正直は最善の策である。","セルバンテス","スペインの小説家『ドン・キホーテ』著者 / 1547～1616"]
[{"$f":"IFERROR(FIND(作業!$B$5,名言集!C312),IFERROR(FIND(作業!$B$5,名言集!D312),\"\"))","v":1},312,"真の楽園とは失われた楽園である。","マルセル・プルースト","フランスの作家 / 1871～1922"]
[{"$f":"IFERROR(FIND(作業!$B$5,名言集!C313),IFERROR(FIND(作業!$B$5,名言集!D313),\"\"))","v":1},313,"お金を手にする前にお金を使うな。","トーマス・ジェファーソン","米国の第3代大統領、アメリカ独立宣言の主要な作者 / 1743～1826"]
[{"$f":"IFERROR(FIND(作業!$B$5,名言集!C314),IFERROR(FIND(作業!$B$5,名言集!D314),\"\"))","v":1},314,"嫉妬ほど、視覚を鋭敏にするものはない。","トーマス・フラー","英国の聖職者、歴史家 / 1608～1661"]
[{"$f":"IFERROR(FIND(作業!$B$5,名言集!C315),IFERROR(FIND(作業!$B$5,名言集!D315),\"\"))","v":1},315,"私はいったい誰か？ああ、それは大いなる謎だ。","ルイス・キャロル","英国の作家『不思議の国のアリス』著者 / 1832～1898"]
[{"$f":"IFERROR(FIND(作業!$B$5,名言集!C316),IFERROR(FIND(作業!$B$5,名言集!D316),\"\"))","v":1},316,"もしもあなたが私にレッテルをはるなら、それは私の存在を否定することになる。","キルケゴール","デンマークの哲学者、実存主義の創始者 / 1813～1855"]
[{"$f":"IFERROR(FIND(作業!$B$5,名言集!C317),IFERROR(FIND(作業!$B$5,名言集!D317),\"\"))","v":1},317,"私はだれの意見にも賛成したいと思わない。私は自分の意見を持っている。","ツルゲーネフ","ロシアの小説家 / 1818～1883"]
[{"$f":"IFERROR(FIND(作業!$B$5,名言集!C318),IFERROR(FIND(作業!$B$5,名言集!D318),\"\"))","v":1},318,"涙は、もの言わぬ悲しみの言葉である。","ヴォルテール","フランスの哲学者、作家、文学者、歴史家 / 1694～1778"]
[{"$f":"IFERROR(FIND(作業!$B$5,名言集!C319),IFERROR(FIND(作業!$B$5,名言集!D319),\"\"))","v":1},319,"あなたを心配させるものが、あなたを支配する。","ジョン・ロック","英国の哲学者 / 1632～1704"]
[{"$f":"IFERROR(FIND(作業!$B$5,名言集!C320),IFERROR(FIND(作業!$B$5,名言集!D320),\"\"))","v":1},320,"生命なくして富はなし。","ジョン・ラスキン","英国の美術評論家、社会思想家 / 1819～1900"]
[{"$f":"IFERROR(FIND(作業!$B$5,名言集!C321),IFERROR(FIND(作業!$B$5,名言集!D321),\"\"))","v":1},321,"浪費するのを楽しんだ時間は、浪費された時間ではない。","バートランド・ラッセル","英国の哲学者、ノーベル文学賞受賞 / 1872～1970"]
[{"$f":"IFERROR(FIND(作業!$B$5,名言集!C322),IFERROR(FIND(作業!$B$5,名言集!D322),\"\"))","v":1},322,"人生の目的は行為にして、思想にあらず。","トーマス・カーライル","英国の思想家、歴史家 / 1795～1881"]
[{"$f":"IFERROR(FIND(作業!$B$5,名言集!C323),IFERROR(FIND(作業!$B$5,名言集!D323),\"\"))","v":1},{"$f":"IF(A323=\"\",B322,B322+1)","v":323},"美はいつも期待させるが、決して何も与えてくれない。","シモーヌ・ヴェイユ","フランスの女性哲学者 / 1909～1943"]
[{"$f":"IFERROR(FIND(作業!$B$5,名言集!C324),IFERROR(FIND(作業!$B$5,名言集!D324),\"\"))","v":1},324,"慰めてくれるものは、ほとんど何であれ見せ掛けだ。","アイリス・マードック","アイルランドの女性作家、哲学者、詩人 / 1919～1999"]
[{"$f":"IFERROR(FIND(作業!$B$5,名言集!C325),IFERROR(FIND(作業!$B$5,名言集!D325),\"\"))","v":1},325,"誰かの心の雲に架かる虹となってあげましょう。","マヤ・アンジェロウ","米国の詩人、作家、公民権運動家 / 1928～2014"]
[{"$f":"IFERROR(FIND(作業!$B$5,名言集!C326),IFERROR(FIND(作業!$B$5,名言集!D326),\"\"))","v":1},326,"仕事に喜びを見出すことは、若さの泉を発見することである。","パール・バック","米国の女性小説家、ノーベル文学賞受賞 / 1892～1973"]
[{"$f":"IFERROR(FIND(作業!$B$5,名言集!C327),IFERROR(FIND(作業!$B$5,名言集!D327),\"\"))","v":1},327,"自分ならできると信じれば、もう半分は終わったようなものだ。","セオドア・ルーズベルト","米国の第26代大統領 / 1858～1919"]
[{"$f":"IFERROR(FIND(作業!$B$5,名言集!C328),IFERROR(FIND(作業!$B$5,名言集!D328),\"\"))","v":1},328,"幸せを言葉で語ると幸せを減らしてしまう。","スタンダール","フランスの小説家『赤と黒』著者 / 1783～1842"]
[{"$f":"IFERROR(FIND(作業!$B$5,名言集!C329),IFERROR(FIND(作業!$B$5,名言集!D329),\"\"))","v":1},329,"変化は不可避であり、変化は不変である。","ベンジャミン・ディズレーリ","英国の政治家、小説家 / 1804～1881"]
[{"$f":"IFERROR(FIND(作業!$B$5,名言集!C330),IFERROR(FIND(作業!$B$5,名言集!D330),\"\"))","v":1},330,"身をもって示すことがリーダーシップである。","アルベルト・シュバイツァー","ドイツ出身の哲学者、医者、ノーベル平和賞受賞 / 1875～1965"]
[{"$f":"IFERROR(FIND(作業!$B$5,名言集!C331),IFERROR(FIND(作業!$B$5,名言集!D331),\"\"))","v":1},331,"最もよく知っている人間は、自分がほとんど知らないことを知っている。","トーマス・ジェファーソン","米国の第3代大統領、アメリカ独立宣言の主要な作者 / 1743～1826"]
[{"$f":"IFERROR(FIND(作業!$B$5,名言集!C332),IFERROR(FIND(作業!$B$5,名言集!D332),\"\"))","v":1},332,"嘘には足がない。だがスキャンダルは翼を持っている。","トーマス・フラー","英国の聖職者、歴史家 / 1608～1661"]
[{"$f":"IFERROR(FIND(作業!$B$5,名言集!C333),IFERROR(FIND(作業!$B$5,名言集!D333),\"\"))","v":1},333,"言うことと、やることは別のものである。","モンテーニュ","フランスの哲学者、モラリスト / 1533～1592"]
[{"$f":"IFERROR(FIND(作業!$B$5,名言集!C334),IFERROR(FIND(作業!$B$5,名言集!D334),\"\"))","v":1},334,"知恵とは、何に目をつぶるかを学ぶこと。","ウィリアム・ジェームズ","米国の哲学者、心理学者 / 1842～1910"]
[{"$f":"IFERROR(FIND(作業!$B$5,名言集!C335),IFERROR(FIND(作業!$B$5,名言集!D335),\"\"))","v":1},335,"先に見出し、後に捜し求めよ。","ジャン・コクトー","フランスの詩人、小説家、芸術家 / 1889～1963"]
[{"$f":"IFERROR(FIND(作業!$B$5,名言集!C336),IFERROR(FIND(作業!$B$5,名言集!D336),\"\"))","v":1},336,"最も危険なのは、質より量へ逃避すること。","シモーヌ・ヴェイユ","フランスの女性哲学者 / 1909～1943"]
[{"$f":"IFERROR(FIND(作業!$B$5,名言集!C337),IFERROR(FIND(作業!$B$5,名言集!D337),\"\"))","v":1},337,"人は、自分が考えた通りの人間になっていく。","ブルース・リー","香港の中国武術家、俳優、脚本家 / 1940～1973"]
[{"$f":"IFERROR(FIND(作業!$B$5,名言集!C338),IFERROR(FIND(作業!$B$5,名言集!D338),\"\"))","v":1},338,"人生において我々が囚われている鎖は、我々が生み出したものに他ならない。","チャールズ・ディケンズ","英国の小説家 / 1812～1870"]
[{"$f":"IFERROR(FIND(作業!$B$5,名言集!C339),IFERROR(FIND(作業!$B$5,名言集!D339),\"\"))","v":1},339,"事実は小説より奇なり。","バイロン","英国の詩人 / 1788～1824"]
[{"$f":"IFERROR(FIND(作業!$B$5,名言集!C340),IFERROR(FIND(作業!$B$5,名言集!D340),\"\"))","v":1},340,"平等にという叫びは、誰をも引きずり下ろす。","アイリス・マードック","アイルランドの女性作家、哲学者、詩人 / 1919～1999"]
[{"$f":"IFERROR(FIND(作業!$B$5,名言集!C341),IFERROR(FIND(作業!$B$5,名言集!D341),\"\"))","v":1},341,"論理的になればなるほど、創造性は失われる。","レイモンド・チャンドラー","米国のハードボイルド作家 / 1888～1959"]
[{"$f":"IFERROR(FIND(作業!$B$5,名言集!C342),IFERROR(FIND(作業!$B$5,名言集!D342),\"\"))","v":1},342,"魅力的に愚痴を言うには、天才でなければならない。","スコット・フィッツジェラルド","米国の小説家 / 1896～1940"]
[{"$f":"IFERROR(FIND(作業!$B$5,名言集!C343),IFERROR(FIND(作業!$B$5,名言集!D343),\"\"))","v":1},343,"人生の悲劇は、人は変わらないということです。","アガサ・クリスティ","英国の推理作家 / 1890～1976"]
[{"$f":"IFERROR(FIND(作業!$B$5,名言集!C344),IFERROR(FIND(作業!$B$5,名言集!D344),\"\"))","v":1},344,"学んだときは教えなさい。手に入れたときは与えなさい。","マヤ・アンジェロウ","米国の詩人、作家、公民権運動家 / 1928～2014"]
[{"$f":"IFERROR(FIND(作業!$B$5,名言集!C345),IFERROR(FIND(作業!$B$5,名言集!D345),\"\"))","v":1},345,"忍耐もまた行動の一つの形態だ。","ロダン","フランスの彫刻家『考える人』の作者 / 1840～1917"]
[{"$f":"IFERROR(FIND(作業!$B$5,名言集!C346),IFERROR(FIND(作業!$B$5,名言集!D346),\"\"))","v":1},346,"火をおこすには火打ち石が二つ必要だ。","ルイーザ・メイ・オルコット","米国の女性小説家 / 1832～1888"]
[{"$f":"IFERROR(FIND(作業!$B$5,名言集!C347),IFERROR(FIND(作業!$B$5,名言集!D347),\"\"))","v":1},347,"物事を成し遂げる秘訣は、行動することだ！","ダンテ","イタリアの詩人、哲学者、政治家 / 1265～1321"]
[{"$f":"IFERROR(FIND(作業!$B$5,名言集!C348),IFERROR(FIND(作業!$B$5,名言集!D348),\"\"))","v":1},348,"善行には何かの犠牲を伴うのだ！","ゾラ・ニール・ハーストン","米国の黒人女性作家 / 1891～1960"]
[{"$f":"IFERROR(FIND(作業!$B$5,名言集!C349),IFERROR(FIND(作業!$B$5,名言集!D349),\"\"))","v":1},349,"あやまちの背後にはたいてい恐れが隠れている。","スザンヌ・サマーズ","米国の女優、作家 / 1946～"]
[{"$f":"IFERROR(FIND(作業!$B$5,名言集!C350),IFERROR(FIND(作業!$B$5,名言集!D350),\"\"))","v":1},350,"若いときには、たくさんバカなことをするものだよ。","ペレ","ブラジルの元サッカー選手、サッカーの王様と称される / 1940～"]
[{"$f":"IFERROR(FIND(作業!$B$5,名言集!C351),IFERROR(FIND(作業!$B$5,名言集!D351),\"\"))","v":1},351,"苦難は、人間を作るか壊すかのどちらかだ。","マーガレット・ミッチェル","米国の小説家『風と共に去りぬ』著者 / 1900～1949"]
[{"$f":"IFERROR(FIND(作業!$B$5,名言集!C352),IFERROR(FIND(作業!$B$5,名言集!D352),\"\"))","v":1},352,"謙遜する必要はありませんよ。あなたはそれほど偉大ではないのだから。","ゴルダ・メイア","イスラエルの元女性首相 / 1898～1978"]
[{"$f":"IFERROR(FIND(作業!$B$5,名言集!C353),IFERROR(FIND(作業!$B$5,名言集!D353),\"\"))","v":1},353,"アドバイスをもらう人は多い。でも、その恩恵を受けるのは賢い人だけ。","ハーパー・リー","米国の小説家 / 1926～2016"]
[{"$f":"IFERROR(FIND(作業!$B$5,名言集!C354),IFERROR(FIND(作業!$B$5,名言集!D354),\"\"))","v":1},354,"知らない人とは、これから知り合う人のこと。","パール・バック","米国の女性小説家、ノーベル文学賞受賞 / 1892～1973"]
[{"$f":"IFERROR(FIND(作業!$B$5,名言集!C355),IFERROR(FIND(作業!$B$5,名言集!D355),\"\"))","v":1},355,"来るものは何でも、必ず去っていく。","エラ・ウィーラー・ウィルコックス","米国の女性作家、詩人 / 1850～1919"]
[{"$f":"IFERROR(FIND(作業!$B$5,名言集!C356),IFERROR(FIND(作業!$B$5,名言集!D356),\"\"))","v":1},356,"未来は現在と同じ材料でできている。","シモーヌ・ヴェイユ","フランスの女性哲学者 / 1909～1943"]
[{"$f":"IFERROR(FIND(作業!$B$5,名言集!C357),IFERROR(FIND(作業!$B$5,名言集!D357),\"\"))","v":1},357,"おいしい食事を無駄にする人は、人生を無駄にしている。","キャサリン・アン・ポーター","米国の小説家 / 1890～1980"]
[{"$f":"IFERROR(FIND(作業!$B$5,名言集!C358),IFERROR(FIND(作業!$B$5,名言集!D358),\"\"))","v":1},358,"私は、自分がこれまでに読んだすべてのものの一部である。","セオドア・ルーズベルト","米国の第26代大統領 / 1858～1919"]
[{"$f":"IFERROR(FIND(作業!$B$5,名言集!C359),IFERROR(FIND(作業!$B$5,名言集!D359),\"\"))","v":1},359,"人生はつらい。最後には死んじゃうんだから。","キャサリン・ヘプバーン","米国の女優 / 1907～2003"]
[{"$f":"IFERROR(FIND(作業!$B$5,名言集!C360),IFERROR(FIND(作業!$B$5,名言集!D360),\"\"))","v":1},360,"時間は飛び去り、二度と戻らない。","ウェルギリウス","古代ローマの詩人 / 紀元前70～前19"]
[{"$f":"IFERROR(FIND(作業!$B$5,名言集!C361),IFERROR(FIND(作業!$B$5,名言集!D361),\"\"))","v":1},361,"人生ってまさに旅ね。","ダイアナ妃","英国チャールズ皇太子の元妃 / 1961～1997"]
[{"$f":"IFERROR(FIND(作業!$B$5,名言集!C362),IFERROR(FIND(作業!$B$5,名言集!D362),\"\"))","v":1},362,"美は魂を覚醒させ行動を起こさせる。","ダンテ","イタリアの詩人、哲学者、政治家 / 1265～1321"]
[{"$f":"IFERROR(FIND(作業!$B$5,名言集!C363),IFERROR(FIND(作業!$B$5,名言集!D363),\"\"))","v":1},363,"だれに対しても率直であれ。","ジャック・ウェルチ","米国の経営者 / 1935～"]
[{"$f":"IFERROR(FIND(作業!$B$5,名言集!C364),IFERROR(FIND(作業!$B$5,名言集!D364),\"\"))","v":1},364,"忙しい人間は涙のための時間を持たない。","バイロン","英国の詩人 / 1788～1824"]
[{"$f":"IFERROR(FIND(作業!$B$5,名言集!C365),IFERROR(FIND(作業!$B$5,名言集!D365),\"\"))","v":1},365,"おしゃべりこそ、最後の逃げ場。","ゾラ・ニール・ハーストン","米国の黒人女性作家 / 1891～1960"]
[{"$f":"IFERROR(FIND(作業!$B$5,名言集!C366),IFERROR(FIND(作業!$B$5,名言集!D366),\"\"))","v":1},366,"笑わない人に出会ったら、あなたの笑顔を与えましょう。","ドリー・パートン","米国のシンガーソングライター、女優 / 1946～"]
[{"$f":"IFERROR(FIND(作業!$B$5,名言集!C367),IFERROR(FIND(作業!$B$5,名言集!D367),\"\"))","v":1},367,"間違いとは単に、物事を行うための別の方法なのよ。","キャサリン・グラハム","米国の経営者、ワシントン・ポスト社長 / 1917～2001"]
[{"$f":"IFERROR(FIND(作業!$B$5,名言集!C368),IFERROR(FIND(作業!$B$5,名言集!D368),\"\"))","v":1},368,"人は成功に向かってつまずく。","メアリー・ケイ・アッシュ","米国の化粧品会社創業者 / 1918～2001"]
[{"$f":"IFERROR(FIND(作業!$B$5,名言集!C369),IFERROR(FIND(作業!$B$5,名言集!D369),\"\"))","v":1},369,"失敗とは避けられないものであり、成功とは手に入れにくいものだ。","スティーヴン・スピルバーグ","米国の映画監督、映画プロデューサー / 1946～"]
[{"$f":"IFERROR(FIND(作業!$B$5,名言集!C370),IFERROR(FIND(作業!$B$5,名言集!D370),\"\"))","v":1},370,"知識は語り、知恵は耳を傾ける。","ジミ・ヘンドリックス","米国のギタリスト / 1942～1970"]
[{"$f":"IFERROR(FIND(作業!$B$5,名言集!C371),IFERROR(FIND(作業!$B$5,名言集!D371),\"\"))","v":1},371,"あえて愚かなピエロのお面をつけるのさ。","フランク・シナトラ","米国のジャズ・ポピュラー歌手、俳優 / 1915～1998"]
[{"$f":"IFERROR(FIND(作業!$B$5,名言集!C372),IFERROR(FIND(作業!$B$5,名言集!D372),\"\"))","v":1},372,"どうせ何かを考えるなら、大きなことを考えるんだ。","ドナルド・トランプ","米国の第45代大統領、実業家 / 1946～"]
[{"$f":"IFERROR(FIND(作業!$B$5,名言集!C373),IFERROR(FIND(作業!$B$5,名言集!D373),\"\"))","v":1},373,"アイデアはあらゆることから生まれる。","アルフレッド・ヒッチコック","イギリスの映画監督 / 1899～1980"]
[{"$f":"IFERROR(FIND(作業!$B$5,名言集!C374),IFERROR(FIND(作業!$B$5,名言集!D374),\"\"))","v":1},374,"涙を流すことを恥と思う必要はまったくない。","チャールズ・ディケンズ","英国の小説家 / 1812～1870"]
[{"$f":"IFERROR(FIND(作業!$B$5,名言集!C375),IFERROR(FIND(作業!$B$5,名言集!D375),\"\"))","v":1},375,"幸せであれ。しかし決して満足するな。","ブルース・リー","香港の中国武術家、俳優、脚本家 / 1940～1973"]
[{"$f":"IFERROR(FIND(作業!$B$5,名言集!C376),IFERROR(FIND(作業!$B$5,名言集!D376),\"\"))","v":1},376,"お互いの愛を信じなさい。","ケイト・ショパン","米国の女性作家、小説家 / 1851～1904"]
[{"$f":"IFERROR(FIND(作業!$B$5,名言集!C377),IFERROR(FIND(作業!$B$5,名言集!D377),\"\"))","v":1},377,"ひと目惚れを信じることよ。","サラ・ベルナール","フランスの女優 / 1844～1923"]
[{"$f":"IFERROR(FIND(作業!$B$5,名言集!C378),IFERROR(FIND(作業!$B$5,名言集!D378),\"\"))","v":1},378,"もっとも永く続く愛は、報われぬ愛である。","サマセット・モーム","英国の劇作家、小説家 / 1874～1965"]
[{"$f":"IFERROR(FIND(作業!$B$5,名言集!C379),IFERROR(FIND(作業!$B$5,名言集!D379),\"\"))","v":1},379,"愛とは、決して後悔しないことだ。","エリック・シーガル","米国の作家、脚本家、教育者 / 1937～2010"]
[{"$f":"IFERROR(FIND(作業!$B$5,名言集!C380),IFERROR(FIND(作業!$B$5,名言集!D380),\"\"))","v":1},380,"ライバルに不安をいだいたら女は負けです。","デュ・バリー夫人","フランスのルイ15世の公妾 / 1743～1793"]
[{"$f":"IFERROR(FIND(作業!$B$5,名言集!C381),IFERROR(FIND(作業!$B$5,名言集!D381),\"\"))","v":1},381,"嫉妬は、傷つけられた恋人の地獄である。","ジョン・ミルトン","英国の詩人 / 1608～ 1674"]
[{"$f":"IFERROR(FIND(作業!$B$5,名言集!C382),IFERROR(FIND(作業!$B$5,名言集!D382),\"\"))","v":1},382,"愛に触れると誰でも詩人になる。","プラトン","古代ギリシアの哲学者 / 紀元前427～前347"]
[{"$f":"IFERROR(FIND(作業!$B$5,名言集!C383),IFERROR(FIND(作業!$B$5,名言集!D383),\"\"))","v":1},383,"大恋愛も、耐え忍ぶことが大切です。","ココ・シャネル","フランスのファッションデザイナー / 1883～1971"]
[{"$f":"IFERROR(FIND(作業!$B$5,名言集!C384),IFERROR(FIND(作業!$B$5,名言集!D384),\"\"))","v":1},384,"真の恋の道は、茨の道である。","シェイクスピア","英国の劇作家、詩人 / 1564～1616"]
[{"$f":"IFERROR(FIND(作業!$B$5,名言集!C385),IFERROR(FIND(作業!$B$5,名言集!D385),\"\"))","v":1},385,"愛されたいなら、愛し、愛らしくあれ。","ベンジャミン・フランクリン","米国の政治家、外交官、物理学者 / 1706～1790"]
[{"$f":"IFERROR(FIND(作業!$B$5,名言集!C386),IFERROR(FIND(作業!$B$5,名言集!D386),\"\"))","v":1},386,"人生で最もすばらしい癒し、それが愛なのだ。","パブロ・ピカソ","スペイン出身の画家、彫刻家 / 1881～1973"]
[{"$f":"IFERROR(FIND(作業!$B$5,名言集!C387),IFERROR(FIND(作業!$B$5,名言集!D387),\"\"))","v":1},{"$f":"IF(A387=\"\",B386,B386+1)","v":387},"恋。普通の娘を女神と間違うこと。","メンケン","米国のジャーナリスト、批評家 / 1880～1956"]
[{"$f":"IFERROR(FIND(作業!$B$5,名言集!C388),IFERROR(FIND(作業!$B$5,名言集!D388),\"\"))","v":1},388,"良し悪しの判断が増えるほど、愛することが減る。","バルザック","フランスの小説家 / 1799～1850"]
[{"$f":"IFERROR(FIND(作業!$B$5,名言集!C389),IFERROR(FIND(作業!$B$5,名言集!D389),\"\"))","v":1},389,"恋愛は、必ずどちらか一方がズルをするゲームだ。","バルザック","フランスの小説家 / 1799～1850"]
[{"$f":"IFERROR(FIND(作業!$B$5,名言集!C390),IFERROR(FIND(作業!$B$5,名言集!D390),\"\"))","v":1},390,"人生は愛という蜜をもつ花である。","ヴィクトル・ユーゴー","フランスのロマン主義の詩人、小説家 / 1802～1885"]
[{"$f":"IFERROR(FIND(作業!$B$5,名言集!C391),IFERROR(FIND(作業!$B$5,名言集!D391),\"\"))","v":1},391,"本物の愛の物語には、結末なんてない。","リチャード・バック","米国の作家『かもめのジョナサン』著者 / 1936～"]
[{"$f":"IFERROR(FIND(作業!$B$5,名言集!C392),IFERROR(FIND(作業!$B$5,名言集!D392),\"\"))","v":1},392,"愛こそ人生のいと卑しからぬ目的。","ジョン・ミルトン","英国の詩人 / 1608～ 1674"]
[{"$f":"IFERROR(FIND(作業!$B$5,名言集!C393),IFERROR(FIND(作業!$B$5,名言集!D393),\"\"))","v":1},393,"いつだって心は頭より先に物事をつかんでいる。","トーマス・カーライル","英国の思想家、歴史家 / 1795～1881"]
[{"$f":"IFERROR(FIND(作業!$B$5,名言集!C394),IFERROR(FIND(作業!$B$5,名言集!D394),\"\"))","v":1},394,"下手な言い訳は、黙っているより悪い。","トーマス・フラー","英国の聖職者、歴史家 / 1608～1661"]
[{"$f":"IFERROR(FIND(作業!$B$5,名言集!C395),IFERROR(FIND(作業!$B$5,名言集!D395),\"\"))","v":1},395,"愛について語ることは、愛することである。","バルザック","フランスの小説家 / 1799～1850"]
[{"$f":"IFERROR(FIND(作業!$B$5,名言集!C396),IFERROR(FIND(作業!$B$5,名言集!D396),\"\"))","v":1},396,"お腹がすいているときにキスがしたい女なんていないわ。","ドロシー・ディックス","米国のジャーナリスト / 1861～1951"]
[{"$f":"IFERROR(FIND(作業!$B$5,名言集!C397),IFERROR(FIND(作業!$B$5,名言集!D397),\"\"))","v":1},397,"愛することは、愛されること。","ジャン・コクトー","フランスの詩人、小説家、芸術家 / 1889～1963"]
[{"$f":"IFERROR(FIND(作業!$B$5,名言集!C398),IFERROR(FIND(作業!$B$5,名言集!D398),\"\"))","v":1},398,"愛さなければ、愛し方を学べない。","アイリス・マードック","アイルランドの女性作家、哲学者、詩人 / 1919～1999"]
[{"$f":"IFERROR(FIND(作業!$B$5,名言集!C399),IFERROR(FIND(作業!$B$5,名言集!D399),\"\"))","v":1},399,"君のいない天国よりも、君のいる地獄を選ぶ。","スタンダール","フランスの小説家『赤と黒』著者 / 1783～1842"]
[{"$f":"IFERROR(FIND(作業!$B$5,名言集!C400),IFERROR(FIND(作業!$B$5,名言集!D400),\"\"))","v":1},400,"恋は全て初恋です。相手が違うからです。","中谷彰宏","日本の作家、俳優 / 1959～"]
[{"$f":"IFERROR(FIND(作業!$B$5,名言集!C401),IFERROR(FIND(作業!$B$5,名言集!D401),\"\"))","v":1},401,"恋と咳は隠せない。","オヴィディウス","古代ローマの詩人 / 紀元前43～紀元17"]
[{"$f":"IFERROR(FIND(作業!$B$5,名言集!C402),IFERROR(FIND(作業!$B$5,名言集!D402),\"\"))","v":1},402,"恋人同士のけんかは、恋の更新である。","テレンティウス","ローマの喜劇作家 / 紀元前195頃～前159"]
[{"$f":"IFERROR(FIND(作業!$B$5,名言集!C403),IFERROR(FIND(作業!$B$5,名言集!D403),\"\"))","v":1},403,"恋愛に年齢はない。それはいつでも生まれる。","パスカル","フランスの哲学者、思想家、数学者 / 1623～1662"]
[{"$f":"IFERROR(FIND(作業!$B$5,名言集!C404),IFERROR(FIND(作業!$B$5,名言集!D404),\"\"))","v":1},404,"男は目で恋に落ち、女は耳で恋に落ちる。","ウッドロー・ワイヤット","英国の政治家、作家、ジャーナリスト / 1918～1997"]
[{"$f":"IFERROR(FIND(作業!$B$5,名言集!C405),IFERROR(FIND(作業!$B$5,名言集!D405),\"\"))","v":1},405,"安定は愛を殺し、不安は愛をかきたてる。","マルセル・プルースト","フランスの作家 / 1871～1922"]
[{"$f":"IFERROR(FIND(作業!$B$5,名言集!C406),IFERROR(FIND(作業!$B$5,名言集!D406),\"\"))","v":1},406,"人は女に生まれるのではない、女になるのだ。","ボーヴォワール","フランスの女性作家、哲学者 / 1908～1986"]
[{"$f":"IFERROR(FIND(作業!$B$5,名言集!C407),IFERROR(FIND(作業!$B$5,名言集!D407),\"\"))","v":1},407,"恋ほど素晴らしいものはないわ。","オプラ・ウィンフリー","米国の女性テレビ司会者、女優 / 1954～"]
[{"$f":"IFERROR(FIND(作業!$B$5,名言集!C408),IFERROR(FIND(作業!$B$5,名言集!D408),\"\"))","v":1},408,"愛とは、育てなくてはいけない花のようなもの。","ジョン・レノン","英国のミュージシャン、ビートルズのリーダー / 1940～1980"]
[{"$f":"IFERROR(FIND(作業!$B$5,名言集!C409),IFERROR(FIND(作業!$B$5,名言集!D409),\"\"))","v":1},409,"誠の恋をするものは、みな一目で恋をする。","シェイクスピア","英国の劇作家、詩人 / 1564～1616"]
[{"$f":"IFERROR(FIND(作業!$B$5,名言集!C410),IFERROR(FIND(作業!$B$5,名言集!D410),\"\"))","v":1},410,"下を向いていたら、虹を見つけることは出来ないよ。","チャップリン","英国の俳優、映画監督、コメディアン、脚本家 / 1889～1977"]
[{"$f":"IFERROR(FIND(作業!$B$5,名言集!C411),IFERROR(FIND(作業!$B$5,名言集!D411),\"\"))","v":1},411,"人は恋愛を語ることによって恋愛するようになる。","パスカル","フランスの哲学者、思想家、数学者 / 1623～1662"]
[{"$f":"IFERROR(FIND(作業!$B$5,名言集!C412),IFERROR(FIND(作業!$B$5,名言集!D412),\"\"))","v":1},412,"恋の喜びはいつも、不安の大きさに比例する。","スタンダール","フランスの小説家『赤と黒』著者 / 1783～1842"]
[{"$f":"IFERROR(FIND(作業!$B$5,名言集!C413),IFERROR(FIND(作業!$B$5,名言集!D413),\"\"))","v":1},413,"妻は目ではなく耳で選べ。","トーマス・フラー","英国の聖職者、歴史家 / 1608～1661"]
[{"$f":"IFERROR(FIND(作業!$B$5,名言集!C414),IFERROR(FIND(作業!$B$5,名言集!D414),\"\"))","v":1},414,"愛は人に奇妙なことをさせるもんだね…","チャールズ・M・シュルツ","米国の漫画家、スヌーピーの作者 / 1922～2000"]
[{"$f":"IFERROR(FIND(作業!$B$5,名言集!C415),IFERROR(FIND(作業!$B$5,名言集!D415),\"\"))","v":1},415,"長続きするたった一つの愛は片想い。","ウディ・アレン","米国の映画監督、俳優、脚本家 / 1935～"]
[{"$f":"IFERROR(FIND(作業!$B$5,名言集!C416),IFERROR(FIND(作業!$B$5,名言集!D416),\"\"))","v":1},416,"女とパリは留守にしてはだめだ。","ナポレオン・ボナパルト","フランスの皇帝、政治家、軍人 / 1769～1821"]
[{"$f":"IFERROR(FIND(作業!$B$5,名言集!C417),IFERROR(FIND(作業!$B$5,名言集!D417),\"\"))","v":1},417,"恋愛とは二人で愚かになることだ。","ポール・ヴァレリー","フランスの作家、詩人 / 1871～1945"]
[{"$f":"IFERROR(FIND(作業!$B$5,名言集!C418),IFERROR(FIND(作業!$B$5,名言集!D418),\"\"))","v":1},418,"少女の恋は詩なり。年増の恋は哲学なり。","長谷川如是閑","日本のジャーナリスト、評論家、作家 / 1875～1969"]
[{"$f":"IFERROR(FIND(作業!$B$5,名言集!C419),IFERROR(FIND(作業!$B$5,名言集!D419),\"\"))","v":1},419,"恋の悲劇は、無関心である。","サマセット・モーム","英国の劇作家、小説家 / 1874～1965"]
[{"$f":"IFERROR(FIND(作業!$B$5,名言集!C420),IFERROR(FIND(作業!$B$5,名言集!D420),\"\"))","v":1},420,"別れる時にはもう次の恋が始まっている。","アントニオ猪木","日本の元プロレスラー、政治家 / 1943～"]
[{"$f":"IFERROR(FIND(作業!$B$5,名言集!C421),IFERROR(FIND(作業!$B$5,名言集!D421),\"\"))","v":1},421,"愛せなければ通過せよ。","ニーチェ","ドイツの哲学者、古典文献学者 / 1844～1900"]
[{"$f":"IFERROR(FIND(作業!$B$5,名言集!C422),IFERROR(FIND(作業!$B$5,名言集!D422),\"\"))","v":1},422,"変わらないのは、ときめく気持ち。","シルヴィア・プラス","米国の女性詩人、作家 / 1932～1963"]
[{"$f":"IFERROR(FIND(作業!$B$5,名言集!C423),IFERROR(FIND(作業!$B$5,名言集!D423),\"\"))","v":1},423,"愛とは、心で測る時間と空間のことである。","マルセル・プルースト","フランスの作家 / 1871～1922"]
[{"$f":"IFERROR(FIND(作業!$B$5,名言集!C424),IFERROR(FIND(作業!$B$5,名言集!D424),\"\"))","v":1},424,"わたしは今、愛の何たるかを知る。","ウェルギリウス","古代ローマの詩人 / 紀元前70～前19"]
[{"$f":"IFERROR(FIND(作業!$B$5,名言集!C425),IFERROR(FIND(作業!$B$5,名言集!D425),\"\"))","v":1},425,"愛があなたの魂をその隠れ家から出してくれる。","ゾラ・ニール・ハーストン","米国の黒人女性作家 / 1891～1960"]
[{"$f":"IFERROR(FIND(作業!$B$5,名言集!C426),IFERROR(FIND(作業!$B$5,名言集!D426),\"\"))","v":1},426,"私は神の特別な光のなかで生き、そして愛す。","ミケランジェロ","イタリアのルネサンス期の芸術家 / 1475～1564"]
[{"$f":"IFERROR(FIND(作業!$B$5,名言集!C427),IFERROR(FIND(作業!$B$5,名言集!D427),\"\"))","v":1},427,"恋はうぬぼれと希望の闘争だ。","スタンダール","フランスの小説家『赤と黒』著者 / 1783～1842"]
[{"$f":"IFERROR(FIND(作業!$B$5,名言集!C428),IFERROR(FIND(作業!$B$5,名言集!D428),\"\"))","v":1},428,"人が通ったところに、道は出来る。","カフカ","現在のチェコ出身の小説家、「変身」の著者 / 1883～1924"]
[{"$f":"IFERROR(FIND(作業!$B$5,名言集!C429),IFERROR(FIND(作業!$B$5,名言集!D429),\"\"))","v":1},429,"このまま行けと、僕の中の僕が命じるんだ。","ゴッホ","オランダ出身のポスト印象派の画家 / 1853～1890"]
[{"$f":"IFERROR(FIND(作業!$B$5,名言集!C430),IFERROR(FIND(作業!$B$5,名言集!D430),\"\"))","v":1},430,"チャンスが二度も扉をたたくと思うな。","シャンフォール","フランスの劇作家、作家 / 1741～1794"]
[{"$f":"IFERROR(FIND(作業!$B$5,名言集!C431),IFERROR(FIND(作業!$B$5,名言集!D431),\"\"))","v":1},431,"キャリアではない。私の人生なんだ。","スティーブ・ジョブズ","米国の実業家、アップル創業者 / 1955～2011"]
[{"$f":"IFERROR(FIND(作業!$B$5,名言集!C432),IFERROR(FIND(作業!$B$5,名言集!D432),\"\"))","v":1},432,"人生は、人生を生きるものを愛す。","マヤ・アンジェロウ","米国の詩人、作家、公民権運動家 / 1928～2014"]
[{"$f":"IFERROR(FIND(作業!$B$5,名言集!C433),IFERROR(FIND(作業!$B$5,名言集!D433),\"\"))","v":1},433,"昨日を捨てよ。","ピーター・ドラッカー","オーストリア出身の経営学者 / 1909～2005"]
[{"$f":"IFERROR(FIND(作業!$B$5,名言集!C434),IFERROR(FIND(作業!$B$5,名言集!D434),\"\"))","v":1},434,"すべては練習のなかにある。","ペレ","ブラジルの元サッカー選手、サッカーの王様と称される / 1940～"]
[{"$f":"IFERROR(FIND(作業!$B$5,名言集!C435),IFERROR(FIND(作業!$B$5,名言集!D435),\"\"))","v":1},435,"夢を見るから、人生は輝く。","モーツァルト","オーストリアの作曲家、演奏家 / 1756～1791"]
[{"$f":"IFERROR(FIND(作業!$B$5,名言集!C436),IFERROR(FIND(作業!$B$5,名言集!D436),\"\"))","v":1},436,"敗北？私はその言葉の意味を存じ上げません。","マーガレット・サッチャー","英国初の女性首相 / 1925～2013"]
[{"$f":"IFERROR(FIND(作業!$B$5,名言集!C437),IFERROR(FIND(作業!$B$5,名言集!D437),\"\"))","v":1},437,"瞬間を生きる。いまだけなのよ。","岡本敏子","岡本太郎の養女、実質的な妻 / 1926～2005"]
[{"$f":"IFERROR(FIND(作業!$B$5,名言集!C438),IFERROR(FIND(作業!$B$5,名言集!D438),\"\"))","v":1},438,"空を道とし、道を空とみる。","宮本武蔵","江戸時代初期の剣術家、兵法家 / 1584～1645"]
[{"$f":"IFERROR(FIND(作業!$B$5,名言集!C439),IFERROR(FIND(作業!$B$5,名言集!D439),\"\"))","v":1},439,"僕の前に道はない　僕の後ろに道は出来る","高村光太郎","日本の詩人、彫刻家 / 1883～1956"]
[{"$f":"IFERROR(FIND(作業!$B$5,名言集!C440),IFERROR(FIND(作業!$B$5,名言集!D440),\"\"))","v":1},440,"汗で溺れた者はいない。","ルー・ホルツ","米国のカレッジフットボールコーチ / 1937～"]
[{"$f":"IFERROR(FIND(作業!$B$5,名言集!C441),IFERROR(FIND(作業!$B$5,名言集!D441),\"\"))","v":1},441,"成功の80%は、その場に現れること。","ウディ・アレン","米国の映画監督、俳優、脚本家 / 1935～"]
[{"$f":"IFERROR(FIND(作業!$B$5,名言集!C442),IFERROR(FIND(作業!$B$5,名言集!D442),\"\"))","v":1},442,"天空は動いても、次なる未来を教えはしない。","カフカ","現在のチェコ出身の小説家、「変身」の著者 / 1883～1924"]
[{"$f":"IFERROR(FIND(作業!$B$5,名言集!C443),IFERROR(FIND(作業!$B$5,名言集!D443),\"\"))","v":1},443,"音楽が僕の宗教だ。","ジミ・ヘンドリックス","米国のギタリスト / 1942～1970"]
[{"$f":"IFERROR(FIND(作業!$B$5,名言集!C444),IFERROR(FIND(作業!$B$5,名言集!D444),\"\"))","v":1},444,"考えるな、感じろ。","ブルース・リー","香港の中国武術家、俳優、脚本家 / 1940～1973"]
[{"$f":"IFERROR(FIND(作業!$B$5,名言集!C445),IFERROR(FIND(作業!$B$5,名言集!D445),\"\"))","v":1},445,"一日生きることは、一歩進むことでありたい。","湯川秀樹","日本の理論物理学者、ノーベル物理学賞受賞 / 1907～1981"]
[{"$f":"IFERROR(FIND(作業!$B$5,名言集!C446),IFERROR(FIND(作業!$B$5,名言集!D446),\"\"))","v":1},446,"僕らの人生は、僕らのアートなのさ。","ジョン・レノン","英国のミュージシャン、ビートルズのリーダー / 1940～1980"]
[{"$f":"IFERROR(FIND(作業!$B$5,名言集!C447),IFERROR(FIND(作業!$B$5,名言集!D447),\"\"))","v":1},447,"ハングリーであれ。愚か者であれ。","スティーブ・ジョブズ","米国の実業家、アップル創業者 / 1955～2011"]
[{"$f":"IFERROR(FIND(作業!$B$5,名言集!C448),IFERROR(FIND(作業!$B$5,名言集!D448),\"\"))","v":1},448,"人生とは今日一日のことである。","デール・カーネギー","米国の実業家、作家、セミナー講師 / 1888～1955"]
[{"$f":"IFERROR(FIND(作業!$B$5,名言集!C449),IFERROR(FIND(作業!$B$5,名言集!D449),\"\"))","v":1},449,"戦いに勝つのは、必ず勝とうと堅く決心した者だ。","トルストイ","ロシアの小説家、思想家 / 1828～1910"]
[{"$f":"IFERROR(FIND(作業!$B$5,名言集!C450),IFERROR(FIND(作業!$B$5,名言集!D450),\"\"))","v":1},450,"勇気は汝を正しい道に導く。","ベートーヴェン","ドイツの作曲家 / 1770～1827"]
[{"$f":"IFERROR(FIND(作業!$B$5,名言集!C451),IFERROR(FIND(作業!$B$5,名言集!D451),\"\"))","v":1},{"$f":"IF(A451=\"\",B450,B450+1)","v":451},"人生はキミ自身が決意し、貫くしかないんだよ。","岡本太郎","日本の芸術家 / 1911～1996"]
[{"$f":"IFERROR(FIND(作業!$B$5,名言集!C452),IFERROR(FIND(作業!$B$5,名言集!D452),\"\"))","v":1},452,"志定まれば、気盛んなり。","吉田松陰","幕末の長州藩士、明治維新の精神的指導者 / 1830～1859"]
[{"$f":"IFERROR(FIND(作業!$B$5,名言集!C453),IFERROR(FIND(作業!$B$5,名言集!D453),\"\"))","v":1},453,"好奇心はいつだって、新しい道を教えてくれる。","ウォルト・ディズニー","米国のエンターテイナー、実業家 / 1901～1966"]
[{"$f":"IFERROR(FIND(作業!$B$5,名言集!C454),IFERROR(FIND(作業!$B$5,名言集!D454),\"\"))","v":1},454,"未来は美しい夢を信じる人のためにあります。","エレノア・ルーズベルト","米国のファーストレディ、人権活動家 / 1884～1962"]
[{"$f":"IFERROR(FIND(作業!$B$5,名言集!C455),IFERROR(FIND(作業!$B$5,名言集!D455),\"\"))","v":1},455,"僕は三十歳、まだまだ成し遂げたいことがある。","スティーブ・ジョブズ","米国の実業家、アップル創業者 / 1955～2011"]
[{"$f":"IFERROR(FIND(作業!$B$5,名言集!C456),IFERROR(FIND(作業!$B$5,名言集!D456),\"\"))","v":1},456,"天才とは、1％のひらめきと99％の努力である。","トーマス・エジソン","米国の発明家、起業家 / 1847～1931"]
[{"$f":"IFERROR(FIND(作業!$B$5,名言集!C457),IFERROR(FIND(作業!$B$5,名言集!D457),\"\"))","v":1},457,"状況？何が状況だ。俺が状況を作るのだ。","ナポレオン・ボナパルト","フランスの皇帝、政治家、軍人 / 1769～1821"]
[{"$f":"IFERROR(FIND(作業!$B$5,名言集!C458),IFERROR(FIND(作業!$B$5,名言集!D458),\"\"))","v":1},458,"最も重要なことから始めよ。","ピーター・ドラッカー","オーストリア出身の経営学者 / 1909～2005"]
[{"$f":"IFERROR(FIND(作業!$B$5,名言集!C459),IFERROR(FIND(作業!$B$5,名言集!D459),\"\"))","v":1},459,"真面目とはね、君、真剣勝負の意味だよ。","夏目漱石","日本の小説家、評論家、英文学者 / 1867～1916"]
[{"$f":"IFERROR(FIND(作業!$B$5,名言集!C460),IFERROR(FIND(作業!$B$5,名言集!D460),\"\"))","v":1},460,"失敗を恐れるな。失敗なんてないんだ。","マイルス・デイヴィス","米国のジャズトランペット奏者 / 1926～1991"]
[{"$f":"IFERROR(FIND(作業!$B$5,名言集!C461),IFERROR(FIND(作業!$B$5,名言集!D461),\"\"))","v":1},461,"涙が出そうになるくらいに、生きろ。","アルベール・カミュ","フランスの小説家、ノーベル文学賞受賞 / 1913～1960"]
[{"$f":"IFERROR(FIND(作業!$B$5,名言集!C462),IFERROR(FIND(作業!$B$5,名言集!D462),\"\"))","v":1},462,"今日も、生涯の一日なり。","福沢諭吉","幕末から明治初期の中津藩士、啓蒙思想家、教育者 / 1835～1901"]
[{"$f":"IFERROR(FIND(作業!$B$5,名言集!C463),IFERROR(FIND(作業!$B$5,名言集!D463),\"\"))","v":1},463,"生きている者とは、闘っている者だ。","ヴィクトル・ユーゴー","フランスのロマン主義の詩人、小説家 / 1802～1885"]
[{"$f":"IFERROR(FIND(作業!$B$5,名言集!C464),IFERROR(FIND(作業!$B$5,名言集!D464),\"\"))","v":1},464,"運命がカードを混ぜ、われわれが勝負する。","ショーペンハウアー","ドイツの哲学者 / 1788～1860"]
[{"$f":"IFERROR(FIND(作業!$B$5,名言集!C465),IFERROR(FIND(作業!$B$5,名言集!D465),\"\"))","v":1},465,"よく準備してから戦いに臨めば、半ば勝ったも同然だ。","セルバンテス","スペインの小説家『ドン・キホーテ』著者 / 1547～1616"]
[{"$f":"IFERROR(FIND(作業!$B$5,名言集!C466),IFERROR(FIND(作業!$B$5,名言集!D466),\"\"))","v":1},466,"もっとも高く飛ぶカモメはもっとも遠くを見通す。","リチャード・バック","米国の作家『かもめのジョナサン』著者 / 1936～"]
[{"$f":"IFERROR(FIND(作業!$B$5,名言集!C467),IFERROR(FIND(作業!$B$5,名言集!D467),\"\"))","v":1},467,"この世を動かしているものは愛である！","ルイス・キャロル","英国の作家『不思議の国のアリス』著者 / 1832～1898"]
[{"$f":"IFERROR(FIND(作業!$B$5,名言集!C468),IFERROR(FIND(作業!$B$5,名言集!D468),\"\"))","v":1},468,"心の純粋さとは、ひとつのものを望むことである。","キルケゴール","デンマークの哲学者、実存主義の創始者 / 1813～1855"]
[{"$f":"IFERROR(FIND(作業!$B$5,名言集!C469),IFERROR(FIND(作業!$B$5,名言集!D469),\"\"))","v":1},469,"真実を愛せ。ただし過ちは許せ。","ヴォルテール","フランスの哲学者、作家、文学者、歴史家 / 1694～1778"]
[{"$f":"IFERROR(FIND(作業!$B$5,名言集!C470),IFERROR(FIND(作業!$B$5,名言集!D470),\"\"))","v":1},470,"知るは見るなり。","ジョン・ロック","英国の哲学者 / 1632～1704"]
[{"$f":"IFERROR(FIND(作業!$B$5,名言集!C471),IFERROR(FIND(作業!$B$5,名言集!D471),\"\"))","v":1},471,"千の歓びも一つの苦しみに値しない。","ミケランジェロ","イタリアのルネサンス期の芸術家 / 1475～1564"]
[{"$f":"IFERROR(FIND(作業!$B$5,名言集!C472),IFERROR(FIND(作業!$B$5,名言集!D472),\"\"))","v":1},472,"青年は決して安全な株を買ってはならない。","ジャン・コクトー","フランスの詩人、小説家、芸術家 / 1889～1963"]
[{"$f":"IFERROR(FIND(作業!$B$5,名言集!C473),IFERROR(FIND(作業!$B$5,名言集!D473),\"\"))","v":1},473,"つまらない生き方をするには、人生は短すぎる。","ベンジャミン・ディズレーリ","英国の政治家、小説家 / 1804～1881"]
[{"$f":"IFERROR(FIND(作業!$B$5,名言集!C474),IFERROR(FIND(作業!$B$5,名言集!D474),\"\"))","v":1},474,"すべての世代が新たな革命を必要としている。","トーマス・ジェファーソン","米国の第3代大統領、アメリカ独立宣言の主要な作者 / 1743～1826"]
[{"$f":"IFERROR(FIND(作業!$B$5,名言集!C475),IFERROR(FIND(作業!$B$5,名言集!D475),\"\"))","v":1},475,"我慢は力よりも気高く、忍耐は美しさに勝る。","ジョン・ラスキン","英国の美術評論家、社会思想家 / 1819～1900"]
[{"$f":"IFERROR(FIND(作業!$B$5,名言集!C476),IFERROR(FIND(作業!$B$5,名言集!D476),\"\"))","v":1},476,"すべて学び、そして忘れろ。","マイルス・デイヴィス","米国のジャズトランペット奏者 / 1926～1991"]
[{"$f":"IFERROR(FIND(作業!$B$5,名言集!C477),IFERROR(FIND(作業!$B$5,名言集!D477),\"\"))","v":1},477,"圧力がなければ、ダイヤモンドは生まれない。","トーマス・カーライル","英国の思想家、歴史家 / 1795～1881"]
[{"$f":"IFERROR(FIND(作業!$B$5,名言集!C478),IFERROR(FIND(作業!$B$5,名言集!D478),\"\"))","v":1},478,"君、わたしの知ったことではないよ。","マーガレット・ミッチェル","米国の小説家『風と共に去りぬ』著者 / 1900～1949"]
[{"$f":"IFERROR(FIND(作業!$B$5,名言集!C479),IFERROR(FIND(作業!$B$5,名言集!D479),\"\"))","v":1},479,"何かを得るには、心の中でそれを思うことから始まる。","ブルース・リー","香港の中国武術家、俳優、脚本家 / 1940～1973"]
[{"$f":"IFERROR(FIND(作業!$B$5,名言集!C480),IFERROR(FIND(作業!$B$5,名言集!D480),\"\"))","v":1},480,"長所は必ず、短所を伴う。","マキャヴェッリ","イタリアの政治思想家、外交官 / 1469～1527"]
[{"$f":"IFERROR(FIND(作業!$B$5,名言集!C481),IFERROR(FIND(作業!$B$5,名言集!D481),\"\"))","v":1},481,"満足感は結果にではなく、過程にこそある。","ジェームズ・ディーン","米国の俳優 / 1931～1955"]
[{"$f":"IFERROR(FIND(作業!$B$5,名言集!C482),IFERROR(FIND(作業!$B$5,名言集!D482),\"\"))","v":1},482,"最良なる未来の予言者は、過去なり。","バイロン","英国の詩人 / 1788～1824"]
[{"$f":"IFERROR(FIND(作業!$B$5,名言集!C483),IFERROR(FIND(作業!$B$5,名言集!D483),\"\"))","v":1},483,"ギムレットには早すぎる。","レイモンド・チャンドラー","米国のハードボイルド作家 / 1888～1959"]
[{"$f":"IFERROR(FIND(作業!$B$5,名言集!C484),IFERROR(FIND(作業!$B$5,名言集!D484),\"\"))","v":1},484,"忘れられることは、許されること。","スコット・フィッツジェラルド","米国の小説家 / 1896～1940"]
[{"$f":"IFERROR(FIND(作業!$B$5,名言集!C485),IFERROR(FIND(作業!$B$5,名言集!D485),\"\"))","v":1},485,"汝の心に教えよ、心に学ぶな。","トルストイ","ロシアの小説家、思想家 / 1828～1910"]
[{"$f":"IFERROR(FIND(作業!$B$5,名言集!C486),IFERROR(FIND(作業!$B$5,名言集!D486),\"\"))","v":1},486,"希望をもって忙しく。","ルイーザ・メイ・オルコット","米国の女性小説家 / 1832～1888"]
[{"$f":"IFERROR(FIND(作業!$B$5,名言集!C487),IFERROR(FIND(作業!$B$5,名言集!D487),\"\"))","v":1},487,"この門をくぐる者は、一切の希望を捨てよ。","ダンテ","イタリアの詩人、哲学者、政治家 / 1265～1321"]
[{"$f":"IFERROR(FIND(作業!$B$5,名言集!C488),IFERROR(FIND(作業!$B$5,名言集!D488),\"\"))","v":1},488,"大望は、偉大な人物を育てる。","トーマス・フラー","英国の聖職者、歴史家 / 1608～1661"]
[{"$f":"IFERROR(FIND(作業!$B$5,名言集!C489),IFERROR(FIND(作業!$B$5,名言集!D489),\"\"))","v":1},489,"ペナルティーキックを得ようとするのは、点を取るためのひきょうな方法だ。","ペレ","ブラジルの元サッカー選手、サッカーの王様と称される / 1940～"]
[{"$f":"IFERROR(FIND(作業!$B$5,名言集!C490),IFERROR(FIND(作業!$B$5,名言集!D490),\"\"))","v":1},490,"勇気を持った一人の人間は、多数派である。","トーマス・ジェファーソン","米国の第3代大統領、アメリカ独立宣言の主要な作者 / 1743～1826"]
[{"$f":"IFERROR(FIND(作業!$B$5,名言集!C491),IFERROR(FIND(作業!$B$5,名言集!D491),\"\"))","v":1},491,"我できる、ゆえに我あり","シモーヌ・ヴェイユ","フランスの女性哲学者 / 1909～1943"]
[{"$f":"IFERROR(FIND(作業!$B$5,名言集!C492),IFERROR(FIND(作業!$B$5,名言集!D492),\"\"))","v":1},492,"いつかできることはすべて、今日でもできる。","モンテーニュ","フランスの哲学者、モラリスト / 1533～1592"]
[{"$f":"IFERROR(FIND(作業!$B$5,名言集!C493),IFERROR(FIND(作業!$B$5,名言集!D493),\"\"))","v":1},493,"傷あとを隠しちゃいけない。その傷が君を君らしくしているんだ。","フランク・シナトラ","米国のジャズ・ポピュラー歌手、俳優 / 1915～1998"]
[{"$f":"IFERROR(FIND(作業!$B$5,名言集!C494),IFERROR(FIND(作業!$B$5,名言集!D494),\"\"))","v":1},494,"運命の女神は勇者に味方する。","ウェルギリウス","古代ローマの詩人 / 紀元前70～前19"]
[{"$f":"IFERROR(FIND(作業!$B$5,名言集!C495),IFERROR(FIND(作業!$B$5,名言集!D495),\"\"))","v":1},495,"空が曇っているときは、雲が横切っているだけなんだよ。","デューク・エリントン","米国のジャズオーケストラリーダー / 1899～1974"]
[{"$f":"IFERROR(FIND(作業!$B$5,名言集!C496),IFERROR(FIND(作業!$B$5,名言集!D496),\"\"))","v":1},496,"偉大さとは、未知の世界へとつながる道だ。","シャルル・ド・ゴール","フランスの軍人、政治家 / 1890～1970"]
[{"$f":"IFERROR(FIND(作業!$B$5,名言集!C497),IFERROR(FIND(作業!$B$5,名言集!D497),\"\"))","v":1},497,"あなたの心が語りかけることだけをしなさい。","ダイアナ妃","英国チャールズ皇太子の元妃 / 1961～1997"]
[{"$f":"IFERROR(FIND(作業!$B$5,名言集!C498),IFERROR(FIND(作業!$B$5,名言集!D498),\"\"))","v":1},498,"聖人になるために、天使になる必要はない。","アルベルト・シュバイツァー","ドイツ出身の哲学者、医者、ノーベル平和賞受賞 / 1875～1965"]
[{"$f":"IFERROR(FIND(作業!$B$5,名言集!C499),IFERROR(FIND(作業!$B$5,名言集!D499),\"\"))","v":1},499,"ファッションは色あせるけど、スタイルは永遠さ。","イヴ・サン＝ローラン","フランスのファッションデザイナー / 1936～2008"]
[{"$f":"IFERROR(FIND(作業!$B$5,名言集!C500),IFERROR(FIND(作業!$B$5,名言集!D500),\"\"))","v":1},500,"自分の星に従え！","ダンテ","イタリアの詩人、哲学者、政治家 / 1265～1321"]
[{"$f":"IFERROR(FIND(作業!$B$5,名言集!C501),IFERROR(FIND(作業!$B$5,名言集!D501),\"\"))","v":1},501,"私は何も発明しない。再発見するだけだ。","ロダン","フランスの彫刻家『考える人』の作者 / 1840～1917"]
[{"$f":"IFERROR(FIND(作業!$B$5,名言集!C502),IFERROR(FIND(作業!$B$5,名言集!D502),\"\"))","v":1},502,"頂上を目指す途中で、自分を見失ってはいけない。","ジャック・ウェルチ","米国の経営者 / 1935～"]
[{"$f":"IFERROR(FIND(作業!$B$5,名言集!C503),IFERROR(FIND(作業!$B$5,名言集!D503),\"\"))","v":1},503,"嵐は木々をより深く根づかせる。","ドリー・パートン","米国のシンガーソングライター、女優 / 1946～"]
[{"$f":"IFERROR(FIND(作業!$B$5,名言集!C504),IFERROR(FIND(作業!$B$5,名言集!D504),\"\"))","v":1},504,"最良の仕返しとは、大きな成功を収めることさ。","フランク・シナトラ","米国のジャズ・ポピュラー歌手、俳優 / 1915～1998"]
[{"$f":"IFERROR(FIND(作業!$B$5,名言集!C505),IFERROR(FIND(作業!$B$5,名言集!D505),\"\"))","v":1},505,"もしわたしが自分らしくならなければ、いったい誰が？","アルフレッド・ヒッチコック","イギリスの映画監督 / 1899～1980"]
[{"$f":"IFERROR(FIND(作業!$B$5,名言集!C506),IFERROR(FIND(作業!$B$5,名言集!D506),\"\"))","v":1},506,"逆境は真実ヘの第一歩。","バイロン","英国の詩人 / 1788～1824"]
[{"$f":"IFERROR(FIND(作業!$B$5,名言集!C507),IFERROR(FIND(作業!$B$5,名言集!D507),\"\"))","v":1},507,"いつか空の飛び方を知りたいと思っている者は、まず立ちあがり、歩き、走り、登り、踊ることを学ばなければならない。その過程を飛ばして、飛ぶことはできないのだ。","ニーチェ","ドイツの哲学者、古典文献学者 / 1844～1900"]
[{"$f":"IFERROR(FIND(作業!$B$5,名言集!C508),IFERROR(FIND(作業!$B$5,名言集!D508),\"\"))","v":1},508,"点が将来結びつくと信じなくてはいけない。信じるものを持たなければいけないのだ。","スティーブ・ジョブズ","米国の実業家、アップル創業者 / 1955～2011"]
[{"$f":"IFERROR(FIND(作業!$B$5,名言集!C509),IFERROR(FIND(作業!$B$5,名言集!D509),\"\"))","v":1},509,"1年目には種をまき、2年目には水をやり、3年目には花を咲かせましょう。","野村克也","日本の元プロ野球選手、監督、野球評論家 / 1935～"]
[{"$f":"IFERROR(FIND(作業!$B$5,名言集!C510),IFERROR(FIND(作業!$B$5,名言集!D510),\"\"))","v":1},510,"あなた方は進歩し続けない限りは退歩していることになるのです。目的を高く掲げなさい。","ナイチンゲール","英国の看護師、社会起業家、看護教育学者 / 1820～1910"]
[{"$f":"IFERROR(FIND(作業!$B$5,名言集!C511),IFERROR(FIND(作業!$B$5,名言集!D511),\"\"))","v":1},511,"僕は運命を信じないのです。ただ実力を磨くことだけを信用しているのですよ。","武者小路実篤","日本の小説家、詩人、劇作家、画家 / 1885～1976"]
[{"$f":"IFERROR(FIND(作業!$B$5,名言集!C512),IFERROR(FIND(作業!$B$5,名言集!D512),\"\"))","v":1},512,"準備しておこう。チャンスはいつか訪れるものだ。","エイブラハム・リンカーン","米国の第16代大統領 / 1809～1865"]
[{"$f":"IFERROR(FIND(作業!$B$5,名言集!C513),IFERROR(FIND(作業!$B$5,名言集!D513),\"\"))","v":1},513,"過去が現在に影響を与えるように、未来も現在に影響を与える。","ニーチェ","ドイツの哲学者、古典文献学者 / 1844～1900"]
[{"$f":"IFERROR(FIND(作業!$B$5,名言集!C514),IFERROR(FIND(作業!$B$5,名言集!D514),\"\"))","v":1},514,"やったことは、例え失敗しても、20年後には、笑い話にできる。しかし、やらなかったことは、20年後には、後悔するだけだ。","マーク・トウェイン","米国の作家、小説家 / 1835～1910"]
[{"$f":"IFERROR(FIND(作業!$B$5,名言集!C515),IFERROR(FIND(作業!$B$5,名言集!D515),\"\"))","v":1},{"$f":"IF(A515=\"\",B514,B514+1)","v":515},"自分自身を裏切らない努力の姿勢が未来の結果として現れてくる。","羽生善治","日本の将棋棋士、十九世名人 / 1970～"]
[{"$f":"IFERROR(FIND(作業!$B$5,名言集!C516),IFERROR(FIND(作業!$B$5,名言集!D516),\"\"))","v":1},516,"自分のためにやるからこそ、それがチームのためになるんであって、「チームのために」なんて言うやつは言い訳するからね。オレは監督としても、自分のためにやってる人が結果的にチームのためになると思う。自分のためにやる人がね、一番、自分に厳しいですよ。","王貞治","日本の元プロ野球選手、監督 / 1940～"]
[{"$f":"IFERROR(FIND(作業!$B$5,名言集!C517),IFERROR(FIND(作業!$B$5,名言集!D517),\"\"))","v":1},517,"24時間、自分のやりたいことだけやって何が悪い。それをやりつくしても、時間は全然足りないのに。","山本恭子","日本の女性画家 / 1953～"]
[{"$f":"IFERROR(FIND(作業!$B$5,名言集!C518),IFERROR(FIND(作業!$B$5,名言集!D518),\"\"))","v":1},518,"石の上にも三年という。しかし、三年を一年で習得する努力を怠ってはならない。","松下幸之助","日本の実業家、発明家、パナソニック創業者 / 1894～1989"]
[{"$f":"IFERROR(FIND(作業!$B$5,名言集!C519),IFERROR(FIND(作業!$B$5,名言集!D519),\"\"))","v":1},519,"成功するには、成功するまで決して諦めないことだ。","アンドリュー・カーネギー","米国の実業家、鉄鋼王 / 1835～1919"]
[{"$f":"IFERROR(FIND(作業!$B$5,名言集!C520),IFERROR(FIND(作業!$B$5,名言集!D520),\"\"))","v":1},520,"この瞬間、瞬間に、若さとか、年よりとか、力があるないとか、才能とか、金とか、あらゆる条件を超えて、その持てるぎりぎりいっぱいの容量で挑み、生きるということだ。","岡本太郎","日本の芸術家 / 1911～1996"]
[{"$f":"IFERROR(FIND(作業!$B$5,名言集!C521),IFERROR(FIND(作業!$B$5,名言集!D521),\"\"))","v":1},521,"生まれながらに才能のある者は、それを頼んで鍛錬を怠る、自惚れる。しかし、生まれつきの才能がない者は、何とか技術を身につけようと日々努力する。心構えがまるで違う。これが大事だ。","織田信長","戦国時代の武将、戦国大名 / 1534～1582"]
[{"$f":"IFERROR(FIND(作業!$B$5,名言集!C522),IFERROR(FIND(作業!$B$5,名言集!D522),\"\"))","v":1},522,"成功するために大切なのは、どこから始めるのかではなく、どれだけ高く目標を定めるかである。","ネルソン・マンデラ","南アフリカの政治家、ノーベル平和賞受賞 / 1918～2013"]
[{"$f":"IFERROR(FIND(作業!$B$5,名言集!C523),IFERROR(FIND(作業!$B$5,名言集!D523),\"\"))","v":1},523,"我々は、最初から苦しむ方向をとったから、あとは楽になった。真似をして楽をしたものは、その後に苦しむことになる。","本田宗一郎","日本の実業家、技術者、ホンダの創業者 / 1906～1991"]
[{"$f":"IFERROR(FIND(作業!$B$5,名言集!C524),IFERROR(FIND(作業!$B$5,名言集!D524),\"\"))","v":1},524,"立派にやり遂げたことに対する最大の報酬は、それをやり遂げたことそのものにある。","ヴォルテール","フランスの哲学者、作家、文学者、歴史家 / 1694～1778"]
[{"$f":"IFERROR(FIND(作業!$B$5,名言集!C525),IFERROR(FIND(作業!$B$5,名言集!D525),\"\"))","v":1},525,"できると思えばできる、できないと思えばできない。これは、ゆるぎない絶対的な法則である。","パブロ・ピカソ","スペイン出身の画家、彫刻家 / 1881～1973"]
[{"$f":"IFERROR(FIND(作業!$B$5,名言集!C526),IFERROR(FIND(作業!$B$5,名言集!D526),\"\"))","v":1},526,"目標を達成するには、全力で取り組む以外に方法はない。そこに近道はない。","マイケル・ジョーダン","米国のバスケットボール選手 / 1963～"]
[{"$f":"IFERROR(FIND(作業!$B$5,名言集!C527),IFERROR(FIND(作業!$B$5,名言集!D527),\"\"))","v":1},527,"恐るべき競争相手とは、あなたのことをまったく気になどかけず、自分の仕事を常に向上させ続けるような人間のことだ。","ヘンリー・フォード","米国のフォード・モーター創業者 / 1863～1947"]
[{"$f":"IFERROR(FIND(作業!$B$5,名言集!C528),IFERROR(FIND(作業!$B$5,名言集!D528),\"\"))","v":1},528,"夢中になるだけではチャンスはつかめません。自分の能力以上のことに賭けなければ。","ドロシア・ラング","米国の女性写真家、報道写真家 / 1895～1965"]
[{"$f":"IFERROR(FIND(作業!$B$5,名言集!C529),IFERROR(FIND(作業!$B$5,名言集!D529),\"\"))","v":1},529,"何かに挑戦したら確実に報われるのであれば、誰でも必ず挑戦するだろう。報われないかもしれないところで、同じ情熱、気力、モチベーションをもって継続しているのは非常に大変なことであり、私は、それこそが才能だと思っている。","羽生善治","日本の将棋棋士、十九世名人 / 1970～"]
[{"$f":"IFERROR(FIND(作業!$B$5,名言集!C530),IFERROR(FIND(作業!$B$5,名言集!D530),\"\"))","v":1},530,"生きるということは、死ぬ日まで自分の可能性をあきらめず、与えられた才能や日々の仕事に努力しつづけることです。","瀬戸内寂聴","日本の女性小説家、天台宗の尼僧 / 1922～"]
[{"$f":"IFERROR(FIND(作業!$B$5,名言集!C531),IFERROR(FIND(作業!$B$5,名言集!D531),\"\"))","v":1},531,"未来はすでに始まっている。","ロベルト・ユンク","オーストリアの作家 / 1913～1994"]
[{"$f":"IFERROR(FIND(作業!$B$5,名言集!C532),IFERROR(FIND(作業!$B$5,名言集!D532),\"\"))","v":1},532,"人生に何かをもたらすためには、それがすでにあると想像すること。","リチャード・バック","米国の作家『かもめのジョナサン』著者 / 1936～"]
[{"$f":"IFERROR(FIND(作業!$B$5,名言集!C533),IFERROR(FIND(作業!$B$5,名言集!D533),\"\"))","v":1},533,"苦しい仕事に対する最高の報酬は、それによって得られるものではなく、その過程でつくられる我々自身の姿だ。","ジョン・ラスキン","英国の美術評論家、社会思想家 / 1819～1900"]
[{"$f":"IFERROR(FIND(作業!$B$5,名言集!C534),IFERROR(FIND(作業!$B$5,名言集!D534),\"\"))","v":1},534,"自分自身の何かを創造している時は、限界なんてない。","マイルス・デイヴィス","米国のジャズトランペット奏者 / 1926～1991"]
[{"$f":"IFERROR(FIND(作業!$B$5,名言集!C535),IFERROR(FIND(作業!$B$5,名言集!D535),\"\"))","v":1},535,"苦しいから逃げるのではない。逃げるから苦しくなるのだ。","ウィリアム・ジェームズ","米国の哲学者、心理学者 / 1842～1910"]
[{"$f":"IFERROR(FIND(作業!$B$5,名言集!C536),IFERROR(FIND(作業!$B$5,名言集!D536),\"\"))","v":1},536,"逆境とは、天が自分の宝石を磨くときに使うダイヤの粉塵のことだ。","トーマス・カーライル","英国の思想家、歴史家 / 1795～1881"]
[{"$f":"IFERROR(FIND(作業!$B$5,名言集!C537),IFERROR(FIND(作業!$B$5,名言集!D537),\"\"))","v":1},537,"不安もプレッシャーもありますが、それをはねのけられるのは、納得できる練習しかないんです。","谷亮子","日本の元女子柔道家、政治家 / 1975～"]
[{"$f":"IFERROR(FIND(作業!$B$5,名言集!C538),IFERROR(FIND(作業!$B$5,名言集!D538),\"\"))","v":1},538,"他人と比較して、他人が自分より優れていたとしても、それは恥ではない。しかし、去年の自分より今年の自分が優れていないのは立派な恥だ。","ジョン・ラボック","英国の銀行家、政治家、生物学者 / 1834～1913"]
[{"$f":"IFERROR(FIND(作業!$B$5,名言集!C539),IFERROR(FIND(作業!$B$5,名言集!D539),\"\"))","v":1},539,"世界一になるには世界一の努力が必要だ。","本田圭佑","日本のプロサッカー選手 / 1986～"]
[{"$f":"IFERROR(FIND(作業!$B$5,名言集!C540),IFERROR(FIND(作業!$B$5,名言集!D540),\"\"))","v":1},540,"成功への道が完結することはありえない。成功とは、到達すべき目的地ではなく、前進し続けるプロセスなのだ。","アンソニー・ロビンズ","米国の自己啓発書作家、講演家 / 1960～"]
[{"$f":"IFERROR(FIND(作業!$B$5,名言集!C541),IFERROR(FIND(作業!$B$5,名言集!D541),\"\"))","v":1},541,"人生に成功する秘訣は、自分が好む仕事をすることではなく、自分のやっている仕事を好きになることである。","ゲーテ","ドイツの詩人、小説家、劇作家 / 1749～1832"]
[{"$f":"IFERROR(FIND(作業!$B$5,名言集!C542),IFERROR(FIND(作業!$B$5,名言集!D542),\"\"))","v":1},542,"人から批判されることを恐れてはならない。それは成長の肥やしとなる。","トーマス・エジソン","米国の発明家、起業家 / 1847～1931"]
[{"$f":"IFERROR(FIND(作業!$B$5,名言集!C543),IFERROR(FIND(作業!$B$5,名言集!D543),\"\"))","v":1},543,"道に迷ったら、心の中でささやく声に耳を傾けて。あとは突き進むだけよ。","ゾラ・ニール・ハーストン","米国の黒人女性作家 / 1891～1960"]
[{"$f":"IFERROR(FIND(作業!$B$5,名言集!C544),IFERROR(FIND(作業!$B$5,名言集!D544),\"\"))","v":1},544,"どこに行っても逃げて歩いていたなら、自信は失われるばかりです。","エレノア・ルーズベルト","米国のファーストレディ、人権活動家 / 1884～1962"]
[{"$f":"IFERROR(FIND(作業!$B$5,名言集!C545),IFERROR(FIND(作業!$B$5,名言集!D545),\"\"))","v":1},545,"危険を冒して前へ進もうとしない人、未知の世界を旅しようとしない人には、人生は、ごくわずかな景色しか見せてくれないんだよ。","シドニー・ポワチエ","米国の映画俳優、監督、黒人俳優の先駆者 / 1927～"]
[{"$f":"IFERROR(FIND(作業!$B$5,名言集!C546),IFERROR(FIND(作業!$B$5,名言集!D546),\"\"))","v":1},546,"止まりさえしなければ、どんなにゆっくりでも進めばよい。","孔子","中国の思想家、儒家の始祖 / 紀元前551～前479"]
[{"$f":"IFERROR(FIND(作業!$B$5,名言集!C547),IFERROR(FIND(作業!$B$5,名言集!D547),\"\"))","v":1},547,"睡眠は三日間で三時間。こんなつらい仕事を四十年続けるなんて、馬鹿じゃないとできないですよ。","手塚治虫","日本の漫画家、アニメーター、医学博士 / 1928～1989"]
[{"$f":"IFERROR(FIND(作業!$B$5,名言集!C548),IFERROR(FIND(作業!$B$5,名言集!D548),\"\"))","v":1},548,"あなたができると思えばできる。できないと思えばできない。どちらにしてもあなたが思ったことは正しい。","ヘンリー・フォード","米国のフォード・モーター創業者 / 1863～1947"]
[{"$f":"IFERROR(FIND(作業!$B$5,名言集!C549),IFERROR(FIND(作業!$B$5,名言集!D549),\"\"))","v":1},549,"焦らない。でも、あきらめない。","斎藤茂太","日本の精神科医、随筆家 / 1916～2006"]
[{"$f":"IFERROR(FIND(作業!$B$5,名言集!C550),IFERROR(FIND(作業!$B$5,名言集!D550),\"\"))","v":1},550,"自分がどんなに努力しても、すぐに結果が出るとは限らない。結果にこだわりすぎると安全な道を選び、進歩は止まってしまう。","藤沢秀行","日本の囲碁棋士 / 1925～2009"]
[{"$f":"IFERROR(FIND(作業!$B$5,名言集!C551),IFERROR(FIND(作業!$B$5,名言集!D551),\"\"))","v":1},551,"人間にとって最高の幸福は、一年の終わりにおける自己を、その一年の始めにおける自己よりも、遥かに良くなったと感ずることである。","トルストイ","ロシアの小説家、思想家 / 1828～1910"]
[{"$f":"IFERROR(FIND(作業!$B$5,名言集!C552),IFERROR(FIND(作業!$B$5,名言集!D552),\"\"))","v":1},552,"バレリーナの基本ルール　-　不平を漏らさない、疲れを顔に出さない、舞台の前夜は遊びに出かけない。ソ二アは、本気で努力すればかならず成功することを教えてくれたわ。それに、すべては内面から湧き出なくてはならないということもね。","オードリー・ヘップバーン","英国の女優 / 1929～1993"]
[{"$f":"IFERROR(FIND(作業!$B$5,名言集!C553),IFERROR(FIND(作業!$B$5,名言集!D553),\"\"))","v":1},553,"つねによい目的を見失わずに努力を続ける限り、最後には必ず救われる。","ゲーテ","ドイツの詩人、小説家、劇作家 / 1749～1832"]
[{"$f":"IFERROR(FIND(作業!$B$5,名言集!C554),IFERROR(FIND(作業!$B$5,名言集!D554),\"\"))","v":1},554,"勝つための最善の努力は、どんな時もやめてはいけない。逃げたらだめなのです。","王貞治","日本の元プロ野球選手、監督 / 1940～"]
[{"$f":"IFERROR(FIND(作業!$B$5,名言集!C555),IFERROR(FIND(作業!$B$5,名言集!D555),\"\"))","v":1},555,"常に明るさを失わず努力する人には、神はちゃんと未来を準備してくれます。","稲盛和夫","日本の実業家、京セラ、KDDIの創業者 / 1932～"]
[{"$f":"IFERROR(FIND(作業!$B$5,名言集!C556),IFERROR(FIND(作業!$B$5,名言集!D556),\"\"))","v":1},556,"私は運というものを信じている。そして、一所懸命働けば働くほど、運に恵まれる。","スティーブン・リーコック","カナダの政治学者、作家 / 1869～1944"]
[{"$f":"IFERROR(FIND(作業!$B$5,名言集!C557),IFERROR(FIND(作業!$B$5,名言集!D557),\"\"))","v":1},557,"楽観的であるということは、顔を常に太陽へ向け、足を常に前へ踏み出すことである。","ネルソン・マンデラ","南アフリカの政治家、ノーベル平和賞受賞 / 1918～2013"]
[{"$f":"IFERROR(FIND(作業!$B$5,名言集!C558),IFERROR(FIND(作業!$B$5,名言集!D558),\"\"))","v":1},558,"なりふりかまわず進む勇気がなくちゃ、ビックにはなれないわ。","シェール","米国の歌手、女優 / 1946～"]
[{"$f":"IFERROR(FIND(作業!$B$5,名言集!C559),IFERROR(FIND(作業!$B$5,名言集!D559),\"\"))","v":1},559,"人生での経験とはそれをバネにして成長するための教訓なの。だから、ほんとうにひどい出来事なんてないわ。","スザンヌ・サマーズ","米国の女優、作家 / 1946～"]
[{"$f":"IFERROR(FIND(作業!$B$5,名言集!C560),IFERROR(FIND(作業!$B$5,名言集!D560),\"\"))","v":1},560,"壁というのは、できる人にしかやってこない。超えられる可能性がある人にしかやってこない。だから、壁がある時はチャンスだと思っている。","イチロー","日本のプロ野球選手、日本及び米国で活躍 / 1973～"]
[{"$f":"IFERROR(FIND(作業!$B$5,名言集!C561),IFERROR(FIND(作業!$B$5,名言集!D561),\"\"))","v":1},561,"踏まれても叩かれても、努力さえしつづけていれば、必ずいつかは実を結ぶ。","升田幸三","日本の将棋棋士、実力制第四代名人 / 1918～1991"]
[{"$f":"IFERROR(FIND(作業!$B$5,名言集!C562),IFERROR(FIND(作業!$B$5,名言集!D562),\"\"))","v":1},562,"人間を賢くし人間を偉大にするものは、過去の経験ではなく、未来に対する期待である。なぜならば、期待をもつ人間は、何歳になっても勉強するからである。","バーナード・ショー","アイルランドの劇作家、ノーベル文学賞受賞 / 1856～1950"]
[{"$f":"IFERROR(FIND(作業!$B$5,名言集!C563),IFERROR(FIND(作業!$B$5,名言集!D563),\"\"))","v":1},563,"天才なんかあるものか。僕は他人がコーヒーを飲んでいる時間に仕事をしただけだ。","魯迅","中国の小説家、思想家 / 1881～1936"]
[{"$f":"IFERROR(FIND(作業!$B$5,名言集!C564),IFERROR(FIND(作業!$B$5,名言集!D564),\"\"))","v":1},564,"私は素晴らしく尊い仕事をしたいと心から思っている。でも私がやらなければならないのは、ちっぽけな仕事をも素晴らしくて尊い仕事と同じように立派にやり遂げることなのだ。","ヘレン・ケラー","米国の教育家、社会福祉活動家、著作家 / 1880～1968"]
[{"$f":"IFERROR(FIND(作業!$B$5,名言集!C565),IFERROR(FIND(作業!$B$5,名言集!D565),\"\"))","v":1},565,"怠慢は魅力的に見えるけど、満足感を与えてくれるのは働くこと。","アンネ・フランク","「アンネの日記」著者、ユダヤ系ドイツ人少女 / 1929～1945"]
[{"$f":"IFERROR(FIND(作業!$B$5,名言集!C566),IFERROR(FIND(作業!$B$5,名言集!D566),\"\"))","v":1},566,"そのことはできる、それをやる、と決断せよ。それからその方法を見つけるのだ。","エイブラハム・リンカーン","米国の第16代大統領 / 1809～1865"]
[{"$f":"IFERROR(FIND(作業!$B$5,名言集!C567),IFERROR(FIND(作業!$B$5,名言集!D567),\"\"))","v":1},567,"自分の夢、そんなに簡単に諦められるかって話でしょ。","本田圭佑","日本のプロサッカー選手 / 1986～"]
[{"$f":"IFERROR(FIND(作業!$B$5,名言集!C568),IFERROR(FIND(作業!$B$5,名言集!D568),\"\"))","v":1},568,"もう一歩。いかなる時も自分は思う。もう一歩。今が一番大事なときだ。もう一歩。","武者小路実篤","日本の小説家、詩人、劇作家、画家 / 1885～1976"]
[{"$f":"IFERROR(FIND(作業!$B$5,名言集!C569),IFERROR(FIND(作業!$B$5,名言集!D569),\"\"))","v":1},569,"一を以て之を貫く","孔子","中国の思想家、儒家の始祖 / 紀元前551～前479"]
[{"$f":"IFERROR(FIND(作業!$B$5,名言集!C570),IFERROR(FIND(作業!$B$5,名言集!D570),\"\"))","v":1},570,"敵に勝つより、もっと大事なことは、常に自分をレベルアップすること。","野村克也","日本の元プロ野球選手、監督、野球評論家 / 1935～"]
[{"$f":"IFERROR(FIND(作業!$B$5,名言集!C571),IFERROR(FIND(作業!$B$5,名言集!D571),\"\"))","v":1},571,"とにかく、考えてみることである。工夫してみることである。そして、やってみることである。失敗すればやり直せばいい。","松下幸之助","日本の実業家、発明家、パナソニック創業者 / 1894～1989"]
[{"$f":"IFERROR(FIND(作業!$B$5,名言集!C572),IFERROR(FIND(作業!$B$5,名言集!D572),\"\"))","v":1},572,"偉業は一時的な衝動でなされるものではなく、小さなことの積み重ねによって成し遂げられるのだ。","ゴッホ","オランダ出身のポスト印象派の画家 / 1853～1890"]
[{"$f":"IFERROR(FIND(作業!$B$5,名言集!C573),IFERROR(FIND(作業!$B$5,名言集!D573),\"\"))","v":1},573,"人間にとって成功とはいったいなんだろう。結局のところ、自分の夢に向かって自分がどれだけ挑んだか、努力したかどうか、ではないだろうか。","岡本太郎","日本の芸術家 / 1911～1996"]
[{"$f":"IFERROR(FIND(作業!$B$5,名言集!C574),IFERROR(FIND(作業!$B$5,名言集!D574),\"\"))","v":1},574,"絶えずあなたを何者かに変えようとする世界の中で、自分らしくあり続けること。それがもっとも素晴らしい偉業である。","エマーソン","米国の思想家、哲学者、作家、詩人 / 1803～1882"]
[{"$f":"IFERROR(FIND(作業!$B$5,名言集!C575),IFERROR(FIND(作業!$B$5,名言集!D575),\"\"))","v":1},575,"高く登ろうと思うなら、自分の脚を使うことだ。高い所へは、他人によって運ばれてはならない。人の背中や頭に乗ってはならない。","ニーチェ","ドイツの哲学者、古典文献学者 / 1844～1900"]
[{"$f":"IFERROR(FIND(作業!$B$5,名言集!C576),IFERROR(FIND(作業!$B$5,名言集!D576),\"\"))","v":1},576,"同じ花崗岩のかたまりも、弱い人にとっては、道の障害物になる。しかし、強い人にとっては、道に置かれた踏み台となる。","トーマス・カーライル","英国の思想家、歴史家 / 1795～1881"]
[{"$f":"IFERROR(FIND(作業!$B$5,名言集!C577),IFERROR(FIND(作業!$B$5,名言集!D577),\"\"))","v":1},577,"一羽のツバメが来ても夏にはならないし、一日で夏になることもない。このように、一日もしくは短い時間で人は幸福にも幸運にもなりはしない。","アリストテレス","古代ギリシアの哲学者 / 紀元前384～前322"]
[{"$f":"IFERROR(FIND(作業!$B$5,名言集!C578),IFERROR(FIND(作業!$B$5,名言集!D578),\"\"))","v":1},578,"何も後悔することがなければ、人生はとても空虚なものになるだろう。","ゴッホ","オランダ出身のポスト印象派の画家 / 1853～1890"]
[{"$f":"IFERROR(FIND(作業!$B$5,名言集!C579),IFERROR(FIND(作業!$B$5,名言集!D579),\"\"))","v":1},{"$f":"IF(A579=\"\",B578,B578+1)","v":579},"自分自身を信じてみるだけでいい。きっと、生きる道が見えてくる。","ゲーテ","ドイツの詩人、小説家、劇作家 / 1749～1832"]
[{"$f":"IFERROR(FIND(作業!$B$5,名言集!C580),IFERROR(FIND(作業!$B$5,名言集!D580),\"\"))","v":1},580,"さあ、俺も立ち上がるかな　まあ、もう少し坐つてゐよう","武者小路実篤","日本の小説家、詩人、劇作家、画家 / 1885～1976"]
[{"$f":"IFERROR(FIND(作業!$B$5,名言集!C581),IFERROR(FIND(作業!$B$5,名言集!D581),\"\"))","v":1},581,"逃げた者はもう一度戦える。","デモステネス","古代ギリシアの政治家、弁論家 / 紀元前384～322"]
[{"$f":"IFERROR(FIND(作業!$B$5,名言集!C582),IFERROR(FIND(作業!$B$5,名言集!D582),\"\"))","v":1},582,"「現実を認めたくない」自分がいて、「現実を受け入れろ」という自分もいる。現実を認めなければ、今を生きることができないですから。","本田圭佑","日本のプロサッカー選手 / 1986～"]
[{"$f":"IFERROR(FIND(作業!$B$5,名言集!C583),IFERROR(FIND(作業!$B$5,名言集!D583),\"\"))","v":1},583,"人生で学んだすべてを私は3語にまとめられる。それは「何があっても人生には続きがある」ということだ。","ロバート・フロスト","米国の詩人 / 1874～1963"]
[{"$f":"IFERROR(FIND(作業!$B$5,名言集!C584),IFERROR(FIND(作業!$B$5,名言集!D584),\"\"))","v":1},584,"運がいい人も、運が悪い人もいない。運がいいと思う人と、運が悪いと思う人がいるだけだ。","中谷彰宏","日本の作家、俳優 / 1959～"]
[{"$f":"IFERROR(FIND(作業!$B$5,名言集!C585),IFERROR(FIND(作業!$B$5,名言集!D585),\"\"))","v":1},585,"人生に失敗がないと、人生を失敗する。","斎藤茂太","日本の精神科医、随筆家 / 1916～2006"]
[{"$f":"IFERROR(FIND(作業!$B$5,名言集!C586),IFERROR(FIND(作業!$B$5,名言集!D586),\"\"))","v":1},586,"悲しみが来るときは、単騎ではやってこない。かならず軍団で押し寄せる。","シェイクスピア","英国の劇作家、詩人 / 1564～1616"]
[{"$f":"IFERROR(FIND(作業!$B$5,名言集!C587),IFERROR(FIND(作業!$B$5,名言集!D587),\"\"))","v":1},587,"人格は厳しい状況のもとでこそ計られる。","ネルソン・マンデラ","南アフリカの政治家、ノーベル平和賞受賞 / 1918～2013"]
[{"$f":"IFERROR(FIND(作業!$B$5,名言集!C588),IFERROR(FIND(作業!$B$5,名言集!D588),\"\"))","v":1},588,"人生はロマン。自分は不幸だと悩むのではなく、試練を与えられた物語の主人公だと思えば、人生をエンジョイできる。","美輪明宏","日本のシンガーソングライター、俳優、演出家 / 1935～"]
[{"$f":"IFERROR(FIND(作業!$B$5,名言集!C589),IFERROR(FIND(作業!$B$5,名言集!D589),\"\"))","v":1},589,"多くの忘却なくしては人生は暮らしていけない。","バルザック","フランスの小説家 / 1799～1850"]
[{"$f":"IFERROR(FIND(作業!$B$5,名言集!C590),IFERROR(FIND(作業!$B$5,名言集!D590),\"\"))","v":1},590,"なにごとも逃げてはいけない。敵に対しても、もしも、こちらが逃げれば、ますます激しく攻めてくるものだ。それと同じように、人生のさまざまな苦しみも、私たちが恐れおののいているのをみると、いい気になって、更にいじめてくる。","モンテーニュ","フランスの哲学者、モラリスト / 1533～1592"]
[{"$f":"IFERROR(FIND(作業!$B$5,名言集!C591),IFERROR(FIND(作業!$B$5,名言集!D591),\"\"))","v":1},591,"自分に欠けているものを過大に考えると不幸になる。","スタンダール","フランスの小説家『赤と黒』著者 / 1783～1842"]
[{"$f":"IFERROR(FIND(作業!$B$5,名言集!C592),IFERROR(FIND(作業!$B$5,名言集!D592),\"\"))","v":1},592,"物事に敏感で自分なりの価値判断を持っていることを「細心」といいます。気が小さいことは人生の武器なのです。","斎藤茂太","日本の精神科医、随筆家 / 1916～2006"]
[{"$f":"IFERROR(FIND(作業!$B$5,名言集!C593),IFERROR(FIND(作業!$B$5,名言集!D593),\"\"))","v":1},593,"不幸からよきものを生み出そうとし、又生み出しえる者は賢い人である。与えられたる運命をもっともよく生かすということは、人間にとって大事である。","武者小路実篤","日本の小説家、詩人、劇作家、画家 / 1885～1976"]
[{"$f":"IFERROR(FIND(作業!$B$5,名言集!C594),IFERROR(FIND(作業!$B$5,名言集!D594),\"\"))","v":1},594,"自分の生きる人生を愛せ。自分の愛する人生を生きろ。","ボブ・マーリー","ジャマイカのレゲエミュージシャン / 1945～1981"]
[{"$f":"IFERROR(FIND(作業!$B$5,名言集!C595),IFERROR(FIND(作業!$B$5,名言集!D595),\"\"))","v":1},595,"幸福は伝染するものだ。もし幸福になろうと思うなら、幸福な人々の中で生きたまえ。","スタンダール","フランスの小説家『赤と黒』著者 / 1783～1842"]
[{"$f":"IFERROR(FIND(作業!$B$5,名言集!C596),IFERROR(FIND(作業!$B$5,名言集!D596),\"\"))","v":1},596,"不快な状況に対峙するなかれ。我慢ならなくとも、受け入れよ。そうするよう心掛ければ、うまくいく。","ウィリアム・ジェームズ","米国の哲学者、心理学者 / 1842～1910"]
[{"$f":"IFERROR(FIND(作業!$B$5,名言集!C597),IFERROR(FIND(作業!$B$5,名言集!D597),\"\"))","v":1},597,"我々の苦悩の中でも最も歓迎できないのは、自分の存在を軽蔑することだ。","モンテーニュ","フランスの哲学者、モラリスト / 1533～1592"]
[{"$f":"IFERROR(FIND(作業!$B$5,名言集!C598),IFERROR(FIND(作業!$B$5,名言集!D598),\"\"))","v":1},598,"運命というものは、人をいかなる災難にあわせても、必ず一方の戸口をあけておいて、そこから救いの手を差しのべてくれるものよ。","セルバンテス","スペインの小説家『ドン・キホーテ』著者 / 1547～1616"]
[{"$f":"IFERROR(FIND(作業!$B$5,名言集!C599),IFERROR(FIND(作業!$B$5,名言集!D599),\"\"))","v":1},599,"我々の苦悩は、とことんまで経験することによってのみ癒される。","マルセル・プルースト","フランスの作家 / 1871～1922"]
[{"$f":"IFERROR(FIND(作業!$B$5,名言集!C600),IFERROR(FIND(作業!$B$5,名言集!D600),\"\"))","v":1},600,"あなたが恐れているものではなく、あなたが知っているものに耳を傾けるのです。","リチャード・バック","米国の作家『かもめのジョナサン』著者 / 1936～"]
[{"$f":"IFERROR(FIND(作業!$B$5,名言集!C601),IFERROR(FIND(作業!$B$5,名言集!D601),\"\"))","v":1},601,"ささいなことが私たちの慰めになるのは、ささいなことが私たちの苦しみになるからである。","パスカル","フランスの哲学者、思想家、数学者 / 1623～1662"]
[{"$f":"IFERROR(FIND(作業!$B$5,名言集!C602),IFERROR(FIND(作業!$B$5,名言集!D602),\"\"))","v":1},602,"人生に成功した人には、人生に失敗した人が、人生というものをどんなにたいへんなものであると思っているかを、知ることはできない。","エドガー·ワトソン·ハウ","米国の小説家、新聞編集者 / 1853～1937"]
[{"$f":"IFERROR(FIND(作業!$B$5,名言集!C603),IFERROR(FIND(作業!$B$5,名言集!D603),\"\"))","v":1},603,"第三者の評価を意識した生き方はしたくない。自分が納得した生き方をしたい。","イチロー","日本のプロ野球選手、日本及び米国で活躍 / 1973～"]
[{"$f":"IFERROR(FIND(作業!$B$5,名言集!C604),IFERROR(FIND(作業!$B$5,名言集!D604),\"\"))","v":1},604,"どんなトラブルが起きても微動だにしない。そんなレベルに達するまで人生の修行は続きます。弱音を吐かず覚悟を決めて。","美輪明宏","日本のシンガーソングライター、俳優、演出家 / 1935～"]
[{"$f":"IFERROR(FIND(作業!$B$5,名言集!C605),IFERROR(FIND(作業!$B$5,名言集!D605),\"\"))","v":1},605,"悲観的になるのは、自分のことばかり考えているから。","斎藤茂太","日本の精神科医、随筆家 / 1916～2006"]
[{"$f":"IFERROR(FIND(作業!$B$5,名言集!C606),IFERROR(FIND(作業!$B$5,名言集!D606),\"\"))","v":1},606,"他人の幸福をうらやんではいけない。なぜならあなたは、彼の密かな悲しみを知らないのだから。","ダンデミス","詳細不明"]
[{"$f":"IFERROR(FIND(作業!$B$5,名言集!C607),IFERROR(FIND(作業!$B$5,名言集!D607),\"\"))","v":1},607,"涙とともにパンを食べたものでなければ、人生の味は分からない。","ゲーテ","ドイツの詩人、小説家、劇作家 / 1749～1832"]
[{"$f":"IFERROR(FIND(作業!$B$5,名言集!C608),IFERROR(FIND(作業!$B$5,名言集!D608),\"\"))","v":1},608,"何事もゆきづまれば、まず、自分のものの見方を変えることである。案外、人は無意識の中にも一つの見方に執して、他の見方のあることを忘れがちである。","松下幸之助","日本の実業家、発明家、パナソニック創業者 / 1894～1989"]
[{"$f":"IFERROR(FIND(作業!$B$5,名言集!C609),IFERROR(FIND(作業!$B$5,名言集!D609),\"\"))","v":1},609,"人生は生きることが大事なのです。いつも好奇心を持ち続けることです。どんな理由があっても決して人生に背を向けてはいけません。","エレノア・ルーズベルト","米国のファーストレディ、人権活動家 / 1884～1962"]
[{"$f":"IFERROR(FIND(作業!$B$5,名言集!C610),IFERROR(FIND(作業!$B$5,名言集!D610),\"\"))","v":1},610,"人生でもっとも輝かしい時は、いわゆる栄光の時なのでなく、落胆や絶望の中で人生への挑戦と未来に成し遂げる展望がわき上がるのを感じたときなのだ。","ギュスターヴ・フローベール","フランスの小説家 / 1821～1880"]
[{"$f":"IFERROR(FIND(作業!$B$5,名言集!C611),IFERROR(FIND(作業!$B$5,名言集!D611),\"\"))","v":1},611,"人生は芝居のごとし、上手な役者が乞食になることもあれば、大根役者が殿様になることもある。とかく、あまり人生を重く見ず、捨て身になって何事も一心になすべし。","福沢諭吉","幕末から明治初期の中津藩士、啓蒙思想家、教育者 / 1835～1901"]
[{"$f":"IFERROR(FIND(作業!$B$5,名言集!C612),IFERROR(FIND(作業!$B$5,名言集!D612),\"\"))","v":1},612,"人生のほとんどすべての不幸は、自分に関することがらについて、あやまった考え方をするところから生じる。できごとを健全に判断することは、幸福への大きな第一歩である。","スタンダール","フランスの小説家『赤と黒』著者 / 1783～1842"]
[{"$f":"IFERROR(FIND(作業!$B$5,名言集!C613),IFERROR(FIND(作業!$B$5,名言集!D613),\"\"))","v":1},613,"難しいからやろうとしないのではない。やろうとしないから、難しくなるのだ。","セネカ","ローマ帝国の政治家、哲学者、詩人 / 紀元前1頃～紀元後65"]
[{"$f":"IFERROR(FIND(作業!$B$5,名言集!C614),IFERROR(FIND(作業!$B$5,名言集!D614),\"\"))","v":1},614,"自分になにができるかを知るより、なにができないかを知ることのほうが重要よ。","ルシル・ボール","米国の喜劇女優 / 1911～1989"]
[{"$f":"IFERROR(FIND(作業!$B$5,名言集!C615),IFERROR(FIND(作業!$B$5,名言集!D615),\"\"))","v":1},615,"蝶はモグラではない。でも、そのことを残念がる蝶はいないだろう。","アインシュタイン","理論物理学者、ノーベル物理学賞受賞 / 1879～1955"]
[{"$f":"IFERROR(FIND(作業!$B$5,名言集!C616),IFERROR(FIND(作業!$B$5,名言集!D616),\"\"))","v":1},616,"自分には自分に与えられた道がある。天与の尊い道がある。どんな道かは知らないが、他の人には歩めない。自分だけしか歩めない、二度と歩めぬかけがえのないこの道。広いときもある。狭いときもある。のぼりもあれば、くだりもある。坦々としたときもあれば、かきわけかきわけ汗するときもある。この道が果たしてよいのか悪いのか、思案にあまるときもあろう。なぐさめを求めたくなるときもあろう。しかし、所詮はこの道しかないのではないか。あきらめろと言うのではない。いま立っているこの道、いま歩んでいるこの道、とにかくこの道を休まず歩むことである。自分だけしか歩めない大事な道ではないか。自分だけに与えられているかけがえのないこの道ではないか。他人の道に心を奪われ、思案にくれて立ちすくんでいても、道は少しもひらけない。道をひらくためには、まず歩まねばならぬ。心を定め、懸命に歩まねばならぬ。それがたとえ遠い道のように思えても、休まず歩む姿からは必ず新たな道がひらけてくる。深い喜びも生まれてくる。","松下幸之助","日本の実業家、発明家、パナソニック創業者 / 1894～1989"]
[{"$f":"IFERROR(FIND(作業!$B$5,名言集!C617),IFERROR(FIND(作業!$B$5,名言集!D617),\"\"))","v":1},617,"人生は自分の思い通りになんかならないと思っている人は、自らが思い通りにならないことを望んでいる人です。","ジョセフ・マーフィー","アイルランド出身の宗教者、著述家 / 1898～1981"]
[{"$f":"IFERROR(FIND(作業!$B$5,名言集!C618),IFERROR(FIND(作業!$B$5,名言集!D618),\"\"))","v":1},618,"もし、私にユーモアがなければ、これほど長く苦しい戦いには耐えられなかったでしょう。","ガンジー","インドの弁護士、宗教家、政治指導者 / 1869～1948"]
[{"$f":"IFERROR(FIND(作業!$B$5,名言集!C619),IFERROR(FIND(作業!$B$5,名言集!D619),\"\"))","v":1},619,"善悪、大小、かねの有る無し、社会的な地位の上下などという、人間の作った相対的な価値観を一切やめてみることです。","相田みつを","日本の詩人、書家 / 1924～1991"]
[{"$f":"IFERROR(FIND(作業!$B$5,名言集!C620),IFERROR(FIND(作業!$B$5,名言集!D620),\"\"))","v":1},620,"われわれが人生において犯す最大の過ちは、間違いを犯しはしないかと絶えず恐れていることである。","エルバート・ハバード","米国の作家、アーティスト、哲学者 / 1856～1915"]
[{"$f":"IFERROR(FIND(作業!$B$5,名言集!C621),IFERROR(FIND(作業!$B$5,名言集!D621),\"\"))","v":1},621,"死ぬ覚悟が出来ていれば、人は自由に生きられる。","ガンジー","インドの弁護士、宗教家、政治指導者 / 1869～1948"]
[{"$f":"IFERROR(FIND(作業!$B$5,名言集!C622),IFERROR(FIND(作業!$B$5,名言集!D622),\"\"))","v":1},622,"扉に変わるかも知れないという、勝手な希望にとらわれて、壁をたたき続けてはいけないわ。","ココ・シャネル","フランスのファッションデザイナー / 1883～1971"]
[{"$f":"IFERROR(FIND(作業!$B$5,名言集!C623),IFERROR(FIND(作業!$B$5,名言集!D623),\"\"))","v":1},623,"長生きをしていると、過去はがらくたの詰まった屋根裏みたいになる。探しものをしに屋根裏へ行ってごらんなさい。なんでもあるけど、探してるものだけは見つからないでしょう。","クララ・ルイーズ・ケロッグ","米国の女性オペラ歌手 / 1842～1916"]
[{"$f":"IFERROR(FIND(作業!$B$5,名言集!C624),IFERROR(FIND(作業!$B$5,名言集!D624),\"\"))","v":1},624,"変化とは人生の法則である。過去と現在しか見ない人は、確実に未来を見失う。","ジョン・F・ケネディ","米国の第35代大統領 / 1917～1963"]
[{"$f":"IFERROR(FIND(作業!$B$5,名言集!C625),IFERROR(FIND(作業!$B$5,名言集!D625),\"\"))","v":1},625,"不幸というものは、耐える力が弱いと見てとると、そこに重くのしかかる。","シェイクスピア","英国の劇作家、詩人 / 1564～1616"]
[{"$f":"IFERROR(FIND(作業!$B$5,名言集!C626),IFERROR(FIND(作業!$B$5,名言集!D626),\"\"))","v":1},626,"苦難の時に動揺しないこと。これは真に賞賛すべき卓越した人物の証拠である。","ベートーヴェン","ドイツの作曲家 / 1770～1827"]
[{"$f":"IFERROR(FIND(作業!$B$5,名言集!C627),IFERROR(FIND(作業!$B$5,名言集!D627),\"\"))","v":1},627,"悪い時が過ぎれば、よい時は必ず来る。おしなべて、事を成す人は、必ず時の来るのを待つ。あせらずあわてず、静かに時の来るを待つ。時を待つ心は、春を待つ桜の姿といえよう。だが何もせずに待つ事は僥倖を待つに等しい。静かに春を待つ桜は、一瞬の休みもなく力を蓄えている。たくわえられた力がなければ、時が来ても事は成就しないであろう。","松下幸之助","日本の実業家、発明家、パナソニック創業者 / 1894～1989"]
[{"$f":"IFERROR(FIND(作業!$B$5,名言集!C628),IFERROR(FIND(作業!$B$5,名言集!D628),\"\"))","v":1},628,"挫折を経験した事がない者は、何も新しい事に挑戦したことが無いということだ。","アインシュタイン","理論物理学者、ノーベル物理学賞受賞 / 1879～1955"]
[{"$f":"IFERROR(FIND(作業!$B$5,名言集!C629),IFERROR(FIND(作業!$B$5,名言集!D629),\"\"))","v":1},629,"自分のしたことに人が評価を下す、それは自由ですけれども、それによって、自分が惑わされたくないのです。","イチロー","日本のプロ野球選手、日本及び米国で活躍 / 1973～"]
[{"$f":"IFERROR(FIND(作業!$B$5,名言集!C630),IFERROR(FIND(作業!$B$5,名言集!D630),\"\"))","v":1},630,"人生に失敗した人の多くは、諦めたときに自分がどれほど成功に近づいていたか気づかなかった人たちだ。","トーマス・エジソン","米国の発明家、起業家 / 1847～1931"]
[{"$f":"IFERROR(FIND(作業!$B$5,名言集!C631),IFERROR(FIND(作業!$B$5,名言集!D631),\"\"))","v":1},631,"わたしは無駄にこの世に生れてきたのではない　また人間として生れてきたからには　無駄にこの世を過ごしたくはない","相田みつを","日本の詩人、書家 / 1924～1991"]
[{"$f":"IFERROR(FIND(作業!$B$5,名言集!C632),IFERROR(FIND(作業!$B$5,名言集!D632),\"\"))","v":1},632,"世間からよく思われることよりも、自分が心からやりたいことを見つけ出すこと。そして、自分らしく生きていくことのほうがずっと大切であるということ。","斎藤茂太","日本の精神科医、随筆家 / 1916～2006"]
[{"$f":"IFERROR(FIND(作業!$B$5,名言集!C633),IFERROR(FIND(作業!$B$5,名言集!D633),\"\"))","v":1},633,"自分の力に合うことだけしろ、その他の事は、おのずと道が開けてくるまで待て。","武者小路実篤","日本の小説家、詩人、劇作家、画家 / 1885～1976"]
[{"$f":"IFERROR(FIND(作業!$B$5,名言集!C634),IFERROR(FIND(作業!$B$5,名言集!D634),\"\"))","v":1},634,"苦しい時でも、とにかく笑っていろ。笑える余裕、ゆとりがないと判断を間違える。","藤森正路","日本の経営者、元住友金属鉱山社長"]
[{"$f":"IFERROR(FIND(作業!$B$5,名言集!C635),IFERROR(FIND(作業!$B$5,名言集!D635),\"\"))","v":1},635,"期待はあらゆる苦悩のもと。","シェイクスピア","英国の劇作家、詩人 / 1564～1616"]
[{"$f":"IFERROR(FIND(作業!$B$5,名言集!C636),IFERROR(FIND(作業!$B$5,名言集!D636),\"\"))","v":1},636,"迷う、ということは、一種の欲望からきているように思う。ああもなりたい、こうもなりたい、こういうふうに出世したい、という欲望から迷いがでてくる。それを捨て去れば問題はなくなる。","松下幸之助","日本の実業家、発明家、パナソニック創業者 / 1894～1989"]
[{"$f":"IFERROR(FIND(作業!$B$5,名言集!C637),IFERROR(FIND(作業!$B$5,名言集!D637),\"\"))","v":1},637,"間違いを犯してばかりの人生は、何もしなかった人生よりも、あっぱれであるだけでなく、役に立つ。","バーナード・ショー","アイルランドの劇作家、ノーベル文学賞受賞 / 1856～1950"]
[{"$f":"IFERROR(FIND(作業!$B$5,名言集!C638),IFERROR(FIND(作業!$B$5,名言集!D638),\"\"))","v":1},638,"何事も修行とおもひする人は　身のくるしみはきえはつるなり","至道無難","江戸時代前期の臨済宗の僧 / 1603～1676"]
[{"$f":"IFERROR(FIND(作業!$B$5,名言集!C639),IFERROR(FIND(作業!$B$5,名言集!D639),\"\"))","v":1},639,"人は常に前へだけは進めない。引き潮あり、差し潮がある。","ニーチェ","ドイツの哲学者、古典文献学者 / 1844～1900"]
[{"$f":"IFERROR(FIND(作業!$B$5,名言集!C640),IFERROR(FIND(作業!$B$5,名言集!D640),\"\"))","v":1},640,"いま何がないかより、いま何があるかで発想しよう。","斎藤茂太","日本の精神科医、随筆家 / 1916～2006"]
[{"$f":"IFERROR(FIND(作業!$B$5,名言集!C641),IFERROR(FIND(作業!$B$5,名言集!D641),\"\"))","v":1},641,"行き詰まるのは重荷を背負っているからではないわ。背負い方がいけないだけなの。","レナ・ホーン","米国のジャズ歌手、女優 / 1917～2010"]
[{"$f":"IFERROR(FIND(作業!$B$5,名言集!C642),IFERROR(FIND(作業!$B$5,名言集!D642),\"\"))","v":1},642,"人生はクローズアップで見れば悲劇だが、ロングショットで見れば喜劇だ。","チャップリン","英国の俳優、映画監督、コメディアン、脚本家 / 1889～1977"]
[{"$f":"IFERROR(FIND(作業!$B$5,名言集!C643),IFERROR(FIND(作業!$B$5,名言集!D643),\"\"))","v":1},{"$f":"IF(A643=\"\",B642,B642+1)","v":643},"人生は学校である。そこでは幸福より不幸の方が良い教師である。","フリーチェ","ロシアの文芸学者 / 1870～1929"]
[{"$f":"IFERROR(FIND(作業!$B$5,名言集!C644),IFERROR(FIND(作業!$B$5,名言集!D644),\"\"))","v":1},644,"人生と言うものは、思わぬ時に道がひらけたり、閉じたりするものだ。","武者小路実篤","日本の小説家、詩人、劇作家、画家 / 1885～1976"]
[{"$f":"IFERROR(FIND(作業!$B$5,名言集!C645),IFERROR(FIND(作業!$B$5,名言集!D645),\"\"))","v":1},645,"速やかに生長するものは早く枯れ、徐々に生長するものは永存する。","中村天風","日本初のヨーガ行者、天風会の創始者 / 1876～1968"]
[{"$f":"IFERROR(FIND(作業!$B$5,名言集!C646),IFERROR(FIND(作業!$B$5,名言集!D646),\"\"))","v":1},646,"現実の人生というのは、大抵の人にとっては、じつに長い次善の人生である。つまり、理想と可能性との永遠の妥協である。","バートランド・ラッセル","英国の哲学者、ノーベル文学賞受賞 / 1872～1970"]
[{"$f":"IFERROR(FIND(作業!$B$5,名言集!C647),IFERROR(FIND(作業!$B$5,名言集!D647),\"\"))","v":1},647,"わたしはその日その日をあるがままに生きようとしてきました。そして明日におびえず、無駄な心配をしないようにしてきたのです。わたしたちを臆病にさせるのは、将来への暗い見通しなのですから。","ドロシー・ディックス","米国のジャーナリスト / 1861～1951"]
[{"$f":"IFERROR(FIND(作業!$B$5,名言集!C648),IFERROR(FIND(作業!$B$5,名言集!D648),\"\"))","v":1},648,"「人生」の長い旅をゆくとき、よくぶつかる二つの大きな難関がある。第一は「分かれ道」である。第二は「行きどまり」である。","魯迅","中国の小説家、思想家 / 1881～1936"]
[{"$f":"IFERROR(FIND(作業!$B$5,名言集!C649),IFERROR(FIND(作業!$B$5,名言集!D649),\"\"))","v":1},649,"堪え忍べ、働け、祈れ、そしてつねに希望を持て。これがわたしが全人類に一度に吹き込もうと願っている真理なのです！","ドストエフスキー","ロシアの小説家、思想家 / 1821～1881"]
[{"$f":"IFERROR(FIND(作業!$B$5,名言集!C650),IFERROR(FIND(作業!$B$5,名言集!D650),\"\"))","v":1},650,"人生には二つの悲劇がある。一つは願いが達せられないこと。もう一つはそれが達せられること。","バーナード・ショー","アイルランドの劇作家、ノーベル文学賞受賞 / 1856～1950"]
[{"$f":"IFERROR(FIND(作業!$B$5,名言集!C651),IFERROR(FIND(作業!$B$5,名言集!D651),\"\"))","v":1},651,"人生は意義ある悲劇だ。それで美しいのだ。生き甲斐がある。","岡本太郎","日本の芸術家 / 1911～1996"]
[{"$f":"IFERROR(FIND(作業!$B$5,名言集!C652),IFERROR(FIND(作業!$B$5,名言集!D652),\"\"))","v":1},652,"社会生活は日々これ戦い、日々これ苦難。その時に心が動揺するかしないかは、信念の有無で決まる。","松下幸之助","日本の実業家、発明家、パナソニック創業者 / 1894～1989"]
[{"$f":"IFERROR(FIND(作業!$B$5,名言集!C653),IFERROR(FIND(作業!$B$5,名言集!D653),\"\"))","v":1},653,"人生とは一直線ではなくて循環するもの。","バーバラ・ブラハム","米国の女性ビジネスコンサルタント"]
[{"$f":"IFERROR(FIND(作業!$B$5,名言集!C654),IFERROR(FIND(作業!$B$5,名言集!D654),\"\"))","v":1},654,"幸福な人生を歩んでいる人は、言葉の使い方を知っています。言葉は選んで使いなさい。言葉の選択一つで、人生は明るくも暗くもなるのです。","ジョセフ・マーフィー","アイルランド出身の宗教者、著述家 / 1898～1981"]
[{"$f":"IFERROR(FIND(作業!$B$5,名言集!C655),IFERROR(FIND(作業!$B$5,名言集!D655),\"\"))","v":1},655,"心を高揚させる勝利もあれば、堕落させる勝利もある。心を打ちひしぐ敗北もあれば、目覚めさせる敗北もある。","サン＝テグジュペリ","フランスの作家、操縦士 / 1900～1944"]
[{"$f":"IFERROR(FIND(作業!$B$5,名言集!C656),IFERROR(FIND(作業!$B$5,名言集!D656),\"\"))","v":1},656,"人間が不幸なのは、自分が幸福であることを知らないからだ。ただそれだけの理由なのだ。","ドストエフスキー","ロシアの小説家、思想家 / 1821～1881"]
[{"$f":"IFERROR(FIND(作業!$B$5,名言集!C657),IFERROR(FIND(作業!$B$5,名言集!D657),\"\"))","v":1},657,"ただ幸福になりたいと望むだけなら簡単だ。しかし他人よりも幸せになりたいというのならば、それは困難だ。我々は、他人はみんな実際以上に幸福だと思っているからだ。","モンテスキュー","フランスの哲学者 / 1689～1755"]
[{"$f":"IFERROR(FIND(作業!$B$5,名言集!C658),IFERROR(FIND(作業!$B$5,名言集!D658),\"\"))","v":1},658,"それはあまりたいした問題じゃない。私はいつもこの「それはたいした問題じゃない」という哲学を持ってきた。","アンディ・ウォーホル","米国の芸術家、ポップアートの旗手 / 1928～1987"]
[{"$f":"IFERROR(FIND(作業!$B$5,名言集!C659),IFERROR(FIND(作業!$B$5,名言集!D659),\"\"))","v":1},659,"絶望した側が戦いに勝つことがよくある。","ヴォルテール","フランスの哲学者、作家、文学者、歴史家 / 1694～1778"]
[{"$f":"IFERROR(FIND(作業!$B$5,名言集!C660),IFERROR(FIND(作業!$B$5,名言集!D660),\"\"))","v":1},660,"流れに逆らおうとしたところで無駄なことだ。流れに身をまかせれば、どんなに弱い人でも岸に流れ着く。","セルバンテス","スペインの小説家『ドン・キホーテ』著者 / 1547～1616"]
[{"$f":"IFERROR(FIND(作業!$B$5,名言集!C661),IFERROR(FIND(作業!$B$5,名言集!D661),\"\"))","v":1},661,"自分以外の人間になりたいと願いながら、人生を送るのは耐え難いって","チャールズ・M・シュルツ","米国の漫画家、スヌーピーの作者 / 1922～2000"]
[{"$f":"IFERROR(FIND(作業!$B$5,名言集!C662),IFERROR(FIND(作業!$B$5,名言集!D662),\"\"))","v":1},662,"真の偉大さは喜びの中でも苦難の中でも楽しむ力があることで見分けがつく。","ロマン・ロラン","フランスの作家、ノーベル文学賞受賞 / 1866～1944"]
[{"$f":"IFERROR(FIND(作業!$B$5,名言集!C663),IFERROR(FIND(作業!$B$5,名言集!D663),\"\"))","v":1},663,"自分が怖いと思っているところに焦点をあててはいけない。自分が行きたいところに焦点を当てるんだ。","アンソニー・ロビンズ","米国の自己啓発書作家、講演家 / 1960～"]
[{"$f":"IFERROR(FIND(作業!$B$5,名言集!C664),IFERROR(FIND(作業!$B$5,名言集!D664),\"\"))","v":1},664,"人の一生は、重荷を負うて遠き道をゆくがごとし。急ぐべからず。","徳川家康","戦国時代の武将、江戸幕府の初代征夷大将軍 / 1543～1616"]
[{"$f":"IFERROR(FIND(作業!$B$5,名言集!C665),IFERROR(FIND(作業!$B$5,名言集!D665),\"\"))","v":1},665,"あきらめなければ必ず道はある。必ず。","豊田佐吉","日本の実業家、発明家、トヨタグループ創業者 / 1867～1930"]
[{"$f":"IFERROR(FIND(作業!$B$5,名言集!C666),IFERROR(FIND(作業!$B$5,名言集!D666),\"\"))","v":1},666,"山は西からも東からでも登れる。自分が方向を変えれば、新しい道はいくらでも開ける。","松下幸之助","日本の実業家、発明家、パナソニック創業者 / 1894～1989"]
[{"$f":"IFERROR(FIND(作業!$B$5,名言集!C667),IFERROR(FIND(作業!$B$5,名言集!D667),\"\"))","v":1},667,"成熟するためには、遠回りをしなければならない。","開高健","日本の小説家 / 1930～1989"]
[{"$f":"IFERROR(FIND(作業!$B$5,名言集!C668),IFERROR(FIND(作業!$B$5,名言集!D668),\"\"))","v":1},668,"誰もの心に、何かに向かって燃える火があります。それを見つけ、燃やし続けることが、私たちの人生の目的なのです。","メアリー・ルー・レットン","米国の元体操選手、ロス五輪金メダリスト / 1968～"]
[{"$f":"IFERROR(FIND(作業!$B$5,名言集!C669),IFERROR(FIND(作業!$B$5,名言集!D669),\"\"))","v":1},669,"発見の旅とは、新しい景色を探すことではない。新しい目で見ることなのだ。","マルセル・プルースト","フランスの作家 / 1871～1922"]
[{"$f":"IFERROR(FIND(作業!$B$5,名言集!C670),IFERROR(FIND(作業!$B$5,名言集!D670),\"\"))","v":1},670,"吹いている風がまったく同じでも、ある船は東へ行き、ある船は西へ行く。進路を決めるのは風ではない、帆の向きである。人生の航海でその行く末を決めるのは、なぎでもなければ、嵐でもない、心の持ち方である。","エラ・ウィーラー・ウィルコックス","米国の女性作家、詩人 / 1850～1919"]
[{"$f":"IFERROR(FIND(作業!$B$5,名言集!C671),IFERROR(FIND(作業!$B$5,名言集!D671),\"\"))","v":1},671,"人々はよく人生を変化させてしまった出来事を恨む。でも、人生を変えるのは出来事ではなく、私たちが持たせた意味なのだ。","アンソニー・ロビンズ","米国の自己啓発書作家、講演家 / 1960～"]
[{"$f":"IFERROR(FIND(作業!$B$5,名言集!C672),IFERROR(FIND(作業!$B$5,名言集!D672),\"\"))","v":1},672,"心で見なくちゃ、ものごとはよく見えないってことさ。かんじんなことは、目に見えないんだよ。","サン＝テグジュペリ","フランスの作家、操縦士 / 1900～1944"]
[{"$f":"IFERROR(FIND(作業!$B$5,名言集!C673),IFERROR(FIND(作業!$B$5,名言集!D673),\"\"))","v":1},673,"あなたにとっての最も大きな冒険は、あなたの夢に生きること。","オプラ・ウィンフリー","米国の女性テレビ司会者、女優 / 1954～"]
[{"$f":"IFERROR(FIND(作業!$B$5,名言集!C674),IFERROR(FIND(作業!$B$5,名言集!D674),\"\"))","v":1},674,"大きくても30センチほどのヤマメと、その倍もあるサクラマスが、もともとは同じ魚だということをご存じですか？川での生存競争に敗れたヤマメの一部が、餌を求めて海へと下り、餌が豊富な海を回遊するうちに大型化したのがサクラマスなんだそうです。そのときは負けたように思えても、自分で自分に見切りをつけなければ、人生に「負け」なんてものは存在しません。人と競うのではなく、できることから少しずつ努力を重ね、昨日の自分よりちょっとだけでも成長しようと心がける。そうすれば、いつの間にか、サクラマスのようにグーンと大きくなっているはずですよ。","斎藤茂太","日本の精神科医、随筆家 / 1916～2006"]
[{"$f":"IFERROR(FIND(作業!$B$5,名言集!C675),IFERROR(FIND(作業!$B$5,名言集!D675),\"\"))","v":1},675,"夢なき者は理想なし。理想なき者は信念なし。信念なき者は計画なし。計画なき者は実行なし。実行なき者は成果なし。成果なき者は幸福なし。ゆえに幸福を求むる者は夢なかるべからず。","渋沢栄一","日本の武士、官僚、実業家、日本資本主義の父 / 1840～1931"]
[{"$f":"IFERROR(FIND(作業!$B$5,名言集!C676),IFERROR(FIND(作業!$B$5,名言集!D676),\"\"))","v":1},676,"逃げない、はればれと立ち向かう、それがぼくのモットーだ。","岡本太郎","日本の芸術家 / 1911～1996"]
[{"$f":"IFERROR(FIND(作業!$B$5,名言集!C677),IFERROR(FIND(作業!$B$5,名言集!D677),\"\"))","v":1},677,"あなたの時間は限られている。だから他人の人生を生きたりして無駄に過ごしてはいけない。ドグマ（教義、常識、既存の理論）にとらわれるな。それは他人の考えた結果で生きていることなのだから。他人の意見が雑音のようにあなたの内面の声をかき消したりすることのないようにしなさい。そして最も重要なのは、自分の心と直感を信じる勇気を持ちなさい。それはどういうわけかあなたが本当になりたいものをすでによく知っているのだから。それ以外のことは、全部二の次の意味しかない。","スティーブ・ジョブズ","米国の実業家、アップル創業者 / 1955～2011"]
[{"$f":"IFERROR(FIND(作業!$B$5,名言集!C678),IFERROR(FIND(作業!$B$5,名言集!D678),\"\"))","v":1},678,"苦しいという言葉だけはどんなことがあっても言わないでおこうじゃないか。","高杉晋作","幕末の志士、長州藩士、奇兵隊を創設 / 1839～1867"]
[{"$f":"IFERROR(FIND(作業!$B$5,名言集!C679),IFERROR(FIND(作業!$B$5,名言集!D679),\"\"))","v":1},679,"たとえ僕の人生が負け戦であっても、僕は最後まで戦いたいんだ。","ゴッホ","オランダ出身のポスト印象派の画家 / 1853～1890"]
[{"$f":"IFERROR(FIND(作業!$B$5,名言集!C680),IFERROR(FIND(作業!$B$5,名言集!D680),\"\"))","v":1},680,"明日死ぬかのように生きよ。永遠に生きるかのように学べ。","ガンジー","インドの弁護士、宗教家、政治指導者 / 1869～1948"]
[{"$f":"IFERROR(FIND(作業!$B$5,名言集!C681),IFERROR(FIND(作業!$B$5,名言集!D681),\"\"))","v":1},681,"人生とは、今日一日一日のことである。確信を持って人生だと言える唯一のものである。今日一日をできるだけ利用するのだ。何かに興味を持とう。自分を揺すって絶えず目覚めていよう。趣味を育てよう。熱中の嵐を体じゅうに吹き通らせよう。今日を心ゆくまで味わって生きるのだ。","デール・カーネギー","米国の実業家、作家、セミナー講師 / 1888～1955"]
[{"$f":"IFERROR(FIND(作業!$B$5,名言集!C682),IFERROR(FIND(作業!$B$5,名言集!D682),\"\"))","v":1},682,"ぼくの人生は塗り絵みたいだ！毎日新しいページに新しい絵があって色を塗るんだ…","チャールズ・M・シュルツ","米国の漫画家、スヌーピーの作者 / 1922～2000"]
[{"$f":"IFERROR(FIND(作業!$B$5,名言集!C683),IFERROR(FIND(作業!$B$5,名言集!D683),\"\"))","v":1},683,"もし私が再びこの人生を繰り返さねばならないとしたら、私の過ごしてきた生活を再び過ごしたい。過去を悔まず、未来を恐れもしないから。","モンテーニュ","フランスの哲学者、モラリスト / 1533～1592"]
[{"$f":"IFERROR(FIND(作業!$B$5,名言集!C684),IFERROR(FIND(作業!$B$5,名言集!D684),\"\"))","v":1},684,"愛するとは、自分の幸せを相手の幸せに重ねることである。","ゴットフリート・ライプニッツ","ドイツの哲学者、数学者 / 1646～1716"]
[{"$f":"IFERROR(FIND(作業!$B$5,名言集!C685),IFERROR(FIND(作業!$B$5,名言集!D685),\"\"))","v":1},685,"恋に落ちると眠れなくなるでしょう。だって、ようやく現実が夢より素敵になったんだから。","ドクター・スース","米国の作家、詩人、漫画家 / 1904～1991"]
[{"$f":"IFERROR(FIND(作業!$B$5,名言集!C686),IFERROR(FIND(作業!$B$5,名言集!D686),\"\"))","v":1},686,"彼女から1000年遠ざかっていても、彼女は私のいとしいひとだよ…　二人の愛は激しすぎておたがいを燃やし尽くしてしまったのさ。","リチャード・バートン","英国の俳優 / 1925～1984"]
[{"$f":"IFERROR(FIND(作業!$B$5,名言集!C687),IFERROR(FIND(作業!$B$5,名言集!D687),\"\"))","v":1},687,"ほんとうは傍にいたい。二十四時間抱き合っていたい。でもそれが出来なくても、黙ってその人を感じている。その人が世界の中にいるというだけで、存在が充たされ、磁石の針がぴたっと一つの方向を指すように、心はその人に向かっている。","岡本敏子","岡本太郎の養女、実質的な妻 / 1926～2005"]
[{"$f":"IFERROR(FIND(作業!$B$5,名言集!C688),IFERROR(FIND(作業!$B$5,名言集!D688),\"\"))","v":1},688,"もし、きみが100歳まで生きるとしたら、ぼくは100歳マイナス1日まで生きたいな。そうすれば、きみなしで生きなくてすむもの。","岡本太郎","日本の芸術家 / 1911～1996"]
[{"$f":"IFERROR(FIND(作業!$B$5,名言集!C689),IFERROR(FIND(作業!$B$5,名言集!D689),\"\"))","v":1},689,"本当にすばらしい女性というのは、目ではなく、心に触れてくるものなんだ。","岡本太郎","日本の芸術家 / 1911～1996"]
[{"$f":"IFERROR(FIND(作業!$B$5,名言集!C690),IFERROR(FIND(作業!$B$5,名言集!D690),\"\"))","v":1},690,"未熟な愛は言う、｢愛してるよ、君が必要だから｣と。成熟した愛は言う、｢君が必要だよ、愛してるから｣と。","エーリッヒ・フロム","ドイツの社会心理学者、精神分析学者 / 1900～1980"]
[{"$f":"IFERROR(FIND(作業!$B$5,名言集!C691),IFERROR(FIND(作業!$B$5,名言集!D691),\"\"))","v":1},691,"女はなぜとか、何のためにとかいった理由なしに愛されることを望むものだ。つまり、美しいからとか、善良であるとか、聡明であるとかいった理由によってではなく、彼女が彼女自身であるという理由によって愛されることを望むものだ。","アミエル","スイスの哲学者、詩人、批評家 / 1821～1881"]
[{"$f":"IFERROR(FIND(作業!$B$5,名言集!C692),IFERROR(FIND(作業!$B$5,名言集!D692),\"\"))","v":1},692,"愛はいつでも贈り物としてあなたのもとにやってくる。突然、何の前ぶれもなしに。私たちは愛されたいと思って愛するのではない。愛したいから愛するのだ。","レオ・ブスカーリア","米国の教育学者 / 1924～1998"]
[{"$f":"IFERROR(FIND(作業!$B$5,名言集!C693),IFERROR(FIND(作業!$B$5,名言集!D693),\"\"))","v":1},693,"愛することによって失うものは何もない。しかし、愛することを怖がっていたら、何も得られない。","バーバラ・デ・アンジェリス","米国の女性作家、心理学者 / 1951～"]
[{"$f":"IFERROR(FIND(作業!$B$5,名言集!C694),IFERROR(FIND(作業!$B$5,名言集!D694),\"\"))","v":1},694,"恋にとっての不在は、火にとっての風。小さいものは消し去り、大きいものはさらに燃え上がらせる。","ビュシー＝ラビュタン","フランスの貴族 / 1618～1693"]
[{"$f":"IFERROR(FIND(作業!$B$5,名言集!C695),IFERROR(FIND(作業!$B$5,名言集!D695),\"\"))","v":1},695,"別れたあとの男と女は思い出を分かちあう。","マルセル・アシャール","フランスの劇作家・映画監督 / 1899～1974"]
[{"$f":"IFERROR(FIND(作業!$B$5,名言集!C696),IFERROR(FIND(作業!$B$5,名言集!D696),\"\"))","v":1},696,"我々男が女を愛するときに、女の弱さも、あやまちも、不完全さも、ちゃんと知りつくした上で愛するんだ。いや、それだからこそいっそう愛するのかもしれない。愛を必要とするのかもしれない。愛を必要とするのは完全な人間じゃない。不完全な人間こそ、愛を必要とするのだ。","オスカー・ワイルド","アイルランドの詩人、作家、劇作家 / 1854～1900"]
[{"$f":"IFERROR(FIND(作業!$B$5,名言集!C697),IFERROR(FIND(作業!$B$5,名言集!D697),\"\"))","v":1},697,"自分が自分自身に出会う、彼女が彼女自身に出会う、お互いが相手の中に自分自身を発見する。それが運命的な出会いというものだ。","岡本太郎","日本の芸術家 / 1911～1996"]
[{"$f":"IFERROR(FIND(作業!$B$5,名言集!C698),IFERROR(FIND(作業!$B$5,名言集!D698),\"\"))","v":1},698,"あなたがいないときに愛は研ぎ澄まされ、あなたといるときに愛は強くなる。","トーマス・フラー","英国の聖職者、歴史家 / 1608～1661"]
[{"$f":"IFERROR(FIND(作業!$B$5,名言集!C699),IFERROR(FIND(作業!$B$5,名言集!D699),\"\"))","v":1},699,"一緒に泣いた時に、はじめてお互いがどんなに愛し合っているのかが分かるものだ。","エミール・デシャン","フランスの詩人 / 1791～1871"]
[{"$f":"IFERROR(FIND(作業!$B$5,名言集!C700),IFERROR(FIND(作業!$B$5,名言集!D700),\"\"))","v":1},700,"月の光も雨の音も、恋してこそ始めて新しい色と響を生ずる。","永井荷風","日本の小説家 / 1879～1959"]
[{"$f":"IFERROR(FIND(作業!$B$5,名言集!C701),IFERROR(FIND(作業!$B$5,名言集!D701),\"\"))","v":1},701,"与えようとばかりして、貰おうとしなかった。なんと愚かな、間違った、誇張された、高慢な、短気な恋愛ではなかったか。ただ相手に与えるだけではいけない。相手からも貰わなくては。","ゴッホ","オランダ出身のポスト印象派の画家 / 1853～1890"]
[{"$f":"IFERROR(FIND(作業!$B$5,名言集!C702),IFERROR(FIND(作業!$B$5,名言集!D702),\"\"))","v":1},702,"愛をうまく告白しようとか、自分の気持ちを言葉で訴えようなんて、構える必要はない。きみの体全体が愛の告白なのだ。","岡本太郎","日本の芸術家 / 1911～1996"]
[{"$f":"IFERROR(FIND(作業!$B$5,名言集!C703),IFERROR(FIND(作業!$B$5,名言集!D703),\"\"))","v":1},703,"愛は行動なのよ。言葉だけではだめなの。言葉だけですんだことなど一度だってなかったわ。私たちには生まれたときから愛する力が備わっている。それでも筋肉と同じで、その力は鍛えなければ衰えていってしまうの…","オードリー・ヘップバーン","英国の女優 / 1929～1993"]
[{"$f":"IFERROR(FIND(作業!$B$5,名言集!C704),IFERROR(FIND(作業!$B$5,名言集!D704),\"\"))","v":1},704,"愛する者は、愛される者より愛の近くにいる。","ジャン・ジロドゥ","フランスの外交官、劇作家、小説家 / 1882～1994"]
[{"$f":"IFERROR(FIND(作業!$B$5,名言集!C705),IFERROR(FIND(作業!$B$5,名言集!D705),\"\"))","v":1},705,"誰かを愛するというのはたんなる激しい感情ではない。それは決意であり、決断であり、約束である。もし愛が単なる感情にすぎないとしたら、「あなたを永遠に愛します」という約束はなんの根拠もないことになる。","エーリッヒ・フロム","ドイツの社会心理学者、精神分析学者 / 1900～1980"]
[{"$f":"IFERROR(FIND(作業!$B$5,名言集!C706),IFERROR(FIND(作業!$B$5,名言集!D706),\"\"))","v":1},706,"愛から逃げてはいけないのだ。必要なだけ時間をかけて、支えを求めるようにしよう。近いうちに苦痛は消え、愛の力がもう一度みなぎるのを感じとれるようになる。","ジョン・グレイ","米国の心理学博士、作家 / 1951～"]
[{"$f":"IFERROR(FIND(作業!$B$5,名言集!C707),IFERROR(FIND(作業!$B$5,名言集!D707),\"\"))","v":1},{"$f":"IF(A707=\"\",B706,B706+1)","v":707},"自分だけが愛することができて、それより前にそこまで愛した人はなく、それより後に同じ方法で愛する人がいないと信じられた時、それが真実の愛のシーズンである。","ゲーテ","ドイツの詩人、小説家、劇作家 / 1749～1832"]
[{"$f":"IFERROR(FIND(作業!$B$5,名言集!C708),IFERROR(FIND(作業!$B$5,名言集!D708),\"\"))","v":1},708,"愛というのは、要するに、自分以外の、もう一人の人間の幸福が、自分自身の幸福にとって、絶対的に、必須欠くべからざるものであるという状態である。","ロバート・A・ハインライン","米国のSF作家 / 1907～1988"]
[{"$f":"IFERROR(FIND(作業!$B$5,名言集!C709),IFERROR(FIND(作業!$B$5,名言集!D709),\"\"))","v":1},709,"男と女は支えあって生きるのだ。ほんとうにそう言いきれる、パートナーを持ちえた人は、人生の勝者です。何でも出来るの。","岡本敏子","岡本太郎の養女、実質的な妻 / 1926～2005"]
[{"$f":"IFERROR(FIND(作業!$B$5,名言集!C710),IFERROR(FIND(作業!$B$5,名言集!D710),\"\"))","v":1},710,"好きな女性が、他の男と結婚しようが、こちらが他の女性と結婚しようが、それはそれだ。ほんとうの出会いは、約束ごとじゃない。恋愛というものさえ超えたものなんだ。","岡本太郎","日本の芸術家 / 1911～1996"]
[{"$f":"IFERROR(FIND(作業!$B$5,名言集!C711),IFERROR(FIND(作業!$B$5,名言集!D711),\"\"))","v":1},711,"私は決して人生に背を向けることはないでしょう。恋からも逃げたりしないわ。","ビリー・ワイルダー","米国の映画監督、脚本家、プロデューサー /1906～2002"]
[{"$f":"IFERROR(FIND(作業!$B$5,名言集!C712),IFERROR(FIND(作業!$B$5,名言集!D712),\"\"))","v":1},712,"正しい友人というものは、あなたが間違っているときに味方してくれる者のこと。正しいときには誰だって味方をしてくれるのだから。","マーク・トウェイン","米国の作家、小説家 / 1835～1910"]
[{"$f":"IFERROR(FIND(作業!$B$5,名言集!C713),IFERROR(FIND(作業!$B$5,名言集!D713),\"\"))","v":1},713,"幸福は香水のごときものである。人に振りかけると自分にも必ずかかる。","エマーソン","米国の思想家、哲学者、作家、詩人 / 1803～1882"]
[{"$f":"IFERROR(FIND(作業!$B$5,名言集!C714),IFERROR(FIND(作業!$B$5,名言集!D714),\"\"))","v":1},714,"セトモノとセトモノとぶつかりっこすると　すぐこわれちゃう　どっちかがやわらかければだいじょうぶ　やわらかいこころを持ちましょう","相田みつを","日本の詩人、書家 / 1924～1991"]
[{"$f":"IFERROR(FIND(作業!$B$5,名言集!C715),IFERROR(FIND(作業!$B$5,名言集!D715),\"\"))","v":1},715,"立派な人間の友情は、温かいからといって花を増やすこともなければ、寒いからといって葉を落とすこともない。どんな時でも衰えず、順境と逆境を経験して、友情はいよいよ堅固なものになっていく。","諸葛孔明","中国、三国時代の蜀漢の政治家、軍人 / 181～234"]
[{"$f":"IFERROR(FIND(作業!$B$5,名言集!C716),IFERROR(FIND(作業!$B$5,名言集!D716),\"\"))","v":1},716,"私たちは皆、互いに助け合いたいと思っている。人間とはそういうものだ。相手の不幸ではなく、お互いの幸福によって生きたいのだ。","チャップリン","英国の俳優、映画監督、コメディアン、脚本家 / 1889～1977"]
[{"$f":"IFERROR(FIND(作業!$B$5,名言集!C717),IFERROR(FIND(作業!$B$5,名言集!D717),\"\"))","v":1},717,"誠実でなければ、人を動かすことはできない。人を感動させるには、自分が心の底から感動しなければならない。自分が涙を流さなければ、人の涙を誘うことはできない。自分が信じなければ、人を信じさせることはできない。","ウィンストン・チャーチル","英国の政治家、ノーベル文学賞受賞 / 1874～1965"]
[{"$f":"IFERROR(FIND(作業!$B$5,名言集!C718),IFERROR(FIND(作業!$B$5,名言集!D718),\"\"))","v":1},718,"あらゆる事物は価値を持っているが、人間は尊厳を有している。人間は決して目的のための手段にされてはならない。","カント","ドイツの哲学者 / 1724～1804"]
[{"$f":"IFERROR(FIND(作業!$B$5,名言集!C719),IFERROR(FIND(作業!$B$5,名言集!D719),\"\"))","v":1},719,"弱い者ほど相手を許すことができない。許すということは、強さの証だ。","ガンジー","インドの弁護士、宗教家、政治指導者 / 1869～1948"]
[{"$f":"IFERROR(FIND(作業!$B$5,名言集!C720),IFERROR(FIND(作業!$B$5,名言集!D720),\"\"))","v":1},720,"自然にひれ伏さなければ、自然はその一番美しいところを見せてくれないと言った人があったが、そのとおりだと思う。物は見下ろすと欠点がよく見えるようだ、見上げるようにすると長所が見えてくる。見下ろして生きるのは不平不満の生き方、見上げて生きるのは感謝の人生だと思う。","帖佐美行","日本の彫金家、文化勲章受章者 / 1915～2002"]
[{"$f":"IFERROR(FIND(作業!$B$5,名言集!C721),IFERROR(FIND(作業!$B$5,名言集!D721),\"\"))","v":1},721,"私がこの世に生れてきたのは　私でなければできない仕事が　何かひとつこの世にあるからなのだ","相田みつを","日本の詩人、書家 / 1924～1991"]
[{"$f":"IFERROR(FIND(作業!$B$5,名言集!C722),IFERROR(FIND(作業!$B$5,名言集!D722),\"\"))","v":1},722,"商売とは、感動を与えることである。","松下幸之助","日本の実業家、発明家、パナソニック創業者 / 1894～1989"]
[{"$f":"IFERROR(FIND(作業!$B$5,名言集!C723),IFERROR(FIND(作業!$B$5,名言集!D723),\"\"))","v":1},723,"我々は得ることで生計を立て、与えることで生きがいを作る。","ウィンストン・チャーチル","英国の政治家、ノーベル文学賞受賞 / 1874～1965"]
[{"$f":"IFERROR(FIND(作業!$B$5,名言集!C724),IFERROR(FIND(作業!$B$5,名言集!D724),\"\"))","v":1},724,"やってみせて、言って聞かせて、やらせてみて、ほめてやらねば、人は動かじ。話し合い、耳を傾け、承認し、任せてやらねば、人は育たず。やっている、姿を感謝で見守って、信頼せねば、人は実らず。","山本五十六","日本の元帥海軍大将 / 1884～1943"]
[{"$f":"IFERROR(FIND(作業!$B$5,名言集!C725),IFERROR(FIND(作業!$B$5,名言集!D725),\"\"))","v":1},725,"人を動かすことのできる人は、他人の気持ちになれる人である。その代わり、他人の気持ちになれる人というのは自分が悩む。自分が悩んだことのない人は、まず人を動かすことはできない。","本田宗一郎","日本の実業家、技術者、ホンダの創業者 / 1906～1991"]
[{"$f":"IFERROR(FIND(作業!$B$5,名言集!C726),IFERROR(FIND(作業!$B$5,名言集!D726),\"\"))","v":1},726,"僕はどんな選手とチームを組みたいのか？僕は、チームのために犠牲を払うのは嫌だ、という5人のスーパースターとチームを組むよりも、個々の能力はそれほどでもないが、ひとつのチームとして結束できる5人の選手とプレイをしたいと思っている。","マイケル・ジョーダン","米国のバスケットボール選手 / 1963～"]
[{"$f":"IFERROR(FIND(作業!$B$5,名言集!C727),IFERROR(FIND(作業!$B$5,名言集!D727),\"\"))","v":1},727,"一つの冷静な判断は千のやかましい会議に勝っている。なすべきことは光を与えることであって熱を与えることではない。","ウッドロウ・ウィルソン","米国の政治家、政治学者 / 1856～1924"]
[{"$f":"IFERROR(FIND(作業!$B$5,名言集!C728),IFERROR(FIND(作業!$B$5,名言集!D728),\"\"))","v":1},728,"私が事業家にいいたいのは、ここだ。宇宙の心理に背いた、自分本位の欲望でもってしようとしたことは、そう滅多に成功するものではない。事業に成功するのは、自分が欲望から離れて何かを考えたときに、また、その考えたことを実行するときに成功するのだ。同じ事業家でも、欲の固まりでやる者と、「この仕事で、世の中の人のために、本当に役立つものを提供しよう」という気持ちでやるのでは、その結果が全然違うのである。","中村天風","日本初のヨーガ行者、天風会の創始者 / 1876～1968"]
[{"$f":"IFERROR(FIND(作業!$B$5,名言集!C729),IFERROR(FIND(作業!$B$5,名言集!D729),\"\"))","v":1},729,"小さい夢は見るな。それには人の心を動かす力がないからだ。","ゲーテ","ドイツの詩人、小説家、劇作家 / 1749～1832"]
[{"$f":"IFERROR(FIND(作業!$B$5,名言集!C730),IFERROR(FIND(作業!$B$5,名言集!D730),\"\"))","v":1},730,"一個人がいかに富んでいても、社会全体が貧乏であったら、その人の幸福は保証されない。その事業が個人を利するだけでなく、多数社会を利してゆくのでなければ、決して正しい商売とはいえない。","渋沢栄一","日本の武士、官僚、実業家、日本資本主義の父 / 1840～1931"]
[{"$f":"IFERROR(FIND(作業!$B$5,名言集!C731),IFERROR(FIND(作業!$B$5,名言集!D731),\"\"))","v":1},731,"経営とは、人として正しい生き方を貫くことだ。","稲盛和夫","日本の実業家、京セラ、KDDIの創業者 / 1932～"]
[{"$f":"IFERROR(FIND(作業!$B$5,名言集!C732),IFERROR(FIND(作業!$B$5,名言集!D732),\"\"))","v":1},732,"ディズニーランドが完成することはない。世の中に想像力がある限り進化し続けるだろう。","ウォルト・ディズニー","米国のエンターテイナー、実業家 / 1901～1966"]
[{"$f":"IFERROR(FIND(作業!$B$5,名言集!C733),IFERROR(FIND(作業!$B$5,名言集!D733),\"\"))","v":1},733,"失敗なんかしちゃいない。うまくいかない方法を一万通り見つけただけだ。","トーマス・エジソン","米国の発明家、起業家 / 1847～1931"]
[{"$f":"IFERROR(FIND(作業!$B$5,名言集!C734),IFERROR(FIND(作業!$B$5,名言集!D734),\"\"))","v":1},734,"アップルがやらないと、どこもやらない。だから僕はここにいるんだ。","スティーブ・ジョブズ","米国の実業家、アップル創業者 / 1955～2011"]
[{"$f":"IFERROR(FIND(作業!$B$5,名言集!C735),IFERROR(FIND(作業!$B$5,名言集!D735),\"\"))","v":1},735,"アイデアの秘訣は執念である。","湯川秀樹","日本の理論物理学者、ノーベル物理学賞受賞 / 1907～1981"]
[{"$f":"IFERROR(FIND(作業!$B$5,名言集!C736),IFERROR(FIND(作業!$B$5,名言集!D736),\"\"))","v":1},736,"結局、我々は敵の言葉ではなく友人の沈黙を覚えているものなのだ。","キング牧師","米国の牧師、公民権運動の指導者 / 1929～1968"]
[{"$f":"IFERROR(FIND(作業!$B$5,名言集!C737),IFERROR(FIND(作業!$B$5,名言集!D737),\"\"))","v":1},737,"最高の友は、私の中から最高の私を引き出してくれる友である。","ヘンリー・フォード","米国のフォード・モーター創業者 / 1863～1947"]
[{"$f":"IFERROR(FIND(作業!$B$5,名言集!C738),IFERROR(FIND(作業!$B$5,名言集!D738),\"\"))","v":1},738,"光の中を一人で歩むよりも、闇の中を友人と共に歩むほうが良い。","ヘレン・ケラー","米国の教育家、社会福祉活動家、著作家 / 1880～1968"]
[{"$f":"IFERROR(FIND(作業!$B$5,名言集!C739),IFERROR(FIND(作業!$B$5,名言集!D739),\"\"))","v":1},739,"誰でも友人の悩みには共感を寄せることができる。しかし友人の成功に共感を寄せるには優れた資質が必要だ。","オスカー・ワイルド","アイルランドの詩人、作家、劇作家 / 1854～1900"]
[{"$f":"IFERROR(FIND(作業!$B$5,名言集!C740),IFERROR(FIND(作業!$B$5,名言集!D740),\"\"))","v":1},740,"山から遠ざかればますますその本当の姿を見ることができる。友人にしてもこれと同じである。","アンデルセン","デンマークの童話作家、詩人 / 1805～1875"]
[{"$f":"IFERROR(FIND(作業!$B$5,名言集!C741),IFERROR(FIND(作業!$B$5,名言集!D741),\"\"))","v":1},741,"悪い仲間は犬のようなものだ。一番好きな相手を一番ひどく汚してしまう。","ジョナサン・スウィフト","アイルランドの作家 / 1667～1745"]
[{"$f":"IFERROR(FIND(作業!$B$5,名言集!C742),IFERROR(FIND(作業!$B$5,名言集!D742),\"\"))","v":1},742,"友達に好かれようなどと思わず、友達から孤立してもいいと腹をきめて、自分を貫いていけば、本当の意味でみんなに喜ばれる人間になれる。","岡本太郎","日本の芸術家 / 1911～1996"]
[{"$f":"IFERROR(FIND(作業!$B$5,名言集!C743),IFERROR(FIND(作業!$B$5,名言集!D743),\"\"))","v":1},743,"酒が作り出した友情は、酒のように一晩しかもたない。","ローガウ","ドイツの詩人 / 1604～1655"]
[{"$f":"IFERROR(FIND(作業!$B$5,名言集!C744),IFERROR(FIND(作業!$B$5,名言集!D744),\"\"))","v":1},744,"君の失敗を友人に告げること、それが友人を大いに信頼するということだ。友人の失敗を友人につげるより、より偉大な信頼なのだ。","ベンジャミン・フランクリン","米国の政治家、外交官、物理学者 / 1706～1790"]
[{"$f":"IFERROR(FIND(作業!$B$5,名言集!C745),IFERROR(FIND(作業!$B$5,名言集!D745),\"\"))","v":1},745,"難しいのは友のために死ぬことではない。命をかけるだけの価値がある友を見つけることが難しいのだ。","マーク・トウェイン","米国の作家、小説家 / 1835～1910"]
[{"$f":"IFERROR(FIND(作業!$B$5,名言集!C746),IFERROR(FIND(作業!$B$5,名言集!D746),\"\"))","v":1},746,"自分が友達に望んでいる通りに、友達には振る舞わねばならぬ。","アリストテレス","古代ギリシアの哲学者 / 紀元前384～前322"]
[{"$f":"IFERROR(FIND(作業!$B$5,名言集!C747),IFERROR(FIND(作業!$B$5,名言集!D747),\"\"))","v":1},747,"多くの愚者を友とするより、一人の知者を友とするべきである。","デモクリトス","古代ギリシアの哲学者 / 紀元前460頃～370頃"]
[{"$f":"IFERROR(FIND(作業!$B$5,名言集!C748),IFERROR(FIND(作業!$B$5,名言集!D748),\"\"))","v":1},748,"友への同情は、堅い殻の下にひそんでいるのがいい。","ニーチェ","ドイツの哲学者、古典文献学者 / 1844～1900"]
[{"$f":"IFERROR(FIND(作業!$B$5,名言集!C749),IFERROR(FIND(作業!$B$5,名言集!D749),\"\"))","v":1},749,"友の幸福のためにどれだけ尽くしているか、そこに人間の偉大さを測る物差しがある。","ガンジー","インドの弁護士、宗教家、政治指導者 / 1869～1948"]
[{"$f":"IFERROR(FIND(作業!$B$5,名言集!C750),IFERROR(FIND(作業!$B$5,名言集!D750),\"\"))","v":1},750,"友たるものは、推察と沈黙に熟達した者でなければならない。","ニーチェ","ドイツの哲学者、古典文献学者 / 1844～1900"]
[{"$f":"IFERROR(FIND(作業!$B$5,名言集!C751),IFERROR(FIND(作業!$B$5,名言集!D751),\"\"))","v":1},751,"不幸は、本当の友人でない者を明らかにする。","アリストテレス","古代ギリシアの哲学者 / 紀元前384～前322"]
[{"$f":"IFERROR(FIND(作業!$B$5,名言集!C752),IFERROR(FIND(作業!$B$5,名言集!D752),\"\"))","v":1},752,"何かがおかしくなりはじめた時に指摘してくれる人間を人生で一人でも見つけられれば、とても幸運だ。","マイルス・デイヴィス","米国のジャズトランペット奏者 / 1926～1991"]
[{"$f":"IFERROR(FIND(作業!$B$5,名言集!C753),IFERROR(FIND(作業!$B$5,名言集!D753),\"\"))","v":1},753,"欠点のない友人を見つけようとしても、決して見つからない。","トーマス・フラー","英国の聖職者、歴史家 / 1608～1661"]
[{"$f":"IFERROR(FIND(作業!$B$5,名言集!C754),IFERROR(FIND(作業!$B$5,名言集!D754),\"\"))","v":1},754,"人は通常、金を貸すことを断ることによって友を失わず、金を貸すことによってたやすく友を失う。","ショーペンハウアー","ドイツの哲学者 / 1788～1860"]
[{"$f":"IFERROR(FIND(作業!$B$5,名言集!C755),IFERROR(FIND(作業!$B$5,名言集!D755),\"\"))","v":1},755,"君の友人を教えなさい。そうすれば、君がどういう人間か言ってみせよう。","セルバンテス","スペインの小説家『ドン・キホーテ』著者 / 1547～1616"]
[{"$f":"IFERROR(FIND(作業!$B$5,名言集!C756),IFERROR(FIND(作業!$B$5,名言集!D756),\"\"))","v":1},756,"誰の友にもなろうとする人間は、誰の友人でもない。","ヴィルヘルム・ベッファー","ドイツの植物学者 / 1845～1920"]
[{"$f":"IFERROR(FIND(作業!$B$5,名言集!C757),IFERROR(FIND(作業!$B$5,名言集!D757),\"\"))","v":1},757,"友人の信頼の度合いは人の死や緊急事態、困難の状況の時に分かる。","高杉晋作","幕末の志士、長州藩士、奇兵隊を創設 / 1839～1867"]
[{"$f":"IFERROR(FIND(作業!$B$5,名言集!C758),IFERROR(FIND(作業!$B$5,名言集!D758),\"\"))","v":1},758,"人々は悲しみを分かち合ってくれる友達さえいれば、悲しみを和らげられる。","シェイクスピア","英国の劇作家、詩人 / 1564～1616"]
[{"$f":"IFERROR(FIND(作業!$B$5,名言集!C759),IFERROR(FIND(作業!$B$5,名言集!D759),\"\"))","v":1},759,"真の友愛においては、私は友を自分の方に引き寄せるよりも、むしろ自分を友に与える。","モンテーニュ","フランスの哲学者、モラリスト / 1533～1592"]
[{"$f":"IFERROR(FIND(作業!$B$5,名言集!C760),IFERROR(FIND(作業!$B$5,名言集!D760),\"\"))","v":1},760,"不幸は我々に真の友人を教えうるという長所がある。","バルザック","フランスの小説家 / 1799～1850"]
[{"$f":"IFERROR(FIND(作業!$B$5,名言集!C761),IFERROR(FIND(作業!$B$5,名言集!D761),\"\"))","v":1},761,"友情はぶどう酒である。新しいうちは口当たりが悪いが、年月を経て醸成されると、老いた者を元気づけ、若返らせる。","トーマス・ジェファーソン","米国の第3代大統領、アメリカ独立宣言の主要な作者 / 1743～1826"]
[{"$f":"IFERROR(FIND(作業!$B$5,名言集!C762),IFERROR(FIND(作業!$B$5,名言集!D762),\"\"))","v":1},762,"友情には恋愛と同様に勘違いがある。","スタンダール","フランスの小説家『赤と黒』著者 / 1783～1842"]
[{"$f":"IFERROR(FIND(作業!$B$5,名言集!C763),IFERROR(FIND(作業!$B$5,名言集!D763),\"\"))","v":1},763,"見えないところで、私のことを良く言っている人は、私の友人である。","トーマス・フラー","英国の聖職者、歴史家 / 1608～1661"]
[{"$f":"IFERROR(FIND(作業!$B$5,名言集!C764),IFERROR(FIND(作業!$B$5,名言集!D764),\"\"))","v":1},764,"運の移り変わりは、友情の信頼性を試す。","キケロ","共和政ローマの政治家、文筆家、哲学者 / 紀元前106～前43"]
[{"$f":"IFERROR(FIND(作業!$B$5,名言集!C765),IFERROR(FIND(作業!$B$5,名言集!D765),\"\"))","v":1},765,"我々は、その長所よりも欠点によって友を知るのだ。","サマセット・モーム","英国の劇作家、小説家 / 1874～1965"]
[{"$f":"IFERROR(FIND(作業!$B$5,名言集!C766),IFERROR(FIND(作業!$B$5,名言集!D766),\"\"))","v":1},766,"真の友情は、本当の事を教えられるという事である。友情は、盲目と無知の中には存在しないのだ。","ソロー","米国の作家、詩人、思想家 / 1817～1862"]
[{"$f":"IFERROR(FIND(作業!$B$5,名言集!C767),IFERROR(FIND(作業!$B$5,名言集!D767),\"\"))","v":1},767,"人生から友情を取り去ることは、世界から太陽を取り去ることに等しい。","キケロ","共和政ローマの政治家、文筆家、哲学者 / 紀元前106～前43"]
[{"$f":"IFERROR(FIND(作業!$B$5,名言集!C768),IFERROR(FIND(作業!$B$5,名言集!D768),\"\"))","v":1},768,"友人同士はしばしば離ればなれとなる。親交よりも互いのプライバシーを尊重するようになるからだ。","ソロー","米国の作家、詩人、思想家 / 1817～1862"]
[{"$f":"IFERROR(FIND(作業!$B$5,名言集!C769),IFERROR(FIND(作業!$B$5,名言集!D769),\"\"))","v":1},769,"最高の孤独は、ひとりも親友がいないことだ。親友がいなければ世界は荒野に過ぎない。","フランシス・ベーコン","英国の哲学者、神学者、法学者 / 1561～1626"]
[{"$f":"IFERROR(FIND(作業!$B$5,名言集!C770),IFERROR(FIND(作業!$B$5,名言集!D770),\"\"))","v":1},770,"友人がいなければ、誰も生きることを選ばないだろう。たとえ、他のあらゆるものが手に入っても。","アリストテレス","古代ギリシアの哲学者 / 紀元前384～前322"]
[{"$f":"IFERROR(FIND(作業!$B$5,名言集!C771),IFERROR(FIND(作業!$B$5,名言集!D771),\"\"))","v":1},{"$f":"IF(A771=\"\",B770,B770+1)","v":771},"軽率に朋友となるなかれ。すでに朋友たれば軽率に離るるなかれ。","ソロン","古代アテナイの政治家、立法者、詩人 / 紀元前639頃～559頃"]
[{"$f":"IFERROR(FIND(作業!$B$5,名言集!C772),IFERROR(FIND(作業!$B$5,名言集!D772),\"\"))","v":1},772,"友人とは、あなたについてすべてのことを知っていて、それにもかかわらずあなたを好んでいる人のことである。","エルバート・ハバード","米国の作家、アーティスト、哲学者 / 1856～1915"]
[{"$f":"IFERROR(FIND(作業!$B$5,名言集!C773),IFERROR(FIND(作業!$B$5,名言集!D773),\"\"))","v":1},773,"よき友を持つものは、自分の方でもよき友に、なれるものでなければならない。自分だけが得することは、不可能である。","武者小路実篤","日本の小説家、詩人、劇作家、画家 / 1885～1976"]
[{"$f":"IFERROR(FIND(作業!$B$5,名言集!C774),IFERROR(FIND(作業!$B$5,名言集!D774),\"\"))","v":1},774,"グチは一度目は聞いてあげよう。二度目は話題を変えてあげよう。","斎藤茂太","日本の精神科医、随筆家 / 1916～2006"]
[{"$f":"IFERROR(FIND(作業!$B$5,名言集!C775),IFERROR(FIND(作業!$B$5,名言集!D775),\"\"))","v":1},775,"女は常に好人物を夫に持ちたがるものではない。しかし男は好人物を常に友だちに持ちたがるものである。","芥川龍之介","日本の小説家 / 1892年～1927年"]
[{"$f":"IFERROR(FIND(作業!$B$5,名言集!C776),IFERROR(FIND(作業!$B$5,名言集!D776),\"\"))","v":1},776,"友情とは、二つの肉体に宿る一つの魂のことである。","アリストテレス","古代ギリシアの哲学者 / 紀元前384～前322"]
[{"$f":"IFERROR(FIND(作業!$B$5,名言集!C777),IFERROR(FIND(作業!$B$5,名言集!D777),\"\"))","v":1},777,"友情関係は同等関係である。","カント","ドイツの哲学者 / 1724～1804"]
[{"$f":"IFERROR(FIND(作業!$B$5,名言集!C778),IFERROR(FIND(作業!$B$5,名言集!D778),\"\"))","v":1},778,"真の友情はゆっくり成長する植物である。友情と呼ぶにふさわしいところまで成長するには、度重なる危機にも耐え抜かねばならない。","ジョージ・ワシントン","米国の軍人、政治家、米国初代大統領 / 1732～1799"]
[{"$f":"IFERROR(FIND(作業!$B$5,名言集!C779),IFERROR(FIND(作業!$B$5,名言集!D779),\"\"))","v":1},779,"電気的な通信手段は、対面して勇敢で誠実であれと心から鼓舞する人の代わりを果たすことは決してないであろう。","チャールズ・ディケンズ","英国の小説家 / 1812～1870"]
[{"$f":"IFERROR(FIND(作業!$B$5,名言集!C780),IFERROR(FIND(作業!$B$5,名言集!D780),\"\"))","v":1},780,"哀れな犬、人生で最も揺るぎない友。誰よりも先に迎え入れ、誰よりも先にわたしを守ろうとする。","バイロン","英国の詩人 / 1788～1824"]
[{"$f":"IFERROR(FIND(作業!$B$5,名言集!C781),IFERROR(FIND(作業!$B$5,名言集!D781),\"\"))","v":1},781,"結婚のための愛は人間をつくるが、友情の愛は人間を完成する。","フランシス・ベーコン","英国の哲学者、神学者、法学者 / 1561～1626"]
[{"$f":"IFERROR(FIND(作業!$B$5,名言集!C782),IFERROR(FIND(作業!$B$5,名言集!D782),\"\"))","v":1},782,"私は世界に二つの宝を持っていた。私の友と私の魂と。","ロマン・ロラン","フランスの作家、ノーベル文学賞受賞 / 1866～1944"]
[{"$f":"IFERROR(FIND(作業!$B$5,名言集!C783),IFERROR(FIND(作業!$B$5,名言集!D783),\"\"))","v":1},783,"友情とは翼のないキューピットである。","バイロン","英国の詩人 / 1788～1824"]
[{"$f":"IFERROR(FIND(作業!$B$5,名言集!C784),IFERROR(FIND(作業!$B$5,名言集!D784),\"\"))","v":1},784,"友情は魂の結びつきである。","ヴォルテール","フランスの哲学者、作家、文学者、歴史家 / 1694～1778"]
[{"$f":"IFERROR(FIND(作業!$B$5,名言集!C785),IFERROR(FIND(作業!$B$5,名言集!D785),\"\"))","v":1},785,"別れの激しい苦痛によってのみ、愛の深みを見ることができるのだ。","ジョージ・エリオット","英国の女性作家 / 1819～1880"]
[{"$f":"IFERROR(FIND(作業!$B$5,名言集!C786),IFERROR(FIND(作業!$B$5,名言集!D786),\"\"))","v":1},786,"愛情に満ちあふれた心には、悲しみもまた多いものである。","ドストエフスキー","ロシアの小説家、思想家 / 1821～1881"]
[{"$f":"IFERROR(FIND(作業!$B$5,名言集!C787),IFERROR(FIND(作業!$B$5,名言集!D787),\"\"))","v":1},787,"すべての出来事には意味があるわ。生きていくこととは、その意味を理解すること。","スザンヌ・サマーズ","米国の女優、作家 / 1946～"]
[{"$f":"IFERROR(FIND(作業!$B$5,名言集!C788),IFERROR(FIND(作業!$B$5,名言集!D788),\"\"))","v":1},788,"もしも美しいまつげの下に、涙がふくらみたまるならば、それがあふれ出ないように、強い勇気をもってこらえよ。","ベートーヴェン","ドイツの作曲家 / 1770～1827"]
[{"$f":"IFERROR(FIND(作業!$B$5,名言集!C789),IFERROR(FIND(作業!$B$5,名言集!D789),\"\"))","v":1},789,"最初のキスを笑いながら交わして、いざ別れるとなっても、しんみりとやさしい話をして別れるのが、一番安全でいい。","シュニッツラー","オーストリアの小説家、劇作家 / 1862～1931"]
[{"$f":"IFERROR(FIND(作業!$B$5,名言集!C790),IFERROR(FIND(作業!$B$5,名言集!D790),\"\"))","v":1},790,"運命を素直に受けいれなさい。","ジーン・シノダ・ボーレン","日系アメリカ人の女性精神科医、作家"]
[{"$f":"IFERROR(FIND(作業!$B$5,名言集!C791),IFERROR(FIND(作業!$B$5,名言集!D791),\"\"))","v":1},791,"暗闇を呪うくらいなら、ローソクに灯をともしましょう。","エレノア・ルーズベルト","米国のファーストレディ、人権活動家 / 1884～1962"]
[{"$f":"IFERROR(FIND(作業!$B$5,名言集!C792),IFERROR(FIND(作業!$B$5,名言集!D792),\"\"))","v":1},792,"人はしばしば恋に欺かれ、恋に傷つき、不幸にもなる。それでも人に恋するのだ。","ミュッセ","フランスのロマン主義の作家 / 1810～1857"]
[{"$f":"IFERROR(FIND(作業!$B$5,名言集!C793),IFERROR(FIND(作業!$B$5,名言集!D793),\"\"))","v":1},793,"自分の全生命を女の愛というカードに賭けた男が、このカードが殺された時、がっくりとなって何事も手につかないほど放心してしまうようなら、そんな人間は　–　男ではなく、ただのオスである。","ツルゲーネフ","ロシアの小説家 / 1818～1883"]
[{"$f":"IFERROR(FIND(作業!$B$5,名言集!C794),IFERROR(FIND(作業!$B$5,名言集!D794),\"\"))","v":1},794,"愛の物語が幕を閉じたときは、そっと爪先立って抜け出すこと。相手の男の重荷になるべきではない。","ココ・シャネル","フランスのファッションデザイナー / 1883～1971"]
[{"$f":"IFERROR(FIND(作業!$B$5,名言集!C795),IFERROR(FIND(作業!$B$5,名言集!D795),\"\"))","v":1},795,"時は悲しみと口論の傷を癒す。人はみな変わる。過去の自分はもはや現在の自分ではない。悩む者も悩ます者も、時がたてば別人になる。","パスカル","フランスの哲学者、思想家、数学者 / 1623～1662"]
[{"$f":"IFERROR(FIND(作業!$B$5,名言集!C796),IFERROR(FIND(作業!$B$5,名言集!D796),\"\"))","v":1},796,"一人を失ったからといって嘆くことはない。男と女は半分ずついるのだから。","戴聖","中国、前漢の儒学者 / 生没年未詳"]
[{"$f":"IFERROR(FIND(作業!$B$5,名言集!C797),IFERROR(FIND(作業!$B$5,名言集!D797),\"\"))","v":1},797,"失恋があるからこそ、人生って素晴らしくなるのよ　-　ただし五年後の話だけど。","フィリス・バッテル","米国の女性ジャーナリスト / 1922～"]
[{"$f":"IFERROR(FIND(作業!$B$5,名言集!C798),IFERROR(FIND(作業!$B$5,名言集!D798),\"\"))","v":1},798,"愛の終わりはいつも善悪を越えたところで起こる。","ニーチェ","ドイツの哲学者、古典文献学者 / 1844～1900"]
[{"$f":"IFERROR(FIND(作業!$B$5,名言集!C799),IFERROR(FIND(作業!$B$5,名言集!D799),\"\"))","v":1},799,"失敗しなくちゃ、成功はしないわよ。","ココ・シャネル","フランスのファッションデザイナー / 1883～1971"]
[{"$f":"IFERROR(FIND(作業!$B$5,名言集!C800),IFERROR(FIND(作業!$B$5,名言集!D800),\"\"))","v":1},800,"許すことは忘れることとはちがう。つらい記憶を水に流し、心の痛みを消すことなのです。","メアリ・マクロード・ブスーン","米国の黒人女性教育者 / 1875～1955"]
[{"$f":"IFERROR(FIND(作業!$B$5,名言集!C801),IFERROR(FIND(作業!$B$5,名言集!D801),\"\"))","v":1},801,"いつ前に進むべきかは、自分の魂がおしえてくれるわ。","オプラ・ウィンフリー","米国の女性テレビ司会者、女優 / 1954～"]
[{"$f":"IFERROR(FIND(作業!$B$5,名言集!C802),IFERROR(FIND(作業!$B$5,名言集!D802),\"\"))","v":1},802,"あやまちなどというものは存在しません。あやまちはそこから必ずなにかを学べる恵みなのです。","エリザベス・キューブラー・ロス","スイスの女性精神科医、作家 / 1926～2004"]
[{"$f":"IFERROR(FIND(作業!$B$5,名言集!C803),IFERROR(FIND(作業!$B$5,名言集!D803),\"\"))","v":1},803,"恋の終わりは、自分から立ち去ること。","ココ・シャネル","フランスのファッションデザイナー / 1883～1971"]
[{"$f":"IFERROR(FIND(作業!$B$5,名言集!C804),IFERROR(FIND(作業!$B$5,名言集!D804),\"\"))","v":1},804,"こんなにも長い間共鳴し合えたこと、それだけですでにすばらしいことなのだ。","ボーヴォワール","フランスの女性作家、哲学者 / 1908～1986"]
[{"$f":"IFERROR(FIND(作業!$B$5,名言集!C805),IFERROR(FIND(作業!$B$5,名言集!D805),\"\"))","v":1},805,"恋がさめるというのはとても啓発的です。しばらくの間、新しい目で世界を見るでしょう。","アイリス・マードック","アイルランドの女性作家、哲学者、詩人 / 1919～1999"]
[{"$f":"IFERROR(FIND(作業!$B$5,名言集!C806),IFERROR(FIND(作業!$B$5,名言集!D806),\"\"))","v":1},806,"忘れること、それが最上の治療法であり、恋人との愛をつなぐエチケットです。","宇野千代","日本の女性作家 / 1897～1996"]
[{"$f":"IFERROR(FIND(作業!$B$5,名言集!C807),IFERROR(FIND(作業!$B$5,名言集!D807),\"\"))","v":1},807,"深く愛することのできる者のみが、また大きな苦痛をも味わうことができるのだ。","トルストイ","ロシアの小説家、思想家 / 1828～1910"]
[{"$f":"IFERROR(FIND(作業!$B$5,名言集!C808),IFERROR(FIND(作業!$B$5,名言集!D808),\"\"))","v":1},808,"恋はその始まりがいつも美しすぎる。結末が決して良くないのも無理からぬことだ。","ドーマ","詳細不明"]
[{"$f":"IFERROR(FIND(作業!$B$5,名言集!C809),IFERROR(FIND(作業!$B$5,名言集!D809),\"\"))","v":1},809,"愛する勇気がある者には、かならず苦しむ勇気がある。","アントニー・トロロープ","英国の作家 / 1815～1882"]
[{"$f":"IFERROR(FIND(作業!$B$5,名言集!C810),IFERROR(FIND(作業!$B$5,名言集!D810),\"\"))","v":1},810,"この世で経験することは、なに一つ空しいものはない、歓びも悲しみも、みんな我々によく生きることを教えてくれる。","山本周五郎","日本の小説家 / 1903～1967"]
[{"$f":"IFERROR(FIND(作業!$B$5,名言集!C811),IFERROR(FIND(作業!$B$5,名言集!D811),\"\"))","v":1},811,"恋が強烈でないのは恋の自然に反しており、恋が変わりなく続くのは、強烈であるべき恋の自然に反している。","モンテーニュ","フランスの哲学者、モラリスト / 1533～1592"]
[{"$f":"IFERROR(FIND(作業!$B$5,名言集!C812),IFERROR(FIND(作業!$B$5,名言集!D812),\"\"))","v":1},812,"恋をして恋を失った方が、一度も恋をしなかったよりマシである。","テニスン","英国の詩人 / 1809～1892"]
[{"$f":"IFERROR(FIND(作業!$B$5,名言集!C813),IFERROR(FIND(作業!$B$5,名言集!D813),\"\"))","v":1},813,"人生にはいろいろなことがあります。しかし、悲しいことは忘れ、辛いことはじっと耐え忍んでいきましょう。それがこの四苦八苦の世を生きる唯一の方法ではないかと思います。","瀬戸内寂聴","日本の女性小説家、天台宗の尼僧 / 1922～"]
[{"$f":"IFERROR(FIND(作業!$B$5,名言集!C814),IFERROR(FIND(作業!$B$5,名言集!D814),\"\"))","v":1},814,"何もかもが変わっていく瞬間があります。今まで嘆いていたことが突然どうでもいいことに思えてくるのです。","アイリス・マードック","アイルランドの女性作家、哲学者、詩人 / 1919～1999"]
[{"$f":"IFERROR(FIND(作業!$B$5,名言集!C815),IFERROR(FIND(作業!$B$5,名言集!D815),\"\"))","v":1},815,"別れの辛さに馴れることは決してありません。幾度繰り返しても、別れは辛く苦しいものです。それでも、私たちは死ぬまで人を愛さずにはいられません。それが人間なのです。","瀬戸内寂聴","日本の女性小説家、天台宗の尼僧 / 1922～"]
[{"$f":"IFERROR(FIND(作業!$B$5,名言集!C816),IFERROR(FIND(作業!$B$5,名言集!D816),\"\"))","v":1},816,"夜になって星が輝き始めるのは、悲しみが我々に真実を示してくれるのに似ている。","ベイリー","英国の推理小説家 / 1878～1961"]
[{"$f":"IFERROR(FIND(作業!$B$5,名言集!C817),IFERROR(FIND(作業!$B$5,名言集!D817),\"\"))","v":1},817,"失望に終わった恋は、次の恋に対するちょっとした免疫になる。","ウルスラ・アンドレス","スイス出身の映画女優、初代ボンドガール / 1936～"]
[{"$f":"IFERROR(FIND(作業!$B$5,名言集!C818),IFERROR(FIND(作業!$B$5,名言集!D818),\"\"))","v":1},818,"愛の原則においては、早々と失望することが、通常、回復薬として描かれる。","セルバンテス","スペインの小説家『ドン・キホーテ』著者 / 1547～1616"]
[{"$f":"IFERROR(FIND(作業!$B$5,名言集!C819),IFERROR(FIND(作業!$B$5,名言集!D819),\"\"))","v":1},819,"大丈夫、大丈夫、いつかはここを抜ける日がやってくる。","よしもとばなな","日本の女性作家 / 1964～"]
[{"$f":"IFERROR(FIND(作業!$B$5,名言集!C820),IFERROR(FIND(作業!$B$5,名言集!D820),\"\"))","v":1},820,"もう一度、愛を信じる勇気を持って。そう、常にもう一度よ。","マヤ・アンジェロウ","米国の詩人、作家、公民権運動家 / 1928～2014"]
[{"$f":"IFERROR(FIND(作業!$B$5,名言集!C821),IFERROR(FIND(作業!$B$5,名言集!D821),\"\"))","v":1},821,"失恋して痩せることができるのなら、何回でも失恋したいわ。","コレット","フランスの女性作家 / 1873～1954"]
[{"$f":"IFERROR(FIND(作業!$B$5,名言集!C822),IFERROR(FIND(作業!$B$5,名言集!D822),\"\"))","v":1},822,"心は、過去の悲しみから脱皮するもの。","エラ・ウィーラー・ウィルコックス","米国の女性作家、詩人 / 1850～1919"]
[{"$f":"IFERROR(FIND(作業!$B$5,名言集!C823),IFERROR(FIND(作業!$B$5,名言集!D823),\"\"))","v":1},823,"始まりと呼ばれるものは、しばしば終末であり、終止符を打つということは、新たな始まりである。終着点は、出発点である。","ドロシー・ディックス","米国のジャーナリスト / 1861～1951"]
[{"$f":"IFERROR(FIND(作業!$B$5,名言集!C824),IFERROR(FIND(作業!$B$5,名言集!D824),\"\"))","v":1},824,"涙で目が洗えるほどたくさん泣いた女は、視野が広くなるの。","ドロシー・ディックス","米国のジャーナリスト / 1861～1951"]
[{"$f":"IFERROR(FIND(作業!$B$5,名言集!C825),IFERROR(FIND(作業!$B$5,名言集!D825),\"\"))","v":1},825,"あつーいお風呂に肩までつかっても癒やせない、そんな悲しみがこの世にあるとは思えません。","スーザン・グラスペル","米国の女性作家、劇作家 / 1882～1948"]
[{"$f":"IFERROR(FIND(作業!$B$5,名言集!C826),IFERROR(FIND(作業!$B$5,名言集!D826),\"\"))","v":1},826,"虹を見たければ、ちょっとやそっとの雨は我慢しなくちゃ。","ドリー・パートン","米国のシンガーソングライター、女優 / 1946～"]
[{"$f":"IFERROR(FIND(作業!$B$5,名言集!C827),IFERROR(FIND(作業!$B$5,名言集!D827),\"\"))","v":1},827,"世間に一杯いる情熱的な女で、捨てられたら死んでしまうと公言しなかったのは一人もありません。ところがそんなので今に生き永らえていない女、悲しみを忘れずにいる女は、一人もいないのです。","コンスタン","フランスの小説家、思想家、政治家 / 1767～1830"]
[{"$f":"IFERROR(FIND(作業!$B$5,名言集!C828),IFERROR(FIND(作業!$B$5,名言集!D828),\"\"))","v":1},828,"どんな悲しみに出会っても、それでも人生は生きるに値する。","村山由佳","日本の女性作家 / 1964～"]
[{"$f":"IFERROR(FIND(作業!$B$5,名言集!C829),IFERROR(FIND(作業!$B$5,名言集!D829),\"\"))","v":1},829,"上手に別れられるなどということは、まったく稀なのだ。そういうのは、ちゃんとうまくいっていたら、別れたりはしやしない。","マルセル・プルースト","フランスの作家 / 1871～1922"]
[{"$f":"IFERROR(FIND(作業!$B$5,名言集!C830),IFERROR(FIND(作業!$B$5,名言集!D830),\"\"))","v":1},830,"人は人に捨てられたりなんかしない。自分が自分を捨てることしかできないよ。","よしもとばなな","日本の女性作家 / 1964～"]
[{"$f":"IFERROR(FIND(作業!$B$5,名言集!C831),IFERROR(FIND(作業!$B$5,名言集!D831),\"\"))","v":1},831,"ひとつひとつの悲しみには意味がある。時には、思いもよらない意味がある。どんな悲しみであろうと、それは、このうえなく大切なもの。太陽がいつも朝を連れてくるように、それは確かなことなのですよ。","エラ・ウィーラー・ウィルコックス","米国の女性作家、詩人 / 1850～1919"]
[{"$f":"IFERROR(FIND(作業!$B$5,名言集!C832),IFERROR(FIND(作業!$B$5,名言集!D832),\"\"))","v":1},832,"笑いとばせるようなことを見つければいいのよ。","マヤ・アンジェロウ","米国の詩人、作家、公民権運動家 / 1928～2014"]
[{"$f":"IFERROR(FIND(作業!$B$5,名言集!C833),IFERROR(FIND(作業!$B$5,名言集!D833),\"\"))","v":1},833,"悲しみは解ける、五月の雪のように、そんなに冷たいものなどはありはしないように。","ジョージ・ハーバート","英国の詩人 / 1593～1633"]
[{"$f":"IFERROR(FIND(作業!$B$5,名言集!C834),IFERROR(FIND(作業!$B$5,名言集!D834),\"\"))","v":1},834,"どんな悲しみや苦しみも必ず歳月が癒してくれます。そのことを京都では『日にち薬（ひにちぐすり）』と呼びます。時間こそが心の傷の妙薬なのです。","瀬戸内寂聴","日本の女性小説家、天台宗の尼僧 / 1922～"]
[{"$f":"IFERROR(FIND(作業!$B$5,名言集!C835),IFERROR(FIND(作業!$B$5,名言集!D835),\"\"))","v":1},{"$f":"IF(A835=\"\",B834,B834+1)","v":835},"心が痛い日だってそりゃあるわ。","マ・レイニー","米国の女性ブルース歌手 / 1886～1939"]
[{"$f":"IFERROR(FIND(作業!$B$5,名言集!C836),IFERROR(FIND(作業!$B$5,名言集!D836),\"\"))","v":1},836,"結婚するときはこう自問せよ。「年をとってもこの相手と会話ができるだろうか」そのほかは年月がたてばいずれ変化することだ。","ニーチェ","ドイツの哲学者、古典文献学者 / 1844～1900"]
[{"$f":"IFERROR(FIND(作業!$B$5,名言集!C837),IFERROR(FIND(作業!$B$5,名言集!D837),\"\"))","v":1},837,"悪い夫を手に入れる女性は、たいがい結婚を急ぎ過ぎた人です。よい夫を得られるなら、いくら結婚が遅れても、遅すぎることはありません。","デフォー","英国の作家、ジャーナリスト / 1660～1731"]
[{"$f":"IFERROR(FIND(作業!$B$5,名言集!C838),IFERROR(FIND(作業!$B$5,名言集!D838),\"\"))","v":1},838,"結婚の契約をしてからでなければ恋をしないというのは、小説を終わりから読み始めるようなものである。","モリエール","フランスの劇作家、古典主義の三大作家 / 1622～1673"]
[{"$f":"IFERROR(FIND(作業!$B$5,名言集!C839),IFERROR(FIND(作業!$B$5,名言集!D839),\"\"))","v":1},839,"不幸な結婚の半数は、当事者の一方が憐憫の気持ちからする気になった結婚です。","モンテルラン","フランスの作家、随筆家 / 1895～1972"]
[{"$f":"IFERROR(FIND(作業!$B$5,名言集!C840),IFERROR(FIND(作業!$B$5,名言集!D840),\"\"))","v":1},840,"運命のひとは必ずあらわれる。ただ彼は今頃アフリカあたりにいて、しかも徒歩でこっちに向っているにちがいないわ。","オプラ・ウィンフリー","米国の女性テレビ司会者、女優 / 1954～"]
[{"$f":"IFERROR(FIND(作業!$B$5,名言集!C841),IFERROR(FIND(作業!$B$5,名言集!D841),\"\"))","v":1},841,"結婚の幸福は、まったく運次第ですもの。お互いに気心がわかっていても、前もって似ていても、そんなことで幸せが増すというわけのものじゃないわ。","ジェーン・オースティン","英国の女性作家 / 1775～1817"]
[{"$f":"IFERROR(FIND(作業!$B$5,名言集!C842),IFERROR(FIND(作業!$B$5,名言集!D842),\"\"))","v":1},842,"幸福な結婚というのは、いつでも離婚できる状態でありながら、離婚したくない状態である。","大庭みな子","日本の女性小説家、1930～2007"]
[{"$f":"IFERROR(FIND(作業!$B$5,名言集!C843),IFERROR(FIND(作業!$B$5,名言集!D843),\"\"))","v":1},843,"結婚するものも仕合わせだし、しないものも仕合わせだ。どっちにも人間としての喜びがある。","武者小路実篤","日本の小説家、詩人、劇作家、画家 / 1885～1976"]
[{"$f":"IFERROR(FIND(作業!$B$5,名言集!C844),IFERROR(FIND(作業!$B$5,名言集!D844),\"\"))","v":1},844,"もし結婚するなら、どっぷりと結婚していたいの。","オードリー・ヘップバーン","英国の女優 / 1929～1993"]
[{"$f":"IFERROR(FIND(作業!$B$5,名言集!C845),IFERROR(FIND(作業!$B$5,名言集!D845),\"\"))","v":1},845,"結婚というものは、男子の魅力がどうのこうのといったことよりは、男子の思慮分別の有る無しのほうが、ずっと大事な問題なのよ。","マリヴォー","フランスの劇作家 / 1688～1763"]
[{"$f":"IFERROR(FIND(作業!$B$5,名言集!C846),IFERROR(FIND(作業!$B$5,名言集!D846),\"\"))","v":1},846,"男がほんとうに女に贈り物をしたいと思ったら結婚するものよ。","ココ・シャネル","フランスのファッションデザイナー / 1883～1971"]
[{"$f":"IFERROR(FIND(作業!$B$5,名言集!C847),IFERROR(FIND(作業!$B$5,名言集!D847),\"\"))","v":1},847,"他人の好みにかなう妻より、自分の好みにかなう妻を求めよ。","ルソー","現在スイスの都市のジュネーヴ共和国出身の哲学者 / 1712～1778"]
[{"$f":"IFERROR(FIND(作業!$B$5,名言集!C848),IFERROR(FIND(作業!$B$5,名言集!D848),\"\"))","v":1},848,"金のために結婚するものは悪い人間であり、恋のために結婚するのは愚かな人間である。","サミュエル・ジョンソン","英国の詩人、批評家、文献学者 / 1709～1784"]
[{"$f":"IFERROR(FIND(作業!$B$5,名言集!C849),IFERROR(FIND(作業!$B$5,名言集!D849),\"\"))","v":1},849,"急いで結婚する必要はない。結婚は果物と違って、いくら遅くても季節はずれになることはない。","トルストイ","ロシアの小説家、思想家 / 1828～1910"]
[{"$f":"IFERROR(FIND(作業!$B$5,名言集!C850),IFERROR(FIND(作業!$B$5,名言集!D850),\"\"))","v":1},850,"もし女性が一人でいる時にしていることを知れば、男性は決して結婚しないだろう。","オー・ヘンリー","米国の小説家 / 1862～1910"]
[{"$f":"IFERROR(FIND(作業!$B$5,名言集!C851),IFERROR(FIND(作業!$B$5,名言集!D851),\"\"))","v":1},851,"結婚はまさしく相互の誤解にもとづくものである。","オスカー・ワイルド","アイルランドの詩人、作家、劇作家 / 1854～1900"]
[{"$f":"IFERROR(FIND(作業!$B$5,名言集!C852),IFERROR(FIND(作業!$B$5,名言集!D852),\"\"))","v":1},852,"結婚は、自己と同等のごとき者とすべし。自己よりまさる相手は伴侶にあらず。主人を得ることになる。","クレオブロス","古代ギリシアの七賢人の一人 / 紀元前6世紀頃"]
[{"$f":"IFERROR(FIND(作業!$B$5,名言集!C853),IFERROR(FIND(作業!$B$5,名言集!D853),\"\"))","v":1},853,"美貌や愛欲によって結ばれた結婚ほど、早く紛争を起こして失敗するものはない。結婚には、一定して変ることのないしっかりとした土台と、堅実にして慎重な行動が必要である。沸き立つような歓喜は、何の役にも立たない。","モンテーニュ","フランスの哲学者、モラリスト / 1533～1592"]
[{"$f":"IFERROR(FIND(作業!$B$5,名言集!C854),IFERROR(FIND(作業!$B$5,名言集!D854),\"\"))","v":1},854,"理想の夫、理想の妻を得ようとするから失望するのだ。凡夫と凡婦が結婚するのである。","亀井勝一郎","日本の文芸評論家 / 1907～1966"]
[{"$f":"IFERROR(FIND(作業!$B$5,名言集!C855),IFERROR(FIND(作業!$B$5,名言集!D855),\"\"))","v":1},855,"結婚生活はすべての文化の始めであり、頂上である。それは乱暴者を穏やかにし、教養の高い者にとっては、その温情を証明する最上の機会である。","ゲーテ","ドイツの詩人、小説家、劇作家 / 1749～1832"]
[{"$f":"IFERROR(FIND(作業!$B$5,名言集!C856),IFERROR(FIND(作業!$B$5,名言集!D856),\"\"))","v":1},856,"男は結婚するまで幸せとは何かを理解できないんだ。結婚するときにはもう手遅れさ。","フランク・シナトラ","米国のジャズ・ポピュラー歌手、俳優 / 1915～1998"]
[{"$f":"IFERROR(FIND(作業!$B$5,名言集!C857),IFERROR(FIND(作業!$B$5,名言集!D857),\"\"))","v":1},857,"愛すべき尊敬する人を見つけて、その人のために自分の人生を送ったら、僕たちは最も暖かいベッドを手に入れられる。","リチャード・バック","米国の作家『かもめのジョナサン』著者 / 1936～"]
[{"$f":"IFERROR(FIND(作業!$B$5,名言集!C858),IFERROR(FIND(作業!$B$5,名言集!D858),\"\"))","v":1},858,"結婚は個人を孤独から救い、彼らの家庭と子供を与えて空間の中に安定させる。生存の決定的な目的遂行である。","ボーヴォワール","フランスの女性作家、哲学者 / 1908～1986"]
[{"$f":"IFERROR(FIND(作業!$B$5,名言集!C859),IFERROR(FIND(作業!$B$5,名言集!D859),\"\"))","v":1},859,"その女性がもし男であったならきっと友達に選んだろう、と思われるような女でなければ妻に選んではいけない。","ジュベール","フランスのモラリスト、随筆家 / 1754～1824"]
[{"$f":"IFERROR(FIND(作業!$B$5,名言集!C860),IFERROR(FIND(作業!$B$5,名言集!D860),\"\"))","v":1},860,"結婚生活に幸福を期待しすぎて、失望しないように気をつけなさい。ウグイスは春に2、3ヶ月だけは鳴くが、卵をかえしてしまうと、あとはずっと鳴かないものだ。","トーマス・フラー","英国の聖職者、歴史家 / 1608～1661"]
[{"$f":"IFERROR(FIND(作業!$B$5,名言集!C861),IFERROR(FIND(作業!$B$5,名言集!D861),\"\"))","v":1},861,"よい女房をもらおうと思ったら、ダンスの輪の中から選ばずに、畑で働いている女性の中から選ばなくてはならない。","プリボイ","ロシアの作家 / 1877～1944"]
[{"$f":"IFERROR(FIND(作業!$B$5,名言集!C862),IFERROR(FIND(作業!$B$5,名言集!D862),\"\"))","v":1},862,"三週間互いに研究しあい、三ヶ月間愛し合い、三年間喧嘩をし、三十年間我慢しあう。そして子供達が同じことをまた始める。","イポリット・テーヌ","フランスの哲学者、批評家、文学史家 / 1828～1893"]
[{"$f":"IFERROR(FIND(作業!$B$5,名言集!C863),IFERROR(FIND(作業!$B$5,名言集!D863),\"\"))","v":1},863,"正しい結婚生活を送るのはよい。しかし、それよりもさらによいのは、ぜんぜん結婚をしないことだ。そういうことのできる人はまれにしかいないが、そういうことのできる人は実に幸せだ。","トルストイ","ロシアの小説家、思想家 / 1828～1910"]
[{"$f":"IFERROR(FIND(作業!$B$5,名言集!C864),IFERROR(FIND(作業!$B$5,名言集!D864),\"\"))","v":1},864,"女の天性には母性と娘性があって、妻性はない。妻性は無理に作られたもので、母性と娘性との混合でしかない。","魯迅","中国の小説家、思想家 / 1881～1936"]
[{"$f":"IFERROR(FIND(作業!$B$5,名言集!C865),IFERROR(FIND(作業!$B$5,名言集!D865),\"\"))","v":1},865,"自分自身によかれと思う者は、好ましく心やさしい妻をめとるがいい。さもなければ、いっそめとらぬがいい。","シラー","ドイツの詩人、歴史学者、劇作家、思想家 / 1759～1805"]
[{"$f":"IFERROR(FIND(作業!$B$5,名言集!C866),IFERROR(FIND(作業!$B$5,名言集!D866),\"\"))","v":1},866,"どんな女も結婚すべきであり、どんな男も結婚すべきではない。","ベンジャミン・ディズレーリ","英国の政治家、小説家 / 1804～1881"]
[{"$f":"IFERROR(FIND(作業!$B$5,名言集!C867),IFERROR(FIND(作業!$B$5,名言集!D867),\"\"))","v":1},867,"結婚なんてつまらない。死ぬまで夫婦の約束を守らなくちゃならないんだもの。そんなバカげた約束を誰ができて？明日どんな風が吹くか、神様だってご存知ないわ。","ミア・ファロー","米国の女優 / 1945～"]
[{"$f":"IFERROR(FIND(作業!$B$5,名言集!C868),IFERROR(FIND(作業!$B$5,名言集!D868),\"\"))","v":1},868,"結婚のひとつの魅力は、双方にとってだまし合いの生活が絶対必要となることだ。","オスカー・ワイルド","アイルランドの詩人、作家、劇作家 / 1854～1900"]
[{"$f":"IFERROR(FIND(作業!$B$5,名言集!C869),IFERROR(FIND(作業!$B$5,名言集!D869),\"\"))","v":1},869,"結婚するとき、私は女房を食べてしまいたいほど可愛いと思った。今考えると、あのとき食べておけばよかった。","アーサー・ゴッドフリー","米国のブロードキャスター / 1903～1983"]
[{"$f":"IFERROR(FIND(作業!$B$5,名言集!C870),IFERROR(FIND(作業!$B$5,名言集!D870),\"\"))","v":1},870,"結婚とは、同情か征服かのいずれかの関係である。","ジョージ・エリオット","英国の女性作家 / 1819～1880"]
[{"$f":"IFERROR(FIND(作業!$B$5,名言集!C871),IFERROR(FIND(作業!$B$5,名言集!D871),\"\"))","v":1},871,"娘が自分で惚れた男というのは、父親の目にはいつだって一番つまらない男に見えるものだ。","ドストエフスキー","ロシアの小説家、思想家 / 1821～1881"]
[{"$f":"IFERROR(FIND(作業!$B$5,名言集!C872),IFERROR(FIND(作業!$B$5,名言集!D872),\"\"))","v":1},872,"結婚生活をいくらでもほめたたえてよい。しかし自分自身は独身でいたまえ。","フィールディング","英国の劇作家、小説家 / 1707～1754"]
[{"$f":"IFERROR(FIND(作業!$B$5,名言集!C873),IFERROR(FIND(作業!$B$5,名言集!D873),\"\"))","v":1},873,"できるだけ早く結婚することは女のビジネスであり、できるだけ結婚しないでいることは男のビジネスである。","バーナード・ショー","アイルランドの劇作家、ノーベル文学賞受賞 / 1856～1950"]
[{"$f":"IFERROR(FIND(作業!$B$5,名言集!C874),IFERROR(FIND(作業!$B$5,名言集!D874),\"\"))","v":1},874,"結婚して、女らしい気持ちになって、自分に誇りをもったわ。だからすさんだ気分にならないの。はじめて自分が保護されているという感じがするわ。","マリリン・モンロー","米国の女優 / 1926～1962"]
[{"$f":"IFERROR(FIND(作業!$B$5,名言集!C875),IFERROR(FIND(作業!$B$5,名言集!D875),\"\"))","v":1},875,"二人の結婚は美しかった。なぜなら彼女は離婚する力を持っていたから。二人の離婚もまた美しかった。なぜなら彼女は友達となれる心を持っていたから。","川端康成","日本の小説家、ノーベル文学賞受賞 / 1899～1972"]
[{"$f":"IFERROR(FIND(作業!$B$5,名言集!C876),IFERROR(FIND(作業!$B$5,名言集!D876),\"\"))","v":1},876,"人は無我夢中に急いで結婚するから一生悔いることになる。","モリエール","フランスの劇作家、古典主義の三大作家 / 1622～1673"]
[{"$f":"IFERROR(FIND(作業!$B$5,名言集!C877),IFERROR(FIND(作業!$B$5,名言集!D877),\"\"))","v":1},877,"結婚とは、幻想を父とし、必要性を母として生まれるものである。","ニーチェ","ドイツの哲学者、古典文献学者 / 1844～1900"]
[{"$f":"IFERROR(FIND(作業!$B$5,名言集!C878),IFERROR(FIND(作業!$B$5,名言集!D878),\"\"))","v":1},878,"人間の一生のあらゆる行動のうちで、結婚は他人に関係することの最も少なきものである。だがそれはまた、あらゆる行動の中で他人に干渉されることの最も多きものである。","セルデン","詳細不明"]
[{"$f":"IFERROR(FIND(作業!$B$5,名言集!C879),IFERROR(FIND(作業!$B$5,名言集!D879),\"\"))","v":1},879,"長いこと結婚指輪が活躍してくれましたわ。誘惑からも守ってくれました。パーティーでは夫を何度も思い出させてくれ、もう帰る時間よとうながしてくれました。夕食のお相手をホッとさせたこともありますし、産科の病室では結婚指輪がステータスシンボルでした。","エルマ・ボンベック","米国の女性ユーモア作家 / 1927～1996"]
[{"$f":"IFERROR(FIND(作業!$B$5,名言集!C880),IFERROR(FIND(作業!$B$5,名言集!D880),\"\"))","v":1},880,"結婚とはセルフサービスの食事のようなものだ。自分の欲しい料理を選んだ後で、隣りの人たちのお皿の中身を見る。そして、どうして自分は彼らと同じ物を選ばなかったのだろうと自問するのである。","ジョージ・メレディス","英国の小説家 / 1828～1909"]
[{"$f":"IFERROR(FIND(作業!$B$5,名言集!C881),IFERROR(FIND(作業!$B$5,名言集!D881),\"\"))","v":1},881,"四十歳を過ぎると、男は自分の習慣と結婚してしまう。","ジョージ・メレディス","英国の小説家 / 1828～1909"]
[{"$f":"IFERROR(FIND(作業!$B$5,名言集!C882),IFERROR(FIND(作業!$B$5,名言集!D882),\"\"))","v":1},882,"あらゆる人間の闘争のうちで、男の芸術家と母としての女の闘争ほど、残忍かつ悲惨なものはない。","バーナード・ショー","アイルランドの劇作家、ノーベル文学賞受賞 / 1856～1950"]
[{"$f":"IFERROR(FIND(作業!$B$5,名言集!C883),IFERROR(FIND(作業!$B$5,名言集!D883),\"\"))","v":1},883,"日曜学校のクラスに金髪の美しい少女がいた。私は一目ぼれだった。妻となった今も私の気持ちは変わっていない。","ハリー・S・トルーマン","米国の元大統領 / 1884～1972"]
[{"$f":"IFERROR(FIND(作業!$B$5,名言集!C884),IFERROR(FIND(作業!$B$5,名言集!D884),\"\"))","v":1},884,"私の業績の中で最も輝かしいことは、妻を説得して私との結婚に同意させたことである。","ウィンストン・チャーチル","英国の政治家、ノーベル文学賞受賞 / 1874～1965"]
[{"$f":"IFERROR(FIND(作業!$B$5,名言集!C885),IFERROR(FIND(作業!$B$5,名言集!D885),\"\"))","v":1},885,"結婚前には両目を大きく開いて見よ。結婚してからは片目を閉じよ。","トーマス・フラー","英国の聖職者、歴史家 / 1608～1661"]
[{"$f":"IFERROR(FIND(作業!$B$5,名言集!C886),IFERROR(FIND(作業!$B$5,名言集!D886),\"\"))","v":1},886,"なぜ、美人はいつもつまらない男と結婚するんだろう？賢い男は美人と結婚しないからさ。","サマセット・モーム","英国の劇作家、小説家 / 1874～1965"]
[{"$f":"IFERROR(FIND(作業!$B$5,名言集!C887),IFERROR(FIND(作業!$B$5,名言集!D887),\"\"))","v":1},887,"結婚　–　いかなる羅針盤もかつて航路を発見したことのない荒海。","ハイネ","ドイツの詩人、作家、ジャーナリスト / 1797～1856"]
[{"$f":"IFERROR(FIND(作業!$B$5,名言集!C888),IFERROR(FIND(作業!$B$5,名言集!D888),\"\"))","v":1},888,"たくさん旅をして見聞をひろめなさい。結婚は急いじゃだめよ。そう、みんなに言っているのよ。","マムズ・マブリー","米国の女性コメディアン / 1894～1975"]
[{"$f":"IFERROR(FIND(作業!$B$5,名言集!C889),IFERROR(FIND(作業!$B$5,名言集!D889),\"\"))","v":1},889,"結婚には多くの苦痛があるが、独身には喜びがない。","サミュエル・ジョンソン","英国の詩人、批評家、文献学者 / 1709～1784"]
[{"$f":"IFERROR(FIND(作業!$B$5,名言集!C890),IFERROR(FIND(作業!$B$5,名言集!D890),\"\"))","v":1},890,"どうせどの夫を選んだって大差ないんだから、最初のをつかんでおけばいいのよ。","アデラ・ロジャーズ・セント・ジョンズ","米国の女性脚本家 / 1894～1988"]
[{"$f":"IFERROR(FIND(作業!$B$5,名言集!C891),IFERROR(FIND(作業!$B$5,名言集!D891),\"\"))","v":1},891,"立派な男性が求婚すれば、女性がそれを受諾しない理由はない、という考えにはまったく賛成できない。","ナイチンゲール","英国の看護師、社会起業家、看護教育学者 / 1820～1910"]
[{"$f":"IFERROR(FIND(作業!$B$5,名言集!C892),IFERROR(FIND(作業!$B$5,名言集!D892),\"\"))","v":1},892,"結婚の問題は、なによりも「生活」の問題です。それはかならずしも愛を条件とはしません。","倉橋由美子","日本の女性作家 / 1935～2005"]
[{"$f":"IFERROR(FIND(作業!$B$5,名言集!C893),IFERROR(FIND(作業!$B$5,名言集!D893),\"\"))","v":1},893,"結婚したまえ、君は後悔するだろう。結婚しないでいたまえ、君は後悔するだろう。","キルケゴール","デンマークの哲学者、実存主義の創始者 / 1813～1855"]
[{"$f":"IFERROR(FIND(作業!$B$5,名言集!C894),IFERROR(FIND(作業!$B$5,名言集!D894),\"\"))","v":1},894,"私が結婚するのはたったひとつの理由からよ。それは、愛。","マリリン・モンロー","米国の女優 / 1926～1962"]
[{"$f":"IFERROR(FIND(作業!$B$5,名言集!C895),IFERROR(FIND(作業!$B$5,名言集!D895),\"\"))","v":1},895,"人類は太古の昔から、帰りが遅いと心配してくれる人を必要としている。","マーガレット・ミード","米国の文化人類学者 / 1901～1978"]
[{"$f":"IFERROR(FIND(作業!$B$5,名言集!C896),IFERROR(FIND(作業!$B$5,名言集!D896),\"\"))","v":1},896,"人生のパートナーとして親友を持つために、必ずしも結婚する必要はないわ。","グレタ・ガルボ","スウェーデン出身のハリウッド女優 / 1905～1990"]
[{"$f":"IFERROR(FIND(作業!$B$5,名言集!C897),IFERROR(FIND(作業!$B$5,名言集!D897),\"\"))","v":1},897,"結婚をしないで、なんて私は馬鹿だったんでしょう。これまで見たものの中で最も美しかったものは、腕を組んで歩く老夫婦の姿でした。","グレタ・ガルボ","スウェーデン出身のハリウッド女優 / 1905～1990"]
[{"$f":"IFERROR(FIND(作業!$B$5,名言集!C898),IFERROR(FIND(作業!$B$5,名言集!D898),\"\"))","v":1},898,"とにかく結婚したまえ。良妻を持てば幸福になれるし、悪妻を持てば哲学者になれる。","ソクラテス","古代ギリシアの哲学者 / 紀元前469～399"]
[{"$f":"IFERROR(FIND(作業!$B$5,名言集!C899),IFERROR(FIND(作業!$B$5,名言集!D899),\"\"))","v":1},{"$f":"IF(A899=\"\",B898,B898+1)","v":899},"私は、マリリン・モンローを演じ続けるのがもう嫌だったの。私がアーサーに惹かれた理由のひとつは、彼が、ほかの誰でもない、私を欲しいと言ったからよ。心底から私自身を欲しいと言ったからなの。彼と結婚すれば、マリリン・モンローから遠ざかることができると思ったのに、違ったのよ。","マリリン・モンロー","米国の女優 / 1926～1962"]
[{"$f":"IFERROR(FIND(作業!$B$5,名言集!C900),IFERROR(FIND(作業!$B$5,名言集!D900),\"\"))","v":1},900,"結婚に成功する最も肝要な条件は、婚約時代に永遠のつながりを結びたいという意思が真剣であることだ。","アンドレ・モロワ","フランスの小説家・伝記作家・評論家 / 1885～1967"]
[{"$f":"IFERROR(FIND(作業!$B$5,名言集!C901),IFERROR(FIND(作業!$B$5,名言集!D901),\"\"))","v":1},901,"結婚するやつは馬鹿だ。しないやつはもっと馬鹿だ。","バーナード・ショー","アイルランドの劇作家、ノーベル文学賞受賞 / 1856～1950"]
[{"$f":"IFERROR(FIND(作業!$B$5,名言集!C902),IFERROR(FIND(作業!$B$5,名言集!D902),\"\"))","v":1},902,"自分でやっていけるだけのお金は稼いだから、独りでいるのはこわくない。","キャサリン・ヘプバーン","米国の女優 / 1907～2003"]
[{"$f":"IFERROR(FIND(作業!$B$5,名言集!C903),IFERROR(FIND(作業!$B$5,名言集!D903),\"\"))","v":1},903,"結婚は早すぎてもいけない、おそすぎてもいけない、無理が一番いけない、自然がいい。","武者小路実篤","日本の小説家、詩人、劇作家、画家 / 1885～1976"]
[{"$f":"IFERROR(FIND(作業!$B$5,名言集!C904),IFERROR(FIND(作業!$B$5,名言集!D904),\"\"))","v":1},904,"愛情のない結婚は悲劇だ。しかしまるっきり愛情のない結婚よりいっそう悪い結婚が一つある。それは、愛情はあるが片一方にだけ、という場合だ。","オスカー・ワイルド","アイルランドの詩人、作家、劇作家 / 1854～1900"]
[{"$f":"IFERROR(FIND(作業!$B$5,名言集!C905),IFERROR(FIND(作業!$B$5,名言集!D905),\"\"))","v":1},905,"恋のない結婚のあるところには、結婚のない恋が生まれることだろう。","ベンジャミン・フランクリン","米国の政治家、外交官、物理学者 / 1706～1790"]
[{"$f":"IFERROR(FIND(作業!$B$5,名言集!C906),IFERROR(FIND(作業!$B$5,名言集!D906),\"\"))","v":1},906,"女　–　それは男の活動にとって、大きなつまずきの石である。女に恋しながら何かをするということは困難である。だがここに、恋が妨げにならないたった一つの方法がある。それは恋する女と結婚することである。","トルストイ","ロシアの小説家、思想家 / 1828～1910"]
[{"$f":"IFERROR(FIND(作業!$B$5,名言集!C907),IFERROR(FIND(作業!$B$5,名言集!D907),\"\"))","v":1},907,"結婚のくわだてにおいては、各人が自分の考えの決定者であり、自ら問うてみるべきである。","フランソワ・ラブレー","フランスの人文主義者、作家 / 1483～1553"]
[{"$f":"IFERROR(FIND(作業!$B$5,名言集!C908),IFERROR(FIND(作業!$B$5,名言集!D908),\"\"))","v":1},908,"結婚はしてもしなくても後悔するものである。","カフカ","現在のチェコ出身の小説家、「変身」の著者 / 1883～1924"]
[{"$f":"IFERROR(FIND(作業!$B$5,名言集!C909),IFERROR(FIND(作業!$B$5,名言集!D909),\"\"))","v":1},909,"結婚とは、臆病者のまえに用意されたたった一つの冒険である。","ヴォルテール","フランスの哲学者、作家、文学者、歴史家 / 1694～1778"]
[{"$f":"IFERROR(FIND(作業!$B$5,名言集!C910),IFERROR(FIND(作業!$B$5,名言集!D910),\"\"))","v":1},910,"結婚は鳥かごに似ている。外にいる鳥は必死で中に入ろうとし、中にいる鳥は必死で逃げ出そうとする。","モンテーニュ","フランスの哲学者、モラリスト / 1533～1592"]
[{"$f":"IFERROR(FIND(作業!$B$5,名言集!C911),IFERROR(FIND(作業!$B$5,名言集!D911),\"\"))","v":1},911,"男は結婚するとき、女が変わらないことを望む。女は結婚するとき、男が変わることを望む。お互いに失望することは不可避だ。","アインシュタイン","理論物理学者、ノーベル物理学賞受賞 / 1879～1955"]
[{"$f":"IFERROR(FIND(作業!$B$5,名言集!C912),IFERROR(FIND(作業!$B$5,名言集!D912),\"\"))","v":1},912,"妻は、やさしくされることを望んでいるだけではない。やさしい心で理解されることを望んでいる。","瀬戸内寂聴","日本の女性小説家、天台宗の尼僧 / 1922～"]
[{"$f":"IFERROR(FIND(作業!$B$5,名言集!C913),IFERROR(FIND(作業!$B$5,名言集!D913),\"\"))","v":1},913,"いっしょに何かを「する」必要なんか少しも感じないで、しかもいっしょに「いる」ということ。これこそが結婚の本質である。","シュワルツ","詳細不明"]
[{"$f":"IFERROR(FIND(作業!$B$5,名言集!C914),IFERROR(FIND(作業!$B$5,名言集!D914),\"\"))","v":1},914,"どちらも相手を通して、自分個人の目標を何か達成しようとするような夫婦関係はうまくいく。例えば妻が夫によって有名になろうとし、夫が妻を通して愛されようとするような場合である。","ニーチェ","ドイツの哲学者、古典文献学者 / 1844～1900"]
[{"$f":"IFERROR(FIND(作業!$B$5,名言集!C915),IFERROR(FIND(作業!$B$5,名言集!D915),\"\"))","v":1},915,"同床異夢（どうしょういむ）とは、同じ布団で寝ていても同じ夢は見られないことです。愛の情熱は三年位しか続きません。夫婦は苦楽を共にして愛情を持ち続けるのです。","瀬戸内寂聴","日本の女性小説家、天台宗の尼僧 / 1922～"]
[{"$f":"IFERROR(FIND(作業!$B$5,名言集!C916),IFERROR(FIND(作業!$B$5,名言集!D916),\"\"))","v":1},916,"昔は、結婚というものはハナから辛いものだと覚悟していた。今みたいに夢なんか抱いていなかった。花嫁は泣きながら嫁に行ったんです。だから僅かな幸せを喜べた。つまりマイナスから始まっていたのでちょっとしたプラスがすべて幸せになり、結婚も上手く行っていたんです。","美輪明宏","日本のシンガーソングライター、俳優、演出家 / 1935～"]
[{"$f":"IFERROR(FIND(作業!$B$5,名言集!C917),IFERROR(FIND(作業!$B$5,名言集!D917),\"\"))","v":1},917,"もし結婚生活が暗礁に乗り上げそうになったら、自分の伴侶の好ましいところと、夫や妻としての自分の至らないところを表にして比較してはどうか。人生の転機となるかも知れない。","デール・カーネギー","米国の実業家、ビジネスセミナー講師 / 1888～1955"]
[{"$f":"IFERROR(FIND(作業!$B$5,名言集!C918),IFERROR(FIND(作業!$B$5,名言集!D918),\"\"))","v":1},918,"結婚に必要なものは、コミュニケーション。そして一人になれる場所があること。","ベティ・デイヴィス","米国の女優、アカデミー主演女優賞受賞 / 1908～1989"]
[{"$f":"IFERROR(FIND(作業!$B$5,名言集!C919),IFERROR(FIND(作業!$B$5,名言集!D919),\"\"))","v":1},919,"すべての女性は彼女の母親に似るようになる。それが女の悲劇だ。男は彼の母親の思い通りにならない。それが男の悲劇だ。","オスカー・ワイルド","アイルランドの詩人、作家、劇作家 / 1854～1900"]
[{"$f":"IFERROR(FIND(作業!$B$5,名言集!C920),IFERROR(FIND(作業!$B$5,名言集!D920),\"\"))","v":1},920,"世間的に申し分のない夫や妻であっても、相手が欲していなければ、それは悪夫、悪妻です。そんな時はさっさと別れて、自分の良さを認めてくれる相手を探すことです。","瀬戸内寂聴","日本の女性小説家、天台宗の尼僧 / 1922～"]
[{"$f":"IFERROR(FIND(作業!$B$5,名言集!C921),IFERROR(FIND(作業!$B$5,名言集!D921),\"\"))","v":1},921,"自分の妻や夫を自分の思うように変えようなどと思ってはいけません。その試みは愚かです。そんなことができると思ってはなりません。人は自分で変わろうと思わないかぎり、変わることなどできはしないのです。","ジョセフ・マーフィー","アイルランド出身の宗教者、著述家 / 1898～1981"]
[{"$f":"IFERROR(FIND(作業!$B$5,名言集!C922),IFERROR(FIND(作業!$B$5,名言集!D922),\"\"))","v":1},922,"僕が思うにだ、女は女の生活をしようとする。男は男の生活をしようとする。そしてお互いに、相手を引っ張り合って、とんでもない方向に行ってしまうんだ。","バーナード・ショー","アイルランドの劇作家、ノーベル文学賞受賞 / 1856～1950"]
[{"$f":"IFERROR(FIND(作業!$B$5,名言集!C923),IFERROR(FIND(作業!$B$5,名言集!D923),\"\"))","v":1},923,"男と夫とは同じものではない。同様に女と妻も同じものではない。","アルベール・カミュ","フランスの小説家、ノーベル文学賞受賞 / 1913～1960"]
[{"$f":"IFERROR(FIND(作業!$B$5,名言集!C924),IFERROR(FIND(作業!$B$5,名言集!D924),\"\"))","v":1},924,"結婚しても愛することはできる。しかし結婚すれば今まで以上に働かねばならない。働いて働いて、その結果、愛することを忘れてしまうのである。","アルベール・カミュ","フランスの小説家、ノーベル文学賞受賞 / 1913～1960"]
[{"$f":"IFERROR(FIND(作業!$B$5,名言集!C925),IFERROR(FIND(作業!$B$5,名言集!D925),\"\"))","v":1},925,"現代の女性は、あらゆることを理解する。ただ、自分の亭主のことだけは理解しない。","オスカー・ワイルド","アイルランドの詩人、作家、劇作家 / 1854～1900"]
[{"$f":"IFERROR(FIND(作業!$B$5,名言集!C926),IFERROR(FIND(作業!$B$5,名言集!D926),\"\"))","v":1},926,"母親は、夫よりも自分の子供の方を好む、何故ならば、彼らは自分のものであることがより確かであるから。","アリストテレス","古代ギリシアの哲学者 / 紀元前384～前322"]
[{"$f":"IFERROR(FIND(作業!$B$5,名言集!C927),IFERROR(FIND(作業!$B$5,名言集!D927),\"\"))","v":1},927,"しっかりと根をおろしている2本の木は、ある程度離れていて、なおかつその枝が近くにあったらよい。一緒になった葉を通るそよ風がさわやかな音楽を奏でる。","ハビエル・ガラルダ","スペイン出身のイエズス会司祭 / 1931～"]
[{"$f":"IFERROR(FIND(作業!$B$5,名言集!C928),IFERROR(FIND(作業!$B$5,名言集!D928),\"\"))","v":1},928,"幸せな結婚の秘訣は、どれだけ相性が良いかではなく、相性の悪さをどうやって乗り越えるかにある。","ジョージ・レビンガー","米国の心理学者"]
[{"$f":"IFERROR(FIND(作業!$B$5,名言集!C929),IFERROR(FIND(作業!$B$5,名言集!D929),\"\"))","v":1},929,"口やかましい妻というのは、夫の注意や感謝を望んでいるのです。つまりは愛情を渇望しているのです。彼女の美点はほめたたえなさい。彼女に注意し、感謝していることを示しなさい。","ジョセフ・マーフィー","アイルランド出身の宗教者、著述家 / 1898～1981"]
[{"$f":"IFERROR(FIND(作業!$B$5,名言集!C930),IFERROR(FIND(作業!$B$5,名言集!D930),\"\"))","v":1},930,"夫婦間の愛情というものは、お互いがすっかり鼻についてから、やっと湧き出してくるものなのです。","オスカー・ワイルド","アイルランドの詩人、作家、劇作家 / 1854～1900"]
[{"$f":"IFERROR(FIND(作業!$B$5,名言集!C931),IFERROR(FIND(作業!$B$5,名言集!D931),\"\"))","v":1},931,"決して一か八かというきわどいところまで進んではいけない。それが夫婦生活の第一の秘訣である。","ドストエフスキー","ロシアの小説家、思想家 / 1821～1881"]
[{"$f":"IFERROR(FIND(作業!$B$5,名言集!C932),IFERROR(FIND(作業!$B$5,名言集!D932),\"\"))","v":1},932,"よい結婚というものが極めて少ないことは、それがいかに貴重で、偉大なものであるかという証拠である。","モンテーニュ","フランスの哲学者、モラリスト / 1533～1592"]
[{"$f":"IFERROR(FIND(作業!$B$5,名言集!C933),IFERROR(FIND(作業!$B$5,名言集!D933),\"\"))","v":1},933,"嫉妬とは妻が疑わしくなることではなく、自分自身が疑わしくなることである。","バルザック","フランスの小説家 / 1799～1850"]
[{"$f":"IFERROR(FIND(作業!$B$5,名言集!C934),IFERROR(FIND(作業!$B$5,名言集!D934),\"\"))","v":1},934,"公的な生活でどんなに成功しても、家庭での失敗を補うことはできない。","ベンジャミン・ディズレーリ","英国の政治家、小説家 / 1804～1881"]
[{"$f":"IFERROR(FIND(作業!$B$5,名言集!C935),IFERROR(FIND(作業!$B$5,名言集!D935),\"\"))","v":1},935,"全ての夫婦は新しくなければならぬ。新しい夫婦は美しくなければならぬ。新しく美しき夫婦は幸福でなければならぬ。","夏目漱石","日本の小説家、評論家、英文学者 / 1867～1916"]
[{"$f":"IFERROR(FIND(作業!$B$5,名言集!C936),IFERROR(FIND(作業!$B$5,名言集!D936),\"\"))","v":1},936,"夫婦生活は長い会話である。","ニーチェ","ドイツの哲学者、古典文献学者 / 1844～1900"]
[{"$f":"IFERROR(FIND(作業!$B$5,名言集!C937),IFERROR(FIND(作業!$B$5,名言集!D937),\"\"))","v":1},937,"ときどき嫉妬をしない結婚生活なんてひどく味気ないわ。でも、嫉妬はステーキにかける塩のようなもの。ほんのちょっと必要なだけ。","マリリン・モンロー","米国の女優 / 1926～1962"]
[{"$f":"IFERROR(FIND(作業!$B$5,名言集!C938),IFERROR(FIND(作業!$B$5,名言集!D938),\"\"))","v":1},938,"家計のバランスは自然にとれるものではありません。毎年努力してバランスをとるものです。","マーガレット・サッチャー","英国初の女性首相 / 1925～2013"]
[{"$f":"IFERROR(FIND(作業!$B$5,名言集!C939),IFERROR(FIND(作業!$B$5,名言集!D939),\"\"))","v":1},939,"夫婦の相性は人それぞれ。同じ目的を持ち、同士のような関係の夫婦は深い絆で結ばれている。","美輪明宏","日本のシンガーソングライター、俳優、演出家 / 1935～"]
[{"$f":"IFERROR(FIND(作業!$B$5,名言集!C940),IFERROR(FIND(作業!$B$5,名言集!D940),\"\"))","v":1},940,"幸福な結婚においては、恋愛の上にいつか美しい友情が接木されます。この友情は心と肉体と頭脳に同時に結びついているだけにいっそう堅固なのであります。","アンドレ・モロワ","フランスの小説家・伝記作家・評論家 / 1885～1967"]
[{"$f":"IFERROR(FIND(作業!$B$5,名言集!C941),IFERROR(FIND(作業!$B$5,名言集!D941),\"\"))","v":1},941,"男と女が結婚したときには、彼らの小説は終わりを告げ、彼らの歴史が始まるだろう。","ロミュビリュズ","詳細不明"]
[{"$f":"IFERROR(FIND(作業!$B$5,名言集!C942),IFERROR(FIND(作業!$B$5,名言集!D942),\"\"))","v":1},942,"すべてに手を取り合って、ともに成長していくもの。","ロザリン・カーター","米国のファーストレディー / 1927～"]
[{"$f":"IFERROR(FIND(作業!$B$5,名言集!C943),IFERROR(FIND(作業!$B$5,名言集!D943),\"\"))","v":1},943,"結婚生活で一番大切なものは忍耐である。","チェーホフ","ロシアの劇作家、小説家 / 1860～1904"]
[{"$f":"IFERROR(FIND(作業!$B$5,名言集!C944),IFERROR(FIND(作業!$B$5,名言集!D944),\"\"))","v":1},944,"夫婦の仲はあまりつづけて一緒にいると、冷めやすいし、くっついてばかりいると、損なわれやすい。知らない女性はどれも愛想がよく見える。","モンテーニュ","フランスの哲学者、モラリスト / 1533～1592"]
[{"$f":"IFERROR(FIND(作業!$B$5,名言集!C945),IFERROR(FIND(作業!$B$5,名言集!D945),\"\"))","v":1},945,"良い妻というものは、夫が秘密にしたいと思っている些細なことを常に知らぬふりをする。それが結婚生活の礼儀の基本である。","サマセット・モーム","英国の劇作家、小説家 / 1874～1965"]
[{"$f":"IFERROR(FIND(作業!$B$5,名言集!C946),IFERROR(FIND(作業!$B$5,名言集!D946),\"\"))","v":1},946,"結婚とは、男の権利を半分にして、義務を二倍にすることである。","ショーペンハウアー","ドイツの哲学者 / 1788～1860"]
[{"$f":"IFERROR(FIND(作業!$B$5,名言集!C947),IFERROR(FIND(作業!$B$5,名言集!D947),\"\"))","v":1},947,"男性が持っている最良の財産、あるいは最悪の財産、それはいずれにせよ自分の妻ということになる。","トーマス・フラー","英国の聖職者、歴史家 / 1608～1661"]
[{"$f":"IFERROR(FIND(作業!$B$5,名言集!C948),IFERROR(FIND(作業!$B$5,名言集!D948),\"\"))","v":1},948,"王国を統治するより、家庭を治めるほうが困難である。","モンテーニュ","フランスの哲学者、モラリスト / 1533～1592"]
[{"$f":"IFERROR(FIND(作業!$B$5,名言集!C949),IFERROR(FIND(作業!$B$5,名言集!D949),\"\"))","v":1},949,"もし夫が、愛されることに幸福を見出そうとするならば、本気で愛さないといけない。本当の情熱なら、向かうところ敵なしだと知るがいい。","バルザック","フランスの小説家 / 1799～1850"]
[{"$f":"IFERROR(FIND(作業!$B$5,名言集!C950),IFERROR(FIND(作業!$B$5,名言集!D950),\"\"))","v":1},950,"愛情には一つの法則しかない。それは愛する人を幸福にすることだ。","スタンダール","フランスの小説家『赤と黒』著者 / 1783～1842"]
[{"$f":"IFERROR(FIND(作業!$B$5,名言集!C951),IFERROR(FIND(作業!$B$5,名言集!D951),\"\"))","v":1},951,"男子は結婚によって女子の賢を知り、女子は結婚によって男子の愚を知る。","長谷川如是閑","日本のジャーナリスト、評論家、作家 / 1875～1969"]
[{"$f":"IFERROR(FIND(作業!$B$5,名言集!C952),IFERROR(FIND(作業!$B$5,名言集!D952),\"\"))","v":1},952,"女はよき夫を作る天才でなければならない。","バルザック","フランスの小説家 / 1799～1850"]
[{"$f":"IFERROR(FIND(作業!$B$5,名言集!C953),IFERROR(FIND(作業!$B$5,名言集!D953),\"\"))","v":1},953,"愛は支配しない、愛は育てる。","ゲーテ","ドイツの詩人、小説家、劇作家 / 1749～1832"]
[{"$f":"IFERROR(FIND(作業!$B$5,名言集!C954),IFERROR(FIND(作業!$B$5,名言集!D954),\"\"))","v":1},954,"今までは、散らかし放題散らかす側だったけど、これからは掃除もしなくちゃいけない。","ルシル・ボール","米国の喜劇女優 / 1911～1989"]
[{"$f":"IFERROR(FIND(作業!$B$5,名言集!C955),IFERROR(FIND(作業!$B$5,名言集!D955),\"\"))","v":1},955,"結婚生活はとてもよいものだ。しかしそれを習慣にしてしまうのは誤りだと思う。","サマセット・モーム","英国の劇作家、小説家 / 1874～1965"]
[{"$f":"IFERROR(FIND(作業!$B$5,名言集!C956),IFERROR(FIND(作業!$B$5,名言集!D956),\"\"))","v":1},956,"結婚して幸福になるには、汗の苦労を絶えず分かち合わねばならない。","ナポレオン・ボナパルト","フランスの皇帝、政治家、軍人 / 1769～1821"]
[{"$f":"IFERROR(FIND(作業!$B$5,名言集!C957),IFERROR(FIND(作業!$B$5,名言集!D957),\"\"))","v":1},957,"男と女、こうも違ったしかも複雑な2人の人間が、互いによく理解し愛し合うためには、一生を費やしてもまだ長すぎはしない。","オーギュスト・コント","フランスの哲学者 / 1798～1857"]
[{"$f":"IFERROR(FIND(作業!$B$5,名言集!C958),IFERROR(FIND(作業!$B$5,名言集!D958),\"\"))","v":1},958,"結婚とは諸君が諸君の全精神を注ぎ込まねばならぬものである。","イプセン","ノルウェーの劇作家、詩人 / 1828～1906"]
[{"$f":"IFERROR(FIND(作業!$B$5,名言集!C959),IFERROR(FIND(作業!$B$5,名言集!D959),\"\"))","v":1},959,"接吻は続かない。料理は続く。","ジョージ・メレディス","英国の小説家 / 1828～1909"]
[{"$f":"IFERROR(FIND(作業!$B$5,名言集!C960),IFERROR(FIND(作業!$B$5,名言集!D960),\"\"))","v":1},960,"結婚を成功させるには、何回も恋に落ちなきゃ。それもいつも同じ人にね。","ミニヨン・マクローリン","米国のジャーナリスト、作家 / 1913～1983"]
[{"$f":"IFERROR(FIND(作業!$B$5,名言集!C961),IFERROR(FIND(作業!$B$5,名言集!D961),\"\"))","v":1},961,"優雅は美貌と違ってすり切れない。それには生命があり、たえず新しくなる。したがって三十年の結婚生活の後にも、貞淑な妻に優雅ささえあれば、彼女は結婚の最初の日のように夫に気に入られる。","ルソー","現在スイスの都市のジュネーヴ共和国出身の哲学者 / 1712～1778"]
[{"$f":"IFERROR(FIND(作業!$B$5,名言集!C962),IFERROR(FIND(作業!$B$5,名言集!D962),\"\"))","v":1},962,"細君の愛を他へ移さないようにするのは、夫の義務である。","夏目漱石","日本の小説家、評論家、英文学者 / 1867～1916"]
[{"$f":"IFERROR(FIND(作業!$B$5,名言集!C963),IFERROR(FIND(作業!$B$5,名言集!D963),\"\"))","v":1},{"$f":"IF(A963=\"\",B962,B962+1)","v":963},"女性は天使であるが、夫婦生活では悪魔である。","バイロン","英国の詩人 / 1788～1824"]
[{"$f":"IFERROR(FIND(作業!$B$5,名言集!C964),IFERROR(FIND(作業!$B$5,名言集!D964),\"\"))","v":1},964,"結婚してどこかにたどり着く必要はありません。結婚は公共交通機関ではないのです。","アイリス・マードック","アイルランドの女性作家、哲学者、詩人 / 1919～1999"]
[{"$f":"IFERROR(FIND(作業!$B$5,名言集!C965),IFERROR(FIND(作業!$B$5,名言集!D965),\"\"))","v":1},965,"すばらしき結婚は、盲目の妻と、耳の不自由な夫の間で生まれる。","モンテーニュ","フランスの哲学者、モラリスト / 1533～1592"]
[{"$f":"IFERROR(FIND(作業!$B$5,名言集!C966),IFERROR(FIND(作業!$B$5,名言集!D966),\"\"))","v":1},966,"生活がまず一番だ。人は生活しなければならない。愛情はそれにつれて生まれてくるものだ。","魯迅","中国の小説家、思想家 / 1881～1936"]
[{"$f":"IFERROR(FIND(作業!$B$5,名言集!C967),IFERROR(FIND(作業!$B$5,名言集!D967),\"\"))","v":1},967,"夫婦とは二つの半分になるのではなく、一つの全体になることだ。","ゴッホ","オランダ出身のポスト印象派の画家 / 1853～1890"]
[{"$f":"IFERROR(FIND(作業!$B$5,名言集!C968),IFERROR(FIND(作業!$B$5,名言集!D968),\"\"))","v":1},{"$f":"IF(A968=\"\",B967,B967+1)","v":968},"雨の日には雨の中を\r、風の日には風の中を。","相田みつを","日本の詩人・書家 / 1924～1991"]
[{"$f":"IFERROR(FIND(作業!$B$5,名言集!C969),IFERROR(FIND(作業!$B$5,名言集!D969),\"\"))","v":1},969,"名もない草も実をつける\r。いのちいっぱいの花を咲かせて。","相田みつを","日本の詩人・書家 / 1924～1991"]
[{"$f":"IFERROR(FIND(作業!$B$5,名言集!C970),IFERROR(FIND(作業!$B$5,名言集!D970),\"\"))","v":1},970,"だれにだってあるんだよ\r　ひとにはいえないくるしみが\r　だれにだってあるんだよ　ひとにはいえないかなしみが　ただだまっているだけなんだよ　いえば\rぐちになるから　","相田みつを","日本の詩人・書家 / 1924～1991"]
[{"$f":"IFERROR(FIND(作業!$B$5,名言集!C971),IFERROR(FIND(作業!$B$5,名言集!D971),\"\"))","v":1},971,"あなたがそこにただいるだけで　その場の空気が明るくなる　あなたがそこにただいるだけで　みんなの心がやすらぐ　そんなあなたに私もなりたい　","相田みつを","日本の詩人・書家 / 1924～1991"]
[{"$f":"IFERROR(FIND(作業!$B$5,名言集!C972),IFERROR(FIND(作業!$B$5,名言集!D972),\"\"))","v":1},972,"柔道の基本は受身　受身とは投げ飛ばされる練習\r　人の前で叩きつけられる練習　人の前でころぶ練習　人の前で負ける練習です　","相田みつを","日本の詩人・書家 / 1924～1991"]
[{"$f":"IFERROR(FIND(作業!$B$5,名言集!C973),IFERROR(FIND(作業!$B$5,名言集!D973),\"\"))","v":1},973,"背のびする自分。卑下する自分。どっちもいやだけど　どっちも自分","相田みつを","日本の詩人・書家 / 1924～1991"]
[{"$f":"IFERROR(FIND(作業!$B$5,名言集!C974),IFERROR(FIND(作業!$B$5,名言集!D974),\"\"))","v":1},974,"あのときの\r　あの苦しみも\r　あのときの　あの悲しみも　みんな肥料になったんだなあ　じぶんが自分になるための","相田みつを","日本の詩人・書家 / 1924～1991"]
[{"$f":"IFERROR(FIND(作業!$B$5,名言集!C975),IFERROR(FIND(作業!$B$5,名言集!D975),\"\"))","v":1},975,"澄んだ眼の底にある\r　深い憂いのわかる人間になろう\r　重い悲しみの見える眼を持とう　","相田みつを","日本の詩人・書家 / 1924～1991"]
[{"$f":"IFERROR(FIND(作業!$B$5,名言集!C976),IFERROR(FIND(作業!$B$5,名言集!D976),\"\"))","v":1},976,"セトモノとセトモノとぶつかりっこすると\r　すぐこわれちゃう\r　どっちかがやわらかければだいじょうぶ\r　やわらかいこころを持ちましょう　","相田みつを","日本の詩人・書家 / 1924～1991"]
[{"$f":"IFERROR(FIND(作業!$B$5,名言集!C977),IFERROR(FIND(作業!$B$5,名言集!D977),\"\"))","v":1},977,"他人のものさし\r　自分のものさし　それぞれ寸法がちがうんだな","相田みつを","日本の詩人・書家 / 1924～1991"]
[{"$f":"IFERROR(FIND(作業!$B$5,名言集!C978),IFERROR(FIND(作業!$B$5,名言集!D978),\"\"))","v":1},978,"その根っこは見えない　その見えないところに大事な点がある","相田みつを","日本の詩人・書家 / 1924～1991"]
[{"$f":"IFERROR(FIND(作業!$B$5,名言集!C979),IFERROR(FIND(作業!$B$5,名言集!D979),\"\"))","v":1},979,"七転八倒\r　つまづいたり\rころんだりするほうが\r　自然なんだな　人間だもの","相田みつを","日本の詩人・書家 / 1924～1991"]
[{"$f":"IFERROR(FIND(作業!$B$5,名言集!C980),IFERROR(FIND(作業!$B$5,名言集!D980),\"\"))","v":1},980,"負ける人のおかげで　勝てるんだよな","相田みつを","日本の詩人・書家 / 1924～1991"]
[{"$f":"IFERROR(FIND(作業!$B$5,名言集!C981),IFERROR(FIND(作業!$B$5,名言集!D981),\"\"))","v":1},981,"あたらしい門出をする者には　新しい道がひらける","相田みつを","日本の詩人・書家 / 1924～1991"]
[{"$f":"IFERROR(FIND(作業!$B$5,名言集!C982),IFERROR(FIND(作業!$B$5,名言集!D982),\"\"))","v":1},982,"おまえさんな\r　いま一体何が一番欲しい\r　あれもこれもじゃだめだよ\r　いのちがけでほしいものを\r　ただ一ツに的をしぼって言ってみな　","相田みつを","日本の詩人・書家 / 1924～1991"]
[{"$f":"IFERROR(FIND(作業!$B$5,名言集!C983),IFERROR(FIND(作業!$B$5,名言集!D983),\"\"))","v":1},983,"感動いっぱい　感激いっぱいの　いのちを生きたい","相田みつを","日本の詩人・書家 / 1924～1991"]
[{"$f":"IFERROR(FIND(作業!$B$5,名言集!C984),IFERROR(FIND(作業!$B$5,名言集!D984),\"\"))","v":1},984,"一生勉強　一生青春","相田みつを","日本の詩人・書家 / 1924～1991"]
[{"$f":"IFERROR(FIND(作業!$B$5,名言集!C985),IFERROR(FIND(作業!$B$5,名言集!D985),\"\"))","v":1},985,"受身が身につけば達人\r　まけることの尊さがわかるから","相田みつを","日本の詩人・書家 / 1924～1991"]
[{"$f":"IFERROR(FIND(作業!$B$5,名言集!C986),IFERROR(FIND(作業!$B$5,名言集!D986),\"\"))","v":1},986,"そのうち　そのうち　べんかいしながら日がくれる","相田みつを","日本の詩人・書家 / 1924～1991"]
[{"$f":"IFERROR(FIND(作業!$B$5,名言集!C987),IFERROR(FIND(作業!$B$5,名言集!D987),\"\"))","v":1},987,"毎日毎日の足跡が　おのずから人生の答えを出す\r　きれいな足跡には\r　きれいな水がたまる　","相田みつを","日本の詩人・書家 / 1924～1991"]
[{"$f":"IFERROR(FIND(作業!$B$5,名言集!C988),IFERROR(FIND(作業!$B$5,名言集!D988),\"\"))","v":1},988,"やり直しのきかない人生\r　待った無しの命","相田みつを","日本の詩人・書家 / 1924～1991"]
[{"$f":"IFERROR(FIND(作業!$B$5,名言集!C989),IFERROR(FIND(作業!$B$5,名言集!D989),\"\"))","v":1},989,"私の　このヘタな文字　つたない文章も　見てくれる人のおかげで書かせていただけるんです　「おかげさんで」でないものは　この世に一つもありません　\rみんな「おかげさんで」で成り立っているんです　","相田みつを","日本の詩人・書家 / 1924～1991"]
[{"$f":"IFERROR(FIND(作業!$B$5,名言集!C990),IFERROR(FIND(作業!$B$5,名言集!D990),\"\"))","v":1},990,"待ってもむだな\rことがある　待ってもだめな\rこともある　待ってむなしき\rことばかり　\rそれでもわたしは\rじっと待つ　","相田みつを","日本の詩人・書家 / 1924～1991"]
[{"$f":"IFERROR(FIND(作業!$B$5,名言集!C991),IFERROR(FIND(作業!$B$5,名言集!D991),\"\"))","v":1},991,"ぐちをこぼしたっていいがな\r　弱音を吐いたっていいがな　人間だもの　たまには涙をみせたっていいがな　生きているんだもの","相田みつを","日本の詩人・書家 / 1924～1991"]
[{"$f":"IFERROR(FIND(作業!$B$5,名言集!C992),IFERROR(FIND(作業!$B$5,名言集!D992),\"\"))","v":1},992,"その人の前に出ると\r絶対にうそが言えない\r　そういう人を持つといい","相田みつを","日本の詩人・書家 / 1924～1991"]
[{"$f":"IFERROR(FIND(作業!$B$5,名言集!C993),IFERROR(FIND(作業!$B$5,名言集!D993),\"\"))","v":1},993,"私がこの世に生れてきたのは　私でなければできない仕事が\r　何かひとつこの世にあるからなのだ","相田みつを","日本の詩人・書家 / 1924～1991"]
[{"$f":"IFERROR(FIND(作業!$B$5,名言集!C994),IFERROR(FIND(作業!$B$5,名言集!D994),\"\"))","v":1},994,"あなたの心がきれいだから　なんでもきれいに見えるんだなあ","相田みつを","日本の詩人・書家 / 1924～1991"]
[{"$f":"IFERROR(FIND(作業!$B$5,名言集!C995),IFERROR(FIND(作業!$B$5,名言集!D995),\"\"))","v":1},995,"なやみは\r　つきねんだなあ\r　生きているんだもの","相田みつを","日本の詩人・書家 / 1924～1991"]
[{"$f":"IFERROR(FIND(作業!$B$5,名言集!C996),IFERROR(FIND(作業!$B$5,名言集!D996),\"\"))","v":1},996,"人生において　最も大切な時\r　それはいつでも\r　いまです","相田みつを","日本の詩人・書家 / 1924～1991"]
[{"$f":"IFERROR(FIND(作業!$B$5,名言集!C997),IFERROR(FIND(作業!$B$5,名言集!D997),\"\"))","v":1},997,"毎日少しずつ\r　それがなかなかできねんだなあ","相田みつを","日本の詩人・書家 / 1924～1991"]
[{"$f":"IFERROR(FIND(作業!$B$5,名言集!C998),IFERROR(FIND(作業!$B$5,名言集!D998),\"\"))","v":1},998,"いいですか\r　いくらのろくてもかまいませんよ\r　たいせつなことはね　いつでも前をむいて\r　自分の足で\r　自分の道を歩くことですよ","相田みつを","日本の詩人・書家 / 1924～1991"]
[{"$f":"IFERROR(FIND(作業!$B$5,名言集!C999),IFERROR(FIND(作業!$B$5,名言集!D999),\"\"))","v":1},999,"花を支える枝\r　枝を支える幹\r　幹を支える根\r　根は見えねんだなあ","相田みつを","日本の詩人・書家 / 1924～1991"]
[{"$f":"IFERROR(FIND(作業!$B$5,名言集!C1000),IFERROR(FIND(作業!$B$5,名言集!D1000),\"\"))","v":1},1000,"身からでたサビだなあ\r　身に覚えがあるよ","相田みつを","日本の詩人・書家 / 1924～1991"]
[{"$f":"IFERROR(FIND(作業!$B$5,名言集!C1001),IFERROR(FIND(作業!$B$5,名言集!D1001),\"\"))","v":1},1001,"無理をしないで\r　なまけない私は\r　弱い人間だから","相田みつを","日本の詩人・書家 / 1924～1991"]
[{"$f":"IFERROR(FIND(作業!$B$5,名言集!C1002),IFERROR(FIND(作業!$B$5,名言集!D1002),\"\"))","v":1},1002,"トマトにねぇ\r　いくら肥料をやったってさ\r　メロンにはならねんだなあ","相田みつを","日本の詩人・書家 / 1924～1991"]
[{"$f":"IFERROR(FIND(作業!$B$5,名言集!C1003),IFERROR(FIND(作業!$B$5,名言集!D1003),\"\"))","v":1},1003,"わたしは　人間のほんとうの幸せとは「充実感のある生き方」だと思っています　","相田みつを","日本の詩人・書家 / 1924～1991"]
[{"$f":"IFERROR(FIND(作業!$B$5,名言集!C1004),IFERROR(FIND(作業!$B$5,名言集!D1004),\"\"))","v":1},1004,"美しいものを　美しいと思える\r　あなたの心が美しい　","相田みつを","日本の詩人・書家 / 1924～1991"]
[{"$f":"IFERROR(FIND(作業!$B$5,名言集!C1005),IFERROR(FIND(作業!$B$5,名言集!D1005),\"\"))","v":1},1005,"いのちがけでほしいものを\r　ただひとつに的をしぼって\r　言ってみな　","相田みつを","日本の詩人・書家 / 1924～1991"]
[{"$f":"IFERROR(FIND(作業!$B$5,名言集!C1006),IFERROR(FIND(作業!$B$5,名言集!D1006),\"\"))","v":1},1006,"あってもなくてもいいものは　ないほうがいいんだな　","相田みつを","日本の詩人・書家 / 1924～1991"]
[{"$f":"IFERROR(FIND(作業!$B$5,名言集!C1007),IFERROR(FIND(作業!$B$5,名言集!D1007),\"\"))","v":1},1007,"やれなかった\r　やらなかった\r　どっちかな　","相田みつを","日本の詩人・書家 / 1924～1991"]
[{"$f":"IFERROR(FIND(作業!$B$5,名言集!C1008),IFERROR(FIND(作業!$B$5,名言集!D1008),\"\"))","v":1},1008,"善悪　大小　かねの有る無し　社会的な地位の上下などという　","相田みつを","日本の詩人・書家 / 1924～1991"]
[{"$f":"IFERROR(FIND(作業!$B$5,名言集!C1009),IFERROR(FIND(作業!$B$5,名言集!D1009),\"\"))","v":1},1009,"人間の作った相対的な価値観を一切やめてみることです　","相田みつを","日本の詩人・書家 / 1924～1991"]
[{"$f":"IFERROR(FIND(作業!$B$5,名言集!C1010),IFERROR(FIND(作業!$B$5,名言集!D1010),\"\"))","v":1},1010,"自分が自分になりきるということは　いま　ここの　自分のいのちを\r　完全燃焼して生きることです　","相田みつを","日本の詩人・書家 / 1924～1991"]
[{"$f":"IFERROR(FIND(作業!$B$5,名言集!C1011),IFERROR(FIND(作業!$B$5,名言集!D1011),\"\"))","v":1},1011,"与えられた今日のいのちを\rイキイキはつらつと生きる　それが仏様の教えだと私は受け止めております　","相田みつを","日本の詩人・書家 / 1924～1991"]
[{"$f":"IFERROR(FIND(作業!$B$5,名言集!C1012),IFERROR(FIND(作業!$B$5,名言集!D1012),\"\"))","v":1},1012,"いいことはおかげさま　わるいことは身から出たさび　","相田みつを","日本の詩人・書家 / 1924～1991"]
[{"$f":"IFERROR(FIND(作業!$B$5,名言集!C1013),IFERROR(FIND(作業!$B$5,名言集!D1013),\"\"))","v":1},1013,"この自我　この我執を\rどう運転してゆくか　それが人生ではないか\rと私は思っております　そして　その一生の運転手は\r自分です　","相田みつを","日本の詩人・書家 / 1924～1991"]
[{"$f":"IFERROR(FIND(作業!$B$5,名言集!C1014),IFERROR(FIND(作業!$B$5,名言集!D1014),\"\"))","v":1},1014,"むりをしないで　なまけない　わたしは弱い人間だから　","相田みつを","日本の詩人・書家 / 1924～1991"]
[{"$f":"IFERROR(FIND(作業!$B$5,名言集!C1015),IFERROR(FIND(作業!$B$5,名言集!D1015),\"\"))","v":1},1015,"とにかく具体的に\r　動いてごらん…　\r具体的な答が出るから　","相田みつを","日本の詩人・書家 / 1924～1991"]
[{"$f":"IFERROR(FIND(作業!$B$5,名言集!C1016),IFERROR(FIND(作業!$B$5,名言集!D1016),\"\"))","v":1},1016,"どのような道を歩くとも　いのちいっぱいに\r生きればいいぞ　","相田みつを","日本の詩人・書家 / 1924～1991"]
[{"$f":"IFERROR(FIND(作業!$B$5,名言集!C1017),IFERROR(FIND(作業!$B$5,名言集!D1017),\"\"))","v":1},1017,"自分の心のどん底が\r納得しているかどうか　そこが大事　","相田みつを","日本の詩人・書家 / 1924～1991"]
[{"$f":"IFERROR(FIND(作業!$B$5,名言集!C1018),IFERROR(FIND(作業!$B$5,名言集!D1018),\"\"))","v":1},1018,"外灯というのは\r人のために つけるんだよな　わたしはどれだけ\r外灯を つけられるだろうか","相田みつを","日本の詩人・書家 / 1924～1991"]
[{"$f":"IFERROR(FIND(作業!$B$5,名言集!C1019),IFERROR(FIND(作業!$B$5,名言集!D1019),\"\"))","v":1},1019,"夢はでっかく\r　根はふかく　","相田みつを","日本の詩人・書家 / 1924～1991"]
[{"$f":"IFERROR(FIND(作業!$B$5,名言集!C1020),IFERROR(FIND(作業!$B$5,名言集!D1020),\"\"))","v":1},{"$f":"IF(A1020=\"\",B1019,B1019+1)","v":1020},"あなたの心がきれいだから\r　なんでもきれいに\r見えるんだなぁ","相田みつを","日本の詩人・書家 / 1924～1991"]
[{"$f":"IFERROR(FIND(作業!$B$5,名言集!C1021),IFERROR(FIND(作業!$B$5,名言集!D1021),\"\"))","v":1},1021,"毎日毎日の足跡が\rおのずから人生の答えを出す　きれいな足跡には\rきれいな水がたまる","相田みつを","日本の詩人・書家 / 1924～1991"]
[{"$f":"IFERROR(FIND(作業!$B$5,名言集!C1022),IFERROR(FIND(作業!$B$5,名言集!D1022),\"\"))","v":1},1022,"人生において\r最も大切な時　それはいつでも\r　いまです","相田みつを","日本の詩人・書家 / 1924～1991"]